Workbook

Sheet Datastream
A1: =_xll.Thomson.Reuters.AFOSpreadsheetFormulas.DSGRID("I:FCA,I:LUX,I:ENI,I:UCG"," ","2006-09-15","2010-09-15","D","RowHeader=true;ColHeader=true;Code=true;Curn=true;DispSeriesDescription=false;YearlyTSFormat=false;QuarterlyTSFormat=false","") ->  | B1: FIAT CHRYSLER AUTOS. | C1: LUXOTTICA | D1: ENI | E1: UNICREDIT | G1: RENDIMENTI (1043)
A2: Code | B2: I:FCA | C2: I:LUX | D2: I:ENI | E2: I:UCG
A3: CURRENCY | B3: E | C3: E | D3: E | E3: E | G3: r_FCA | H3: r_LUX | I3: r_ENI | J3: r_UCG
A4: 2006-09-15 | B4: 3.4476 | C4: 22.73 | D4: 22.61 | E4: 165.2501 | G4: =B5/B4-1 -> 0.0008121591832 | H4: =C5/C4-1 -> -0.005719313682 | I4: 0.001769128704 | J4: 0.004691071291
A5: 2006-09-18 | B5: 3.4504 | C5: 22.6 | D5: 22.65 | E5: 166.0253 | G5: =B6/B5-1 -> -0.01475191282 | H5: -0.005752212389 | I5: 0.006622516556 | J5: -0.01478569832
A6: 2006-09-19 | B6: 3.3995 | C6: 22.47 | D6: 22.8 | E6: 163.5705 | G6: =B7/B6-1 -> 0.0008236505368 | H6: 0.008010680908 | I6: 0.007894736842 | J6: 0.01658734307
A7: 2006-09-20 | B7: 3.4023 | C7: 22.65 | D7: 22.98 | E7: 166.2837 | G7: 0.003321282662 | H7: -0.004856512141 | I7: 0.003481288077 | J7: 0.004661912142
A8: 2006-09-21 | B8: 3.4136 | C8: 22.54 | D8: 23.06 | E8: 167.0589 | G8: -0.01904148113 | H8: 0 | I8: -0.01431049436 | J8: -0.003866899638
A9: 2006-09-22 | B9: 3.3486 | C9: 22.54 | D9: 22.73 | E9: 166.4129 | G9: 0.012662008 | H9: 0.004880212955 | I9: -0.00483941927 | J9: 0.008540804229
A10: 2006-09-25 | B10: 3.391 | C10: 22.65 | D10: 22.62 | E10: 167.8342 | G10: 0.0116779711 | H10: 0.006622516556 | I10: 0.01414677277 | J10: 0.01077730284
A11: 2006-09-26 | B11: 3.4306 | C11: 22.8 | D11: 22.94 | E11: 169.643 | G11: 0.01402087098 | H11: 0.01315789474 | I11: 0.004795117698 | J11: 0
A12: 2006-09-27 | B12: 3.4787 | C12: 23.1 | D12: 23.05 | E12: 169.643 | G12: -0.001638543134 | H12: 0.006493506494 | I12: 0.01301518438 | J12: -0.003046397435
A13: 2006-09-28 | B13: 3.473 | C13: 23.25 | D13: 23.35 | E13: 169.1262 | G13: =B14/B13-1 -> 0.0236107112 | H13: -0.0008602150538 | I13: 0.0008565310493 | J13: 0
A14: 2006-09-29 | B14: 3.555 | C14: 23.23 | D14: 23.37 | E14: 169.1262 | G14: 0.0135302391 | H14: 0.001721911322 | I14: 0.003851091142 | J14: 0
A15: 2006-10-02 | B15: 3.6031 | C15: 23.27 | D15: 23.46 | E15: 169.1262 | G15: -0.003136188282 | H15: -0.007735281478 | I15: -0.01406649616 | J15: 0.002291779748
A16: 2006-10-03 | B16: 3.5918 | C16: 23.09 | D16: 23.13 | E16: 169.5138 | G16: 0.0007795534273 | H16: 0.01039411 | I16: -0.001297016861 | J16: 0.009908337846
A17: 2006-10-04 | B17: 3.5946 | C17: 23.33 | D17: 23.1 | E17: 171.1934 | G17: 0.003950369999 | H17: 0.001285897985 | I17: 0.01082251082 | J17: 0.008301721912
A18: 2006-10-05 | B18: 3.6088 | C18: 23.36 | D18: 23.35 | E18: 172.6146 | G18: 0.00235535358 | H18: -0.0008561643836 | I18: 0.003426124197 | J18: 0.0007484882507
A19: 2006-10-06 | B19: 3.6173 | C19: 23.34 | D19: 23.43 | E19: 172.7438 | G19: 0.002322173997 | H19: 0.006855184233 | I19: 0.007682458387 | J19: 0
A20: 2006-10-09 | B20: 3.6257 | C20: 23.5 | D20: 23.61 | E20: 172.7438 | G20: -0.001544529332 | H20: 0.01063829787 | I20: -0.002541296061 | J20: 0.003740221067
A21: 2006-10-10 | B21: 3.6201 | C21: 23.75 | D21: 23.55 | E21: 173.3899 | G21: -0.009392005746 | H21: 0.006736842105 | I21: 0.002972399151 | J21: -0.003726283942
A22: 2006-10-11 | B22: 3.5861 | C22: 23.91 | D22: 23.62 | E22: 172.7438 | G22: 0.007110788879 | H22: -0.0004182350481 | I22: 0.006350550381 | J22: 0.003740221067
A23: 2006-10-12 | B23: 3.6116 | C23: 23.9 | D23: 23.77 | E23: 173.3899 | G23: 0.005482334699 | H23: -0.01589958159 | I23: 0.001682793437 | J23: -0.001490282883
A24: 2006-10-13 | B24: 3.6314 | C24: 23.52 | D24: 23.81 | E24: 173.1315 | G24: 0.0140166327 | H24: 0.01488095238 | I24: 0.005039899202 | J24: 0.004477521422
A25: 2006-10-16 | B25: 3.6823 | C25: 23.87 | D25: 23.93 | E25: 173.9067 | G25: -0.01613122233 | H25: -0.02387934646 | I25: 0.005850396991 | J25: -0.02303131507
A26: 2006-10-17 | B26: 3.6229 | C26: 23.3 | D26: 24.07 | E26: 169.9014 | G26: 0.0616633084 | H26: 0.01630901288 | I26: 0.0008309098463 | J26: 0.008364851614
A27: 2006-10-18 | B27: 3.8463 | C27: 23.68 | D27: 24.09 | E27: 171.3226 | G27: 0.03603463068 | H27: 0.01013513514 | I27: 0.00498132005 | J27: -0.009049594157
A28: 2006-10-19 | B28: 3.9849 | C28: 23.92 | D28: 24.21 | E28: 169.7722 | G28: -0.01987502823 | H28: -0.005852842809 | I28: 0.003717472119 | J28: 0.001522039533
A29: 2006-10-20 | B29: 3.9057 | C29: 23.78 | D29: 24.3 | E29: 170.0306 | G29: 0.007962721151 | H29: 0.0117746005 | I29: -0.02510288066 | J29: 0.006838769022
A30: 2006-10-23 | B30: 3.9368 | C30: 24.06 | D30: 23.69 | E30: 171.1934 | G30: -0.01292928267 | H30: -0.01163757273 | I30: -0.0008442380751 | J30: -0.004528211952
A31: 2006-10-24 | B31: 3.8859 | C31: 23.78 | D31: 23.67 | E31: 170.4182 | G31: 0.02256877429 | H31: 0.01597981497 | I31: 0.01056189269 | J31: -0.01213015981
A32: 2006-10-25 | B32: 3.9736 | C32: 24.16 | D32: 23.92 | E32: 168.351 | G32: -0.03628951077 | H32: -0.00869205298 | I32: 0 | J32: -0.0007674442088
A33: 2006-10-26 | B33: 3.8294 | C33: 23.95 | D33: 23.92 | E33: 168.2218 | G33: 0.02509531519 | H33: -0.00751565762 | I33: -0.007525083612 | J33: 0.003072134527
A34: 2006-10-27 | B34: 3.9255 | C34: 23.77 | D34: 23.74 | E34: 168.7386 | G34: -0.01439307095 | H34: 0.003365586874 | I34: -0.0004212299916 | J34: -0.001531362711
A35: 2006-10-30 | B35: 3.869 | C35: 23.85 | D35: 23.73 | E35: 168.4802 | G35: 0.01095890411 | H35: 0.02180293501 | I35: -0.004214075011 | J35: -0.003834278449
A36: 2006-10-31 | B36: 3.9114 | C36: 24.37 | D36: 23.63 | E36: 167.8342 | G36: 0.008666973462 | H36: -0.009027492819 | I36: 0.0008463817182 | J36: 0.007698073456
A37: 2006-11-01 | B37: 3.9453 | C37: 24.15 | D37: 23.65 | E37: 169.1262 | G37: 0.01290142701 | H37: 0.009523809524 | I37: -0.01057082452 | J37: -0.007639265826
A38: 2006-11-02 | B38: 3.9962 | C38: 24.38 | D38: 23.4 | E38: 167.8342 | G38: 0.01981882789 | H38: -0.00697292863 | I38: 0.01068376068 | J38: 0.003079229382
A39: 2006-11-03 | B39: 4.0754 | C39: 24.21 | D39: 23.65 | E39: 168.351 | G39: 0.02777641459 | H39: 0.009087154069 | I39: 0.01268498943 | J39: 0.006906997879
A40: 2006-11-06 | B40: 4.1886 | C40: 24.43 | D40: 23.95 | E40: 169.5138 | G40: -0.000692355441 | H40: -0.001227998363 | I40: 0.00375782881 | J40: 0.004573079006
A41: 2006-11-07 | B41: 4.1857 | C41: 24.4 | D41: 24.04 | E41: 170.289 | G41: 0.03175096161 | H41: 0.002049180328 | I41: 0.006655574043 | J41: 0.0007587101927
A42: 2006-11-08 | B42: 4.3186 | C42: 24.45 | D42: 24.2 | E42: 170.4182 | G42: -0.01898763488 | H42: -0.00736196319 | I42: 0.004545454545 | J42: -0.003032539952
A43: 2006-11-09 | B43: 4.2366 | C43: 24.27 | D43: 24.31 | E43: 169.9014 | G43: -0.0100080253 | H43: -0.006180469716 | I43: 0.02015631427 | J43: 0.0007604410558
A44: 2006-11-10 | B44: 4.1942 | C44: 24.12 | D44: 24.8 | E44: 170.0306 | G44: 0.02293643603 | H44: 0.009535655058 | I44: -0.004032258065 | J44: 0.0007598632246
A45: 2006-11-13 | B45: 4.2904 | C45: 24.35 | D45: 24.7 | E45: 170.1598 | G45: -0.01715457766 | H45: -0.009856262834 | I45: 0.005263157895 | J45: 0.001518572542
A46: 2006-11-14 | B46: 4.2168 | C46: 24.11 | D46: 24.83 | E46: 170.4182 | G46: 0.006047239613 | H46: 0.007465781833 | I46: 0.005638340717 | J46: 0.01137202482
A47: 2006-11-15 | B47: 4.2423 | C47: 24.29 | D47: 24.97 | E47: 172.3562 | G47: -0.004007260213 | H47: 0.0004116920543 | I47: 0.005206247497 | J47: -0.0014992208
A48: 2006-11-16 | B48: 4.2253 | C48: 24.3 | D48: 25.1 | E48: 172.0978 | G48: -0.02676733013 | H48: 0.004526748971 | I48: -0.01633466135 | J48: -0.001501471838
A49: 2006-11-17 | B49: 4.1122 | C49: 24.41 | D49: 24.69 | E49: 171.8394 | G49: 0.003428821555 | H49: -0.004506349857 | I49: 0.004860267315 | J49: 0.002256176407
A50: 2006-11-20 | B50: 4.1263 | C50: 24.3 | D50: 24.81 | E50: 172.2271 | G50: -0.008215592662 | H50: 0.001234567901 | I50: -0.001209189843 | J50: 0.002249936276
A51: 2006-11-21 | B51: 4.0924 | C51: 24.33 | D51: 24.78 | E51: 172.6146 | G51: 0.01727592611 | H51: -0.01150842581 | I51: -0.001614205004 | J51: 0
A52: 2006-11-22 | B52: 4.1631 | C52: 24.05 | D52: 24.74 | E52: 172.6146 | G52: -0.01630996133 | H52: -0.005821205821 | I52: 0 | J52: 0.0007484882507
A53: 2006-11-23 | B53: 4.0952 | C53: 23.91 | D53: 24.74 | E53: 172.7438 | G53: -0.008961711272 | H53: -0.01463822668 | I53: -0.003637833468 | J53: -0.008227212786
A54: 2006-11-24 | B54: 4.0585 | C54: 23.56 | D54: 24.65 | E54: 171.3226 | G54: -0.0299864482 | H54: -0.02589134126 | I54: -0.006490872211 | J54: -0.01508265693
A55: 2006-11-27 | B55: 3.9368 | C55: 22.95 | D55: 24.49 | E55: 168.7386 | G55: -0.004292826661 | H55: -0.01002178649 | I55: 0.001633319722 | J55: 0.001531362711
A56: 2006-11-28 | B56: 3.9199 | C56: 22.72 | D56: 24.53 | E56: 168.997 | G56: 0.03461823006 | H56: 0.03345070423 | I56: 0.01549123522 | J56: 0.0007645106126
A57: 2006-11-29 | B57: 4.0556 | C57: 23.48 | D57: 24.91 | E57: 169.1262 | G57: -0.02300522734 | H57: -0.02470187394 | I57: -0.007627458852 | J57: -0.003819632913
A58: 2006-11-30 | B58: 3.9623 | C58: 22.9 | D58: 24.72 | E58: 168.4802 | G58: -0.002145218686 | H58: -0.01703056769 | I58: -0.007281553398 | J58: -0.00613543906
A59: 2006-12-01 | B59: 3.9538 | C59: 22.51 | D59: 24.54 | E59: 167.4465 | G59: 0 | H59: 0.02221235007 | I59: -0.001222493888 | J59: 0.005401725327
A60: 2006-12-04 | B60: 3.9538 | C60: 23.01 | D60: 24.51 | E60: 168.351 | G60: 0.007865850574 | H60: 0.01564537158 | I60: 0.01060791514 | J60: 0.007674442088
A61: 2006-12-05 | B61: 3.9849 | C61: 23.37 | D61: 24.77 | E61: 169.643 | G61: -0.0007026525132 | H61: 0.01155327343 | I61: 0.003633427533 | J61: -0.003046397435
A62: 2006-12-06 | B62: 3.9821 | C62: 23.64 | D62: 24.86 | E62: 169.1262 | G62: -0.00143140554 | H62: -0.005076142132 | I62: -0.002815768302 | J62: 0.005347486078
A63: 2006-12-07 | B63: 3.9764 | C63: 23.52 | D63: 24.79 | E63: 170.0306 | G63: 0.001433457399 | H63: 0.006802721088 | I63: -0.003227107705 | J63: -0.002279589674
A64: 2006-12-08 | B64: 3.9821 | C64: 23.68 | D64: 24.71 | E64: 169.643 | G64: 0 | H64: 0.002956081081 | I64: 0.006879805747 | J64: 0.007615993587
A65: 2006-12-11 | B65: 3.9821 | C65: 23.75 | D65: 24.88 | E65: 170.935 | G65: 0.00143140554 | H65: -0.01305263158 | I65: 0.002411575563 | J65: -0.0007558428642
A66: 2006-12-12 | B66: 3.9878 | C66: 23.44 | D66: 24.94 | E66: 170.8058 | G66: -0.004965143688 | H66: 0.005546075085 | I66: 0.007618283881 | J66: 0.006807731353
A67: 2006-12-13 | B67: 3.968 | C67: 23.57 | D67: 25.13 | E67: 171.9686 | G67: -0.0007308467742 | H67: -0.01272804412 | I67: 0.01074413052 | J67: 0.00225389984
A68: 2006-12-14 | B68: 3.9651 | C68: 23.27 | D68: 25.4 | E68: 172.3562 | G68: 0.04564828125 | H68: 0.003008165019 | I68: 0.01338582677 | J68: 0.0014992208
A69: 2006-12-15 | B69: 4.1461 | C69: 23.34 | D69: 25.74 | E69: 172.6146 | G69: =B70/B69-1 -> 0.004775572225 | H69: 0.01071122536 | I69: -0.005827505828 | J69: -0.001496976501
A70: 2006-12-18 | B70: 4.1659 | C70: 23.59 | D70: 25.59 | E70: 172.3562 | G70: -0.0081374973 | H70: -0.005934718101 | I70: -0.00156311059 | J70: -0.002998441599
A71: 2006-12-19 | B71: 4.132 | C71: 23.45 | D71: 25.55 | E71: 171.8394 | G71: -0.004114230397 | H71: 0.007675906183 | I71: 0.00469667319 | J71: 0.001503729645
A72: 2006-12-20 | B72: 4.115 | C72: 23.63 | D72: 25.67 | E72: 172.0978 | G72: -0.00687727825 | H72: -0.003808717732 | I72: -0.003506038177 | J72: 0
A73: 2006-12-21 | B73: 4.0867 | C73: 23.54 | D73: 25.58 | E73: 172.0978 | G73: -0.01590525363 | H73: -0.01444350042 | I73: -0.01485535575 | J73: -0.003753679594
A74: 2006-12-22 | B74: 4.0217 | C74: 23.2 | D74: 25.2 | E74: 171.4518 | G74: 0 | H74: 0 | I74: 0 | J74: 0
A75: 2006-12-25 | B75: 4.0217 | C75: 23.2 | D75: 25.2 | E75: 171.4518 | G75: 0 | H75: 0 | I75: 0 | J75: 0
A76: 2006-12-26 | B76: 4.0217 | C76: 23.2 | D76: 25.2 | E76: 171.4518 | G76: 0.02389536763 | H76: 0.01551724138 | I76: 0.01666666667 | J76: 0.006782081028
A77: 2006-12-27 | B77: 4.1178 | C77: 23.56 | D77: 25.62 | E77: 172.6146 | G77: -0.006848317063 | H77: -0.002971137521 | I77: -0.001170960187 | J77: 0
A78: 2006-12-28 | B78: 4.0896 | C78: 23.49 | D78: 25.59 | E78: 172.6146 | G78: 0.001369327074 | H78: -0.008939974457 | I78: -0.004298554123 | J78: -0.005987906006
A79: 2006-12-29 | B79: 4.0952 | C79: 23.28 | D79: 25.48 | E79: 171.581 | G79: 0 | H79: 0 | I79: 0 | J79: 0
A80: 2007-01-01 | B80: 4.0952 | C80: 23.28 | D80: 25.48 | E80: 171.581 | G80: 0.01313733151 | H80: 0.01116838488 | I80: 0.009419152276 | J80: 0.024849488
A81: 2007-01-02 | B81: 4.149 | C81: 23.54 | D81: 25.72 | E81: 175.8447 | G81: -0.01024343215 | H81: 0 | I81: -0.008553654743 | J81: 0.01249113564
A82: 2007-01-03 | B82: 4.1065 | C82: 23.54 | D82: 25.5 | E82: 178.0412 | G82: -0.001363691708 | H82: -0.01104502974 | I82: -0.01098039216 | J82: -0.002177024194
A83: 2007-01-04 | B83: 4.1009 | C83: 23.28 | D83: 25.22 | E83: 177.6536 | G83: -0.003462654539 | H83: 0.0004295532646 | I83: -0.01149881047 | J83: -0.009454916759
A84: 2007-01-05 | B84: 4.0867 | C84: 23.29 | D84: 24.93 | E84: 175.9739 | G84: 0.001394768395 | H84: -0.01373980249 | I84: -0.007220216606 | J84: 0
A85: 2007-01-08 | B85: 4.0924 | C85: 22.97 | D85: 24.75 | E85: 175.9739 | G85: 0.004838236732 | H85: 0.01044841097 | I85: -0.007676767677 | J85: 0.005873598301
A86: 2007-01-09 | B86: 4.1122 | C86: 23.21 | D86: 24.56 | E86: 177.0075 | G86: -0.004814940908 | H86: -0.005170185265 | I86: -0.009364820847 | J86: -0.002189737723
A87: 2007-01-10 | B87: 4.0924 | C87: 23.09 | D87: 24.33 | E87: 176.6199 | G87: 0.004838236732 | H87: -0.003897791252 | I87: 0.01849568434 | J87: 0.008778738976
A88: 2007-01-11 | B88: 4.1122 | C88: 23 | D88: 24.78 | E88: 178.1704 | G88: 0.02268858519 | H88: 0.004347826087 | I88: -0.007263922518 | J88: 0.008701782114
A89: 2007-01-12 | B89: 4.2055 | C89: 23.1 | D89: 24.6 | E89: 179.7208 | G89: 0.0114374034 | H89: 0.006493506494 | I89: 0.01219512195 | J89: 0.007188928605
A90: 2007-01-15 | B90: 4.2536 | C90: 23.25 | D90: 24.9 | E90: 181.0128 | G90: -0.004654880572 | H90: -0.01032258065 | I90: -0.008032128514 | J90: 0.001427523357
A91: 2007-01-16 | B91: 4.2338 | C91: 23.01 | D91: 24.7 | E91: 181.2712 | G91: -0.001346308281 | H91: 0.007822685789 | I91: -0.01376518219 | J91: -0.007840186417
A92: 2007-01-17 | B92: 4.2281 | C92: 23.19 | D92: 24.36 | E92: 179.85 | G92: 0.002010359263 | H92: 0.01078050884 | I92: 0.004105090312 | J92: 0.002155129274
A93: 2007-01-18 | B93: 4.2366 | C93: 23.44 | D93: 24.46 | E93: 180.2376 | G93: 0.0440683567 | H93: 0.01493174061 | I93: 0.009811937858 | J93: 0.01433718603
A94: 2007-01-19 | B94: 4.4233 | C94: 23.79 | D94: 24.7 | E94: 182.8217 | G94: 0.002554653765 | H94: 0.004623791509 | I94: -0.001619433198 | J94: -0.00848094072
A95: 2007-01-22 | B95: 4.4346 | C95: 23.9 | D95: 24.66 | E95: 181.2712 | G95: 0.007644432418 | H95: -0.002092050209 | I95: 0.005271695053 | J95: 0.01140445917
A96: 2007-01-23 | B96: 4.4685 | C96: 23.85 | D96: 24.79 | E96: 183.3385 | G96: 0.01837305584 | H96: -0.001677148847 | I96: 0.008471157725 | J96: 0.01620827049
A97: 2007-01-24 | B97: 4.5506 | C97: 23.81 | D97: 25 | E97: 186.3101 | G97: -0.0118226168 | H97: 0.0008399832003 | I97: -0.0032 | J97: 0.004854809267
A98: 2007-01-25 | B98: 4.4968 | C98: 23.83 | D98: 24.92 | E98: 187.2146 | G98: 0.02077032556 | H98: -0.001678556441 | I98: -0.004012841091 | J98: -0.01311275937
A99: 2007-01-26 | B99: 4.5902 | C99: 23.79 | D99: 24.82 | E99: 184.7597 | G99: 0.0289529868 | H99: 0.00630517024 | I99: -0.001611603546 | J99: 0.003496433475
A100: 2007-01-29 | B100: 4.7231 | C100: 23.94 | D100: 24.78 | E100: 185.4057 | G100: 0.001799665474 | H100: -0.005847953216 | I100: -0.000403551251 | J100: 0.001393700409
A101: 2007-01-30 | B101: 4.7316 | C101: 23.8 | D101: 24.77 | E101: 185.6641 | G101: -0.005981063488 | H101: 0.001260504202 | I101: -0.002825999193 | J101: -0.01182996605
A102: 2007-01-31 | B102: 4.7033 | C102: 23.83 | D102: 24.7 | E102: 183.4677 | G102: 0.02223970404 | H102: -0.001678556441 | I102: 0.006072874494 | J102: 0.0084505338
A103: 2007-02-01 | B103: 4.8079 | C103: 23.79 | D103: 24.85 | E103: 185.0181 | G103: 0.008818819027 | H103: 0.002942412778 | I103: -0.008450704225 | J103: 0.01257012152
A104: 2007-02-02 | B104: 4.8503 | C104: 23.86 | D104: 24.64 | E104: 187.3438 | G104: -0.005236789477 | H104: 0.001676445935 | I104: 0.01136363636 | J104: 0.01655138841
A105: 2007-02-05 | B105: 4.8249 | C105: 23.9 | D105: 24.92 | E105: 190.4446 | G105: 0.0005803229082 | H105: 0.007949790795 | I105: -0.004012841091 | J105: -0.005427300118
A106: 2007-02-06 | B106: 4.8277 | C106: 24.09 | D106: 24.82 | E106: 189.411 | G106: -0.004681318226 | H106: 0.006226650062 | I106: -0.001611603546 | J106: 0.006139030996
A107: 2007-02-07 | B107: 4.8051 | C107: 24.24 | D107: 24.78 | E107: 190.5738 | G107: -0.01471353354 | H107: -0.0152640264 | I107: -0.005649717514 | J107: -0.01694881458
A108: 2007-02-08 | B108: 4.7344 | C108: 23.87 | D108: 24.64 | E108: 187.3438 | G108: 0.02747972288 | H108: 0.01633850021 | I108: 0.0004058441558 | J108: 0.002068389773
A109: 2007-02-09 | B109: 4.8645 | C109: 24.26 | D109: 24.65 | E109: 187.7313 | G109: -0.002919107822 | H109: -0.01401483924 | I109: -0.006490872211 | J109: -0.01169970058
A110: 2007-02-12 | B110: 4.8503 | C110: 23.92 | D110: 24.49 | E110: 185.5349 | G110: 0.005257406758 | H110: 0.003344481605 | I110: 0.008166598612 | J110: 0.006964188409
A111: 2007-02-13 | B111: 4.8758 | C111: 24 | D111: 24.69 | E111: 186.827 | G111: 0.02610853604 | H111: 0.002083333333 | I111: -0.005670311867 | J111: 0.006915488661
A112: 2007-02-14 | B112: 5.0031 | C112: 24.05 | D112: 24.55 | E112: 188.119 | G112: 0.01808878495 | H112: -0.002079002079 | I112: 0.0008146639511 | J112: -0.002747728831
A113: 2007-02-15 | B113: 5.0936 | C113: 24 | D113: 24.57 | E113: 187.6021 | G113: 0.01054264175 | H113: -0.004166666667 | I113: -0.00814000814 | J113: -0.00206554191
A114: 2007-02-16 | B114: 5.1473 | C114: 23.9 | D114: 24.37 | E114: 187.2146 | G114: 0.0214287102 | H114: 0.01966527197 | I114: 0.004924086992 | J114: -0.003451119731
A115: 2007-02-19 | B115: 5.2576 | C115: 24.37 | D115: 24.49 | E115: 186.5685 | G115: -0.006447808886 | H115: -0.01354123923 | I115: -0.01878317681 | J115: 0.002770564163
A116: 2007-02-20 | B116: 5.2237 | C116: 24.04 | D116: 24.03 | E116: 187.0854 | G116: -0.00867201409 | H116: -0.004159733777 | I116: -0.004161464836 | J116: -0.00414409676
A117: 2007-02-21 | B117: 5.1784 | C117: 23.94 | D117: 23.93 | E117: 186.3101 | G117: -0.003263556311 | H117: 0.02172096909 | I117: 0.002925198496 | J117: 0.0006934675039
A118: 2007-02-22 | B118: 5.1615 | C118: 24.46 | D118: 24 | E118: 186.4393 | G118: -0.001104330137 | H118: 0.0004088307441 | I118: -0.01041666667 | J118: -0.00623688246
A119: 2007-02-23 | B119: 5.1558 | C119: 24.47 | D119: 23.75 | E119: 185.2765 | G119: 0.02358508864 | H119: 0.01961585615 | I119: 0.01936842105 | J119: 0.009763245744
A120: 2007-02-26 | B120: 5.2774 | C120: 24.95 | D120: 24.21 | E120: 187.0854 | G120: -0.0493045818 | H120: -0.05130260521 | I120: -0.02395704254 | J120: -0.01864656462
A121: 2007-02-27 | B121: 5.0172 | C121: 23.67 | D121: 23.63 | E121: 183.5969 | G121: 0.01014510085 | H121: 0.001267427123 | I121: -0.02031316124 | J121: -0.01477857197
A122: 2007-02-28 | B122: 5.0681 | C122: 23.7 | D122: 23.15 | E122: 180.8836 | G122: -0.03516110574 | H122: -0.01983122363 | I122: 0.0004319654428 | J122: -0.01214261547
A123: 2007-03-01 | B123: 4.8899 | C123: 23.23 | D123: 23.16 | E123: 178.6872 | G123: 0.0005930591628 | H123: 0.02023245803 | I123: -0.0008635578584 | J123: -0.008677174414
A124: 2007-03-02 | B124: 4.8928 | C124: 23.7 | D124: 23.14 | E124: 177.1367 | G124: -0.03180183126 | H124: 0.00970464135 | I124: -0.0008643042351 | J124: -0.01823450476
A125: 2007-03-05 | B125: 4.7372 | C125: 23.93 | D125: 23.12 | E125: 173.9067 | G125: 0.05195051929 | H125: -0.03050564145 | I125: 0.00821799308 | J125: 0.01337268777
A126: 2007-03-06 | B126: 4.9833 | C126: 23.2 | D126: 23.31 | E126: 176.2323 | G126: 0.004535147392 | H126: 0.005603448276 | I126: 0.005148005148 | J126: -0.009530602506
A127: 2007-03-07 | B127: 5.0059 | C127: 23.33 | D127: 23.43 | E127: 174.5527 | G127: 0.01186599812 | H127: 0.02014573511 | I127: 0.00810926163 | J127: 0.01702465788
A128: 2007-03-08 | B128: 5.0653 | C128: 23.8 | D128: 23.62 | E128: 177.5244 | G128: 0.01674135787 | H128: -0.005462184874 | I128: 0.001270110076 | J128: -0.00145613786
A129: 2007-03-09 | B129: 5.1501 | C129: 23.67 | D129: 23.65 | E129: 177.2659 | G129: -0.007126075222 | H129: -0.005069708492 | I129: -0.01099365751 | J129: -0.004373091497
A130: 2007-03-12 | B130: 5.1134 | C130: 23.55 | D130: 23.39 | E130: 176.4907 | G130: -0.01660343411 | H130: -0.01146496815 | I130: -0.006840530141 | J130: -0.0183012476
A131: 2007-03-13 | B131: 5.0285 | C131: 23.28 | D131: 23.23 | E131: 173.2607 | G131: -0.02193497067 | H131: -0.02405498282 | I131: -0.02023245803 | J131: -0.0305741579
A132: 2007-03-14 | B132: 4.9182 | C132: 22.72 | D132: 22.76 | E132: 167.9634 | G132: 0.02301655077 | H132: 0.02024647887 | I132: 0.01405975395 | J132: =E133/E132-1 -> 0.01769194956
A133: 2007-03-15 | B133: 5.0314 | C133: 23.18 | D133: 23.08 | E133: 170.935 | G133: =B134/B133-1 -> 0.0005565051477 | H133: -0.003451251079 | I133: -0.0008665511265 | J133: 0.0105818001
A134: 2007-03-16 | B134: 5.0342 | C134: 23.1 | D134: 23.06 | E134: 172.7438 | G134: 0.01122323309 | H134: 0.01082251082 | I134: 0.007805724198 | J134: 0.02094257507
A135: 2007-03-19 | B135: 5.0907 | C135: 23.35 | D135: 23.24 | E135: 176.3615 | G135: 0.01001826861 | H135: 0 | I135: -0.006884681583 | J135: 0
A136: 2007-03-20 | B136: 5.1417 | C136: 23.35 | D136: 23.08 | E136: 176.3615 | G136: 0.006593150125 | H136: 0.02869379015 | I136: 0.004766031196 | J136: -0.002930344775
A137: 2007-03-21 | B137: 5.1756 | C137: 24.02 | D137: 23.19 | E137: 175.8447 | G137: 0.01420125203 | H137: 0.006244796003 | I137: 0.01811125485 | J137: 0.04849392674
A138: 2007-03-22 | B138: 5.2491 | C138: 24.17 | D138: 23.61 | E138: 184.3721 | G138: 0.02693795127 | H138: -0.0008274720728 | I138: 0.01863617111 | J138: -0.003503783924
A139: 2007-03-23 | B139: 5.3905 | C139: 24.15 | D139: 24.05 | E139: 183.7261 | G139: -0.0188850756 | H139: -0.01614906832 | I139: -0.009979209979 | J139: -0.01617462081
A140: 2007-03-26 | B140: 5.2887 | C140: 23.76 | D140: 23.81 | E140: 180.7544 | G140: 0.008017093047 | H140: 0.0008417508418 | I140: -0.001679966401 | J140: 0.007862602515
A141: 2007-03-27 | B141: 5.3311 | C141: 23.78 | D141: 23.77 | E141: 182.1756 | G141: -0.01059818799 | H141: -0.007569386039 | I141: 0.009676062263 | J141: -0.009219675961
A142: 2007-03-28 | B142: 5.2746 | C142: 23.6 | D142: 24 | E142: 180.496 | G142: 0.01501535661 | H142: 0.01991525424 | I142: 0.01041666667 | J142: 0.01789568744
A143: 2007-03-29 | B143: 5.3538 | C143: 24.07 | D143: 24.25 | E143: 183.7261 | G143: -0.00317531473 | H143: -0.008309098463 | I143: 0.004536082474 | J143: 0.002109662155
A144: 2007-03-30 | B144: 5.3368 | C144: 23.87 | D144: 24.36 | E144: 184.1137 | G144: 0.0143156948 | H144: 0.0008378718056 | I144: -0.008210180624 | J144: -0.002806961133
A145: 2007-04-02 | B145: 5.4132 | C145: 23.89 | D145: 24.16 | E145: 183.5969 | G145: 0.008867213478 | H145: 0.01088321473 | I145: 0.001655629139 | J145: 0.0147780273
A146: 2007-04-03 | B146: 5.4612 | C146: 24.15 | D146: 24.2 | E146: 186.3101 | G146: -0.009320295906 | H146: 0.0008281573499 | I146: -0.002066115702 | J146: -0.01317588257
A147: 2007-04-04 | B147: 5.4103 | C147: 24.17 | D147: 24.15 | E147: 183.8553 | G147: 0.0005360146387 | H147: -0.0008274720728 | I147: 0.004968944099 | J147: 0.002810906185
A148: 2007-04-05 | B148: 5.4132 | C148: 24.15 | D148: 24.27 | E148: 184.3721 | G148: 0 | H148: 0 | I148: 0 | J148: 0
A149: 2007-04-06 | B149: 5.4132 | C149: 24.15 | D149: 24.27 | E149: 184.3721 | G149: 0 | H149: 0 | I149: 0 | J149: 0
A150: 2007-04-09 | B150: 5.4132 | C150: 24.15 | D150: 24.27 | E150: 184.3721 | G150: 0.004692233799 | H150: 0.008695652174 | I150: 0.007004532344 | J150: 0.01051135177
A151: 2007-04-10 | B151: 5.4386 | C151: 24.36 | D151: 24.44 | E151: 186.3101 | G151: -0.007281285625 | H151: 0.002463054187 | I151: 0.002864157119 | J151: -0.001386935008
A152: 2007-04-11 | B152: 5.399 | C152: 24.42 | D152: 24.51 | E152: 186.0517 | G152: -0.001037229117 | H152: -0.01269451269 | I152: -0.001631986944 | J152: 0.001388861268
A153: 2007-04-12 | B153: 5.3934 | C153: 24.11 | D153: 24.47 | E153: 186.3101 | G153: 0.02254607483 | H153: 0.00165906263 | I153: 0.008990600736 | J153: 0.006934675039
A154: 2007-04-13 | B154: 5.515 | C154: 24.15 | D154: 24.69 | E154: 187.6021 | G154: 0.02 | H154: 0.01366459627 | I154: 0.001215066829 | J154: 0.01308567441
A155: 2007-04-16 | B155: 5.6253 | C155: 24.48 | D155: 24.72 | E155: 190.057 | G155: -0.001511030523 | H155: -0.008986928105 | I155: 0.002022653722 | J155: 0.007477756673
A156: 2007-04-17 | B156: 5.6168 | C156: 24.26 | D156: 24.77 | E156: 191.4782 | G156: 0.009062099416 | H156: 0.003709810387 | I156: -0.006863140896 | J156: -0.009446506182
A157: 2007-04-18 | B157: 5.6677 | C157: 24.35 | D157: 24.6 | E157: 189.6694 | G157: 0.005487234681 | H157: -0.006570841889 | I157: -0.01260162602 | J157: -0.01294251998
A158: 2007-04-19 | B158: 5.6988 | C158: 24.19 | D158: 24.29 | E158: 187.2146 | G158: 0.01538920474 | H158: 0.01116163704 | I158: 0.006587072869 | J158: 0.02760468468
A159: 2007-04-20 | B159: 5.7865 | C159: 24.46 | D159: 24.45 | E159: 192.3826 | G159: 0.01612373628 | H159: 0.005723630417 | I159: 0.00163599182 | J159: 0.002686833425
A160: 2007-04-23 | B160: 5.8798 | C160: 24.6 | D160: 24.49 | E160: 192.8995 | G160: 0.009132963706 | H160: 0.01463414634 | I160: -0.003674969375 | J160: -0.001339557645
A161: 2007-04-24 | B161: 5.9335 | C161: 24.96 | D161: 24.4 | E161: 192.6411 | G161: 0.02860032022 | H161: 0.02924679487 | I161: 0.008196721311 | J161: 0.01341354467
A162: 2007-04-25 | B162: 6.1032 | C162: 25.69 | D162: 24.6 | E162: 195.2251 | G162: 0.008815047844 | H162: -0.007785130401 | I162: -0.002845528455 | J162: 0.01654551592
A163: 2007-04-26 | B163: 6.157 | C163: 25.49 | D163: 24.53 | E163: 198.4552 | G163: 0.003670618808 | H163: 0.0003923107101 | I163: -0.007337953526 | J163: -0.01432313187
A164: 2007-04-27 | B164: 6.1796 | C164: 25.5 | D164: 24.35 | E164: 195.6127 | G164: -0.004579584439 | H164: 0.005490196078 | I164: 0.003285420945 | J164: 0.001320977626
A165: 2007-04-30 | B165: 6.1513 | C165: 25.64 | D165: 24.43 | E165: 195.8711 | G165: 0 | H165: 0 | I165: 0 | J165: 0
A166: 2007-05-01 | B166: 6.1513 | C166: 25.64 | D166: 24.43 | E166: 195.8711 | G166: 0.0004551883342 | H166: -0.01053042122 | I166: 0.01391731478 | J166: 0.002638469892
A167: 2007-05-02 | B167: 6.1541 | C167: 25.37 | D167: 24.77 | E167: 196.3879 | G167: -0.006889715799 | H167: -0.008277493102 | I167: 0.007670569237 | J167: -0.002631526688
A168: 2007-05-03 | B168: 6.1117 | C168: 25.16 | D168: 24.96 | E168: 195.8711 | G168: 0.01250061358 | H168: 0.01629570747 | I168: 0.006810897436 | J168: 0.001978852419
A169: 2007-05-04 | B169: 6.1881 | C169: 25.57 | D169: 25.13 | E169: 196.2587 | G169: -0.01052019198 | H169: -0.01329683223 | I169: -0.00278551532 | J169: -0.003291573826
A170: 2007-05-07 | B170: 6.123 | C170: 25.23 | D170: 25.06 | E170: 195.6127 | G170: -0.02448146333 | H170: -0.001189060642 | I170: -0.008379888268 | J170: -0.001981466439
A171: 2007-05-08 | B171: 5.9731 | C171: 25.2 | D171: 24.85 | E171: 195.2251 | G171: -0.0104133532 | H171: 0.01468253968 | I171: 0.0004024144869 | J171: 0.01058880236
A172: 2007-05-09 | B172: 5.9109 | C172: 25.57 | D172: 24.86 | E172: 197.2923 | G172: -0.01099663334 | H172: -0.02072741494 | I172: -0.0164923572 | J172: -0.01768137935
A173: 2007-05-10 | B173: 5.8459 | C173: 25.04 | D173: 24.45 | E173: 193.8039 | G173: 0.001932978669 | H173: 0.01038338658 | I173: 0.01799591002 | J173: -0.003999919506
A174: 2007-05-11 | B174: 5.8572 | C174: 25.3 | D174: 24.89 | E174: 193.0287 | G174: 0.009168203237 | H174: -0.004743083004 | I174: 0.003615910004 | J174: 0
A175: 2007-05-14 | B175: 5.9109 | C175: 25.18 | D175: 24.98 | E175: 193.0287 | G175: 0.002402341437 | H175: 0.00714853058 | I175: 0.0128102482 | J175: 0.0174025935
A176: 2007-05-15 | B176: 5.9251 | C176: 25.36 | D176: 25.3 | E176: 196.3879 | G176: 0.006193988287 | H176: -0.007492113565 | I176: 0.003557312253 | J176: -0.01578916013
A177: 2007-05-16 | B177: 5.9618 | C177: 25.17 | D177: 25.39 | E177: 193.2871 | G177: 0.001425743903 | H177: 0.006356773937 | I177: 0.01102796377 | J177: 0.0006684357104
A178: 2007-05-17 | B178: 5.9703 | C178: 25.33 | D178: 25.67 | E178: 193.4163 | G178: 0.01279667688 | H178: 0.005527043032 | I178: 0.01597195169 | J178: 0.003339946013
A179: 2007-05-18 | B179: 6.0467 | C179: 25.47 | D179: 26.08 | E179: 194.0623 | G179: -0.002811450874 | H179: -0.003140950137 | I179: 0.01073619632 | J179: -0.05659162032
A180: 2007-05-21 | B180: 6.0297 | C180: 25.39 | D180: 26.36 | E180: 183.08 | G180: -0.01595435926 | H180: -0.005907837731 | I180: 0.0007587253414 | J180: -0.004939916976
A181: 2007-05-22 | B181: 5.9335 | C181: 25.24 | D181: 26.38 | E181: 182.1756 | G181: 0.00143254403 | H181: 0.01584786054 | I181: 0.008339651251 | J181: -0.001418411686
A182: 2007-05-23 | B182: 5.942 | C182: 25.64 | D182: 26.6 | E182: 181.9172 | G182: -0.02046449007 | H182: -0.02340093604 | I182: -0.01466165414 | J182: -0.01846554366
A183: 2007-05-24 | B183: 5.8204 | C183: 25.04 | D183: 26.21 | E183: 178.558 | G183: -0.008264036836 | H183: -0.006389776358 | I183: 0.003433803892 | J183: 0.01374791384
A184: 2007-05-25 | B184: 5.7723 | C184: 24.88 | D184: 26.3 | E184: 181.0128 | G184: -0.002927775757 | H184: 0.002813504823 | I184: 0 | J184: 0.00571009343
A185: 2007-05-28 | B185: 5.7554 | C185: 24.95 | D185: 26.3 | E185: 182.0464 | G185: 0.02997185252 | H185: 0.002805611222 | I185: -0.007604562738 | J185: -0.01277476511
A186: 2007-05-29 | B186: 5.9279 | C186: 25.02 | D186: 26.1 | E186: 179.7208 | G186: -0.006207931983 | H186: -0.007993605116 | I186: -0.0003831417625 | J186: 0.01078339291
A187: 2007-05-30 | B187: 5.8911 | C187: 24.82 | D187: 26.09 | E187: 181.6588 | G187: 0.02160886761 | H187: 0.05116841257 | I187: 0.00728248371 | J187: -0.007823458043
A188: 2007-05-31 | B188: 6.0184 | C188: 26.09 | D188: 26.28 | E188: 180.2376 | G188: 0.009404492888 | H188: 0.01993100805 | I188: 0.001902587519 | J188: -0.01003564184
A189: 2007-06-01 | B189: 6.075 | C189: 26.61 | D189: 26.33 | E189: 178.4288 | G189: -0.01489711934 | H189: -0.006388575723 | I189: -0.007975693126 | J189: -0.00868974067
A190: 2007-06-04 | B190: 5.9845 | C190: 26.44 | D190: 26.12 | E190: 176.8783 | G190: -0.01183056229 | H190: -0.008698940998 | I190: 0.01148545176 | J190: 0.02191393744
A191: 2007-06-05 | B191: 5.9137 | C191: 26.21 | D191: 26.42 | E191: 180.7544 | G191: -0.03537548405 | H191: -0.01793208699 | I191: -0.009084027252 | J191: -0.01786955117
A192: 2007-06-06 | B192: 5.7045 | C192: 25.74 | D192: 26.18 | E192: 177.5244 | G192: 0.003961784556 | H192: -0.009324009324 | I192: 0.004965622613 | J192: -0.01528409616
A193: 2007-06-07 | B193: 5.7271 | C193: 25.5 | D193: 26.31 | E193: 174.8111 | G193: -0.01334008486 | H193: 0.004705882353 | I193: -0.003800836184 | J193: -0.0007390835021
A194: 2007-06-08 | B194: 5.6507 | C194: 25.62 | D194: 26.21 | E194: 174.6819 | G194: 0.01652892562 | H194: 0.008587041374 | I194: 0.002289202594 | J194: -0.0007396301506
A195: 2007-06-11 | B195: 5.7441 | C195: 25.84 | D195: 26.27 | E195: 174.5527 | G195: -0.003951881061 | H195: 0.009674922601 | I195: 0.001141987057 | J195: -0.02146572353
A196: 2007-06-12 | B196: 5.7214 | C196: 26.09 | D196: 26.3 | E196: 170.8058 | G196: 0.01088894327 | H196: 0.001533154465 | I196: 0.004562737643 | J196: 0.01815453574
A197: 2007-06-13 | B197: 5.7837 | C197: 26.13 | D197: 26.42 | E197: 173.9067 | G197: =B198/B197-1 -> 0.02737002265 | H197: 0.0003827018752 | I197: 0.02573807721 | J197: 0.01634439616
A198: 2007-06-14 | B198: 5.942 | C198: 26.14 | D198: 27.1 | E198: 176.7491 | G198: 0.01428811848 | H198: 0.02563121653 | I198: 0.00110701107 | J198: 0.01535113899
A199: 2007-06-15 | B199: 6.0269 | C199: 26.81 | D199: 27.13 | E199: 179.4624 | G199: 0.01360566792 | H199: -0.01342782544 | I199: -0.01953556948 | J199: -0.004319567776
A200: 2007-06-18 | B200: 6.1089 | C200: 26.45 | D200: 26.6 | E200: 178.6872 | G200: 0.003241172715 | H200: -0.007561436673 | I200: 0.01691729323 | J200: 0.001446102463
... 847 more rows

Sheet Analisi Correlazione
A1: RENDIMENTI | I1: Rendimenti giornalieri in cui la media giornaliera è inferiore al 2% | R1: n. rilevazioni | W1: Sintesi dati | AM1: Calcolo correlazioni condizionate
AM2: fca - media | AN2: lux - media | AO2: eni - media | AP2: ucg - media | AQ2: (fca-media)*(lux - media) | AR2: (fca-media)*(eni - media) | AS2: (fca-media)*(ucg - media) | AT2: (lux-media)*(eni - media) | AU2: (lux-media)*(ucg - media) | AV2: (eni-media)*(ucg - media) | AW2: (fca - media)^2 | AX2: (lux - media)^2 | AY2: (eni - media)^2 | AZ2: (ucg - media)^2
A3: data | B3: fca | C3: lux | D3: eni | E3: ucg | G3: Media giornaliera | I3: data | J3: fca | K3: lux | L3: eni | M3: ucg | R3: prima | S3: =COUNT(G4:G1046) -> 1043 | W3: intera popolazione | AA3: condizionate | AM3: =J4-$W$5 -> -0.04961039577 | AN3: =K4-$X$5 -> -0.05140924848 | AO3: =L4-$Y$5 -> -0.02385968986 | AP3: =M4-$Z$5 -> -0.01821455285 | AQ3: =AM3*AN3 -> 0.002550433163 | AR3: =AM3*AO3 -> 0.001183688657 | AS3: =AM3*AP3 -> 0.0009036311754 | AT3: =AN3*AO3 -> 0.001226608725 | AU3: =AN3*AP3 -> 0.0009363964731 | AV3: =AO3*AP3 -> 0.0004345935819 | AW3: =AM3^2 -> 0.002461191369 | AX3: =AN3^2 -> 0.002642910829 | AY3: =AO3^2 -> 0.0005692848004 | AZ3: =AP3^2 -> 0.0003317699353
A4: 2006-09-18 | B4: 0.0008121591832 | C4: -0.005719313682 | D4: 0.001769128704 | E4: 0.004691071291 | G4: =(B4+C4+D4+E4)/4 -> 0.0003882613741 | I4: 2007-02-27 | J4: -0.0493045818 | K4: -0.05130260521 | L4: -0.02395704254 | M4: -0.01864656462 | R4: dopo | S4: =COUNT(J4:J1046) -> 143 | W4: fca | X4: lux | Y4: eni | Z4: ucg | AA4: fca | AB4: lux | AC4: eni | AD4: ucg | AM4: -0.02224078464 | AN4: -0.02416162608 | AO4: -0.02013510535 | AP4: -0.03014214613 | AQ4: 0.0005373735222 | AR4: 0.0004478205417 | AS4: 0.0006703849806 | AT4: 0.0004864968866 | AU4: =AN4*AP4 -> 0.0007282832641 | AV4: =AO4*AP4 -> 0.0006069152878 | AW4: 0.0004946525012 | AX4: 0.000583784175 | AY4: 0.0004054224674 | AZ4: 0.0009085489733
A5: 2006-09-19 | B5: -0.01475191282 | C5: -0.005752212389 | D5: 0.006622516556 | E5: -0.01478569832 | G5: =(B5+C5+D5+E5)/4 -> -0.007166826745 | I5: 2007-03-14 | J5: -0.02193497067 | K5: -0.02405498282 | L5: -0.02023245803 | M5: -0.0305741579 | V5: media | W5: =AVERAGE(r_FCA) -> 0.0003058139694 | X5: =AVERAGE(r_LUX) -> 0.0001066432648 | Y5: =AVERAGE(r_ENI) -> -9.735267972e-05 | Z5: =AVERAGE(r_UCG) -> -0.000432011772 | AA5: =AVERAGE(J4:J1046) -> -0.03983199521 | AB5: =AVERAGE(K4:K1046) -> -0.026293988 | AC5: =AVERAGE(L4:L1046) -> -0.02434967606 | AD5: =AVERAGE(M4:M1046) -> -0.04384928007 | AM5: -0.03568129801 | AN5: -0.01803873025 | AO5: -0.008986674572 | AP5: -0.0174375394 | AQ5: 0.00064364531 | AR5: 0.0003206562136 | AS5: 0.0006221940399 | AT5: 0.0001621081985 | AU5: 0.0003145510695 | AV5: 0.0001567054919 | AW5: 0.001273155028 | AX5: 0.0003253957892 | AY5: 8.076031987e-05 | AZ5: 0.0003040677803
A6: 2006-09-20 | B6: 0.0008236505368 | C6: 0.008010680908 | D6: 0.007894736842 | E6: 0.01658734307 | G6: 0.00832910284 | I6: 2007-06-06 | J6: -0.03537548405 | K6: -0.01793208699 | L6: -0.009084027252 | M6: -0.01786955117 | V6: varianza | W6: =_xlfn.VAR.P(r_FCA) -> 0.0009218930012 | X6: =_xlfn.VAR.P(r_LUX) -> 0.0004838940113 | Y6: =_xlfn.VAR.P(r_ENI) -> 0.0004396119707 | Z6: =_xlfn.VAR.P(r_UCG) -> 0.001045289446 | AA6: =_xlfn.VAR.P(J4:J1046) -> 0.0005115225123 | AB6: =_xlfn.VAR.P(K4:K1046) -> 0.0003679079671 | AC6: =_xlfn.VAR.P(L4:L1046) -> 0.0004935124091 | AD6: =_xlfn.VAR.P(M4:M1046) -> 0.0009060212378 | AM6: -0.01572955048 | AN6: -0.02031940922 | AO6: -0.0228994134 | AP6: -0.02100765882 | AQ6: 0.0003196151731 | AR6: 0.000360197479 | AS6: 0.0003304410298 | AT6: 0.0004653025518 | AU6: 0.0004268632163 | AV6: 0.0004810630639 | AW6: 0.0002474187583 | AX6: 0.0004128783911 | AY6: 0.0005243831341 | AZ6: 0.0004413217291
A7: 2006-09-21 | B7: 0.003321282662 | C7: -0.004856512141 | D7: 0.003481288077 | E7: 0.004661912142 | G7: 0.001651992685 | I7: 2007-07-20 | J7: -0.01542373651 | K7: -0.02021276596 | L7: -0.02299676608 | M7: -0.02143967059 | V7: dev.stand | W7: =SQRT(W6) -> 0.03036269094 | X7: =SQRT(X6) -> 0.02199759104 | Y7: 0.02096692564 | Z7: 0.03233093636 | AA7: 0.02261686345 | AB7: 0.01918092717 | AC7: 0.02221513919 | AD7: 0.03010018667 | AM7: -0.0483783968 | AN7: -0.01946148197 | AO7: -0.01807785634 | AP7: -0.01664839486 | AQ7: 0.0009415152973 | AR7: 0.0008745777071 | AS7: 0.0008054226524 | AT7: 0.0003518218752 | AU7: 0.0003240024364 | AV7: 0.0003009672904 | AW7: 0.002340469277 | AX7: 0.0003787492806 | AY7: 0.0003268088897 | AZ7: 0.0002771690513
A8: 2006-09-22 | B8: -0.01904148113 | C8: 0 | D8: -0.01431049436 | E8: -0.003866899638 | G8: -0.009304718784 | I8: 2007-07-24 | J8: -0.04807258283 | K8: -0.01935483871 | L8: -0.01817520901 | M8: -0.01708040663 | V8: var.condizionata | AA8: =AW146/143 -> 0.002122566238 | AB8: =AX146/143 -> 0.001064901299 | AC8: 0.001081687598 | AD8: =AZ146/143 -> 0.002791080424 | AM8: -0.05120584611 | AN8: -0.03319755236 | AO8: -0.0175784653 | AP8: -0.0235483288 | AQ8: 0.001699908757 | AR8: 0.0009001201889 | AS8: 0.001205812101 | AT8: 0.000583562022 | AU8: 0.0007817468783 | AV8: 0.0004139434807 | AW8: 0.002622038676 | AX8: 0.001102077482 | AY8: 0.0003090024422 | AZ8: 0.0005545237894
A9: 2006-09-25 | B9: 0.012662008 | C9: 0.004880212955 | D9: -0.00483941927 | E9: 0.008540804229 | G9: 0.005310901479 | I9: 2007-07-26 | J9: -0.05090003214 | K9: -0.03309090909 | L9: -0.01767581798 | M9: -0.02398034058 | V9: dev.stand.cond | AA9: =SQRT(AA8) -> 0.04607131687 | AB9: =SQRT(AB8) -> 0.03263282548 | AC9: 0.03288901942 | AD9: 0.05283067692 | AM9: -0.0356801846 | AN9: -0.02254493795 | AO9: -0.0169701415 | AP9: -0.025065493 | AQ9: 0.0008044075481 | AR9: 0.0006054977815 | AS9: 0.0008943414173 | AT9: 0.0003825907872 | AU9: 0.0005650999844 | AV9: 0.0004253649629 | AW9: 0.001273075573 | AX9: 0.0005082742274 | AY9: 0.0002879857026 | AZ9: 0.0006282789391
A10: 2006-09-26 | B10: 0.0116779711 | C10: 0.006622516556 | D10: 0.01414677277 | E10: 0.01077730284 | G10: 0.01080614082 | I10: 2007-08-01 | J10: -0.03537437064 | K10: -0.02243829469 | L10: -0.01706749418 | M10: -0.02549750477 | AM10: -0.05580047488 | AN10: -0.009197552356 | AO10: -0.03796354476 | AP10: -0.03479609189 | AQ10: 0.0005132277892 | AR10: 0.002118383826 | AS10: 0.001941638451 | AT10: 0.0003491716905 | AU10: 0.0003200388769 | AV10: 0.001320982992 | AW10: 0.003113692997 | AX10: 8.459496934e-05 | AY10: 0.00144123073 | AZ10: 0.001210768011
A11: 2006-09-27 | B11: 0.01402087098 | C11: 0.01315789474 | D11: 0.004795117698 | E11: 0 | G11: 0.007993470855 | I11: 2007-08-10 | J11: -0.05549466092 | K11: -0.009090909091 | L11: -0.03806089744 | M11: -0.03522810366 | AM11: -0.06011285365 | AN11: -0.04863148799 | AO11: -0.0358827962 | AP11: -0.03572238963 | AQ11: 0.00292337752 | AR11: 0.002157017277 | AS11: 0.00214737478 | AT11: 0.001745033772 | AU11: 0.001737232962 | AV11: 0.001281819227 | AW11: 0.003613555173 | AX11: 0.002365021624 | AY11: 0.001287575063 | AZ11: 0.001276089121
A12: 2006-09-28 | B12: -0.001638543134 | C12: 0.006493506494 | D12: 0.01301518438 | E12: -0.003046397435 | G12: 0.003705937577 | I12: 2007-08-16 | J12: -0.05980703968 | K12: -0.04852484472 | L12: -0.03598014888 | M12: -0.03615440141 | O12: MATRICI CORRELAZIONI LINEARI | AA12: VARIANZE-COVARIANZE | AM12: -0.01796671006 | AN12: -0.01926067359 | AO12: -0.01534980179 | AP12: -0.03666335248 | AQ12: 0.000346050938 | AR12: 0.0002757854383 | AS12: 0.000658719824 | AT12: 0.000295647522 | AU12: 0.000706160865 | AV12: 0.0005627751936 | AW12: 0.0003228026705 | AX12: 0.0003709735472 | AY12: 0.000235616415 | AZ12: 0.001344201415
A13: 2006-09-29 | B13: 0.0236107112 | C13: -0.0008602150538 | D13: 0.0008565310493 | E13: 0 | G13: 0.005901756799 | I13: 2007-08-28 | J13: -0.01766089609 | K13: -0.01915403033 | L13: -0.01544715447 | M13: -0.03709536426 | AM13: -0.03779251308 | AN13: -0.01602897336 | AO13: -0.01418836161 | AP13: -0.03678085625 | AQ13: 0.0006057751855 | AR13: 0.0005362138416 | AS13: 0.001390040991 | AT13: 0.0002274248702 | AU13: 0.0005895593651 | AV13: 0.0005218600887 | AW13: 0.001428274045 | AX13: 0.000256927987 | AY13: 0.0002013096051 | AZ13: 0.001352831387
A14: 2006-10-02 | B14: 0.0135302391 | C14: 0.001721911322 | D14: 0.003851091142 | E14: 0 | G14: 0.004775810391 | I14: 2007-09-05 | J14: -0.03748669911 | K14: -0.0159223301 | L14: -0.01428571429 | M14: -0.03721286802 | O14: IINTERA SERIE | U14: CONDIZIONATE | AA14: INTERA SERIE | AG14: CONDIZIONATE | AM14: -0.03469853123 | AN14: -0.02002073932 | AO14: -0.01965768485 | AP14: -0.04596373038 | AQ14: 0.0006946902485 | AR14: 0.0006820927918 | AS14: 0.001594873934 | AT14: 0.0003935613841 | AU14: 0.0009202278643 | AV14: 0.0009035405267 | AW14: 0.001203988069 | AX14: 0.000400830003 | AY14: 0.0003864245739 | AZ14: 0.002112664511
A15: 2006-10-03 | B15: -0.003136188282 | C15: -0.007735281478 | D15: -0.01406649616 | E15: 0.002291779748 | G15: -0.005661546544 | I15: 2007-09-07 | J15: -0.03439271726 | K15: -0.01991409606 | L15: -0.01975503753 | M15: -0.04639574216 | AM15: -0.02350153073 | AN15: -0.02053982675 | AO15: -0.04230819859 | AP15: 0.002162080827 | AQ15: 0.0004827173697 | AR15: 0.0009943074294 | AS15: -5.081220901e-05 | AT15: 0.0008690030694 | AU15: -4.440876563e-05 | AV15: -9.147374502e-05 | AW15: 0.0005523219467 | AX15: 0.0004218844831 | AY15: 0.001789983668 | AZ15: 4.674593504e-06
A16: 2006-10-04 | B16: 0.0007795534273 | C16: 0.01039411 | D16: -0.001297016861 | E16: 0.009908337846 | G16: 0.004946246104 | I16: 2007-10-22 | J16: -0.02319571676 | K16: -0.02043318349 | L16: -0.04240555127 | M16: 0.001730069055 | P16: FCA | Q16: LUX | R16: ENI | S16: UCG | V16: FCA | W16: LUX | X16: ENI | Y16: UCG | AB16: FCA | AC16: LUX | AD16: ENI | AE16: UCG | AH16: FCA | AI16: LUX | AJ16: ENI | AK16: UCG | AM16: -0.02554756949 | AN16: -0.0172044074 | AO16: -0.02556423513 | AP16: -0.04153866744 | AQ16: 0.0004395307936 | AR16: 0.0006531040734 | AS16: 0.001061211993 | AT16: 0.0004398175161 | AU16: 0.0007146481576 | AV16: 0.001061904261 | AW16: 0.0006526783067 | AX16: 0.0002959916341 | AY16: 0.0006535301178 | AZ16: 0.001725460892
A17: 2006-10-05 | B17: 0.003950369999 | C17: 0.001285897985 | D17: 0.01082251082 | E17: 0.008301721912 | G17: 0.00609012518 | I17: 2007-11-08 | J17: -0.02524175552 | K17: -0.01709776414 | L17: -0.02566158781 | M17: -0.04197067921 | O17: FCA | P17: =CORREL(r_FCA,r_FCA) -> 1 | U17: FCA | V17: 1 | AA17: FCA | AB17: =W6 -> 0.0009218930012 | AG17: FCA | AH17: =AA8 -> 0.002122566238 | AM17: -0.05019728053 | AN17: -0.02374625076 | AO17: -0.01595203004 | AP17: -0.02718722329 | AQ17: 0.001191997211 | AR17: 0.0008007485267 | AS17: 0.001364724674 | AT17: 0.0003788009053 | AU17: 0.0006455946216 | AV17: 0.0004336914025 | AW17: 0.002519766972 | AX17: 0.0005638844251 | AY17: 0.0002544672623 | AZ17: 0.00073914511
A18: 2006-10-06 | B18: 0.00235535358 | C18: -0.0008561643836 | D18: 0.003426124197 | E18: 0.0007484882507 | G18: 0.001418450411 | I18: 2007-11-09 | J18: -0.04989146656 | K18: -0.02363960749 | L18: -0.01604938272 | M18: -0.02761923506 | O18: LUX | P18: =CORREL(r_FCA,r_LUX) -> 0.5098237795 | Q18: 1 | U18: LUX | V18: =AQ146/(AW146*AX146)^0.5 -> 0.7147450698 | W18: 1 | AA18: LUX | AB18: =P18*W7*X7 -> 0.0003405143909 | AC18: =X6 -> 0.0004838940113 | AG18: LUX | AH18: =V18*AA9*AB9 -> 0.001074574357 | AI18: =AB8 -> 0.001064901299 | AM18: -0.05426951112 | AN18: -0.03283552429 | AO18: -0.01064644897 | AP18: -0.03311220676 | AQ18: 0.001781967851 | AR18: 0.0005777775809 | AS18: 0.001796983273 | AT18: 0.0003495817339 | AU18: 0.001087256669 | AV18: 0.0003525274196 | AW18: 0.002945179837 | AX18: 0.001078171655 | AY18: 0.0001133468757 | AZ18: 0.001096418236
A19: 2006-10-09 | B19: 0.002322173997 | C19: 0.006855184233 | D19: 0.007682458387 | E19: 0 | G19: 0.004214954154 | I19: 2007-11-19 | J19: -0.05396369715 | K19: -0.03272888103 | L19: -0.01074380165 | M19: -0.03354421853 | O19: ENI | P19: =CORREL(r_FCA,r_ENI) -> 0.4899270625 | Q19: =CORREL(r_LUX,r_ENI) -> 0.4752069004 | R19: 1 | U19: ENI | V19: =AR146/(AW146*AY146)^0.5 -> 0.6346716925 | W19: =AT146/(AX146*AY146)^0.5 -> 0.6089546945 | X19: 1 | AA19: ENI | AB19: =P19*W7*Y7 -> 0.0003118935858 | AC19: =Q19*X7*Y7 -> 0.0002191758083 | AD19: =Y6 -> 0.0004396119707 | AG19: ENI | AH19: =V19*AA9*AC9 -> 0.0009616802115 | AI19: =W19*AB9*AC9 -> 0.0006535677085 | AJ19: =AC8 -> 0.001081687598 | AM19: -0.05267512933 | AN19: -0.03494827222 | AO19: 0.002174627295 | AP19: 0.001354502554 | AQ19: 0.001840904759 | AR19: -0.000114548774 | AS19: -7.134859722e-05 | AT19: -7.599946671e-05 | AU19: -4.733752399e-05 | AV19: 2.945538226e-06 | AW19: 0.00277466925 | AX19: 0.001221381731 | AY19: 4.729003874e-06 | AZ19: 1.834677169e-06
A20: 2006-10-10 | B20: -0.001544529332 | C20: 0.01063829787 | D20: -0.002541296061 | E20: 0.003740221067 | G20: 0.002573173387 | I20: 2007-11-21 | J20: -0.05236931536 | K20: -0.03484162896 | L20: 0.002077274616 | M20: 0.0009224907822 | O20: UCG | P20: =CORREL(r_FCA,r_UCG) -> 0.5538759301 | Q20: =CORREL(r_LUX,r_UCG) -> 0.4888503054 | R20: =CORREL(r_ENI,r_UCG) -> 0.59396469 | S20: 1 | U20: UCG | V20: =AS146/(AW146*AZ146)^0.5 -> 0.7339922419 | W20: =AU146/(AX146*AZ146)^0.5 -> 0.644195098 | X20: =AV146/(AY146*AZ146)^0.5 -> 0.7639249285 | Y20: 1 | AA20: UCG | AB20: =P20*W7*Z7 -> 0.0005437146488 | AC20: =Q20*X7*Z7 -> 0.0003476716648 | AD20: =R20*Y7*Z7 -> 0.0004026369851 | AE20: =Z6 -> 0.001045289446 | AG20: UCG | AH20: =V20*AA9*AD9 -> 0.001786521598 | AI20: =W20*AB9*AD9 -> 0.001110601535 | AJ20: =X20*AC9*AD9 -> 0.001327357117 | AK20: =AD8 -> 0.002791080424 | AM20: -0.04600576074 | AN20: -0.02404521598 | AO20: 0.003820977007 | AP20: -0.01757858496 | AQ20: 0.001106218454 | AR20: -0.000175786954 | AS20: 0.0008087161739 | AT20: -9.187621741e-05 | AU20: 0.0004226808721 | AV20: -6.716736896e-05 | AW20: 0.002116530021 | AX20: 0.0005781724117 | AY20: 1.459986529e-05 | AZ20: 0.0003090066492
A21: 2006-10-11 | B21: -0.009392005746 | C21: 0.006736842105 | D21: 0.002972399151 | E21: -0.003726283942 | G21: -0.0008522621078 | I21: 2007-12-04 | J21: -0.04569994677 | K21: -0.02393857272 | L21: 0.003723624328 | M21: -0.01801059673 | AM21: -0.01801445305 | AN21: -0.05622238198 | AO21: -0.01881612821 | AP21: -0.03315318399 | AQ21: 0.00101281546 | AR21: 0.0003389622581 | AS21: 0.0005972364764 | AT21: 0.001057887547 | AU21: 0.001863950974 | AV21: 0.0006238145605 | AW21: 0.0003245205185 | AX21: 0.003160956235 | AY21: 0.0003540466806 | AZ21: 0.001099133609
A22: 2006-10-12 | B22: 0.007110788879 | C22: -0.0004182350481 | D22: 0.006350550381 | E22: 0.003740221067 | G22: 0.00419583132 | I22: 2007-12-13 | J22: -0.01770863908 | K22: -0.05611573871 | L22: -0.01891348089 | M22: -0.03358519577 | P22: A | U22: A^T | AB22: A | AG22: A^T | AM22: -0.02544615564 | AN22: -0.0183965381 | AO22: -0.01372378553 | AP22: -0.02666535866 | AQ22: 0.0004681211716 | AR22: 0.0003492175825 | AS22: 0.0006785308666 | AT22: 0.0002524701434 | AU22: 0.0004905502865 | AV22: 0.0003659496634 | AW22: 0.0006475068366 | AX22: 0.000338432614 | AY22: 0.0001883422893 | AZ22: 0.0007110413526
A23: 2006-10-13 | B23: 0.005482334699 | C23: -0.01589958159 | D23: 0.001682793437 | E23: -0.001490282883 | G23: -0.002556184084 | I23: 2007-12-17 | J23: -0.02514034167 | K23: -0.01828989483 | L23: -0.01382113821 | M23: -0.02709737043 | AM23: -0.06918007028 | AN23: -0.01713827344 | AO23: -0.008567475993 | AP23: -0.02369688224 | AQ23: 0.001185626961 | AR23: 0.0005926985914 | AS23: 0.001639351979 | AT23: 0.0001468317462 | AU23: 0.0004061236474 | AV23: 0.0002030224697 | AW23: 0.004785882125 | AX23: 0.0002937204163 | AY23: 7.340164489e-05 | AZ23: 0.000561542228
A24: 2006-10-16 | B24: 0.0140166327 | C24: 0.01488095238 | D24: 0.005039899202 | E24: 0.004477521422 | G24: 0.009603751427 | I24: 2008-01-04 | J24: -0.06887425631 | K24: -0.01703163017 | L24: -0.008664828673 | M24: -0.02412889401 | P24: 1 | Q24: 0 | R24: 0 | S24: 0 | U24: =TRANSPOSE(P24:S27) -> 1 | V24: 0.5098237795 | W24: 0.4899270625 | X24: 0.5538759301 | AB24: =W7 -> 0.03036269094 | AC24: 0 | AD24: 0 | AE24: 0 | AG24: =TRANSPOSE(AB24:AE27) -> 0.03036269094 | AH24: 0.011214895 | AI24: 0.01027226429 | AJ24: 0.01790732745 | AM24: -0.03321451885 | AN24: -0.04179678411 | AO24: -0.02390264732 | AP24: -0.0302967716 | AQ24: 0.001388260074 | AR24: 0.00079391493 | AS24: 0.001006292691 | AT24: 0.0009990537897 | AU24: 0.001266307622 | AV24: 0.0007241730465 | AW24: 0.001103204263 | AX24: 0.001746971162 | AY24: 0.0005713365489 | AZ24: 0.0009178943694
A25: 2006-10-17 | B25: -0.01613122233 | C25: -0.02387934646 | D25: 0.005850396991 | E25: -0.02303131507 | G25: -0.01429787172 | I25: 2008-01-15 | J25: -0.03290870488 | K25: -0.04169014085 | L25: -0.024 | M25: -0.03072878337 | P25: =P18 -> 0.5098237795 | Q25: =SQRT(1-P25^2) -> 0.8602788582 | R25: 0 | S25: 0 | U25: 0 | V25: 0.8602788582 | W25: 0.2620434428 | X25: 0.2400049512 | AB25: =P18*X7 -> 0.011214895 | AC25: =SQRT(X6-AB25^2) -> 0.0189240625 | AD25: 0 | AE25: 0 | AG25: 0 | AH25: 0.0189240625 | AI25: 0.005494245379 | AJ25: 0.007759584802 | AM25: -0.02878966728 | AN25: -0.02633432184 | AO25: -0.05076471629 | AP25: -0.08979389671 | AQ25: 0.0007581563637 | AR25: 0.001461499291 | AS25: 0.00258513641 | AT25: 0.001336854377 | AU25: 0.002364661375 | AV25: 0.004558361691 | AW25: 0.0008288449421 | AX25: 0.0006934965066 | AY25: 0.00257705642 | AZ25: 0.008062943886
A26: 2006-10-18 | B26: 0.0616633084 | C26: 0.01630901288 | D26: 0.0008309098463 | E26: 0.008364851614 | G26: 0.02179202068 | I26: 2008-01-21 | J26: -0.02848385331 | K26: -0.02622767857 | L26: -0.05086206897 | M26: -0.09022590848 | P26: =P19 -> 0.4899270625 | Q26: =(Q19-P26*P25)/Q25 -> 0.2620434428 | R26: =SQRT(1-P26^2-Q26^2) -> 0.831447357 | S26: 0 | U26: 0 | V26: 0 | W26: 0.831447357 | X26: 0.3123639239 | AB26: =P19*Y7 -> 0.01027226429 | AC26: =(Q19*Y7*X7-AB26*AB25)/AC25 -> 0.005494245379 | AD26: =SQRT(Y6-AB26^2-AC26^2) -> 0.01743289491 | AE26: 0 | AG26: 0 | AH26: 0 | AI26: 0.01743289491 | AJ26: 0.01009901814 | AM26: -0.1145238026 | AN26: -0.03669200912 | AO26: -0.04734790279 | AP26: -0.04596467166 | AQ26: 0.004202108411 | AR26: 0.005422461875 | AS26: 0.005264048986 | AT26: 0.001737289681 | AU26: 0.001686536152 | AV26: 0.002176330806 | AW26: 0.01311570137 | AX26: 0.001346303533 | AY26: 0.002241823899 | AZ26: 0.002112751041
A27: 2006-10-19 | B27: 0.03603463068 | C27: 0.01013513514 | D27: 0.00498132005 | E27: -0.009049594157 | G27: 0.01052537293 | I27: 2008-01-23 | J27: -0.1142179887 | K27: -0.03658536585 | L27: -0.04744525547 | M27: -0.04639668343 | P27: =P20 -> 0.5538759301 | Q27: =(Q20-P27*P25)/Q25 -> 0.2400049512 | R27: =(R20-P27*P26-Q27*Q26)/R26 -> 0.3123639239 | S27: =SQRT(1-P27^2-Q27^2-R27^2) -> 0.7335174548 | U27: 0 | V27: 0 | W27: 0 | X27: 0.7335174548 | AB27: =P20*Z7 -> 0.01790732745 | AC27: =(Q20*Z7*X7-AB27*AB25)/AC25 -> 0.007759584802 | AD27: =(R20*Z7*Y7-AB27*AB26-AC27*AC26)/AD26 -> 0.01009901814 | AE27: =SQRT(Z6-AB27^2-AC27^2-AD27^2) -> 0.02371530615 | AG27: 0 | AH27: 0 | AI27: 0 | AJ27: 0.02371530615 | AM27: -0.06845670517 | AN27: -0.03666016807 | AO27: -0.03113850065 | AP27: -0.03897683644 | AQ27: 0.002509634317 | AR27: 0.002131639158 | AS27: 0.002668225801 | AT27: 0.001141542667 | AU27: 0.001428897375 | AV27: 0.001213680247 | AW27: 0.004686320483 | AX27: 0.001343967923 | AY27: 0.0009696062226 | AZ27: 0.001519193779
A28: 2006-10-20 | B28: -0.01987502823 | C28: -0.005852842809 | D28: 0.003717472119 | E28: 0.001522039533 | G28: -0.005122089847 | I28: 2008-02-05 | J28: -0.0681508912 | K28: -0.0365535248 | L28: -0.03123585333 | M28: -0.03940884821 | AM28: -0.04488565776 | AN28: -0.09864481327 | AO28: -0.01664683337 | AP28: -0.03252384436 | AQ28: 0.004427737329 | AR28: 0.0007472040653 | AS28: 0.001459854147 | AT28: 0.001642123769 | AU28: 0.003208308554 | AV28: 0.0005414190175 | AW28: 0.002014722273 | AX28: 0.009730799185 | AY28: 0.0002771170611 | AZ28: 0.001057800452
A29: 2006-10-23 | B29: 0.007962721151 | C29: 0.0117746005 | D29: -0.02510288066 | E29: 0.006838769022 | G29: 0.0003683025047 | I29: 2008-02-07 | J29: -0.04457984379 | K29: -0.09853817001 | L29: -0.01674418605 | M29: -0.03295585613 | P29: A x A^T | AB29: A x A^T | AM29: -0.05082110371 | AN29: -0.01108961965 | AO29: 9.735267972e-05 | AP29: -0.02136178275 | AQ29: 0.0005635867105 | AR29: -4.947570633e-06 | AS29: 0.001085629377 | AT29: -1.07960419e-06 | AU29: 0.0002368940457 | AV29: -2.079626794e-06 | AW29: 0.002582784583 | AX29: 0.000122979664 | AY29: 9.477544249e-09 | AZ29: 0.0004563257621
A30: 2006-10-24 | B30: -0.01292928267 | C30: -0.01163757273 | D30: -0.0008442380751 | E30: -0.004528211952 | G30: -0.007484826357 | I30: 2008-02-22 | J30: -0.05051528974 | K30: -0.01098297639 | L30: 0 | M30: -0.02179379452 | AM30: -0.06602118207 | AN30: -0.02074244918 | AO30: -0.006533947055 | AP30: -0.02281212482 | AQ30: 0.001369441014 | AR30: 0.0004313789082 | AS30: 0.001506083446 | AT30: 0.0001355300647 | AU30: 0.0004731793397 | AV30: 0.0001490532158 | AW30: 0.004358796482 | AX30: 0.0004302491978 | AY30: 4.269246412e-05 | AZ30: 0.0005203930389
A31: 2006-10-25 | B31: 0.02256877429 | C31: 0.01597981497 | D31: 0.01056189269 | E31: -0.01213015981 | G31: 0.009245080535 | I31: 2008-03-04 | J31: -0.0657153681 | K31: -0.02063580591 | L31: -0.006631299735 | M31: -0.02324413659 | P31: =MMULT(P24:S27,U24:X27) -> 1 | Q31: 0.5098237795 | R31: 0.4899270625 | S31: 0.5538759301 | AB31: =MMULT(AB24:AE27,AG24:AJ27) -> 0.0009218930012 | AC31: 0.0003405143909 | AD31: 0.0003118935858 | AE31: 0.0005437146488 | AM31: -0.03201376703 | AN31: -0.01066219882 | AO31: -0.01317887858 | AP31: -0.03004338523 | AQ31: 0.0003413371491 | AR31: 0.0004219055487 | AS31: 0.0009618019357 | AT31: 0.0001405158237 | AU31: 0.0003203285466 | AV31: 0.0003959381262 | AW31: 0.00102488128 | AX31: 0.0001136824837 | AY31: 0.0001736828407 | AZ31: 0.0009026049962
A32: 2006-10-26 | B32: -0.03628951077 | C32: -0.00869205298 | D32: 0 | E32: -0.0007674442088 | G32: -0.01143725199 | I32: 2008-03-06 | J32: -0.03170795306 | K32: -0.01055555556 | L32: -0.01327623126 | M32: -0.030475397 | P32: 0.5098237795 | Q32: 1 | R32: 0.4752069004 | S32: 0.4888503054 | AB32: 0.0003405143909 | AC32: 0.0004838940113 | AD32: 0.0002191758083 | AE32: 0.0003476716648 | AM32: -0.02925502494 | AN32: -0.0225659358 | AO32: -0.01943389732 | AP32: -0.01608337791 | AQ32: 0.0006601670144 | AR32: 0.0005685391507 | AS32: 0.0004705196217 | AT32: 0.0004385440792 | AU32: 0.0003629364732 | AV32: 0.0003125627148 | AW32: 0.000855856484 | AX32: 0.0005092214584 | AY32: 0.0003776763651 | AZ32: 0.0002586750449
A33: 2006-10-27 | B33: 0.02509531519 | C33: -0.00751565762 | D33: -0.007525083612 | E33: 0.003072134527 | G33: 0.003281677122 | I33: 2008-03-07 | J33: -0.02894921097 | K33: -0.02245929253 | L33: -0.01953125 | M33: -0.01651538968 | P33: 0.4899270625 | Q33: 0.4752069004 | R33: 1 | S33: 0.59396469 | AB33: 0.0003118935858 | AC33: 0.0002191758083 | AD33: 0.0004396119707 | AE33: 0.0004026369851 | AM33: -0.02326214096 | AN33: -0.0314456746 | AO33: -0.01631790908 | AP33: -0.04158478812 | AQ33: 0.0007314937151 | AR33: 0.0003795895011 | AS33: 0.0009673512029 | AT33: 0.0005131276591 | AU33: 0.001307661716 | AV33: 0.0006785767915 | AW33: 0.0005411272019 | AX33: 0.0009888304513 | AY33: 0.0002662741567 | AZ33: 0.001729294603
A34: 2006-10-30 | B34: -0.01439307095 | C34: 0.003365586874 | D34: -0.0004212299916 | E34: -0.001531362711 | G34: -0.003245019194 | I34: 2008-03-13 | J34: -0.02295632699 | K34: -0.03133903134 | L34: -0.01641526176 | M34: -0.04201679989 | P34: 0.5538759301 | Q34: 0.4888503054 | R34: 0.59396469 | S34: 1 | AB34: 0.0005437146488 | AC34: 0.0003476716648 | AD34: 0.0004026369851 | AE34: 0.001045289446 | AM34: -0.04073504181 | AN34: -0.05623843094 | AO34: -0.03020567762 | AP34: -0.04402491854 | AQ34: 0.002290874836 | AR34: 0.001230429541 | AS34: 0.001793356897 | AT34: 0.001698719915 | AU34: 0.002475892341 | AV34: 0.001329802497 | AW34: 0.001659343631 | AX34: 0.003162761115 | AY34: 0.0009123829607 | AZ34: 0.001938193452
A35: 2006-10-31 | B35: 0.01095890411 | C35: 0.02180293501 | D35: -0.004214075011 | E35: -0.003834278449 | G35: 0.006178371415 | I35: 2008-03-17 | J35: -0.04042922784 | K35: -0.05613178768 | L35: -0.0303030303 | M35: -0.04445693031 | AM35: =J36-$W$5 -> 0.01511232823 | AN35: =K36-$X$5 -> -0.02770191265 | AO35: =L36-$Y$5 -> -0.03726427094 | AP35: =M36-$Z$5 -> -0.04515367521 | AQ35: =AM35*AN35 -> -0.0004186403964 | AR35: =AM35*AO35 -> -0.0005631498935 | AS35: =AM35*AP35 -> -0.0006823771603 | AT35: 0.001032291578 | AU35: 0.001250843166 | AV35: 0.001682618787 | AW35: =AM35^2 -> 0.0002283824644 | AX35: =AN35^2 -> 0.0007673959643 | AY35: =AO35^2 -> 0.001388625888 | AZ35: =AP35^2 -> 0.002038854385
A36: 2006-11-01 | B36: 0.008666973462 | C36: -0.009027492819 | D36: 0.0008463817182 | E36: 0.007698073456 | G36: 0.002045983954 | I36: 2008-03-20 | J36: 0.0154181422 | K36: -0.02759526938 | L36: -0.03736162362 | M36: -0.04558568698 | P36: A | U36: A^T | AB36: A | AG36: A^T | AM36: -0.02747306914 | AN36: -0.04020689389 | AO36: -0.01116293316 | AP36: -0.01285852849 | AQ36: 0.001104606776 | AR36: 0.0003066800345 | AS36: 0.0003532632423 | AT36: 0.000448826869 | AU36: 0.0005170014906 | AV36: 0.0001435388941 | AW36: 0.000754769528 | AX36: 0.001616594316 | AY36: 0.0001246110767 | AZ36: 0.0001653417549
A37: 2006-11-02 | B37: 0.01290142701 | C37: 0.009523809524 | D37: -0.01057082452 | E37: -0.007639265826 | G37: 0.001053786547 | I37: 2008-04-14 | J37: -0.02716725517 | K37: -0.04010025063 | L37: -0.01126028584 | M37: -0.01329054026 | AM37: -0.03456513551 | AN37: -0.05177510398 | AO37: -0.007492780148 | AP37: -0.01522763166 | AQ37: 0.001789613485 | AR37: 0.0002589889611 | AS37: 0.0005263451519 | AT37: 0.0003879394712 | AU37: 0.0007884122126 | AV37: 0.0001140972962 | AW37: 0.001194748593 | AX37: 0.002680661392 | AY37: 5.614175434e-05 | AZ37: 0.000231880766
A38: 2006-11-03 | B38: 0.01981882789 | C38: -0.00697292863 | D38: 0.01068376068 | E38: 0.003079229382 | G38: 0.006652222331 | I38: 2008-05-20 | J38: -0.03425932154 | K38: -0.05166846071 | L38: -0.007590132827 | M38: -0.01565964343 | P38: =V17 -> 1 | Q38: 0 | R38: 0 | S38: 0 | U38: =TRANSPOSE(P38:S41) -> 1 | V38: 0.7147450698 | W38: 0.6346716925 | X38: 0.7339922419 | AB38: =AA9 -> 0.04607131687 | AC38: 0 | AD38: 0 | AE38: 0 | AG38: =TRANSPOSE(AB38:AE41) -> 0.04607131687 | AH38: 0.02332415112 | AI38: 0.02087372962 | AJ38: 0.038777307 | AM38: -0.03521939422 | AN38: -0.01794387849 | AO38: -0.009069950605 | AP38: -0.02182686831 | AQ38: 0.0006319725304 | AR38: 0.0003194381659 | AS38: 0.0007687290794 | AT38: 0.0001627500916 | AU38: 0.0003916586728 | AV38: 0.0001979686174 | AW38: 0.001240405729 | AX38: 0.0003219827754 | AY38: 8.226400398e-05 | AZ38: 0.0004764121801
A39: 2006-11-06 | B39: 0.02777641459 | C39: 0.009087154069 | D39: 0.01268498943 | E39: 0.006906997879 | G39: 0.01411388899 | I39: 2008-06-02 | J39: -0.03491358025 | K39: -0.01783723523 | L39: -0.009167303285 | M39: -0.02225888008 | P39: =V18 -> 0.7147450698 | Q39: =SQRT(1-P39^2) -> 0.6993850765 | R39: 0 | S39: 0 | U39: 0 | V39: 0.6993850765 | W39: 0.2220897136 | X39: 0.1709755696 | AB39: =V18*AB9 -> 0.02332415112 | AC39: =SQRT(AB8-AB39^2) -> 0.02282291114 | AD39: 0 | AE39: 0 | AG39: 0 | AH39: 0.02282291114 | AI39: 0.007304312904 | AJ39: 0.009032755078 | AM39: -0.04462085027 | AN39: -0.04411778533 | AO39: -0.009332902723 | AP39: -0.03829644433 | AQ39: 0.001968573093 | AR39: 0.000416442055 | AS39: 0.001708819908 | AT39: 0.0004117469988 | AU39: 0.00168955431 | AV39: 0.0003574169896 | AW39: 0.001991020279 | AX39: 0.001946378982 | AY39: 8.710307324e-05 | AZ39: 0.001466617649
A40: 2006-11-07 | B40: -0.000692355441 | C40: -0.001227998363 | D40: 0.00375782881 | E40: 0.004573079006 | G40: 0.001602638503 | I40: 2008-06-06 | J40: -0.0443150363 | K40: -0.04401114206 | L40: -0.009430255403 | M40: -0.03872845611 | P40: =V19 -> 0.6346716925 | Q40: =(W19-P40*P39)/Q39 -> 0.2220897136 | R40: =SQRT(1-P40^2-Q40^2) -> 0.7401810602 | S40: 0 | U40: 0 | V40: 0 | W40: 0.7401810602 | X40: 0.3514125513 | AB40: =V19*AC9 -> 0.02087372962 | AC40: =(W19*AB9*AC9-AB40*AB39)/AC39 -> 0.007304312904 | AD40: =SQRT(AC8-AB40^2-AC40^2) -> 0.02434382926 | AE40: 0 | AG40: 0 | AH40: 0 | AI40: 0.02434382926 | AJ40: 0.01856536297 | AM40: -0.04255348993 | AN40: -0.0337402769 | AO40: -0.01744650697 | AP40: -0.02222617036 | AQ40: 0.001435766533 | AR40: 0.0007424097587 | AS40: 0.0009458011166 | AT40: 0.0005886499761 | AU40: 0.0007499171423 | AV40: 0.0003877690361 | AW40: 0.001810799505 | AX40: 0.001138406285 | AY40: 0.0003043806054 | AZ40: 0.0004940026489
A41: 2006-11-08 | B41: 0.03175096161 | C41: 0.002049180328 | D41: 0.006655574043 | E41: 0.0007587101927 | G41: 0.01030360654 | I41: 2008-06-11 | J41: -0.04224767596 | K41: -0.03363363363 | L41: -0.01754385965 | M41: -0.02265818213 | P41: =V20 -> 0.7339922419 | Q41: =(W20-P41*P39)/Q39 -> 0.1709755696 | R41: =(X20-P41*P40-Q41*Q40)/R40 -> 0.3514125513 | S41: =SQRT(1-P41^2-Q41^2-R41^2) -> 0.5554565349 | U41: 0 | V41: 0 | W41: 0 | X41: 0.5554565349 | AB41: =V20*AD9 -> 0.038777307 | AC41: =(W20*AB9*AD9-AB41*AB39)/AC39 -> 0.009032755078 | AD41: =(X20*AC9*AD9-AB41*AB40-AC41*AC40)/AD40 -> 0.01856536297 | AE41: =SQRT(AD8-AB41^2-AC41^2-AD41^2) -> 0.02934514474 | AG41: 0 | AH41: 0 | AI41: 0 | AJ41: 0.02934514474 | AM41: -0.0238690478 | AN41: -0.02969601525 | AO41: -0.01772362747 | AP41: -0.01662002579 | AQ41: 0.0007088156074 | AR41: 0.0004230461114 | AS41: 0.00039670419 | AT41: 0.0005263211117 | AU41: 0.0004935485392 | AV41: 0.0002945671457 | AW41: 0.000569731443 | AX41: 0.0008818533215 | AY41: 0.0003141269708 | AZ41: 0.0002762252573
A42: 2006-11-09 | B42: -0.01898763488 | C42: -0.00736196319 | D42: 0.004545454545 | E42: -0.003032539952 | G42: -0.00620917087 | I42: 2008-06-18 | J42: -0.02356323383 | K42: -0.02958937198 | L42: -0.01782098015 | M42: -0.01705203756 | AM42: -0.06171674275 | AN42: -0.03122052005 | AO42: -0.02233721317 | AP42: -0.0008125181242 | AQ42: 0.001926828805 | AR42: 0.001378580039 | AS42: 5.014597205e-05 | AT42: 0.0006973794117 | AU42: 2.536723839e-05 | AV42: 1.814939054e-05 | AW42: 0.003808956335 | AX42: 0.0009747208724 | AY42: 0.0004989510922 | AZ42: 6.601857021e-07
A43: 2006-11-10 | B43: -0.0100080253 | C43: -0.006180469716 | D43: 0.02015631427 | E43: 0.0007604410558 | G43: 0.001182065078 | I43: 2008-06-20 | J43: -0.06141092878 | K43: -0.03111387679 | L43: -0.02243456585 | M43: -0.001244529896 | P43: A x A^T | AB43: A x A^T | AM43: -0.08047163224 | AN43: -0.03395083228 | AO43: -0.009107668241 | AP43: 0.004768975226 | AQ43: 0.00273207889 | AR43: 0.0007329089292 | AS43: -0.0003837672206 | AT43: 0.0003092129169 | AU43: -0.0001619106781 | AV43: -4.343424421e-05 | AW43: 0.006475683595 | AX43: 0.001152659013 | AY43: 8.294962078e-05 | AZ43: 2.274312471e-05
A44: 2006-11-13 | B44: 0.02293643603 | C44: 0.009535655058 | D44: -0.004032258065 | E44: 0.0007598632246 | G44: 0.007299924062 | I44: 2008-06-24 | J44: -0.08016581827 | K44: -0.03384418902 | L44: -0.009205020921 | M44: 0.004336963454 | AM44: -0.07038650525 | AN44: -0.05889415092 | AO44: -0.01088701572 | AP44: -0.04259838166 | AQ44: 0.004145353463 | AR44: 0.000766298989 | AS44: 0.002998351214 | AT44: 0.0006411815468 | AU44: 0.002508795519 | AV44: 0.0004637692508 | AW44: 0.004954260121 | AX44: 0.003468521013 | AY44: 0.0001185271113 | AZ44: 0.00181462212
A45: 2006-11-14 | B45: -0.01715457766 | C45: -0.009856262834 | D45: 0.005263157895 | E45: 0.001518572542 | G45: -0.005057277515 | I45: 2008-06-26 | J45: -0.07008069128 | K45: -0.05878750765 | L45: -0.0109843684 | M45: -0.04303039343 | P45: =MMULT(P38:S41,U38:X41) -> 1 | Q45: 0.7147450698 | R45: 0.6346716925 | S45: 0.7339922419 | AB45: =MMULT(AB38:AE41,AG38:AJ41) -> 0.002122566238 | AC45: 0.001074574357 | AD45: 0.0009616802115 | AE45: 0.001786521598 | AM45: -0.03872162865 | AN45: -0.006818052661 | AO45: -0.01551446167 | AP45: -0.03815342449 | AQ45: 0.0002640061032 | AR45: 0.0006007452233 | AS45: 0.001477362735 | AT45: 0.0001057784166 | AU45: 0.0002601320574 | AV45: 0.0005919298417 | AW45: 0.001499364525 | AX45: 4.648584209e-05 | AY45: 0.0002406985208 | AZ45: 0.001455683801
A46: 2006-11-15 | B46: 0.006047239613 | C46: 0.007465781833 | D46: 0.005638340717 | E46: 0.01137202482 | G46: 0.007630846746 | I46: 2008-07-01 | J46: -0.03841581468 | K46: -0.006711409396 | L46: -0.01561181435 | M46: -0.03858543626 | P46: 0.7147450698 | Q46: 1 | R46: 0.6089546945 | S46: 0.644195098 | AB46: 0.001074574357 | AC46: 0.001064901299 | AD46: 0.0006535677085 | AE46: 0.001110601535 | AM46: -0.008171060715 | AN46: -0.04571140202 | AO46: -0.008538225904 | AP46: -0.04247144574 | AQ46: 0.0003735106413 | AR46: 6.976636226e-05 | AS46: 0.0003470367618 | AT46: 0.0003902942769 | AU46: 0.001941429331 | AV46: 0.0003626307982 | AW46: 6.676623321e-05 | AX46: 0.002089532275 | AY46: 7.290130159e-05 | AZ46: 0.001803823703
A47: 2006-11-16 | B47: -0.004007260213 | C47: 0.0004116920543 | D47: 0.005206247497 | E47: -0.0014992208 | G47: 2.786463475e-05 | I47: 2008-07-04 | J47: -0.007865246746 | K47: -0.04560475876 | L47: -0.008635578584 | M47: -0.04290345751 | P47: 0.6346716925 | Q47: 0.6089546945 | R47: 1 | S47: 0.7639249285 | AB47: 0.0009616802115 | AC47: 0.0006535677085 | AD47: 0.001081687598 | AE47: 0.001327357117 | AM47: -0.04429138783 | AN47: -0.04119299424 | AO47: -0.004347091765 | AP47: -0.03024327505 | AQ47: 0.001824494884 | AR47: 0.0001925387273 | AS47: 0.001339516625 | AT47: 0.000179069726 | AU47: 0.001245811055 | AV47: 0.0001314702919 | AW47: 0.001961727036 | AX47: 0.001696862774 | AY47: 1.889720681e-05 | AZ47: 0.000914655686
A48: 2006-11-17 | B48: -0.02676733013 | C48: 0.004526748971 | D48: -0.01633466135 | E48: -0.001501471838 | G48: -0.01001917859 | I48: 2008-07-11 | J48: -0.04398557386 | K48: -0.04108635097 | L48: -0.004444444444 | M48: -0.03067528683 | P48: 0.7339922419 | Q48: 0.644195098 | R48: 0.7639249285 | S48: 1 | AB48: 0.001786521598 | AC48: 0.001110601535 | AD48: 0.001327357117 | AE48: 0.002791080424 | AM48: -0.02445896946 | AN48: -0.01929640872 | AO48: -0.01857761397 | AP48: -0.03915055564 | AQ48: 0.0004719702717 | AR48: 0.0004543892928 | AS48: 0.0009575822449 | AT48: 0.0003584812323 | AU48: 0.0007554651235 | AV48: 0.0007273239096 | AW48: 0.0005982411872 | AX48: 0.0003723513896 | AY48: 0.0003451277409 | AZ48: 0.001532766007
A49: 2006-11-20 | B49: 0.003428821555 | C49: -0.004506349857 | D49: 0.004860267315 | E49: 0.002256176407 | G49: 0.001509728855 | I49: 2008-07-15 | J49: -0.02415315549 | K49: -0.01918976546 | L49: -0.01867496665 | M49: -0.03958256742 | AM49: -0.04997991141 | AN49: -0.02449688717 | AO49: -0.02366946346 | AP49: 0.004181935584 | AQ49: 0.001224352251 | AR49: 0.001182997687 | AS49: -0.00020901277 | AT49: 0.0005798281758 | AU49: -0.0001024444041 | AV49: -9.89841715e-05 | AW49: 0.002497991545 | AX49: 0.0006000974809 | AY49: 0.0005602435007 | AZ49: 1.748858522e-05
A50: 2006-11-21 | B50: -0.008215592662 | C50: 0.001234567901 | D50: -0.001209189843 | E50: 0.002249936276 | G50: -0.001485069582 | I50: 2008-07-24 | J50: -0.04967409744 | K50: -0.0243902439 | L50: -0.02376681614 | M50: 0.003749923812 | AM50: -0.05006776927 | AN50: -0.03170515628 | AO50: 0.004177135091 | AP50: -0.03178466705 | AQ50: 0.001587406449 | AR50: -0.000209139836 | AS50: 0.001591387376 | AT50: -0.0001324367209 | AU50: 0.001007737836 | AV50: -0.0001327688481 | AW50: 0.00250678152 | AX50: 0.001005216934 | AY50: 1.744845757e-05 | AZ50: 0.00101026506
A51: 2006-11-22 | B51: 0.01727592611 | C51: -0.01150842581 | D51: -0.001614205004 | E51: 0 | G51: 0.001038323823 | I51: 2008-07-28 | J51: -0.0497619553 | K51: -0.03159851301 | L51: 0.004079782412 | M51: -0.03221667882 | AM51: -0.01447598976 | AN51: -0.04151191303 | AO51: -0.010710918 | AP51: -0.02308256692 | AQ51: 0.0006009260279 | AR51: 0.0001550511392 | AS51: 0.0003341430024 | AT51: 0.0004446306963 | AU51: 0.0009582015105 | AV51: 0.0002472354815 | AW51: 0.0002095542795 | AX51: 0.001723238923 | AY51: 0.0001147237643 | AZ51: 0.0005328048958
A52: 2006-11-23 | B52: -0.01630996133 | C52: -0.005821205821 | D52: 0 | E52: 0.0007484882507 | G52: -0.005345669724 | I52: 2008-08-04 | J52: -0.01417017579 | K52: -0.04140526976 | L52: -0.01080827068 | M52: -0.0235145787 | AM52: -0.04347635228 | AN52: -0.0540120338 | AO52: -0.005023690151 | AP52: -0.0334557752 | AQ52: 0.002348246209 | AR52: 0.0002184117227 | AS52: 0.001454535069 | AT52: 0.0002713397222 | AU52: 0.001807014461 | AV52: 0.0001680714484 | AW52: 0.001890193208 | AX52: 0.002917299796 | AY52: 2.523746273e-05 | AZ52: 0.001119288894
A53: 2006-11-24 | B53: -0.008961711272 | C53: -0.01463822668 | D53: -0.003637833468 | E53: -0.008227212786 | G53: -0.008866246052 | I53: 2008-08-13 | J53: -0.04317053831 | K53: -0.05390539054 | L53: -0.005121042831 | M53: -0.03388778698 | AM53: -0.03515320642 | AN53: -0.03550487335 | AO53: -0.01375306283 | AP53: -0.0242836015 | AQ53: 0.001248110142 | AR53: 0.0004834642567 | AS53: 0.0008536464563 | AT53: 0.0004883007541 | AU53: 0.0008621861959 | AV53: 0.0003339738973 | AW53: 0.001235747922 | AX53: 0.001260596032 | AY53: 0.0001891467373 | AZ53: 0.0005896933019
A54: 2006-11-27 | B54: -0.0299864482 | C54: -0.02589134126 | D54: -0.006490872211 | E54: -0.01508265693 | G54: -0.01936282965 | I54: 2008-08-19 | J54: -0.03484739245 | K54: -0.03539823009 | L54: -0.01385041551 | M54: -0.02471561327 | AM54: -0.04640746378 | AN54: -0.0173374125 | AO54: 0.001477297482 | AP54: -0.02172822544 | AQ54: 0.0008045853425 | AR54: -6.855762939e-05 | AS54: 0.001008351835 | AT54: -2.561251582e-05 | AU54: 0.0003767112072 | AV54: -3.209905273e-05 | AW54: 0.002153652695 | AX54: 0.000300585872 | AY54: 2.18240785e-06 | AZ54: 0.0004721157807
A55: 2006-11-28 | B55: -0.004292826661 | C55: -0.01002178649 | D55: 0.001633319722 | E55: 0.001531362711 | G55: -0.00278748268 | I55: 2008-08-21 | J55: -0.04610164981 | K55: -0.01723076923 | L55: 0.001379944802 | M55: -0.02216023721 | AM55: -0.05083556132 | AN55: -0.02867807184 | AO55: -0.02195802038 | AP55: -0.01216721199 | AQ55: 0.001457865879 | AR55: 0.001116248292 | AS55: 0.0006185270513 | AT55: 0.000629713686 | AU55: 0.0003489321795 | AV55: 0.0002671678889 | AW55: 0.002584254295 | AX55: 0.0008224318042 | AY55: 0.0004821546592 | AZ55: 0.0001480410476
A56: 2006-11-29 | B56: 0.03461823006 | C56: 0.03345070423 | D56: 0.01549123522 | E56: 0.0007645106126 | G56: 0.02108117003 | I56: 2008-09-04 | J56: -0.05052974735 | K56: -0.02857142857 | L56: -0.02205537306 | M56: -0.01259922376 | AM56: -0.03206547062 | AN56: -0.0136813039 | AO56: -0.02821358782 | AP56: -0.0170290268 | AQ56: 0.0004386974482 | AR56: 0.0009046819714 | AS56: 0.0005460437587 | AT56: 0.000385998669 | AU56: 0.0002329792908 | AV56: 0.0004804499432 | AW56: 0.001028194406 | AX56: 0.0001871780764 | AY56: 0.0007960065376 | AZ56: 0.0002899877539
A57: 2006-11-30 | B57: -0.02300522734 | C57: -0.02470187394 | D57: -0.007627458852 | E57: -0.003819632913 | G57: -0.01478854826 | I57: 2008-09-05 | J57: -0.03175965665 | K57: -0.01357466063 | L57: -0.0283109405 | M57: -0.01746103858 | AM57: -0.03326786552 | AN57: -0.02291166037 | AO57: -0.04727106837 | AP57: -0.03227865973 | AQ57: 0.0007622220359 | AR57: 0.001572607545 | AS57: 0.001073842111 | AT57: 0.001083058664 | AU57: 0.0007395576889 | AV57: 0.001525846731 | AW57: 0.001106750876 | AX57: 0.0005249441808 | AY57: 0.002234553905 | AZ57: 0.001041911874
A58: 2006-12-01 | B58: -0.002145218686 | C58: -0.01703056769 | D58: -0.007281553398 | E58: -0.00613543906 | G58: -0.008148194708 | I58: 2008-09-15 | J58: -0.03296205155 | K58: -0.0228050171 | L58: -0.04736842105 | M58: -0.0327106715 | AM58: -0.04506470308 | AN58: -0.03933347669 | AO58: 0.004846693049 | AP58: -0.07582037846 | AQ58: 0.001772551448 | AR58: -0.0002184147832 | AS58: 0.003416822842 | AT58: -0.0001906372881 | AU58: 0.002982279089 | AV58: -0.0003674781013 | AW58: 0.002030827464 | AX58: 0.001547122389 | AY58: 2.349043351e-05 | AZ58: 0.005748729789
A59: 2006-12-04 | B59: 0 | C59: 0.02221235007 | D59: -0.001222493888 | E59: 0.005401725327 | G59: 0.006597895377 | I59: 2008-09-17 | J59: -0.04475888911 | K59: -0.03922683343 | L59: 0.004749340369 | M59: -0.07625239023 | AM59: -0.01959538524 | AN59: -0.0462687474 | AO59: -0.04346700376 | AP59: -0.02400885344 | AQ59: 0.0009066539298 | AR59: 0.0008517526838 | AS59: 0.0004704627323 | AT59: 0.002011163817 | AU59: 0.001110859575 | AV59: 0.001043592923 | AW59: 0.0003839791227 | AX59: 0.002140796986 | AY59: 0.001889380416 | AZ59: 0.0005764250436
A60: 2006-12-05 | B60: 0.007865850574 | C60: 0.01564537158 | D60: 0.01060791514 | E60: 0.007674442088 | G60: 0.01044839484 | I60: 2008-09-22 | J60: -0.01928957127 | K60: -0.04616210413 | L60: -0.04356435644 | M60: -0.02444086521 | AM60: -0.04502340443 | AN60: -0.02730571734 | AO60: 0.005292157875 | AP60: -0.03375023953 | AQ60: 0.001229396355 | AR60: -0.0002382709643 | AS60: 0.001519550684 | AT60: -0.000144506167 | AU60: 0.0009215745007 | AV60: -0.0001786115959 | AW60: 0.002027106946 | AX60: 0.0007456021994 | AY60: 2.800693497e-05 | AZ60: 0.001139078668
A61: 2006-12-06 | B61: -0.0007026525132 | C61: 0.01155327343 | D61: 0.003633427533 | E61: -0.003046397435 | G61: 0.002859412753 | I61: 2008-09-24 | J61: -0.04471759046 | K61: -0.02719907407 | L61: 0.005194805195 | M61: -0.0341822513 | AM61: -0.03744886354 | AN61: -0.04010664326 | AO61: -0.02071483006 | AP61: -0.04090149967 | AQ61: 0.001501948211 | AR61: 0.0007757468442 | AS61: 0.00153171468 | AT61: 0.0008308022996 | AU61: 0.001640421856 | AV61: 0.0008472676149 | AW61: 0.00140241738 | AX61: 0.001608542834 | AY61: 0.0004291041845 | AZ61: 0.001672932675
A62: 2006-12-07 | B62: -0.00143140554 | C62: -0.005076142132 | D62: -0.002815768302 | E62: 0.005347486078 | G62: -0.000993957474 | I62: 2008-09-26 | J62: -0.03714304957 | K62: -0.04 | L62: -0.02081218274 | M62: -0.04133351144 | AM62: -0.04580646098 | AN62: -0.01439235755 | AO62: -0.04552213929 | AP62: -0.1001734712 | AQ62: 0.0006592629646 | AR62: 0.002085208097 | AS62: 0.004588592199 | AT62: 0.0006551709051 | AU62: 0.001441732414 | AV62: 0.004560110708 | AW62: 0.002098231868 | AX62: 0.0002071399559 | AY62: 0.002072265165 | AZ62: 0.01003472433
A63: 2006-12-08 | B63: 0.001433457399 | C63: 0.006802721088 | D63: -0.003227107705 | E63: -0.002279589674 | G63: 0.0006823702771 | I63: 2008-09-29 | J63: -0.04550064701 | K63: -0.01428571429 | L63: -0.04561949196 | M63: -0.100605483 | AM63: -0.02932530686 | AN63: -0.02667669157 | AO63: 0.01041783068 | AP63: -0.1257245624 | AQ63: 0.0007823021664 | AR63: -0.0003055060815 | AS63: 0.003686911371 | AT63: -0.0002779132559 | AU63: 0.003353915373 | AV63: -0.001309777203 | AW63: 0.0008599736225 | AX63: 0.0007116458733 | AY63: 0.0001085311961 | AZ63: 0.01580666558
A64: 2006-12-11 | B64: 0 | C64: 0.002956081081 | D64: 0.006879805747 | E64: 0.007615993587 | G64: 0.004362970104 | I64: 2008-09-30 | J64: -0.02901949289 | K64: -0.02657004831 | L64: 0.010320478 | M64: -0.1261565741 | AM64: -0.03812408165 | AN64: 0.004969498867 | AO64: -0.02313333344 | AP64: -0.02552036312 | AQ64: -0.0001894575806 | AR64: 0.0008819370927 | AS64: 0.0009729404074 | AT64: -0.0001149610743 | AU64: -0.0001268234156 | AV64: 0.0005903710695 | AW64: 0.001453445602 | AX64: 2.469591899e-05 | AY64: 0.0005351511159 | AZ64: 0.0006512889339
A65: 2006-12-12 | B65: 0.00143140554 | C65: -0.01305263158 | D65: 0.002411575563 | E65: -0.0007558428642 | G65: -0.002491373335 | I65: 2008-10-02 | J65: -0.03781826768 | K65: 0.005076142132 | L65: -0.02323068612 | M65: -0.02595237489 | AM65: -0.07774605301 | AN65: -0.07310853124 | AO65: -0.09615060817 | AP65: -0.058773245 | AQ65: 0.005683899746 | AR65: 0.00747533028 | AS65: 0.004569387822 | AT65: 0.007029429741 | AU65: 0.004296825619 | AV65: 0.005651083251 | AW65: 0.006044448759 | AX65: 0.005344857341 | AY65: 0.009244939451 | AZ65: 0.003454294328
A66: 2006-12-13 | B66: -0.004965143688 | C66: 0.005546075085 | D66: 0.007618283881 | E66: 0.006807731353 | G66: 0.003751736658 | I66: 2008-10-06 | J66: -0.07744023904 | K66: -0.07300188798 | L66: -0.09624796085 | M66: -0.05920525677 | AM66: -0.06773721298 | AN66: 0.001930016613 | AO66: 0.01574115533 | AP66: -0.03060318422 | AQ66: -0.0001307339464 | AR66: -0.001066261991 | AS66: 0.002072974408 | AT66: 3.038069129e-05 | AU66: -5.906465396e-05 | AV66: -0.0004817294764 | AW66: 0.004588330022 | AX66: 3.724964126e-06 | AY66: 0.000247783971 | AZ66: 0.0009365548847
A67: 2006-12-14 | B67: -0.0007308467742 | C67: -0.01272804412 | D67: 0.01074413052 | E67: 0.00225389984 | G67: -0.0001152151342 | I67: 2008-10-07 | J67: -0.06743139901 | K67: 0.002036659878 | L67: 0.01564380265 | M67: -0.031035196 | AM67: =J68-$W$5 -> -0.05013457283 | AN67: =K68-$X$5 -> -0.01704431264 | AO67: =L68-$Y$5 -> -0.09528179424 | AP67: =M68-$Z$5 -> -0.1294600994 | AQ67: =AM67*AN67 -> 0.0008545093335 | AR67: =AM67*AO67 -> 0.004776912053 | AS67: =AM67*AP67 -> 0.006490426784 | AT67: =AN67*AO67 -> 0.00162401269 | AU67: 0.002206558409 | AV67: 0.01233519056 | AW67: =AM67^2 -> 0.002513475393 | AX67: =AN67^2 -> 0.0002905085934 | AY67: =AO67^2 -> 0.009078620314 | AZ67: =AP67^2 -> 0.01675991734
A68: 2006-12-15 | B68: 0.04564828125 | C68: 0.003008165019 | D68: 0.01338582677 | E68: 0.0014992208 | G68: 0.01588537346 | I68: 2008-10-08 | J68: -0.04982875886 | K68: -0.01693766938 | L68: -0.09537914692 | M68: -0.1298921112 | AM68: -0.02869503429 | AN68: -0.01531301546 | AO68: -0.07330332072 | AP68: -0.13065311 | AQ68: 0.0004394075037 | AR68: 0.002103441302 | AS68: 0.003749095472 | AT68: 0.001122494883 | AU68: =AN68*AP68 -> 0.002000693093 | AV68: =AO68*AP68 -> 0.009577306825 | AW68: 0.0008234049932 | AX68: 0.0002344884424 | AY68: 0.005373376829 | AZ68: 0.01707023515
A69: 2006-12-18 | B69: 0.004775572225 | C69: 0.01071122536 | D69: -0.005827505828 | E69: -0.001496976501 | G69: =(B69+C69+D69+E69)/4 -> 0.002040578815 | I69: 2008-10-10 | J69: -0.02838922033 | K69: -0.01520637219 | L69: -0.0734006734 | M69: -0.1310851218 | AM69: -0.04842552429 | AN69: -0.01397718488 | AO69: -0.05832402706 | AP69: -0.08259358663 | AQ69: 0.0006768525058 | AR69: 0.002824371589 | AS69: 0.003999637736 | AT69: 0.0008152057089 | AU69: 0.00115442583 | AV69: 0.004817190582 | AW69: 0.002345031403 | AX69: 0.0001953616971 | AY69: 0.003401692132 | AZ69: 0.006821700553
A70: 2006-12-19 | B70: -0.0081374973 | C70: -0.005934718101 | D70: -0.00156311059 | E70: -0.002998441599 | G70: -0.004658441897 | I70: 2008-10-15 | J70: -0.04811971032 | K70: -0.01387054161 | L70: -0.05842137974 | M70: -0.08302559841 | AM70: -0.04760404029 | AN70: -0.02890771493 | AO70: -0.0777904361 | AP70: -0.1303531634 | AQ70: 0.001376124026 | AR70: 0.003703139054 | AS70: 0.00620533724 | AT70: 0.002248743751 | AU70: 0.003768212087 | AV70: 0.01014022942 | AW70: 0.002266144652 | AX70: 0.0008356559826 | AY70: 0.006051351948 | AZ70: 0.0169919472
A71: 2006-12-20 | B71: -0.004114230397 | C71: 0.007675906183 | D71: 0.00469667319 | E71: 0.001503729645 | G71: 0.002440519655 | I71: 2008-10-16 | J71: -0.04729822632 | K71: -0.02880107167 | L71: -0.07788778878 | M71: -0.1307851751 | AM71: -0.01981387165 | AN71: -0.006998873841 | AO71: -0.03042767785 | AP71: -0.07083612459 | AQ71: 0.000138674788 | AR71: 0.0006028901033 | AS71: 0.001403537881 | AT71: 0.0002129594785 | AU71: 0.0004957730994 | AV71: 0.002155378779 | AW71: 0.0003925895096 | AX71: 4.898423505e-05 | AY71: 0.0009258435791 | AZ71: 0.005017756547
A72: 2006-12-21 | B72: -0.00687727825 | C72: -0.003808717732 | D72: -0.003506038177 | E72: 0 | G72: -0.00354800854 | I72: 2008-10-22 | J72: -0.01950805768 | K72: -0.006892230576 | L72: -0.03052503053 | M72: -0.07126813637 | AM72: -0.09263629455 | AN72: -0.0866451048 | AO72: -0.05624067549 | AP72: -0.07991447059 | AQ72: 0.00802648145 | AR72: 0.00520992778 | AS72: 0.007402980437 | AT72: 0.004872979222 | AU72: 0.00692419768 | AV72: 0.004494443808 | AW72: 0.008581483068 | AX72: 0.007507374186 | AY72: 0.003163013579 | AZ72: 0.00638632261
A73: 2006-12-22 | B73: -0.01590525363 | C73: -0.01444350042 | D73: -0.01485535575 | E73: -0.003753679594 | G73: -0.01223944735 | I73: 2008-10-24 | J73: -0.09233048058 | K73: -0.08653846154 | L73: -0.05633802817 | M73: -0.08034648237 | AM73: -0.08492352325 | AN73: 0.02094598831 | AO73: -0.008338727788 | AP73: -0.05064230065 | AQ73: -0.001778807126 | AR73: 0.0007081541431 | AS73: 0.004300722596 | AT73: -0.0001746628948 | AU73: -0.001060753038 | AV73: 0.0004222923596 | AW73: 0.007212004801 | AX73: 0.0004387344265 | AY73: 6.953438111e-05 | AZ73: 0.002564642615
A74: 2006-12-25 | B74: 0 | C74: 0 | D74: 0 | E74: 0 | G74: 0 | I74: 2008-10-27 | J74: -0.08461770928 | K74: 0.02105263158 | L74: -0.008436080467 | M74: -0.05107431242 | AM74: -0.01245503814 | AN74: -0.02141248519 | AO74: -0.002520448367 | AP74: -0.1298792241 | AQ74: 0.0002666933196 | AR74: 3.139228054e-05 | AS74: 0.001617650689 | AT74: 5.396906334e-05 | AU74: 0.002781036962 | AV74: 0.0003273538783 | AW74: 0.000155127975 | AX74: 0.000458494522 | AY74: 6.352659973e-06 | AZ74: 0.01686861285
A75: 2006-12-26 | B75: 0 | C75: 0 | D75: 0 | E75: 0 | G75: 0 | I75: 2008-10-28 | J75: -0.01214922417 | K75: -0.02130584192 | L75: -0.002617801047 | M75: -0.1303112358 | AM75: -0.01810818031 | AN75: -0.07200598419 | AO75: -0.07409619571 | AP75: -0.06928268639 | AQ75: 0.001303897345 | AR75: 0.001341747273 | AS75: 0.001254583378 | AT75: 0.005335369496 | AU75: 0.004988768021 | AV75: 0.00513358349 | AW75: 0.0003279061943 | AX75: 0.005184861759 | AY75: 0.005490246218 | AZ75: 0.004800090634
A76: 2006-12-27 | B76: 0.02389536763 | C76: 0.01551724138 | D76: 0.01666666667 | E76: 0.006782081028 | G76: 0.01571533918 | I76: 2008-11-06 | J76: -0.01780236635 | K76: -0.07189934092 | L76: -0.07419354839 | M76: -0.06971469817 | AM76: -0.06017928889 | AN76: -0.02574766891 | AO76: -0.05036891172 | AP76: -0.1096172969 | AQ76: 0.001549476405 | AR76: 0.003031165289 | AS76: 0.006596690979 | AT76: 0.001296882062 | AU76: 0.002822389868 | AV76: 0.005521303952 | AW76: 0.003621546811 | AX76: 0.0006629424541 | AY76: 0.002537027268 | AZ76: 0.01201595179
A77: 2006-12-28 | B77: -0.006848317063 | C77: -0.002971137521 | D77: -0.001170960187 | E77: 0 | G77: -0.002747603693 | I77: 2008-11-11 | J77: -0.05987347492 | K77: -0.02564102564 | L77: -0.0504662644 | M77: -0.1100493087 | AM77: -0.04026015187 | AN77: -0.02706428126 | AO77: -0.03225388938 | AP77: 0.006883919985 | AQ77: 0.001089612074 | AR77: 0.001298546485 | AS77: -0.000277147664 | AT77: 0.0008729283339 | AU77: -0.0001863083467 | AV77: -0.0002220331937 | AW77: 0.001620879829 | AX77: 0.0007324753202 | AY77: 0.00104031338 | AZ77: 4.738835436e-05
A78: 2006-12-29 | B78: 0.001369327074 | C78: -0.008939974457 | D78: -0.004298554123 | E78: -0.005987906006 | G78: -0.004464276878 | I78: 2008-11-12 | J78: -0.0399543379 | K78: -0.026957638 | L78: -0.03235124206 | M78: 0.006451908213 | AM78: -0.06324857618 | AN78: 0.002001578801 | AO78: -0.0414769267 | AP78: -0.07243283754 | AQ78: -0.0001265970093 | AR78: 0.002623356558 | AS78: 0.004581273843 | AT78: -8.301933722e-05 | AU78: -0.0001449800321 | AV78: 0.003004291493 | AW78: 0.004000382389 | AX78: 4.006317697e-06 | AY78: 0.001720335448 | AZ78: 0.005246515953
A79: 2007-01-01 | B79: 0 | C79: 0 | D79: 0 | E79: 0 | G79: 0 | I79: 2008-11-17 | J79: -0.06294276221 | K79: 0.002108222066 | L79: -0.04157427938 | M79: -0.07286484931 | AM79: -0.05538800115 | AN79: -0.0444874593 | AO79: -0.01901450792 | AP79: -0.06136670595 | AQ79: 0.002464071447 | AR79: 0.001053175586 | AS79: 0.00339897918 | AT79: 0.000845907147 | AU79: 0.002730048833 | AV79: 0.001166857716 | AW79: 0.003067830672 | AX79: 0.001979134035 | AY79: 0.0003615515113 | AZ79: 0.003765872599
A80: 2007-01-02 | B80: 0.01313733151 | C80: 0.01116838488 | D80: 0.009419152276 | E80: 0.024849488 | G80: 0.01464358917 | I80: 2008-11-19 | J80: -0.05508218719 | K80: -0.04438081603 | L80: -0.0191118606 | M80: -0.06179871772 | AM80: 0.01055099354 | AN80: -0.03717113548 | AO80: -0.04789304924 | AP80: -0.01830011484 | AQ80: -0.0003921924104 | AR80: -0.0005053192533 | AS80: -0.0001930843935 | AT80: 0.001780239022 | AU80: 0.0006802360481 | AV80: 0.0008764483012 | AW80: 0.0001113234647 | AX80: 0.001381693313 | AY80: 0.002293744165 | AZ80: 0.0003348942032
A81: 2007-01-03 | B81: -0.01024343215 | C81: 0 | D81: -0.008553654743 | E81: 0.01249113564 | G81: -0.001576487813 | I81: 2008-11-21 | J81: 0.01085680751 | K81: -0.03706449222 | L81: -0.04799040192 | M81: -0.01873212661 | AM81: -0.04793943915 | AN81: 0.01976998456 | AO81: -0.07153265296 | AP81: -0.06329247107 | AQ81: -0.0009477619718 | AR81: 0.003429235264 | AS81: 0.003034205565 | AT81: -0.001414199445 | AU81: -0.001251291176 | AV81: 0.004527478368 | AW81: 0.002298189826 | AX81: 0.0003908522896 | AY81: 0.00511692044 | AZ81: 0.004005936894
A82: 2007-01-04 | B82: -0.001363691708 | C82: -0.01104502974 | D82: -0.01098039216 | E82: -0.002177024194 | G82: -0.006391534449 | I82: 2008-12-01 | J82: -0.04763362518 | K82: 0.01987662783 | L82: -0.07163000564 | M82: -0.06372448284 | AM82: -0.02444635998 | AN82: -0.02465873351 | AO82: 0.005444946263 | AP82: -0.04148118745 | AQ82: 0.0006028162759 | AR82: -0.0001331091164 | AS82: 0.001014064041 | AT82: -0.0001342654789 | AU82: 0.001022873547 | AV82: -0.0002258628366 | AW82: 0.000597624516 | AX82: 0.0006080531383 | AY82: 2.96474398e-05 | AZ82: 0.001720688912
A83: 2007-01-05 | B83: -0.003462654539 | C83: 0.0004295532646 | D83: -0.01149881047 | E83: -0.009454916759 | G83: -0.005996707125 | I83: 2008-12-04 | J83: -0.02414054601 | K83: -0.02455209025 | L83: 0.005347593583 | M83: -0.04191319922 | AM83: -0.07264100371 | AN83: -0.03412024871 | AO83: -0.09032817924 | AP83: -0.07165584896 | AQ83: 0.002478529113 | AR83: 0.006561529603 | AS83: 0.00520515279 | AT83: 0.003082019941 | AU83: 0.002444915388 | AV83: 0.006472542368 | AW83: 0.00527671542 | AX83: 0.001164191372 | AY83: 0.008159179964 | AZ83: 0.00513456069
A84: 2007-01-08 | B84: 0.001394768395 | C84: -0.01373980249 | D84: -0.007220216606 | E84: 0 | G84: -0.004891312675 | I84: 2008-12-05 | J84: -0.07233518974 | K84: -0.03401360544 | L84: -0.09042553191 | M84: -0.07208786073 | AM84: -0.05061526921 | AN84: -0.05184251801 | AO84: 0.01342328272 | AP84: -0.04579387781 | AQ84: 0.002624023005 | AR84: -0.0006794230684 | AS84: 0.002317869453 | AT84: -0.0006958967761 | AU84: 0.002374069935 | AV84: -0.0006147041686 | AW84: 0.002561905477 | AX84: 0.002687646674 | AY84: 0.0001801845189 | AZ84: 0.002097079244
A85: 2007-01-09 | B85: 0.004838236732 | C85: 0.01044841097 | D85: -0.007676767677 | E85: 0.005873598301 | G85: 0.003370869582 | I85: 2008-12-11 | J85: -0.05030945524 | K85: -0.05173587474 | L85: 0.01332593004 | M85: -0.04622588958 | AM85: -0.0596037879 | AN85: 0.007789982722 | AO85: -0.02510812677 | AP85: -0.02410739943 | AQ85: -0.0004643124779 | AR85: 0.001496539463 | AS85: 0.001436892323 | AT85: -0.0001955918737 | AU85: -0.0001877962251 | AV85: 0.0006052916411 | AW85: 0.003552611532 | AX85: 6.068383081e-05 | AY85: 0.00063041803 | AZ85: 0.0005811667075
A86: 2007-01-10 | B86: -0.004814940908 | C86: -0.005170185265 | D86: -0.009364820847 | E86: -0.002189737723 | G86: -0.005384921186 | I86: 2008-12-12 | J86: -0.05929797393 | K86: 0.007896625987 | L86: -0.02520547945 | M86: -0.02453941121 | AM86: -0.03277051043 | AN86: -0.0398070178 | AO86: -0.005926743706 | AP86: -0.05855777214 | AQ86: 0.001304496292 | AR86: 0.0001942224164 | AS86: 0.001918968083 | AT86: 0.0002359259922 | AU86: 0.002331010278 | AV86: 0.0003470569075 | AW86: 0.001073906354 | AX86: 0.001584598666 | AY86: 3.512629095e-05 | AZ86: 0.003429012679
A87: 2007-01-11 | B87: 0.004838236732 | C87: -0.003897791252 | D87: 0.01849568434 | E87: 0.008778738976 | G87: 0.007053717199 | I87: 2008-12-22 | J87: -0.03246469646 | K87: -0.03970037453 | L87: -0.006024096386 | M87: -0.05898978392 | AM87: -0.01503268564 | AN87: -0.03579322201 | AO87: -0.008664329563 | AP87: -0.03890369567 | AQ87: 0.0005380682546 | AR87: 0.0001302481426 | AS87: 0.0005848270274 | AT87: 0.0003101242716 | AU87: 0.001392488616 | AV87: 0.0003370744405 | AW87: 0.0002259816377 | AX87: 0.001281154742 | AY87: 7.507060678e-05 | AZ87: 0.001513497537
A88: 2007-01-12 | B88: 0.02268858519 | C88: 0.004347826087 | D88: -0.007263922518 | E88: 0.008701782114 | G88: 0.007118567717 | I88: 2009-01-13 | J88: -0.01472687168 | K88: -0.03568657874 | L88: -0.008761682243 | M88: -0.03933570744 | AM88: -0.03191179277 | AN88: -0.06285805115 | AO88: -0.03290205805 | AP88: -0.07107849765 | AQ88: 0.002005913102 | AR88: 0.001049963658 | AS88: 0.002268242287 | AT88: 0.002068159248 | AU88: 0.004467855841 | AV88: 0.002338628856 | AW88: 0.001018362518 | AX88: 0.003951134594 | AY88: 0.001082545424 | AZ88: 0.005052152829
A89: 2007-01-15 | B89: 0.0114374034 | C89: 0.006493506494 | D89: 0.01219512195 | E89: 0.007188928605 | G89: 0.009328740112 | I89: 2009-01-14 | J89: -0.0316059788 | K89: -0.06275140788 | L89: -0.03299941072 | M89: -0.07151050942 | AM89: -0.05612957136 | AN89: -0.01384054884 | AO89: -0.009043415145 | AP89: -0.05609008268 | AQ89: 0.0007768640741 | AR89: 0.0005076030157 | AS89: 0.003148312299 | AT89: 0.000125165829 | AU89: 0.000776317529 | AV89: 0.0005072459032 | AW89: 0.003150528781 | AX89: 0.0001915607923 | AY89: 8.178335748e-05 | AZ89: 0.003146097375
A90: 2007-01-16 | B90: -0.004654880572 | C90: -0.01032258065 | D90: -0.008032128514 | E90: 0.001427523357 | G90: -0.005395516593 | I90: 2009-01-15 | J90: -0.05582375739 | K90: -0.01373390558 | L90: -0.009140767824 | M90: -0.05652209445 | AM90: -0.04917601891 | AN90: -0.009832549542 | AO90: -0.005262980852 | AP90: -0.06769158614 | AQ90: 0.0004835256422 | AR90: 0.0002588124459 | AS90: 0.00332880272 | AT90: 5.174851997e-05 | AU90: 0.0006655808743 | AV90: 0.0003562595217 | AW90: 0.002418280836 | AX90: 9.667903051e-05 | AY90: 2.769896745e-05 | AZ90: 0.004582150834
A91: 2007-01-17 | B91: -0.001346308281 | C91: 0.007822685789 | D91: -0.01376518219 | E91: -0.007840186417 | G91: -0.003782247774 | I91: 2009-01-19 | J91: -0.04887020494 | K91: -0.009725906278 | L91: -0.005360333532 | M91: -0.06812359791 | AM91: -0.1457964775 | AN91: -0.004647969332 | AO91: 0.005032577849 | AP91: -0.05861133219 | AQ91: 0.0006776575559 | AR91: -0.000733732123 | AS91: 0.008545325772 | AT91: -2.339126751e-05 | AU91: 0.0002724236745 | AV91: -0.0002949660921 | AW91: 0.02125661284 | AX91: 2.160361891e-05 | AY91: 2.532683981e-05 | AZ91: 0.003435288261
A92: 2007-01-18 | B92: 0.002010359263 | C92: 0.01078050884 | D92: 0.004105090312 | E92: 0.002155129274 | G92: 0.004762771922 | I92: 2009-01-22 | J92: -0.1454906635 | K92: -0.004541326067 | L92: 0.00493522517 | M92: -0.05904334396 | AM92: -0.0420102564 | AN92: -0.03401968674 | AO92: 0.01126725274 | AP92: -0.02655557048 | AQ92: 0.001429175763 | AR92: -0.0004733401765 | AS92: 0.001115606325 | AT92: -0.0003833084086 | AU92: 0.0009034121889 | AV92: -0.0002992083242 | AW92: 0.001764861643 | AX92: 0.001157339086 | AY92: 0.0001269509843 | AZ92: 0.0007051983234
A93: 2007-01-19 | B93: 0.0440683567 | C93: 0.01493174061 | D93: 0.009811937858 | E93: 0.01433718603 | G93: 0.0207873053 | I93: 2009-01-29 | J93: -0.04170444243 | K93: -0.03391304348 | L93: 0.01116990006 | M93: -0.02698758225 | AM93: -0.01727059361 | AN93: -0.02635098716 | AO93: -0.001104570397 | AP93: -0.06686264879 | AQ93: 0.0004550971904 | AR93: 1.907658645e-05 | AS93: 0.001154757635 | AT93: 2.910652035e-05 | AU93: 0.001761896799 | AV93: 7.385450253e-05 | AW93: 0.0002982734037 | AX93: 0.0006943745241 | AY93: 1.220075762e-06 | AZ93: 0.004470613803
A94: 2007-01-22 | B94: 0.002554653765 | C94: 0.004623791509 | D94: -0.001619433198 | E94: -0.00848094072 | G94: -0.000730482161 | I94: 2009-02-02 | J94: -0.01696477964 | K94: -0.02624434389 | L94: -0.001201923077 | M94: -0.06729466056 | AM94: -0.04981225659 | AN94: -0.02879862639 | AO94: -0.02996504097 | AP94: 0.000432011772 | AQ94: 0.001434524567 | AR94: 0.001492626309 | AS94: -2.151948124e-05 | AT94: 0.0008629520195 | AU94: -1.244134562e-05 | AV94: -1.294525045e-05 | AW94: 0.002481260906 | AX94: 0.0008293608818 | AY94: 0.0008979036802 | AZ94: 1.866341711e-07
A95: 2007-01-23 | B95: 0.007644432418 | C95: -0.002092050209 | D95: 0.005271695053 | E95: 0.01140445917 | G95: 0.005557134109 | I95: 2009-02-10 | J95: -0.04950644262 | K95: -0.02869198312 | L95: -0.03006239365 | M95: 0 | AM95: -0.0405805564 | AN95: -0.004496458893 | AO95: -0.01627691633 | AP95: -0.03565963878 | AQ95: 0.0001824688037 | AR95: 0.000660526321 | AS95: 0.001447087983 | AT95: 7.318848516e-05 | AU95: 0.0001603420999 | AV95: 0.0005804289567 | AW95: 0.001646781558 | AX95: 2.021814257e-05 | AY95: 0.0002649380051 | AZ95: 0.001271609838
A96: 2007-01-24 | B96: 0.01837305584 | C96: -0.001677148847 | D96: 0.008471157725 | E96: 0.01620827049 | G96: 0.0103438338 | I96: 2009-02-12 | J96: -0.04027474243 | K96: -0.004389815628 | L96: -0.01637426901 | M96: -0.03609165055 | AM96: -0.02031388174 | AN96: -0.005296954684 | AO96: 0.01112463068 | AP96: -0.08353191211 | AQ96: 0.000107601711 | AR96: -0.0002259844321 | AS96: 0.001696857384 | AT96: -5.89266646e-05 | AU96: 0.0004424647531 | AV96: -0.0009292616724 | AW96: 0.0004126537913 | AX96: 2.805772892e-05 | AY96: 0.0001237574078 | AZ96: 0.00697758034
A97: 2007-01-25 | B97: -0.0118226168 | C97: 0.0008399832003 | D97: -0.0032 | E97: 0.004854809267 | G97: -0.002331956083 | I97: 2009-02-16 | J97: -0.02000806777 | K97: -0.005190311419 | L97: 0.011027278 | M97: -0.08396392388 | AM97: -0.06723592017 | AN97: -0.04445446935 | AO97: -0.02975339359 | AP97: -0.07306093229 | AQ97: 0.002988937152 | AR97: 0.002000496796 | AS97: 0.004912319011 | AT97: 0.001322671323 | AU97: 0.003247884975 | AV97: 0.002173810674 | AW97: 0.004520668961 | AX97: 0.001976199845 | AY97: 0.0008852644301 | AZ97: 0.005337899827
A98: 2007-01-26 | B98: 0.02077032556 | C98: -0.001678556441 | D98: -0.004012841091 | E98: -0.01311275937 | G98: 0.0004915421659 | I98: 2009-02-17 | J98: -0.0669301062 | K98: -0.04434782609 | L98: -0.02985074627 | M98: -0.07349294406 | AM98: -0.04092510596 | AN98: -0.01277632652 | AO98: 0.0006901209073 | AP98: -0.06343780639 | AQ98: 0.0005228725167 | AR98: -2.824327126e-05 | AS98: 0.002596198948 | AT98: -8.817210052e-06 | AU98: 0.0008105021283 | AV98: -4.377975651e-05 | AW98: 0.001674864298 | AX98: 0.0001632345194 | AY98: 4.762668668e-07 | AZ98: 0.00402435528
A99: 2007-01-29 | B99: 0.0289529868 | C99: 0.00630517024 | D99: -0.001611603546 | E99: 0.003496433475 | G99: 0.009285746742 | I99: 2009-02-19 | J99: -0.04061929199 | K99: -0.01266968326 | L99: 0.0005927682276 | M99: -0.06386981816 | AM99: =J100-$W$5 -> -0.03684253201 | AN99: =K100-$X$5 -> -0.002856414117 | AO99: =L100-$Y$5 -> -0.05322018287 | AP99: =M100-$Z$5 -> -0.08663656646 | AQ99: =AM99*AN99 -> 0.0001052375286 | AR99: =AM99*AO99 -> 0.001960766291 | AS99: =AM99*AP99 -> 0.003191910473 | AT99: 0.0001520188817 | AU99: 0.0002474699115 | AV99: 0.00461081391 | AW99: =AM99^2 -> 0.001357372165 | AX99: =AN99^2 -> 8.159101609e-06 | AY99: =AO99^2 -> 0.002832387864 | AZ99: =AP99^2 -> 0.007505894648
A100: 2007-01-30 | B100: 0.001799665474 | C100: -0.005847953216 | D100: -0.000403551251 | E100: 0.001393700409 | G100: -0.000764534646 | I100: 2009-02-20 | J100: -0.03653671804 | K100: -0.002749770852 | L100: -0.05331753555 | M100: -0.08706857823 | AM100: -0.06405453621 | AN100: -0.01620512811 | AO100: -0.004921467897 | AP100: -0.004494002693 | AQ100: 0.001038011965 | AR100: 0.0003152423436 | AS100: 0.0002878612582 | AT100: 7.975301778e-05 | AU100: 7.282588939e-05 | AV100: 2.211708999e-05 | AW100: 0.004102983609 | AX100: 0.0002626061772 | AY100: 2.422084627e-05 | AZ100: 2.019606021e-05
A101: 2007-01-31 | B101: -0.005981063488 | C101: 0.001260504202 | D101: -0.002825999193 | E101: -0.01182996605 | G101: -0.004844131133 | I101: 2009-02-27 | J101: -0.06374872224 | K101: -0.01609848485 | L101: -0.005018820577 | M101: -0.004926014465 | AM101: 0.01587284608 | AN101: -0.04822983865 | AO101: -0.07682572424 | AP101: -0.09065611838 | AQ101: -0.0007655448053 | AR101: -0.001219442896 | AS101: -0.001438970613 | AT101: 0.003705292284 | AU101: 0.004372329962 | AV101: 0.006964721952 | AW101: 0.0002519472427 | AX101: 0.002326117336 | AY101: 0.005902191906 | AZ101: 0.0082185318
A102: 2007-02-01 | B102: 0.02223970404 | C102: -0.001678556441 | D102: 0.006072874494 | E102: 0.0084505338 | G102: 0.008771138972 | I102: 2009-03-02 | J102: 0.01617866005 | K102: -0.04812319538 | L102: -0.07692307692 | M102: -0.09108813015 | AM102: -0.0003058139694 | AN102: -0.01375679493 | AO102: -0.04293543421 | AP102: -0.0240772962 | AQ102: 4.207020064e-06 | AR102: 1.313025556e-05 | AS102: 7.363173523e-06 | AT102: 0.0005906539637 | AU102: 0.0003312264264 | AV102: 0.001033769167 | AW102: 9.352218386e-08 | AX102: 0.0001892494068 | AY102: 0.00184345151 | AZ102: 0.0005797161923
A103: 2007-02-02 | B103: 0.008818819027 | C103: 0.002942412778 | D103: -0.008450704225 | E103: 0.01257012152 | G103: 0.003970162274 | I103: 2009-03-03 | J103: 0 | K103: -0.01365015167 | L103: -0.04303278689 | M103: -0.02450930797 | AM103: -0.05330061673 | AN103: -0.04006668322 | AO103: -0.07502667283 | AP103: -0.1170560719 | AQ103: 0.002135578926 | AR103: 0.003998967933 | AS103: 0.006239160826 | AT103: 0.003006069934 | AU103: 0.004690048554 | AV103: 0.008782327612 | AW103: 0.002840955744 | AX103: 0.001605339105 | AY103: 0.005629001637 | AZ103: 0.01370212398
A104: 2007-02-05 | B104: -0.005236789477 | C104: 0.001676445935 | D104: 0.01136363636 | E104: 0.01655138841 | G104: 0.006088670308 | I104: 2009-03-05 | J104: -0.05299480276 | K104: -0.03996003996 | L104: -0.07512402551 | M104: -0.1174880837 | AM104: 0.002213304339 | AN104: 0.008218018546 | AO104: -0.05737391169 | AP104: -0.1035926789 | AQ104: 1.818897611e-05 | AR104: -0.0001269859277 | AS104: -0.0002292821257 | AT104: -0.0004714998703 | AU104: -0.0008513265562 | AV104: 0.005943517209 | AW104: 4.898716098e-06 | AX104: 6.753582882e-05 | AY104: 0.003291765742 | AZ104: 0.01073144312
A105: 2007-02-06 | B105: 0.0005803229082 | C105: 0.007949790795 | D105: -0.004012841091 | E105: -0.005427300118 | G105: -0.0002275068765 | I105: 2009-03-06 | J105: 0.002519118309 | K105: 0.008324661811 | L105: -0.05747126437 | M105: -0.1040246906 | AM105: -0.01067654727 | AN105: -0.08155460707 | AO105: 0.01779646772 | AP105: -0.01891120874 | AQ105: 0.0008707216174 | AR105: -0.0001900048289 | AS105: 0.0002019064141 | AT105: -0.001451383932 | AU105: 0.001542296198 | AV105: -0.000336552716 | AW105: 0.0001139886616 | AX105: 0.006651153934 | AY105: 0.0003167142635 | AZ105: 0.0003576338161
A106: 2007-02-07 | B106: -0.004681318226 | C106: 0.006226650062 | D106: -0.001611603546 | E106: 0.006139030996 | G106: 0.001518189822 | I106: 2009-03-13 | J106: -0.0103707333 | K106: -0.0814479638 | L106: 0.01769911504 | M106: -0.01934322052 | AM106: -0.09376438492 | AN106: -0.01952411899 | AO106: -0.05467886643 | AP106: -0.1253278835 | AQ106: 0.001830667008 | AR106: 0.005126930278 | AS106: 0.01175129191 | AT106: 0.001067556694 | AU106: 0.00244691651 | AV106: 0.006852786599 | AW106: 0.008791759879 | AX106: 0.0003811912225 | AY106: 0.002989778434 | AZ106: 0.01570707837
A107: 2007-02-08 | B107: -0.01471353354 | C107: -0.0152640264 | D107: -0.005649717514 | E107: -0.01694881458 | G107: -0.01314402301 | I107: 2009-03-30 | J107: -0.09345857095 | K107: -0.01941747573 | L107: -0.0547762191 | M107: -0.1257598952 | AM107: -0.01792736577 | AN107: -0.005482987351 | AO107: -0.03063077023 | AP107: -0.0503031209 | AQ107: 9.829551977e-05 | AR107: 0.0005491290219 | AS107: 0.0009018024479 | AT107: 0.0001679481257 | AU107: 0.0002758113756 | AV107: 0.001540823338 | AW107: 0.0003213904436 | AX107: 3.006315029e-05 | AY107: 0.0009382440851 | AZ107: 0.002530403972
A108: 2007-02-09 | B108: 0.02747972288 | C108: 0.01633850021 | D108: 0.0004058441558 | E108: 0.002068389773 | G108: 0.01157311425 | I108: 2009-04-20 | J108: -0.0176215518 | K108: -0.005376344086 | L108: -0.03072812291 | M108: -0.05073513267 | AM108: -0.05231155749 | AN108: -0.02171366555 | AO108: -0.006454166081 | AP108: -0.03294053902 | AQ108: 0.001135875663 | AR108: 0.00033762748 | AS108: 0.001723170901 | AT108: 0.0001401436037 | AU108: 0.0007152598473 | AV108: 0.0002126037097 | AW108: 0.002736499047 | AX108: 0.0004714832715 | AY108: 4.165625981e-05 | AZ108: 0.001085079111
A109: 2007-02-12 | B109: -0.002919107822 | C109: -0.01401483924 | D109: -0.006490872211 | E109: -0.01169970058 | G109: -0.008781129964 | I109: 2009-05-07 | J109: -0.05200574352 | K109: -0.02160702228 | L109: -0.006551518761 | M109: -0.03337255079 | AM109: -0.03751039299 | AN109: -0.01639737008 | AO109: -0.02249824408 | AP109: -0.014613988 | AQ109: 0.0006150717958 | AR109: 0.000843917977 | AS109: 0.0005481764329 | AT109: 0.0003689120343 | AU109: 0.0002396309695 | AV109: 0.0003287890688 | AW109: 0.001407029583 | AX109: 0.0002688737456 | AY109: 0.0005061709865 | AZ109: 0.0002135686451
A110: 2007-02-13 | B110: 0.005257406758 | C110: 0.003344481605 | D110: 0.008166598612 | E110: 0.006964188409 | G110: 0.005933168846 | I110: 2009-05-11 | J110: -0.03720457903 | K110: -0.01629072682 | L110: -0.02259559676 | M110: -0.01504599977 | AM110: -0.04501596564 | AN110: -0.02002952244 | AO110: -0.01437861721 | AP110: -0.0762000906 | AQ110: 0.000901648294 | AR110: 0.0006472673383 | AS110: 0.00343022066 | AT110: 0.0002879968361 | AU110: 0.001526251425 | AV110: 0.001095651934 | AW110: 0.002026437162 | AX110: 0.0004011817693 | AY110: 0.0002067446329 | AZ110: 0.005806453808
A111: 2007-02-14 | B111: 0.02610853604 | C111: 0.002083333333 | D111: -0.005670311867 | E111: 0.006915488661 | G111: 0.00735926154 | I111: 2009-05-13 | J111: -0.04471015167 | K111: -0.01992287918 | L111: -0.01447596989 | M111: -0.07663210237 | AM111: -0.02037759384 | AN111: -0.0487484626 | AO111: -0.02732388419 | AP111: -0.04967157543 | AQ111: 0.0009933763713 | AR111: 0.0005567950143 | AS111: 0.00101218719 | AT111: 0.001331997347 | AU111: 0.002421412937 | AV111: 0.001357220375 | AW111: 0.0004152463309 | AX111: 0.002376412605 | AY111: 0.0007465946474 | AZ111: 0.002467265405
A112: 2007-02-15 | B112: 0.01808878495 | C112: -0.002079002079 | D112: 0.0008146639511 | E112: -0.002747728831 | G112: 0.003519179499 | I112: 2009-05-21 | J112: -0.02007177988 | K112: -0.04864181933 | L112: -0.02742123687 | M112: -0.0501035872 | AM112: -0.04550050224 | AN112: -0.04605258921 | AO112: -0.02429289122 | AP112: -0.0436109261 | AQ112: 0.002095415939 | AR112: 0.001105338752 | AS112: 0.001984319041 | AT112: 0.00111875054 | AU112: 0.002008396065 | AV112: 0.001059435484 | AW112: 0.002070295704 | AX112: 0.002120840973 | AY112: 0.000590144564 | AZ112: 0.001901912875
A113: 2007-02-16 | B113: 0.01054264175 | C113: -0.004166666667 | D113: -0.00814000814 | E113: -0.00206554191 | G113: -0.0009573937426 | I113: 2009-06-15 | J113: -0.04519468827 | K113: -0.04594594595 | L113: -0.0243902439 | M113: -0.04404293787 | AM113: -0.02824550278 | AN113: 0.00715552086 | AO113: -0.01475979018 | AP113: -0.06391146274 | AQ113: -0.0002021112843 | AR113: 0.0004168976945 | AS113: 0.001805211399 | AT113: -0.0001056139865 | AU113: -0.0004573198049 | AV113: 0.00094331978 | AW113: 0.0007978084272 | AX113: 5.120147878e-05 | AY113: 0.0002178514061 | AZ113: 0.00408467507
A114: 2007-02-19 | B114: 0.0214287102 | C114: 0.01966527197 | D114: 0.004924086992 | E114: -0.003451119731 | G114: 0.01064173736 | I114: 2009-06-17 | J114: -0.02793968881 | K114: 0.007262164125 | L114: -0.01485714286 | M114: -0.06434347451 | AM114: -0.04792486159 | AN114: -0.03405289503 | AO114: -0.03193926059 | AP114: -0.04983684485 | AQ114: 0.001631980281 | AR114: 0.001530684643 | AS114: 0.002388423891 | AT114: 0.001087624288 | AU114: 0.001697088846 | AV114: 0.001591751975 | AW114: 0.002296792358 | AX114: 0.00115959966 | AY114: 0.001020116367 | AZ114: 0.002483711105
A115: 2007-02-20 | B115: -0.006447808886 | C115: -0.01354123923 | D115: -0.01878317681 | E115: 0.002770564163 | G115: -0.00900041519 | I115: 2009-06-22 | J115: -0.04761904762 | K115: -0.03394625177 | L115: -0.03203661327 | M115: -0.05026885662 | AM115: -0.0354104186 | AN115: -0.02770191265 | AO115: -0.02365416985 | AP115: 0.004460493672 | AQ115: 0.0009809363228 | AR115: 0.0008376040561 | AS115: -0.0001579479481 | AT115: 0.000655265747 | AU115: -0.0001235642061 | AV115: -0.000105509275 | AW115: 0.001253897745 | AX115: 0.0007673959643 | AY115: 0.0005595197515 | AZ115: 1.98960038e-05
A116: 2007-02-21 | B116: -0.00867201409 | C116: -0.004159733777 | D116: -0.004161464836 | E116: -0.00414409676 | G116: -0.005284327366 | I116: 2009-07-07 | J116: -0.03510460463 | K116: -0.02759526938 | L116: -0.02375152253 | M116: 0.0040284819 | AM116: -0.02482282363 | AN116: -0.03862015678 | AO116: -0.006140950502 | AP116: -0.04082855279 | AQ116: 0.0009586613402 | AR116: 0.0001524357312 | AS116: 0.001013479965 | AT116: 0.0002371644711 | AU116: 0.00157680511 | AV116: 0.0002507261217 | AW116: 0.0006161725729 | AX116: 0.00149151651 | AY116: 3.771127307e-05 | AZ116: 0.001666970723
A117: 2007-02-22 | B117: -0.003263556311 | C117: 0.02172096909 | D117: 0.002925198496 | E117: 0.0006934675039 | G117: 0.005519019695 | I117: 2009-07-08 | J117: -0.02451700966 | K117: -0.03851351351 | L117: -0.006238303182 | M117: -0.04126056456 | AM117: 0.007434407703 | AN117: -0.002379370538 | AO117: -0.07730377726 | AP117: -0.00920741572 | AQ117: -1.768921065e-05 | AR117: -0.0005747077972 | AS117: -6.845168236e-05 | AT117: 0.0001839343301 | AU117: 2.190785369e-05 | AV117: 0.000711768014 | AW117: 5.52704179e-05 | AX117: 5.661404155e-06 | AY117: 0.005975873979 | AZ117: 8.477650425e-05
A118: 2007-02-23 | B118: -0.001104330137 | C118: 0.0004088307441 | D118: -0.01041666667 | E118: -0.00623688246 | G118: -0.00433726213 | I118: 2009-07-31 | J118: 0.007740221673 | K118: -0.002272727273 | L118: -0.07740112994 | M118: -0.009639427492 | AM118: -0.02799602441 | AN118: -0.02496540033 | AO118: -0.01968015041 | AP118: -0.03738294454 | AQ118: 0.0006989319571 | AR118: 0.0005509659714 | AS118: 0.001046573828 | AT118: 0.0004913228335 | AU118: 0.0009332801759 | AV118: 0.0007357019714 | AW118: 0.000783777383 | AX118: 0.0006232712135 | AY118: 0.0003873083202 | AZ118: 0.001397484543
A119: 2007-02-26 | B119: 0.02358508864 | C119: 0.01961585615 | D119: 0.01936842105 | E119: 0.009763245744 | G119: 0.0180831529 | I119: 2009-08-17 | J119: -0.02769021045 | K119: -0.02485875706 | L119: -0.01977750309 | M119: -0.03781495631 | AM119: -0.06289945472 | AN119: -0.02426692612 | AO119: -0.006689977637 | AP119: -0.03452572786 | AQ119: 0.001526376421 | AR119: 0.0004207959455 | AS119: 0.002171649456 | AT119: 0.000162345193 | AU119: 0.0008378332872 | AV119: 0.0002309763473 | AW119: 0.003956341404 | AX119: 0.0005888837032 | AY119: 4.475580078e-05 | AZ119: 0.001192025884
A120: 2007-02-27 | B120: -0.0493045818 | C120: -0.05130260521 | D120: -0.02395704254 | E120: -0.01864656462 | G120: -0.03580269854 | I120: 2009-10-28 | J120: -0.06259364075 | K120: -0.02416028285 | L120: -0.006787330317 | M120: -0.03495773963 | AM120: -0.03636874798 | AN120: -0.03625824676 | AO120: -0.03801413765 | AP120: -0.03332342144 | AQ120: 0.001318667039 | AR120: 0.001382526592 | AS120: 0.001211931116 | AT120: 0.001378325983 | AU120: 0.001208248837 | AV120: 0.001266761129 | AW120: 0.00132268583 | AX120: 0.001314660458 | AY120: 0.001445074661 | AZ120: 0.001110450416
A121: 2007-02-28 | B121: 0.01014510085 | C121: 0.001267427123 | D121: -0.02031316124 | E121: -0.01477857197 | G121: -0.005919801307 | I121: 2009-10-30 | J121: -0.03606293401 | K121: -0.0361516035 | L121: -0.03811149033 | M121: -0.03375543321 | AM121: -0.0262028805 | AN121: -0.0134399766 | AO121: -0.01253906317 | AP121: -0.03129804237 | AQ121: 0.0003521661007 | AR121: 0.0003285595739 | AS121: 0.0008200988639 | AT121: 0.0001685247156 | AU121: 0.000420644957 | AV121: 0.0003924481304 | AW121: 0.0006865909463 | AX121: 0.000180632971 | AY121: 0.0001572281053 | AZ121: 0.000979567456
A122: 2007-03-01 | B122: -0.03516110574 | C122: -0.01983122363 | D122: 0.0004319654428 | E122: -0.01214261547 | G122: -0.01667574485 | I122: 2009-11-19 | J122: -0.02589706653 | K122: -0.01333333333 | L122: -0.01263641585 | M122: -0.03173005414 | AM122: -0.04880512496 | AN122: -0.01362015678 | AO122: -0.01968158857 | AP122: -0.005909976459 | AQ122: 0.0006647334536 | AR122: 0.0009605623894 | AS122: 0.0002884371396 | AT122: 0.0002680663219 | AU122: 8.049480592e-05 | AV122: 0.0001163177251 | AW122: 0.002381940223 | AX122: 0.0001855086707 | AY122: 0.0003873649284 | AZ122: 3.492782174e-05
A123: 2007-03-02 | B123: 0.0005930591628 | C123: 0.02023245803 | D123: -0.0008635578584 | E123: -0.008677174414 | G123: 0.00282119623 | I123: 2009-11-20 | J123: -0.04849931099 | K123: -0.01351351351 | L123: -0.01977894124 | M123: -0.006341988231 | AM123: -0.03096887601 | AN123: -0.02106124164 | AO123: -0.02855761808 | AP123: -0.04809160457 | AQ123: 0.0006522429807 | AR123: 0.0008843973334 | AS123: 0.001489342939 | AT123: 0.0006014588949 | AU123: 0.001012868904 | AV123: 0.001373381676 | AW123: 0.0009590712811 | AX123: 0.0004435758992 | AY123: 0.0008155375504 | AZ123: 0.00231280243
A124: 2007-03-05 | B124: -0.03180183126 | C124: 0.00970464135 | D124: -0.0008643042351 | E124: -0.01823450476 | G124: -0.01029899973 | I124: 2009-11-26 | J124: -0.03066306204 | K124: -0.02095459837 | L124: -0.02865497076 | M124: -0.04852361634 | AM124: -0.02925926395 | AN124: -0.003225146383 | AO124: -0.02006613506 | AP124: -0.03129671152 | AQ124: 9.436540932e-05 | AR124: 0.0005871203422 | AS124: 0.0009157187432 | AT124: 6.471622291e-05 | AU124: 0.000100936476 | AV124: 0.0006280040402 | AW124: 0.0008561045271 | AX124: 1.040156919e-05 | AY124: 0.0004026497762 | AZ124: 0.0009794841518
A125: 2007-03-06 | B125: 0.05195051929 | C125: -0.03050564145 | D125: 0.00821799308 | E125: 0.01337268777 | G125: 0.01075888967 | I125: 2010-01-20 | J125: -0.02895344998 | K125: -0.003118503119 | L125: -0.02016348774 | M125: -0.03172872329 | AM125: -0.04893223894 | AN125: -0.006419110387 | AO125: -0.01827233733 | AP125: -0.02834463859 | AQ125: 0.0003141014432 | AR125: 0.0008941063762 | AS125: 0.001386966628 | AT125: 0.0001172921504 | AU125: 0.000181947364 | AV125: 0.0005179227978 | AW125: 0.002394364007 | AX125: 4.120497817e-05 | AY125: 0.0003338783116 | AZ125: 0.0008034185367
A126: 2007-03-07 | B126: 0.004535147392 | C126: 0.005603448276 | D126: 0.005148005148 | E126: -0.009530602506 | G126: 0.001438999578 | I126: 2010-01-27 | J126: -0.04862642497 | K126: -0.006312467123 | L126: -0.01836969001 | M126: -0.02877665036 | AM126: -0.02588136202 | AN126: -0.002224165764 | AO126: -0.02270966486 | AP126: -0.04006236545 | AQ126: 5.756443931e-05 | AR126: 0.0005877570576 | AS126: 0.001036868583 | AT126: 5.051005909e-05 | AU126: 8.910534164e-05 | AV126: 0.000909802893 | AW126: 0.0006698448998 | AX126: 4.946913344e-06 | AY126: 0.0005157288782 | AZ126: 0.001604993125
A127: 2007-03-08 | B127: 0.01186599812 | C127: 0.02014573511 | D127: 0.00810926163 | E127: 0.01702465788 | G127: 0.01428641319 | I127: 2010-01-28 | J127: -0.02557554805 | K127: -0.002117522499 | L127: -0.02280701754 | M127: -0.04049437722 | AM127: -0.04572654305 | AN127: -0.02509335246 | AO127: -0.02584604355 | AP127: -0.04968715564 | AQ127: 0.001147432262 | AR127: 0.001181850223 | AS127: 0.002272021861 | AT127: 0.0006485638805 | AU127: 0.001246817309 | AV127: 0.001284216388 | AW127: 0.002090916739 | AX127: 0.0006296763378 | AY127: 0.000668017967 | AZ127: 0.002468813435
A128: 2007-03-09 | B128: 0.01674135787 | C128: -0.005462184874 | D128: 0.001270110076 | E128: -0.00145613786 | G128: 0.002773286302 | I128: 2010-02-04 | J128: -0.04542072908 | K128: -0.0249867092 | L128: -0.02594339623 | M128: -0.05011916741 | AM128: -0.04321159353 | AN128: -0.02137163781 | AO128: -0.03077431802 | AP128: -0.02017129306 | AQ128: 0.0009235025263 | AR128: 0.001329807322 | AS128: 0.0008716337168 | AT128: 0.0006576975787 | AU128: 0.0004310935695 | AV128: 0.0006207577876 | AW128: 0.001867241816 | AX128: 0.0004567469028 | AY128: 0.0009470586497 | AZ128: 0.0004068810637
A129: 2007-03-12 | B129: -0.007126075222 | C129: -0.005069708492 | D129: -0.01099365751 | E129: -0.004373091497 | G129: -0.006890633179 | I129: 2010-02-05 | J129: -0.04290577956 | K129: -0.02126499455 | L129: -0.0308716707 | M129: -0.02060330483 | AM129: -0.03487138563 | AN129: -0.004339447498 | AO129: -0.01694142523 | AP129: -0.03832447704 | AQ129: 0.0001513225471 | AR129: 0.0005907709723 | AS129: 0.001336427618 | AT129: 7.351642531e-05 | AU129: 0.000166307056 | AV129: 0.0006492712622 | AW129: 0.001216013536 | AX129: 1.883080458e-05 | AY129: 0.0002870118888 | AZ129: 0.00146876554
A130: 2007-03-13 | B130: -0.01660343411 | C130: -0.01146496815 | D130: -0.006840530141 | E130: -0.0183012476 | G130: -0.013302545 | I130: 2010-02-23 | J130: -0.03456557166 | K130: -0.004232804233 | L130: -0.01703877791 | M130: -0.03875648881 | AM130: -0.005841725966 | AN130: -0.02092026673 | AO130: -0.0156329844 | AP130: -0.03786082968 | AQ130: 0.0001222104654 | AR130: 9.132361089e-05 | AS130: 0.0002211725918 | AT130: 0.0003270462034 | AU130: 0.0007920586554 | AV130: 0.0005918777597 | AW130: 3.412576226e-05 | AX130: 0.0004376575599 | AY130: 0.0002443902012 | AZ130: 0.001433442424
A131: 2007-03-14 | B131: -0.02193497067 | C131: -0.02405498282 | D131: -0.02023245803 | E131: -0.0305741579 | G131: -0.02419914235 | I131: 2010-04-16 | J131: -0.005535911997 | K131: -0.02081362346 | L131: -0.01573033708 | M131: -0.03829284145 | AM131: =J132-$W$5 -> -0.01458383121 | AN131: =K132-$X$5 -> -0.007919143265 | AO131: =L132-$Y$5 -> -0.02586201527 | AP131: =M132-$Z$5 -> -0.04354956809 | AQ131: =AM131*AN131 -> 0.0001154914487 | AR131: =AM131*AO131 -> 0.0003771672654 | AS131: =AM131*AP131 -> 0.0006351195503 | AT131: =AN131*AO131 -> 0.000204805004 | AU131: 0.0003448752688 | AV131: 0.001126279595 | AW131: =AM131^2 -> 0.0002126881328 | AX131: =AN131^2 -> 6.271283005e-05 | AY131: =AO131^2 -> 0.0006688438336 | AZ131: =AP131^2 -> 0.00189656488
A132: 2007-03-15 | B132: 0.02301655077 | C132: 0.02024647887 | D132: 0.01405975395 | E132: 0.01769194956 | G132: 0.01875368329 | I132: 2010-04-27 | J132: -0.01427801724 | K132: -0.0078125 | L132: -0.02595936795 | M132: -0.04398157986 | AM132: -0.03607378336 | AN132: -0.02280233572 | AO132: -0.02365699263 | AP132: -0.03588835427 | AQ132: 0.0008225665187 | AR132: 0.000853397227 | AS132: 0.001294628717 | AT132: 0.0005394346879 | AU132: =AN132*AP132 -> 0.0008183383024 | AV132: =AO132*AP132 -> 0.0008490105325 | AW132: 0.001301317846 | AX132: 0.0005199465141 | AY132: 0.0005596533002 | AZ132: 0.001287973972
A133: 2007-03-16 | B133: 0.0005565051477 | C133: -0.003451251079 | D133: -0.0008665511265 | E133: 0.0105818001 | G133: =(B133+C133+D133+E133)/4 -> 0.001705125761 | I133: 2010-04-28 | J133: -0.03576796939 | K133: -0.02269569245 | L133: -0.02375434531 | M133: -0.03632036605 | AM133: -0.06621891888 | AN133: -0.029335201 | AO133: -0.03143149919 | AP133: -0.07406953812 | AQ133: 0.001942545296 | AR133: 0.002081359895 | AS133: 0.004904804736 | AT133: 0.0009220493467 | AU133: 0.002172844789 | AV133: 0.002328116628 | AW133: 0.004384945218 | AX133: 0.0008605540179 | AY133: 0.0009879391416 | AZ133: 0.005486296478
A134: 2007-03-19 | B134: 0.01122323309 | C134: 0.01082251082 | D134: 0.007805724198 | E134: 0.02094257507 | G134: 0.01269851079 | I134: 2010-05-04 | J134: -0.06591310491 | K134: -0.02922855774 | L134: -0.03152885187 | M134: -0.0745015499 | AM134: -0.01903898339 | AN134: 0.0008998992616 | AO134: -0.03392451852 | AP134: -0.07374427264 | AQ134: -1.713316709e-05 | AR134: 0.0006458883446 | AS134: 0.001404015982 | AT134: -3.052864917e-05 | AU134: -6.63624165e-05 | AV134: 0.002501738943 | AW134: 0.0003624828884 | AX134: 8.09818681e-07 | AY134: 0.001150872957 | AZ134: 0.005438217747
A135: 2007-03-20 | B135: 0.01001826861 | C135: 0 | D135: -0.006884681583 | E135: 0 | G135: 0.000783396756 | I135: 2010-05-06 | J135: -0.01873316942 | K135: 0.001006542526 | L135: -0.0340218712 | M135: -0.07417628441 | AM135: -0.05204983815 | AN135: -0.02725596453 | AO135: -0.03700956556 | AP135: -0.03280215671 | AQ135: 0.001418668543 | AR135: 0.001926341897 | AS135: 0.001707346948 | AT135: 0.001008731406 | AU135: 0.0008940544199 | AV135: 0.001213993569 | AW135: 0.002709185652 | AX135: 0.0007428876026 | AY135: 0.001369707943 | AZ135: 0.001075981485
A136: 2007-03-21 | B136: 0.006593150125 | C136: 0.02869379015 | D136: 0.004766031196 | E136: -0.002930344775 | G136: 0.009280656674 | I136: 2010-05-07 | J136: -0.05174402418 | K136: -0.02714932127 | L136: -0.03710691824 | M136: -0.03323416848 | AM136: -0.0549979615 | AN136: -0.03496297864 | AO136: -0.04706105119 | AP136: -0.06274859788 | AQ136: 0.001922892553 | AR136: 0.002588261882 | AS136: 0.00345104497 | AT136: 0.001645394527 | AU136: 0.002193877887 | AV136: 0.002953014977 | AW136: 0.003024775769 | AX136: 0.001222409875 | AY136: 0.002214742539 | AZ136: 0.003937386536
A137: 2007-03-22 | B137: 0.01420125203 | C137: 0.006244796003 | D137: 0.01811125485 | E137: 0.04849392674 | G137: 0.02176280741 | I137: 2010-05-14 | J137: -0.05469214753 | K137: -0.03485633537 | L137: -0.04715840387 | M137: -0.06318060965 | AM137: -0.02957837492 | AN137: -0.007851076953 | AO137: -0.028914993 | AP137: -0.0593327221 | AQ137: 0.0002322220977 | AR137: 0.0008552585038 | AS137: 0.001754965499 | AT137: 0.0002270138351 | AU137: 0.0004658257671 | AV137: 0.001715605244 | AW137: 0.000874880263 | AX137: 6.163940932e-05 | AY137: 0.0008360768201 | AZ137: 0.003520371912
A138: 2007-03-23 | B138: 0.02693795127 | C138: -0.0008274720728 | D138: 0.01863617111 | E138: -0.003503783924 | G138: 0.0103107166 | I138: 2010-05-19 | J138: -0.02927256095 | K138: -0.007744433688 | L138: -0.02901234568 | M138: -0.05976473387 | AM138: -0.02579030612 | AN138: -0.02352127741 | AO138: -0.01071002176 | AP138: -0.02510729822 | AQ138: 0.0006066209448 | AR138: 0.0002762147399 | AS138: 0.0006475249071 | AT138: 0.000251913393 | AU138: 0.0005905557266 | AV138: 0.0002688997104 | AW138: 0.0006651398899 | AX138: 0.0005532504911 | AY138: 0.0001147045662 | AZ138: 0.0006303764241
A139: 2007-03-26 | B139: -0.0188850756 | C139: -0.01614906832 | D139: -0.009979209979 | E139: -0.01617462081 | G139: -0.01529699368 | I139: 2010-05-20 | J139: -0.02548449215 | K139: -0.02341463415 | L139: -0.01080737444 | M139: -0.02553931 | AM139: -0.007254800235 | AN139: -0.02369638685 | AO139: -0.03720168269 | AP139: -0.01605538597 | AQ139: 0.0001719125529 | AR139: 0.0002698907763 | AS139: 0.0001164786179 | AT139: 0.0008815454647 | AU139: 0.0003804546371 | AV139: 0.0005972873745 | AW139: 5.263212645e-05 | AX139: 0.00056151875 | AY139: 0.001383965195 | AZ139: 0.0002577754188
A140: 2007-03-27 | B140: 0.008017093047 | C140: 0.0008417508418 | D140: -0.001679966401 | E140: 0.007862602515 | G140: 0.003760370001 | I140: 2010-05-24 | J140: -0.006948986266 | K140: -0.02358974359 | L140: -0.03729903537 | M140: -0.01648739775 | AM140: -0.05678066373 | AN140: -0.03582092898 | AO140: -0.02395074351 | AP140: -0.07471319796 | AQ140: 0.002033936123 | AR140: 0.001359939113 | AS140: 0.00424226497 | AT140: 0.0008579378824 | AU140: 0.002676296158 | AV140: 0.001789436641 | AW140: 0.003224043773 | AX140: 0.001283138953 | AY140: 0.0005736381148 | AZ140: 0.00558206195
A141: 2007-03-28 | B141: -0.01059818799 | C141: -0.007569386039 | D141: 0.009676062263 | E141: -0.009219675961 | G141: -0.004427796932 | I141: 2010-05-25 | J141: -0.05647484976 | K141: -0.03571428571 | L141: -0.02404809619 | M141: -0.07514520974 | AM141: -0.03178464237 | AN141: -0.00646983465 | AO141: -0.03786918529 | AP141: -0.05640015771 | AQ141: 0.0002056413805 | AR141: 0.001203658511 | AS141: 0.001792658842 | AT141: 0.0002450073671 | AU141: 0.0003648996946 | AV141: 0.002135828023 | AW141: 0.00101026349 | AX141: 4.18587604e-05 | AY141: 0.001434075194 | AZ141: 0.00318097779
A142: 2007-03-29 | B142: 0.01501535661 | C142: 0.01991525424 | D142: 0.01041666667 | E142: 0.01789568744 | G142: 0.01581074124 | I142: 2010-06-04 | J142: -0.0314788284 | K142: -0.006363191385 | L142: -0.03796653797 | M142: -0.05683216948 | AM142: -0.05958769658 | AN142: -0.02676684685 | AO142: -0.0362083798 | AP142: -0.05595668301 | AQ142: 0.001594974749 | AR142: 0.002157573949 | AS142: 0.003334329849 | AT142: 0.000969184157 | AU142: 0.001497783965 | AV142: 0.002026100831 | AW142: 0.003550693584 | AX142: 0.0007164640904 | AY142: 0.001311046768 | AZ142: 0.003131150374
A143: 2007-03-30 | B143: -0.00317531473 | C143: -0.008309098463 | D143: 0.004536082474 | E143: 0.002109662155 | G143: -0.001209667141 | I143: 2010-06-29 | J143: -0.05928188261 | K143: -0.02666020359 | L143: -0.03630573248 | M143: -0.05638869478 | AM143: -0.03962979038 | AN143: -0.05727815781 | AO143: -0.03150238399 | AP143: -0.01261769835 | AQ143: 0.002269921387 | AR143: 0.001248432874 | AS143: 0.0005000367409 | AT143: 0.001804398521 | AU143: 0.0007227185175 | AV143: 0.0003974875786 | AW143: 0.001570520286 | AX143: 0.003280787362 | AY143: 0.000992400197 | AZ143: 0.0001592063117
A144: 2007-04-02 | B144: 0.0143156948 | C144: 0.0008378718056 | D144: -0.008210180624 | E144: -0.002806961133 | G144: 0.001034106212 | I144: 2010-07-01 | J144: -0.03932397641 | K144: -0.05717151454 | L144: -0.03159973667 | M144: -0.01304971013 | AM144: -0.049414836 | AN144: -0.02338599549 | AO144: -0.02242242821 | AP144: -0.03417426631 | AQ144: 0.001155615132 | AR144: 0.001108000613 | AS144: 0.001688715765 | AT144: 0.000524370805 | AU144: 0.0007991992378 | AV144: 0.0007662700329 | AW144: 0.002441826017 | AX144: 0.0005469047851 | AY144: 0.0005027652868 | AZ144: 0.001167880478
A145: 2007-04-03 | B145: 0.008867213478 | C145: 0.01088321473 | D145: 0.001655629139 | E145: 0.0147780273 | G145: 0.009046021162 | I145: 2010-08-11 | J145: -0.04910902203 | K145: -0.02327935223 | L145: -0.02251978089 | M145: -0.03460627808 | AM145: -0.0212323546 | AN145: -0.03143823595 | AO145: -0.01922933061 | AP145: -0.02078036032 | AQ145: 0.0006675077736 | AR145: 0.0004082839662 | AS145: 0.0004412159789 | AT145: 0.000604536233 | AU145: 0.0006532978709 | AV145: 0.0003995924188 | AW145: 0.0004508128817 | AX145: 0.0009883626799 | AY145: 0.0003697671558 | AZ145: 0.0004318233749
A146: 2007-04-04 | B146: -0.009320295906 | C146: 0.0008281573499 | D146: -0.002066115702 | E146: -0.01317588257 | G146: -0.005933534208 | I146: 2010-08-19 | J146: -0.02092654063 | K146: -0.03133159269 | L146: -0.01932668329 | M146: -0.02121237209 | AQ146: =SUM(AQ3:AQ145) -> 0.153664133 | AR146: 0.1375202702 | AS146: 0.2554725885 | AT146: 0.09346018231 | AU146: 0.1588160195 | AV146: 0.1898120678 | AW146: =SUM(AW3:AW145) -> 0.303526972 | AX146: 0.1522808857 | AY146: =SUM(AY3:AY145) -> 0.1546813266 | AZ146: =SUM(AZ3:AZ145) -> 0.3991245007
A147: 2007-04-05 | B147: 0.0005360146387 | C147: -0.0008274720728 | D147: 0.004968944099 | E147: 0.002810906185 | G147: 0.001872098213
A148: 2007-04-06 | B148: 0 | C148: 0 | D148: 0 | E148: 0 | G148: 0
A149: 2007-04-09 | B149: 0 | C149: 0 | D149: 0 | E149: 0 | G149: 0
A150: 2007-04-10 | B150: 0.004692233799 | C150: 0.008695652174 | D150: 0.007004532344 | E150: 0.01051135177 | G150: 0.007725942522
A151: 2007-04-11 | B151: -0.007281285625 | C151: 0.002463054187 | D151: 0.002864157119 | E151: -0.001386935008 | G151: -0.0008352523315
A152: 2007-04-12 | B152: -0.001037229117 | C152: -0.01269451269 | D152: -0.001631986944 | E152: 0.001388861268 | G152: -0.003493716872
A153: 2007-04-13 | B153: 0.02254607483 | C153: 0.00165906263 | D153: 0.008990600736 | E153: 0.006934675039 | G153: 0.01003260331
A154: 2007-04-16 | B154: 0.02 | C154: 0.01366459627 | D154: 0.001215066829 | E154: 0.01308567441 | G154: 0.01199133438
A155: 2007-04-17 | B155: -0.001511030523 | C155: -0.008986928105 | D155: 0.002022653722 | E155: 0.007477756673 | G155: -0.0002493870582
A156: 2007-04-18 | B156: 0.009062099416 | C156: 0.003709810387 | D156: -0.006863140896 | E156: -0.009446506182 | G156: -0.0008844343187
A157: 2007-04-19 | B157: 0.005487234681 | C157: -0.006570841889 | D157: -0.01260162602 | E157: -0.01294251998 | G157: -0.006656938302
A158: 2007-04-20 | B158: 0.01538920474 | C158: 0.01116163704 | D158: 0.006587072869 | E158: 0.02760468468 | G158: 0.01518564983
A159: 2007-04-23 | B159: 0.01612373628 | C159: 0.005723630417 | D159: 0.00163599182 | E159: 0.002686833425 | G159: 0.006542547986
A160: 2007-04-24 | B160: 0.009132963706 | C160: 0.01463414634 | D160: -0.003674969375 | E160: -0.001339557645 | G160: 0.004688145757
A161: 2007-04-25 | B161: 0.02860032022 | C161: 0.02924679487 | D161: 0.008196721311 | E161: 0.01341354467 | G161: 0.01986434527
A162: 2007-04-26 | B162: 0.008815047844 | C162: -0.007785130401 | D162: -0.002845528455 | E162: 0.01654551592 | G162: 0.003682476227
A163: 2007-04-27 | B163: 0.003670618808 | C163: 0.0003923107101 | D163: -0.007337953526 | E163: -0.01432313187 | G163: -0.00439953897
A164: 2007-04-30 | B164: -0.004579584439 | C164: 0.005490196078 | D164: 0.003285420945 | E164: 0.001320977626 | G164: 0.001379252552
A165: 2007-05-01 | B165: 0 | C165: 0 | D165: 0 | E165: 0 | G165: 0
A166: 2007-05-02 | B166: 0.0004551883342 | C166: -0.01053042122 | D166: 0.01391731478 | E166: 0.002638469892 | G166: 0.001620137946
A167: 2007-05-03 | B167: -0.006889715799 | C167: -0.008277493102 | D167: 0.007670569237 | E167: -0.002631526688 | G167: -0.002532041588
A168: 2007-05-04 | B168: 0.01250061358 | C168: 0.01629570747 | D168: 0.006810897436 | E168: 0.001978852419 | G168: 0.009396517726
A169: 2007-05-07 | B169: -0.01052019198 | C169: -0.01329683223 | D169: -0.00278551532 | E169: -0.003291573826 | G169: -0.007473528338
A170: 2007-05-08 | B170: -0.02448146333 | C170: -0.001189060642 | D170: -0.008379888268 | E170: -0.001981466439 | G170: -0.009007969671
A171: 2007-05-09 | B171: -0.0104133532 | C171: 0.01468253968 | D171: 0.0004024144869 | E171: 0.01058880236 | G171: 0.003815100833
A172: 2007-05-10 | B172: -0.01099663334 | C172: -0.02072741494 | D172: -0.0164923572 | E172: -0.01768137935 | G172: -0.01647444621
A173: 2007-05-11 | B173: 0.001932978669 | C173: 0.01038338658 | D173: 0.01799591002 | E173: -0.003999919506 | G173: 0.006578088941
A174: 2007-05-14 | B174: 0.009168203237 | C174: -0.004743083004 | D174: 0.003615910004 | E174: 0 | G174: 0.002010257559
A175: 2007-05-15 | B175: 0.002402341437 | C175: 0.00714853058 | D175: 0.0128102482 | E175: 0.0174025935 | G175: 0.009940928429
A176: 2007-05-16 | B176: 0.006193988287 | C176: -0.007492113565 | D176: 0.003557312253 | E176: -0.01578916013 | G176: -0.003382493288
A177: 2007-05-17 | B177: 0.001425743903 | C177: 0.006356773937 | D177: 0.01102796377 | E177: 0.0006684357104 | G177: 0.004869729329
A178: 2007-05-18 | B178: 0.01279667688 | C178: 0.005527043032 | D178: 0.01597195169 | E178: 0.003339946013 | G178: 0.009408904406
A179: 2007-05-21 | B179: -0.002811450874 | C179: -0.003140950137 | D179: 0.01073619632 | E179: -0.05659162032 | G179: -0.01295195625
A180: 2007-05-22 | B180: -0.01595435926 | C180: -0.005907837731 | D180: 0.0007587253414 | E180: -0.004939916976 | G180: -0.006510847155
A181: 2007-05-23 | B181: 0.00143254403 | C181: 0.01584786054 | D181: 0.008339651251 | E181: -0.001418411686 | G181: 0.006050411033
A182: 2007-05-24 | B182: -0.02046449007 | C182: -0.02340093604 | D182: -0.01466165414 | E182: -0.01846554366 | G182: -0.01924815598
A183: 2007-05-25 | B183: -0.008264036836 | C183: -0.006389776358 | D183: 0.003433803892 | E183: 0.01374791384 | G183: 0.0006319761352
A184: 2007-05-28 | B184: -0.002927775757 | C184: 0.002813504823 | D184: 0 | E184: 0.00571009343 | G184: 0.001398955624
A185: 2007-05-29 | B185: 0.02997185252 | C185: 0.002805611222 | D185: -0.007604562738 | E185: -0.01277476511 | G185: 0.003099533973
A186: 2007-05-30 | B186: -0.006207931983 | C186: -0.007993605116 | D186: -0.0003831417625 | E186: 0.01078339291 | G186: -0.0009503214884
A187: 2007-05-31 | B187: 0.02160886761 | C187: 0.05116841257 | D187: 0.00728248371 | E187: -0.007823458043 | G187: 0.01805907646
A188: 2007-06-01 | B188: 0.009404492888 | C188: 0.01993100805 | D188: 0.001902587519 | E188: -0.01003564184 | G188: 0.005300611654
A189: 2007-06-04 | B189: -0.01489711934 | C189: -0.006388575723 | D189: -0.007975693126 | E189: -0.00868974067 | G189: -0.009487782215
A190: 2007-06-05 | B190: -0.01183056229 | C190: -0.008698940998 | D190: 0.01148545176 | E190: 0.02191393744 | G190: 0.003217471478
A191: 2007-06-06 | B191: -0.03537548405 | C191: -0.01793208699 | D191: -0.009084027252 | E191: -0.01786955117 | G191: -0.02006528736
A192: 2007-06-07 | B192: 0.003961784556 | C192: -0.009324009324 | D192: 0.004965622613 | E192: -0.01528409616 | G192: -0.003920174578
A193: 2007-06-08 | B193: -0.01334008486 | C193: 0.004705882353 | D193: -0.003800836184 | E193: -0.0007390835021 | G193: -0.003293530548
A194: 2007-06-11 | B194: 0.01652892562 | C194: 0.008587041374 | D194: 0.002289202594 | E194: -0.0007396301506 | G194: 0.006666384859
A195: 2007-06-12 | B195: -0.003951881061 | C195: 0.009674922601 | D195: 0.001141987057 | E195: -0.02146572353 | G195: -0.003650173734
A196: 2007-06-13 | B196: 0.01088894327 | C196: 0.001533154465 | D196: 0.004562737643 | E196: 0.01815453574 | G196: 0.008784842777
A197: 2007-06-14 | B197: 0.02737002265 | C197: 0.0003827018752 | D197: 0.02573807721 | E197: 0.01634439616 | G197: =(B197+C197+D197+E197)/4 -> 0.01745879948
A198: 2007-06-15 | B198: 0.01428811848 | C198: 0.02563121653 | D198: 0.00110701107 | E198: 0.01535113899 | G198: 0.01409437127
A199: 2007-06-18 | B199: 0.01360566792 | C199: -0.01342782544 | D199: -0.01953556948 | E199: -0.004319567776 | G199: -0.005919323693
A200: 2007-06-19 | B200: 0.003241172715 | C200: -0.007561436673 | D200: 0.01691729323 | E200: 0.001446102463 | G200: 0.003510782935
... 846 more rows

Sheet Storica
A1: Indice | B1: r_storico_fca | C1: r_storico_lux | D1: r_storico_eni | E1: r_storico_ucg | F1: i_c_j | G1: r_atteso_fca | H1: r_atteso_lux | I1: r_atteso_eni | J1: r_atteso_ucg | O1: portafoglio | P1: val. ordinati | Q1: probabilità | R1: cumulate | V1: valore | W1: perdita
A2: 1 | B2: 0.0008121591832 | C2: -0.005719313682 | D2: 0.001769128704 | E2: 0.004691071291 | F2: 273 | G2: =INDEX($B$2:$B$1044,F2) -> 0.02088295481 | H2: =INDEX($C$2:$C$1044,F2) -> 0 | I2: =INDEX($D$2:$D$1044,F2) -> -0.00888030888 | J2: =INDEX($E$2:$E$1044,F2) -> 0 | O2: =(1+G2)+(1+H2)+(1+I2)+(1+J2) -> 4.012002646 | P2: 3.684446547 | Q2: =1/1043 -> 0.0009587727709 | R2: =Q2 -> 0.0009587727709 | S2: =P2*Q2 -> 0.003532547025 | U2: var 99 | V2: =P12 -> 3.753969926 | W2: =4-V2 -> 0.2460300737
A3: =A2+1 -> 2 | B3: -0.01475191282 | C3: -0.005752212389 | D3: 0.006622516556 | E3: -0.01478569832 | F3: 65 | G3: 0.04564828125 | H3: 0.003008165019 | I3: 0.01338582677 | J3: 0.0014992208 | O3: =(1+G3)+(1+H3)+(1+I3)+(1+J3) -> 4.063541494 | P3: 3.684446547 | Q3: =1/1043 -> 0.0009587727709 | R3: =R2+Q3 -> 0.001917545542 | S3: =P3*Q3 -> 0.003532547025 | U3: var 95 | V3: =P54 -> 3.871203752 | W3: =4-V3 -> 0.1287962475
A4: =A3+1 -> 3 | B4: 0.0008236505368 | C4: 0.008010680908 | D4: 0.007894736842 | E4: 0.01658734307 | F4: 747 | G4: -0.005974607916 | H4: 0.01497192764 | I4: -0.02267573696 | J4: -0.0465682314 | O4: 3.939753351 | P4: 3.684446547 | Q4: 0.0009587727709 | R4: =R3+Q4 -> 0.002876318313 | S4: 0.003532547025 | U4: var 90 | V4: =P106 -> 3.905918766 | W4: 0.09408123368
A5: 4 | B5: 0.003321282662 | C5: -0.004856512141 | D5: 0.003481288077 | E5: 0.004661912142 | F5: 205 | G5: -0.001807103677 | H5: 0.003136981527 | I5: 0.0131826742 | J5: 0.000754701992 | L5: n_casuale | M5: =RAND() -> 0.3798446581 | O5: 4.015267254 | P5: 3.694104655 | Q5: 0.0009587727709 | R5: 0.003835091083 | S5: 0.003541806956
A6: 5 | B6: -0.01904148113 | C6: 0 | D6: -0.01431049436 | E6: -0.003866899638 | F6: 6 | G6: 0.012662008 | H6: 0.004880212955 | I6: -0.00483941927 | J6: 0.008540804229 | L6: contatore | M6: 1043 | O6: 4.021243606 | P6: 3.706587839 | Q6: 0.0009587727709 | R6: 0.004793863854 | S6: 0.003553775493 | V6: valore | W6: perdita
A7: 6 | B7: 0.012662008 | C7: 0.004880212955 | D7: -0.00483941927 | E7: 0.008540804229 | F7: 759 | G7: 0.05321197269 | H7: 0.01896551724 | I7: 0.006828057107 | J7: 0.02833073908 | O7: 4.107336286 | P7: 3.707962314 | Q7: 0.0009587727709 | R7: 0.005752636625 | S7: 0.003555093302 | U7: ES 99 | V7: =(SUM(S2:S11)+P12*(0.01-R11))/0.01 -> 3.703495971 | W7: =4-V7 -> 0.2965040291
A8: 7 | B8: 0.0116779711 | C8: 0.006622516556 | D8: 0.01414677277 | E8: 0.01077730284 | F8: 639 | G8: 0.09493284493 | H8: 0.03428011753 | I8: 0.0127064803 | J8: 0.06005100577 | O8: 4.201970449 | P8: 3.707962314 | Q8: 0.0009587727709 | R8: 0.006711409396 | S8: 0.003555093302 | U8: ES 95 | V8: =(SUM(S2:S53)+S54*(0.05-R53))/0.05 -> 3.800232176 | W8: =4-V8 -> 0.1997678242
A9: 8 | B9: 0.01402087098 | C9: 0.01315789474 | D9: 0.004795117698 | E9: 0 | F9: 538 | G9: -0.04982875886 | H9: -0.01693766938 | I9: -0.09537914692 | J9: -0.1298921112 | O9: 3.707962314 | P9: 3.714433048 | Q9: 0.0009587727709 | R9: 0.007670182167 | S9: 0.003561297266 | U9: ES 90 | V9: =(SUM(S2:S105)+P106*(0.1-R105))/0.1 -> 3.849915696 | W9: 0.1500843043
A10: 9 | B10: -0.001638543134 | C10: 0.006493506494 | D10: 0.01301518438 | E10: -0.003046397435 | F10: 143 | G10: -0.009320295906 | H10: 0.0008281573499 | I10: -0.002066115702 | J10: -0.01317588257 | O10: 3.976265863 | P10: 3.714433048 | Q10: 0.0009587727709 | R10: 0.008628954938 | S10: 0.003561297266
A11: 10 | B11: 0.0236107112 | C11: -0.0008602150538 | D11: 0.0008565310493 | E11: 0 | F11: 610 | G11: -0.0406884632 | H11: -0.01566579634 | I11: 0.03259532595 | J11: 0.02435818066 | O11: 4.000599247 | P11: 3.714433048 | Q11: 0.0009587727709 | R11: 0.009587727709 | S11: 0.003561297266
A12: 11 | B12: 0.0135302391 | C12: 0.001721911322 | D12: 0.003851091142 | E12: 0 | F12: 993 | G12: 0.02641749841 | H12: 0.00209314495 | I12: 0.01994680851 | J12: 0.06108239247 | O12: 4.109539844 | P12: 3.753969926 | Q12: 0.0009587727709 | R12: 0.01054650048 | S12: 0.003599204148
A13: 12 | B13: -0.003136188282 | C13: -0.007735281478 | D13: -0.01406649616 | E13: 0.002291779748 | F13: 7 | G13: 0.0116779711 | H13: 0.006622516556 | I13: 0.01414677277 | J13: 0.01077730284 | O13: 4.043224563 | P13: 3.753969926 | Q13: 0.0009587727709 | R13: 0.01150527325 | S13: 0.003599204148
A14: 13 | B14: 0.0007795534273 | C14: 0.01039411 | D14: -0.001297016861 | E14: 0.009908337846 | F14: 916 | G14: -0.009601988176 | H14: 0.006113092206 | I14: 0.004095962551 | J14: 0.003524257587 | O14: 4.004131324 | P14: 3.755354707 | Q14: 0.0009587727709 | R14: 0.01246404602 | S14: 0.003600531838
A15: 14 | B15: 0.003950369999 | C15: 0.001285897985 | D15: 0.01082251082 | E15: 0.008301721912 | F15: 1006 | G15: 0.00454041686 | H15: 0.02081268583 | I15: 0.008980115459 | J15: 0.003675418888 | O15: 4.038008637 | P15: 3.785378377 | Q15: 0.0009587727709 | R15: 0.01342281879 | S15: 0.003629317716
A16: 15 | B16: 0.00235535358 | C16: -0.0008561643836 | D16: 0.003426124197 | E16: 0.0007484882507 | F16: 677 | G16: -0.03319872276 | H16: -0.01467181467 | I16: 0.008270158511 | J16: -0.02184042257 | O16: 3.938559199 | P16: 3.795859892 | Q16: 0.0009587727709 | R16: 0.01438159156 | S16: 0.003639367106
A17: 16 | B17: 0.002322173997 | C17: 0.006855184233 | D17: 0.007682458387 | E17: 0 | F17: 735 | G17: -0.01264688834 | H17: -0.002086230876 | I17: -0.008744534666 | J17: -0.03692834729 | O17: 3.939593999 | P17: 3.800044258 | Q17: 0.0009587727709 | R17: 0.01534036433 | S17: 0.003643378962
A18: 17 | B18: -0.001544529332 | C18: 0.01063829787 | D18: -0.002541296061 | E18: 0.003740221067 | F18: 248 | G18: 0.00845602679 | H18: -0.001220504475 | I18: 0.01527663088 | J18: 0.01475379884 | O18: 4.037265952 | P18: 3.800044258 | Q18: 0.0009587727709 | R18: 0.0162991371 | S18: 0.003643378962
A19: 18 | B19: -0.009392005746 | C19: 0.006736842105 | D19: 0.002972399151 | E19: -0.003726283942 | F19: 305 | G19: -0.03183985083 | H19: -0.01093613298 | I19: 0.02716468591 | J19: -0.01868358952 | O19: 3.965705113 | P19: 3.801132693 | Q19: 0.0009587727709 | R19: 0.01725790988 | S19: 0.003644422525
A20: 19 | B20: 0.007110788879 | C20: -0.0004182350481 | D20: 0.006350550381 | E20: 0.003740221067 | F20: 875 | G20: -0.01394611727 | H20: -0.009483667018 | I20: -0.01352874859 | J20: -0.02156571753 | O20: 3.94147575 | P20: 3.804200491 | Q20: 0.0009587727709 | R20: 0.01821668265 | S20: 0.003647363845
A21: 20 | B21: 0.005482334699 | C21: -0.01589958159 | D21: 0.001682793437 | E21: -0.001490282883 | F21: 305 | G21: -0.03183985083 | H21: -0.01093613298 | I21: 0.02716468591 | J21: -0.01868358952 | O21: 3.965705113 | P21: 3.804200491 | Q21: 0.0009587727709 | R21: 0.01917545542 | S21: 0.003647363845
A22: 21 | B22: 0.0140166327 | C22: 0.01488095238 | D22: 0.005039899202 | E22: 0.004477521422 | F22: 542 | G22: 0.05190216144 | H22: -0.0006600660066 | I22: 0.04007756949 | J22: 0.0493713015 | O22: 4.140690966 | P22: 3.808617559 | Q22: 0.0009587727709 | R22: 0.02013422819 | S22: 0.00365159881
A23: 22 | B23: -0.01613122233 | C23: -0.02387934646 | D23: 0.005850396991 | E23: -0.02303131507 | F23: 752 | G23: 0.004827440186 | H23: -0.007377979569 | I23: -0.02119927317 | J23: 0.03248155236 | O23: 4.00873174 | P23: 3.820327397 | Q23: 0.0009587727709 | R23: 0.02109300096 | S23: 0.003662825884
A24: 23 | B24: 0.0616633084 | C24: 0.01630901288 | D24: 0.0008309098463 | E24: 0.008364851614 | F24: 716 | G24: -0.04519468827 | H24: -0.04594594595 | I24: -0.0243902439 | J24: -0.04404293787 | O24: 3.840426184 | P24: 3.821363487 | Q24: 0.0009587727709 | R24: 0.02205177373 | S24: 0.003663819258
A25: 24 | B25: 0.03603463068 | C25: 0.01013513514 | D25: 0.00498132005 | E25: -0.009049594157 | F25: 550 | G25: -0.09233048058 | H25: -0.08653846154 | I25: -0.05633802817 | J25: -0.08034648237 | O25: 3.684446547 | P25: 3.824726331 | Q25: 0.0009587727709 | R25: 0.0230105465 | S25: 0.003667043462
A26: 25 | B26: -0.01987502823 | C26: -0.005852842809 | D26: 0.003717472119 | E26: 0.001522039533 | F26: 508 | G26: 0.002870554861 | H26: -0.02210274791 | I26: 0.01197053407 | J26: -0.007022334502 | O26: 3.985716007 | P26: 3.836129231 | Q26: 0.0009587727709 | R26: 0.02396931927 | S26: 0.003677976252
A27: 26 | B27: 0.007962721151 | C27: 0.0117746005 | D27: -0.02510288066 | E27: 0.006838769022 | F27: 341 | G27: 0.0308790759 | H27: -0.02376237624 | I27: 0.01628923321 | J27: -0.001831465484 | O27: 4.021574467 | P27: 3.836888514 | Q27: 0.0009587727709 | R27: 0.02492809204 | S27: 0.003678704232
A28: 27 | B28: -0.01292928267 | C28: -0.01163757273 | D28: -0.0008442380751 | E28: -0.004528211952 | F28: 598 | G28: 0 | H28: 0 | I28: 0 | J28: 0 | O28: 4 | P28: 3.836888514 | Q28: 0.0009587727709 | R28: 0.02588686481 | S28: 0.003678704232
A29: 28 | B29: 0.02256877429 | C29: 0.01597981497 | D29: 0.01056189269 | E29: -0.01213015981 | F29: 535 | G29: -0.01447852761 | H29: 0.003156565657 | I29: 0.0171460177 | J29: 0.09502756355 | O29: 4.100851619 | P29: 3.840426184 | Q29: 0.0009587727709 | R29: 0.02684563758 | S29: 0.003682096054
A30: 29 | B30: -0.03628951077 | C30: -0.00869205298 | D30: 0 | E30: -0.0007674442088 | F30: 775 | G30: 0.02499319604 | H30: 0.01007109005 | I30: 0.007883565797 | J30: 0.01198704148 | O30: 4.054934893 | P30: 3.850765568 | Q30: 0.0009587727709 | R30: 0.02780441035 | S30: 0.003692009173
A31: 30 | B31: 0.02509531519 | C31: -0.00751565762 | D31: -0.007525083612 | E31: 0.003072134527 | F31: 251 | G31: 0.03896645512 | H31: 0.02154828412 | I31: -0.006304176517 | J31: 0.0007942811755 | O31: 4.055004844 | P31: 3.850765568 | Q31: 0.0009587727709 | R31: 0.02876318313 | S31: 0.003692009173
A32: 31 | B32: -0.01439307095 | C32: 0.003365586874 | D32: -0.0004212299916 | E32: -0.001531362711 | F32: 878 | G32: -0.04862642497 | H32: -0.006312467123 | I32: -0.01836969001 | J32: -0.02877665036 | O32: 3.897914768 | P32: 3.850765568 | Q32: 0.0009587727709 | R32: 0.0297219559 | S32: 0.003692009173
A33: 32 | B33: 0.01095890411 | C33: 0.02180293501 | D33: -0.004214075011 | E33: -0.003834278449 | F33: 160 | G33: 0.003670618808 | H33: 0.0003923107101 | I33: -0.007337953526 | J33: -0.01432313187 | O33: 3.982401844 | P33: 3.853529998 | Q33: 0.0009587727709 | R33: 0.03068072867 | S33: 0.003694659634
A34: 33 | B34: 0.008666973462 | C34: -0.009027492819 | D34: 0.0008463817182 | E34: 0.007698073456 | F34: 109 | G34: 0.01808878495 | H34: -0.002079002079 | I34: 0.0008146639511 | J34: -0.002747728831 | O34: 4.014076718 | P34: 3.853529998 | Q34: 0.0009587727709 | R34: 0.03163950144 | S34: 0.003694659634
A35: 34 | B35: 0.01290142701 | C35: 0.009523809524 | D35: -0.01057082452 | E35: -0.007639265826 | F35: 576 | G35: -0.04763362518 | H35: 0.01987662783 | I35: -0.07163000564 | J35: -0.06372448284 | O35: 3.836888514 | P35: 3.853529998 | Q35: 0.0009587727709 | R35: 0.03259827421 | S35: 0.003694659634
A36: 35 | B36: 0.01981882789 | C36: -0.00697292863 | D36: 0.01068376068 | E36: 0.003079229382 | F36: 857 | G36: 0 | H36: 0.0005500550055 | I36: 0.001120448179 | J36: 0.004254977169 | O36: 4.00592548 | P36: 3.853761577 | Q36: 0.0009587727709 | R36: 0.03355704698 | S36: 0.003694881665
A37: 36 | B37: 0.02777641459 | C37: 0.009087154069 | D37: 0.01268498943 | E37: 0.006906997879 | F37: 275 | G37: 0.01981359578 | H37: 0 | I37: 0.01050992604 | J37: 0.007961621533 | O37: 4.038285143 | P37: 3.855918539 | Q37: 0.0009587727709 | R37: 0.03451581975 | S37: 0.003696949702
A38: 37 | B38: -0.000692355441 | C38: -0.001227998363 | D38: 0.00375782881 | E38: 0.004573079006 | F38: 794 | G38: 0.07791633146 | H38: -0.01242937853 | I38: -0.01288056206 | J38: -0.02715393014 | O38: 4.025452461 | P38: 3.858855062 | Q38: 0.0009587727709 | R38: 0.03547459252 | S38: 0.00369976516
A39: 38 | B39: 0.03175096161 | C39: 0.002049180328 | D39: 0.006655574043 | E39: 0.0007587101927 | F39: 270 | G39: -0.01760534547 | H39: -0.007071547421 | I39: -0.0068781047 | J39: -0.00662238502 | O39: 3.961822617 | P39: 3.864779475 | Q39: 0.0009587727709 | R39: 0.03643336529 | S39: 0.003705445326
A40: 39 | B40: -0.01898763488 | C40: -0.00736196319 | D40: 0.004545454545 | E40: -0.003032539952 | F40: 269 | G40: 0.007474260824 | H40: 0.0004161464836 | I40: 0.001147666412 | J40: 0.008347078232 | O40: 4.017385152 | P40: 3.864779475 | Q40: 0.0009587727709 | R40: 0.03739213806 | S40: 0.003705445326
A41: 40 | B41: -0.0100080253 | C41: -0.006180469716 | D41: 0.02015631427 | E41: 0.0007604410558 | F41: 68 | G41: -0.004114230397 | H41: 0.007675906183 | I41: 0.00469667319 | J41: 0.001503729645 | O41: 4.009762079 | P41: 3.864779475 | Q41: 0.0009587727709 | R41: 0.03835091083 | S41: 0.003705445326
A42: 41 | B42: 0.02293643603 | C42: 0.009535655058 | D42: -0.004032258065 | E42: 0.0007598632246 | F42: 631 | G42: -0.02000806777 | H42: -0.005190311419 | I42: 0.011027278 | J42: -0.08396392388 | O42: 3.901864975 | P42: 3.864779475 | Q42: 0.0009587727709 | R42: 0.0393096836 | S42: 0.003705445326
A43: 42 | B43: -0.01715457766 | C43: -0.009856262834 | D43: 0.005263157895 | E43: 0.001518572542 | F43: 965 | G43: -0.006250250411 | H43: -0.001030396703 | I43: -0.007115135834 | J43: -0.01495202006 | O43: 3.970652197 | P43: 3.864779475 | Q43: 0.0009587727709 | R43: 0.04026845638 | S43: 0.003705445326
A44: 43 | B44: 0.006047239613 | C44: 0.007465781833 | D44: 0.005638340717 | E44: 0.01137202482 | F44: 175 | G44: 0.01279667688 | H44: 0.005527043032 | I44: 0.01597195169 | J44: 0.003339946013 | O44: 4.037635618 | P44: 3.86505471 | Q44: 0.0009587727709 | R44: 0.04122722915 | S44: 0.003705709214
A45: 44 | B45: -0.004007260213 | C45: 0.0004116920543 | D45: 0.005206247497 | E45: -0.0014992208 | F45: 714 | G45: 0.01988017429 | H45: -0.005322687957 | I45: 0.02228412256 | J45: 0.0227271939 | O45: 4.059568803 | P45: 3.86505471 | Q45: 0.0009587727709 | R45: 0.04218600192 | S45: 0.003705709214
A46: 45 | B46: -0.02676733013 | C46: 0.004526748971 | D46: -0.01633466135 | E46: -0.001501471838 | F46: 274 | G46: 0.008363044871 | H46: 0 | I46: 0.0007791195949 | J46: 0 | O46: 4.009142164 | P46: 3.866543103 | Q46: 0.0009587727709 | R46: 0.04314477469 | S46: 0.003707136244
A47: 46 | B47: 0.003428821555 | C47: -0.004506349857 | D47: 0.004860267315 | E47: 0.002256176407 | F47: 648 | G47: 0.03373945642 | H47: 0.009407337723 | I47: -0.0242468773 | J47: 0.05961141006 | O47: 4.078511327 | P47: 3.867359273 | Q47: 0.0009587727709 | R47: 0.04410354746 | S47: 0.003707918766
A48: 47 | B48: -0.008215592662 | C48: 0.001234567901 | D48: -0.001209189843 | E48: 0.002249936276 | F48: 157 | G48: 0.009132963706 | H48: 0.01463414634 | I48: -0.003674969375 | J48: -0.001339557645 | O48: 4.018752583 | P48: 3.867919957 | Q48: 0.0009587727709 | R48: 0.04506232023 | S48: 0.003708456335
A49: 48 | B49: 0.01727592611 | C49: -0.01150842581 | D49: -0.001614205004 | E49: 0 | F49: 311 | G49: 0.005023046921 | H49: -0.002271694684 | I49: -0.0075 | J49: -0.03166232481 | O49: 3.963589027 | P49: 3.869019402 | Q49: 0.0009587727709 | R49: 0.046021093 | S49: 0.003709510452
A50: 49 | B50: -0.01630996133 | C50: -0.005821205821 | D50: 0 | E50: 0.0007484882507 | F50: 7 | G50: 0.0116779711 | H50: 0.006622516556 | I50: 0.01414677277 | J50: 0.01077730284 | O50: 4.043224563 | P50: 3.870485567 | Q50: 0.0009587727709 | R50: 0.04697986577 | S50: 0.003710916171
A51: 50 | B51: -0.008961711272 | C51: -0.01463822668 | D51: -0.003637833468 | E51: -0.008227212786 | F51: 7 | G51: 0.0116779711 | H51: 0.006622516556 | I51: 0.01414677277 | J51: 0.01077730284 | O51: 4.043224563 | P51: 3.870672371 | Q51: 0.0009587727709 | R51: 0.04793863854 | S51: 0.003711095274
A52: 51 | B52: -0.0299864482 | C52: -0.02589134126 | D52: -0.006490872211 | E52: -0.01508265693 | F52: 1010 | G52: -0.005579997854 | H52: 0.01422764228 | I52: 0 | J52: -0.002321551636 | O52: 4.006326093 | P52: 3.870672371 | Q52: 0.0009587727709 | R52: 0.04889741131 | S52: 0.003711095274
A53: 52 | B53: -0.004292826661 | C53: -0.01002178649 | D53: 0.001633319722 | E53: 0.001531362711 | F53: 175 | G53: 0.01279667688 | H53: 0.005527043032 | I53: 0.01597195169 | J53: 0.003339946013 | O53: 4.037635618 | P53: 3.870672371 | Q53: 0.0009587727709 | R53: 0.04985618408 | S53: 0.003711095274
A54: 53 | B54: 0.03461823006 | C54: 0.03345070423 | D54: 0.01549123522 | E54: 0.0007645106126 | F54: 836 | G54: -0.001544318345 | H54: -0.01835405565 | I54: -0.01374775852 | J54: -0.02150658327 | O54: 3.944847284 | P54: 3.871203752 | Q54: 0.0009587727709 | R54: 0.05081495686 | S54: 0.003711604748
A55: 54 | B55: -0.02300522734 | C55: -0.02470187394 | D55: -0.007627458852 | E55: -0.003819632913 | F55: 732 | G55: -0.03510460463 | H55: -0.02759526938 | I55: -0.02375152253 | J55: 0.0040284819 | O55: 3.917577085 | P55: 3.871501006 | Q55: 0.0009587727709 | R55: 0.05177372963 | S55: 0.003711889747
A56: 55 | B56: -0.002145218686 | C56: -0.01703056769 | D56: -0.007281553398 | E56: -0.00613543906 | F56: 252 | G56: 0.0004886647236 | H56: 0.005859375 | I56: -0.0007930214116 | J56: 0.003177062201 | O56: 4.008732081 | P56: 3.871806545 | Q56: 0.0009587727709 | R56: 0.0527325024 | S56: 0.003712182689
A57: 56 | B57: 0 | C57: 0.02221235007 | D57: -0.001222493888 | E57: 0.005401725327 | F57: 810 | G57: 0.01749983706 | H57: -0.00519630485 | I57: -0.01225626741 | J57: -0.04971315043 | O57: 3.950334114 | P57: 3.871806545 | Q57: 0.0009587727709 | R57: 0.05369127517 | S57: 0.003712182689
A58: 57 | B58: 0.007865850574 | C58: 0.01564537158 | D58: 0.01060791514 | E58: 0.007674442088 | F58: 1012 | G58: 0.0308379489 | H58: -0.007400098668 | I58: 0 | J58: -0.01801829741 | O58: 4.005419553 | P58: 3.871806545 | Q58: 0.0009587727709 | R58: 0.05465004794 | S58: 0.003712182689
A59: 58 | B59: -0.0007026525132 | C59: 0.01155327343 | D59: 0.003633427533 | E59: -0.003046397435 | F59: 759 | G59: 0.05321197269 | H59: 0.01896551724 | I59: 0.006828057107 | J59: 0.02833073908 | O59: 4.107336286 | P59: 3.873676946 | Q59: 0.0009587727709 | R59: 0.05560882071 | S59: 0.003713975978
A60: 59 | B60: -0.00143140554 | C60: -0.005076142132 | D60: -0.002815768302 | E60: 0.005347486078 | F60: 264 | G60: -0.01230021226 | H60: -0.02549019608 | I60: -0.001142421935 | J60: -0.01787191823 | O60: 3.943195251 | P60: 3.873676946 | Q60: 0.0009587727709 | R60: 0.05656759348 | S60: 0.003713975978
A61: 60 | B61: 0.001433457399 | C61: 0.006802721088 | D61: -0.003227107705 | E61: -0.002279589674 | F61: 74 | G61: -0.006848317063 | H61: -0.002971137521 | I61: -0.001170960187 | J61: 0 | O61: 3.989009585 | P61: 3.873676946 | Q61: 0.0009587727709 | R61: 0.05752636625 | S61: 0.003713975978
A62: 61 | B62: 0 | C62: 0.002956081081 | D62: 0.006879805747 | E62: 0.007615993587 | F62: 76 | G62: 0 | H62: 0 | I62: 0 | J62: 0 | O62: 4 | P62: 3.874075217 | Q62: 0.0009587727709 | R62: 0.05848513902 | S62: 0.003714357831
A63: 62 | B63: 0.00143140554 | C63: -0.01305263158 | D63: 0.002411575563 | E63: -0.0007558428642 | F63: 966 | G63: 0.01769947184 | H63: 0.01134605467 | I63: -0.009771986971 | J63: 0.01576270959 | O63: 4.035036249 | P63: 3.874075217 | Q63: 0.0009587727709 | R63: 0.05944391179 | S63: 0.003714357831
A64: 63 | B64: -0.004965143688 | C64: 0.005546075085 | D64: 0.007618283881 | E64: 0.006807731353 | F64: 641 | G64: 0.01617866005 | H64: -0.04812319538 | I64: -0.07692307692 | J64: -0.09108813015 | O64: 3.800044258 | P64: 3.8743529 | Q64: 0.0009587727709 | R64: 0.06040268456 | S64: 0.003714624065
A65: 64 | B65: -0.0007308467742 | C65: -0.01272804412 | D65: 0.01074413052 | E65: 0.00225389984 | F65: 941 | G65: -0.007552971058 | H65: -0.005938784833 | I65: 0.002829654782 | J65: 0.001159431742 | O65: 3.990497331 | P65: 3.879808344 | Q65: 0.0009587727709 | R65: 0.06136145733 | S65: 0.003719854596
A66: 65 | B66: 0.04564828125 | C66: 0.003008165019 | D66: 0.01338582677 | E66: 0.0014992208 | F66: 1013 | G66: =INDEX($B$2:$B$1044,F66) -> -0.009810038824 | H66: =INDEX($C$2:$C$1044,F66) -> 0.005964214712 | I66: =INDEX($D$2:$D$1044,F66) -> 0.01489757914 | J66: =INDEX($E$2:$E$1044,F66) -> -0.02752261845 | O66: 3.983529137 | P66: 3.881121935 | Q66: 0.0009587727709 | R66: 0.06232023011 | S66: 0.003721114032
A67: 66 | B67: 0.004775572225 | C67: 0.01071122536 | D67: -0.005827505828 | E67: -0.001496976501 | F67: 458 | G67: -0.02356323383 | H67: -0.02958937198 | I67: -0.01782098015 | J67: -0.01705203756 | O67: =(1+G67)+(1+H67)+(1+I67)+(1+J67) -> 3.911974376 | P67: 3.881461627 | Q67: =1/1043 -> 0.0009587727709 | R67: 0.06327900288 | S67: =P67*Q67 -> 0.003721439719
A68: =A67+1 -> 67 | B68: -0.0081374973 | C68: -0.005934718101 | D68: -0.00156311059 | E68: -0.002998441599 | F68: 550 | G68: -0.09233048058 | H68: -0.08653846154 | I68: -0.05633802817 | J68: -0.08034648237 | O68: 3.684446547 | P68: 3.883796099 | Q68: 0.0009587727709 | R68: =R67+Q68 -> 0.06423777565 | S68: 0.003723677947
A69: 68 | B69: -0.004114230397 | C69: 0.007675906183 | D69: 0.00469667319 | E69: 0.001503729645 | F69: 951 | G69: 0.1055700025 | H69: 0.06304909561 | I69: 0.07576747224 | J69: 0.2093310632 | O69: 4.453717634 | P69: 3.883796099 | Q69: 0.0009587727709 | R69: 0.06519654842 | S69: 0.003723677947
A70: 69 | B70: -0.00687727825 | C70: -0.003808717732 | D70: -0.003506038177 | E70: 0 | F70: 505 | G70: 0.06015063812 | H70: 0.03631809643 | I70: -0.002296738631 | J70: 0.02124603966 | O70: 4.115418036 | P70: 3.88435425 | Q70: 0.0009587727709 | R70: 0.06615532119 | S70: 0.003724213088
A71: 70 | B71: -0.01590525363 | C71: -0.01444350042 | D71: -0.01485535575 | E71: -0.003753679594 | F71: 240 | G71: -0.03526410281 | H71: 0.01917584659 | I71: 0.02187902188 | J71: 0.04347871988 | O71: 4.049269486 | P71: 3.88435425 | Q71: 0.0009587727709 | R71: 0.06711409396 | S71: 0.003724213088
A72: 71 | B72: 0 | C72: 0 | D72: 0 | E72: 0 | F72: 669 | G72: 0.01641247559 | H72: 0.02917341977 | I72: 0.004081632653 | J72: 0.05262902659 | O72: 4.102296555 | P72: 3.886244227 | Q72: 0.0009587727709 | R72: 0.06807286673 | S72: 0.003726025146
A73: 72 | B73: 0 | C73: 0 | D73: 0 | E73: 0 | F73: 214 | G73: 0.01150498449 | H73: 0.0088999644 | I73: 0.009308986753 | J73: 0.01160129751 | O73: 4.041315233 | P73: 3.886463165 | Q73: 0.0009587727709 | R73: 0.0690316395 | S73: 0.003726235057
A74: 73 | B74: 0.02389536763 | C74: 0.01551724138 | D74: 0.01666666667 | E74: 0.006782081028 | F74: 31 | G74: -0.01439307095 | H74: 0.003365586874 | I74: -0.0004212299916 | J74: -0.001531362711 | O74: 3.987019923 | P74: 3.886463165 | Q74: 0.0009587727709 | R74: 0.06999041227 | S74: 0.003726235057
A75: 74 | B75: -0.006848317063 | C75: -0.002971137521 | D75: -0.001170960187 | E75: 0 | F75: 1019 | G75: -0.01353843884 | H75: 0 | I75: -0.001245330012 | J75: -0.00865127905 | O75: 3.976564952 | P75: 3.886463165 | Q75: 0.0009587727709 | R75: 0.07094918504 | S75: 0.003726235057
A76: 75 | B76: 0.001369327074 | C76: -0.008939974457 | D76: -0.004298554123 | E76: -0.005987906006 | F76: 86 | G76: 0.0114374034 | H76: 0.006493506494 | I76: 0.01219512195 | J76: 0.007188928605 | O76: 4.03731496 | P76: 3.88727258 | Q76: 0.0009587727709 | R76: 0.07190795781 | S76: 0.003727011103
A77: 76 | B77: 0 | C77: 0 | D77: 0 | E77: 0 | F77: 202 | G77: -0.01702806538 | H77: 0 | I77: -0.007903650734 | J77: -0.01854619554 | O77: 3.956522088 | P77: 3.888294293 | Q77: 0.0009587727709 | R77: 0.07286673058 | S77: 0.003727990693
A78: 77 | B78: 0.01313733151 | C78: 0.01116838488 | D78: 0.009419152276 | E78: 0.024849488 | F78: 728 | G78: 0.01886419753 | H78: 0.03223640027 | I78: 0.02789317507 | J78: 0.01838368921 | O78: 4.097377462 | P78: 3.888294293 | Q78: 0.0009587727709 | R78: 0.07382550336 | S78: 0.003727990693
A79: 78 | B79: -0.01024343215 | C79: 0 | D79: -0.008553654743 | E79: 0.01249113564 | F79: 345 | G79: 0.03518344719 | H79: -0.01806239737 | I79: -0.005568814638 | J79: 0.02068303575 | O79: 4.032235271 | P79: 3.888294293 | Q79: 0.0009587727709 | R79: 0.07478427613 | S79: 0.003727990693
A80: 79 | B80: -0.001363691708 | C80: -0.01104502974 | D80: -0.01098039216 | E80: -0.002177024194 | F80: 91 | G80: 0.002554653765 | H80: 0.004623791509 | I80: -0.001619433198 | J80: -0.00848094072 | O80: 3.997078071 | P80: 3.889470609 | Q80: 0.0009587727709 | R80: 0.0757430489 | S80: 0.003729118513
A81: 80 | B81: -0.003462654539 | C81: 0.0004295532646 | D81: -0.01149881047 | E81: -0.009454916759 | F81: 1000 | G81: -0.003236862148 | H81: -0.01741803279 | I81: -0.02364217252 | J81: -0.01333406728 | O81: 3.942368865 | P81: 3.889858573 | Q81: 0.0009587727709 | R81: 0.07670182167 | S81: 0.003729490482
A82: 81 | B82: 0.001394768395 | C82: -0.01373980249 | D82: -0.007220216606 | E82: 0 | F82: 592 | G82: -0.02971712308 | H82: -0.01170046802 | I82: -0.01757575758 | J82: -0.007164508766 | O82: 3.933842143 | P82: 3.890028213 | Q82: 0.0009587727709 | R82: 0.07766059444 | S82: 0.003729653129
A83: 82 | B83: 0.004838236732 | C83: 0.01044841097 | D83: -0.007676767677 | E83: 0.005873598301 | F83: 685 | G83: 0 | H83: 0 | I83: 0 | J83: 0 | O83: 4 | P83: 3.890028213 | Q83: 0.0009587727709 | R83: 0.07861936721 | S83: 0.003729653129
A84: 83 | B84: -0.004814940908 | C84: -0.005170185265 | D84: -0.009364820847 | E84: -0.002189737723 | F84: 873 | G84: -0.02895344998 | H84: -0.003118503119 | I84: -0.02016348774 | J84: -0.03172872329 | O84: 3.916035836 | P84: 3.890028213 | Q84: 0.0009587727709 | R84: 0.07957813998 | S84: 0.003729653129
A85: 84 | B85: 0.004838236732 | C85: -0.003897791252 | D85: 0.01849568434 | E85: 0.008778738976 | F85: 677 | G85: -0.03319872276 | H85: -0.01467181467 | I85: 0.008270158511 | J85: -0.02184042257 | O85: 3.938559199 | P85: 3.890502635 | Q85: 0.0009587727709 | R85: 0.08053691275 | S85: 0.003730107992
A86: 85 | B86: 0.02268858519 | C86: 0.004347826087 | D86: -0.007263922518 | E86: 0.008701782114 | F86: 261 | G86: -0.02773511943 | H86: -0.01225490196 | I86: -0.0134175217 | J86: -0.01117776479 | O86: 3.935414692 | P86: 3.890502635 | Q86: 0.0009587727709 | R86: 0.08149568552 | S86: 0.003730107992
A87: 86 | B87: 0.0114374034 | C87: 0.006493506494 | D87: 0.01219512195 | E87: 0.007188928605 | F87: 778 | G87: 0.02428767594 | H87: 0.004519774011 | I87: 0.01891252955 | J87: 0 | O87: 4.047719979 | P87: 3.890822441 | Q87: 0.0009587727709 | R87: 0.08245445829 | S87: 0.003730414613
A88: 87 | B88: -0.004654880572 | C88: -0.01032258065 | D88: -0.008032128514 | E88: 0.001427523357 | F88: 886 | G88: 0.004842926328 | H88: -0.002228412256 | I88: 0.02373516552 | J88: -0.01487844921 | O88: 4.01147123 | P88: 3.891188349 | Q88: 0.0009587727709 | R88: 0.08341323106 | S88: 0.003730765435
A89: 88 | B89: -0.001346308281 | C89: 0.007822685789 | D89: -0.01376518219 | E89: -0.007840186417 | F89: 351 | G89: -0.02848385331 | H89: -0.02622767857 | I89: -0.05086206897 | J89: -0.09022590848 | O89: 3.804200491 | P89: 3.891188349 | Q89: 0.0009587727709 | R89: 0.08437200384 | S89: 0.003730765435
A90: 89 | B90: 0.002010359263 | C90: 0.01078050884 | D90: 0.004105090312 | E90: 0.002155129274 | F90: 815 | G90: -0.03606293401 | H90: -0.0361516035 | I90: -0.03811149033 | J90: -0.03375543321 | O90: 3.855918539 | P90: 3.894990958 | Q90: 0.0009587727709 | R90: 0.08533077661 | S90: 0.003734411274
A91: 90 | B91: 0.0440683567 | C91: 0.01493174061 | D91: 0.009811937858 | E91: 0.01433718603 | F91: 148 | G91: -0.007281285625 | H91: 0.002463054187 | I91: 0.002864157119 | J91: -0.001386935008 | O91: 3.996658991 | P91: 3.895092388 | Q91: 0.0009587727709 | R91: 0.08628954938 | S91: 0.003734508522
A92: 91 | B92: 0.002554653765 | C92: 0.004623791509 | D92: -0.001619433198 | E92: -0.00848094072 | F92: 270 | G92: -0.01760534547 | H92: -0.007071547421 | I92: -0.0068781047 | J92: -0.00662238502 | O92: 3.961822617 | P92: 3.897316963 | Q92: 0.0009587727709 | R92: 0.08724832215 | S92: 0.003736641383
A93: 92 | B93: 0.007644432418 | C93: -0.002092050209 | D93: 0.005271695053 | E93: 0.01140445917 | F93: 469 | G93: -0.00975290347 | H93: 0.01271753681 | I93: -0.009409751925 | J93: 0.01405594819 | O93: 4.00761083 | P93: 3.897316963 | Q93: 0.0009587727709 | R93: 0.08820709492 | S93: 0.003736641383
A94: 93 | B94: 0.01837305584 | C94: -0.001677148847 | D94: 0.008471157725 | E94: 0.01620827049 | F94: 39 | G94: -0.01898763488 | H94: -0.00736196319 | I94: 0.004545454545 | J94: -0.003032539952 | O94: 3.975163317 | P94: 3.897914768 | Q94: 0.0009587727709 | R94: 0.08916586769 | S94: 0.003737214542
A95: 94 | B95: -0.0118226168 | C95: 0.0008399832003 | D95: -0.0032 | E95: 0.004854809267 | F95: 12 | G95: -0.003136188282 | H95: -0.007735281478 | I95: -0.01406649616 | J95: 0.002291779748 | O95: 3.977353814 | P95: 3.898399545 | Q95: 0.0009587727709 | R95: 0.09012464046 | S95: 0.003737679334
A96: 95 | B96: 0.02077032556 | C96: -0.001678556441 | D96: -0.004012841091 | E96: -0.01311275937 | F96: 753 | G96: -0.01432845885 | H96: 0.004002287021 | I96: -0.01237623762 | J96: 0.03932577334 | O96: 4.016623364 | P96: 3.899095889 | Q96: 0.0009587727709 | R96: 0.09108341323 | S96: 0.00373834697
A97: 96 | B97: 0.0289529868 | C97: 0.00630517024 | D97: -0.001611603546 | E97: 0.003496433475 | F97: 220 | G97: -0.01542373651 | H97: -0.02021276596 | I97: -0.02299676608 | J97: -0.02143967059 | O97: 3.919927061 | P97: 3.900675525 | Q97: 0.0009587727709 | R97: 0.092042186 | S97: 0.003739861482
A98: 97 | B98: 0.001799665474 | C98: -0.005847953216 | D98: -0.000403551251 | E98: 0.001393700409 | F98: 262 | G98: 0.02152317881 | H98: 0.01406120761 | I98: 0.0184 | J98: 0.02956462045 | O98: 4.083549007 | P98: 3.900675525 | Q98: 0.0009587727709 | R98: 0.09300095877 | S98: 0.003739861482
A99: 98 | B99: -0.005981063488 | C99: 0.001260504202 | D99: -0.002825999193 | E99: -0.01182996605 | F99: 576 | G99: -0.04763362518 | H99: 0.01987662783 | I99: -0.07163000564 | J99: -0.06372448284 | O99: 3.836888514 | P99: 3.901864975 | Q99: 0.0009587727709 | R99: 0.09395973154 | S99: 0.003741001894
A100: 99 | B100: 0.02223970404 | C100: -0.001678556441 | D100: 0.006072874494 | E100: 0.0084505338 | F100: 665 | G100: 0.01781037192 | H100: -0.02442996743 | I100: -0.03141361257 | J100: 0.07470062207 | O100: 4.036667414 | P100: 3.902869522 | Q100: 0.0009587727709 | R100: 0.09491850431 | S100: 0.003741965026
A101: 100 | B101: 0.008818819027 | C101: 0.002942412778 | D101: -0.008450704225 | E101: 0.01257012152 | F101: 138 | G101: -0.01059818799 | H101: -0.007569386039 | I101: 0.009676062263 | J101: -0.009219675961 | O101: 3.982288812 | P101: 3.904875562 | Q101: 0.0009587727709 | R101: 0.09587727709 | S101: 0.003743888363
A102: 101 | B102: -0.005236789477 | C102: 0.001676445935 | D102: 0.01136363636 | E102: 0.01655138841 | F102: 757 | G102: -0.01760412194 | H102: 0.0005714285714 | I102: -0.01972872996 | J102: -0.01995781346 | O102: 3.943280763 | P102: 3.904875562 | Q102: 0.0009587727709 | R102: 0.09683604986 | S102: 0.003743888363
A103: 102 | B103: 0.0005803229082 | C103: 0.007949790795 | D103: -0.004012841091 | E103: -0.005427300118 | F103: 404 | G103: 0.0115376295 | H103: -0.01453488372 | I103: 0.008581752484 | J103: -0.00530775096 | O103: 4.000276747 | P103: 3.904875562 | Q103: 0.0009587727709 | R103: 0.09779482263 | S103: 0.003743888363
A104: 103 | B104: -0.004681318226 | C104: 0.006226650062 | D104: -0.001611603546 | E104: 0.006139030996 | F104: 350 | G104: -0.02829486225 | H104: 0.05041031653 | I104: -0.005145797599 | J104: -0.03710334471 | O104: 3.979866312 | P104: 3.904875562 | Q104: 0.0009587727709 | R104: 0.0987535954 | S104: 0.003743888363
A105: 104 | B105: -0.01471353354 | C105: -0.0152640264 | D105: -0.005649717514 | E105: -0.01694881458 | F105: 484 | G105: -0.04967409744 | H105: -0.0243902439 | I105: -0.02376681614 | J105: 0.003749923812 | O105: 3.905918766 | P105: 3.905406357 | Q105: 0.0009587727709 | R105: 0.09971236817 | S105: 0.003744397275
A106: 105 | B106: 0.02747972288 | C106: 0.01633850021 | D106: 0.0004058441558 | E106: 0.002068389773 | F106: 891 | G106: 0.007756182133 | H106: 0 | I106: 0.0006006006006 | J106: 0.01565657516 | O106: 4.024013358 | P106: 3.905918766 | Q106: 0.0009587727709 | R106: 0.1006711409 | S106: 0.003744888558
A107: 106 | B107: -0.002919107822 | C107: -0.01401483924 | D107: -0.006490872211 | E107: -0.01169970058 | F107: 189 | G107: 0.003961784556 | H107: -0.009324009324 | I107: 0.004965622613 | J107: -0.01528409616 | O107: 3.984319302 | P107: 3.906537197 | Q107: 0.0009587727709 | R107: 0.1016299137 | S107: 0.003745481493
A108: 107 | B108: 0.005257406758 | C108: 0.003344481605 | D108: 0.008166598612 | E108: 0.006964188409 | F108: 158 | G108: 0.02860032022 | H108: 0.02924679487 | I108: 0.008196721311 | J108: 0.01341354467 | O108: 4.079457381 | P108: 3.906537197 | Q108: 0.0009587727709 | R108: 0.1025886865 | S108: 0.003745481493
A109: 108 | B109: 0.02610853604 | C109: 0.002083333333 | D109: -0.005670311867 | E109: 0.006915488661 | F109: 872 | G109: 0.004676772032 | H109: 0.006276150628 | I109: -0.005420054201 | J109: 0.02351690342 | O109: 4.029049772 | P109: 3.907069787 | Q109: 0.0009587727709 | R109: 0.1035474593 | S109: 0.003745992125
A110: 109 | B110: 0.01808878495 | C110: -0.002079002079 | D110: 0.0008146639511 | E110: -0.002747728831 | F110: 689 | G110: -0.05200574352 | H110: -0.02160702228 | I110: -0.006551518761 | J110: -0.03337255079 | O110: 3.886463165 | P110: 3.907069787 | Q110: 0.0009587727709 | R110: 0.104506232 | S110: 0.003745992125
A111: 110 | B111: 0.01054264175 | C111: -0.004166666667 | D111: -0.00814000814 | E111: -0.00206554191 | F111: 609 | G111: -0.05582375739 | H111: -0.01373390558 | I111: -0.009140767824 | J111: -0.05652209445 | O111: 3.864779475 | P111: 3.907202811 | Q111: 0.0009587727709 | R111: 0.1054650048 | S111: 0.003746119666
A112: 111 | B112: 0.0214287102 | C112: 0.01966527197 | D112: 0.004924086992 | E112: -0.003451119731 | F112: 88 | G112: -0.001346308281 | H112: 0.007822685789 | I112: -0.01376518219 | J112: -0.007840186417 | O112: 3.984871009 | P112: 3.907202811 | Q112: 0.0009587727709 | R112: 0.1064237776 | S112: 0.003746119666
A113: 112 | B113: -0.006447808886 | C113: -0.01354123923 | D113: -0.01878317681 | E113: 0.002770564163 | F113: 18 | G113: -0.009392005746 | H113: 0.006736842105 | I113: 0.002972399151 | J113: -0.003726283942 | O113: 3.996590952 | P113: 3.907968535 | Q113: 0.0009587727709 | R113: 0.1073825503 | S113: 0.003746853821
A114: 113 | B114: -0.00867201409 | C114: -0.004159733777 | D114: -0.004161464836 | E114: -0.00414409676 | F114: 390 | G114: 0.02269340974 | H114: -0.03588235294 | I114: -0.002706359946 | J114: -0.0257670409 | O114: 3.958337656 | P114: 3.908181668 | Q114: 0.0009587727709 | R114: 0.1083413231 | S114: 0.003747058167
A115: 114 | B115: -0.003263556311 | C115: 0.02172096909 | D115: 0.002925198496 | E115: 0.0006934675039 | F115: 217 | G115: 0.004719486471 | H115: -0.002127659574 | I115: -0.009567682495 | J115: -0.01213936308 | O115: 3.980884781 | P115: 3.908564832 | Q115: 0.0009587727709 | R115: 0.1093000959 | S115: 0.003747425534
A116: 115 | B116: -0.001104330137 | C116: 0.0004088307441 | D116: -0.01041666667 | E116: -0.00623688246 | F116: 229 | G116: -0.02427936422 | H116: -0.003825554705 | I116: -0.01420678769 | J116: 0.02289405802 | O116: 3.980582351 | P116: 3.908863098 | Q116: 0.0009587727709 | R116: 0.1102588686 | S116: 0.003747711503
A117: 116 | B117: 0.02358508864 | C117: 0.01961585615 | D117: 0.01936842105 | E117: 0.009763245744 | F117: 786 | G117: -0.01355186888 | H117: 0.01052048726 | I117: -0.03870233352 | J117: -0.02576388652 | O117: 3.932502398 | P117: 3.908893704 | Q117: 0.0009587727709 | R117: 0.1112176414 | S117: 0.003747740847
A118: 117 | B118: -0.0493045818 | C118: -0.05130260521 | D118: -0.02395704254 | E118: -0.01864656462 | F118: 222 | G118: -0.04807258283 | H118: -0.01935483871 | I118: -0.01817520901 | J118: -0.01708040663 | O118: 3.897316963 | P118: 3.908893704 | Q118: 0.0009587727709 | R118: 0.1121764142 | S118: 0.003747740847
A119: 118 | B119: 0.01014510085 | C119: 0.001267427123 | D119: -0.02031316124 | E119: -0.01477857197 | F119: 798 | G119: -0.001626077749 | H119: 0.003386004515 | I119: -0.008120649652 | J119: 0.0009419505224 | O119: 3.994581228 | P119: 3.909005535 | Q119: 0.0009587727709 | R119: 0.113135187 | S119: 0.003747848068
A120: 119 | B120: -0.03516110574 | C120: -0.01983122363 | D120: 0.0004319654428 | E120: -0.01214261547 | F120: 125 | G120: 0.01674135787 | H120: -0.005462184874 | I120: 0.001270110076 | J120: -0.00145613786 | O120: 4.011093145 | P120: 3.909005535 | Q120: 0.0009587727709 | R120: 0.1140939597 | S120: 0.003747848068
A121: 120 | B121: 0.0005930591628 | C121: 0.02023245803 | D121: -0.0008635578584 | E121: -0.008677174414 | F121: 901 | G121: 0.02717043271 | H121: 0.0265625 | I121: 0.01629450815 | J121: 0 | O121: 4.070027441 | P121: 3.910207958 | Q121: 0.0009587727709 | R121: 0.1150527325 | S121: 0.003749000918
A122: 121 | B122: -0.03180183126 | C122: 0.00970464135 | D122: -0.0008643042351 | E122: -0.01823450476 | F122: 639 | G122: 0.09493284493 | H122: 0.03428011753 | I122: 0.0127064803 | J122: 0.06005100577 | O122: 4.201970449 | P122: 3.910207958 | Q122: 0.0009587727709 | R122: 0.1160115053 | S122: 0.003749000918
A123: 122 | B123: 0.05195051929 | C123: -0.03050564145 | D123: 0.00821799308 | E123: 0.01337268777 | F123: 244 | G123: -0.01129000054 | H123: 0.007111813512 | I123: 0.005338809035 | J123: 0.003977028183 | O123: 4.00513765 | P123: 3.910642555 | Q123: 0.0009587727709 | R123: 0.116970278 | S123: 0.003749417598
A124: 123 | B124: 0.004535147392 | C124: 0.005603448276 | D124: 0.005148005148 | E124: -0.009530602506 | F124: 486 | G124: -0.0497619553 | H124: -0.03159851301 | I124: 0.004079782412 | J124: -0.03221667882 | O124: 3.890502635 | P124: 3.910642555 | Q124: 0.0009587727709 | R124: 0.1179290508 | S124: 0.003749417598
A125: 124 | B125: 0.01186599812 | C125: 0.02014573511 | D125: 0.00810926163 | E125: 0.01702465788 | F125: 596 | G125: -0.01046755059 | H125: 0.006314127861 | I125: 0.005552128316 | J125: 0.01503512695 | O125: 4.016433833 | P125: 3.910642555 | Q125: 0.0009587727709 | R125: 0.1188878236 | S125: 0.003749417598
A126: 125 | B126: 0.01674135787 | C126: -0.005462184874 | D126: 0.001270110076 | E126: -0.00145613786 | F126: 96 | G126: 0.0289529868 | H126: 0.00630517024 | I126: -0.001611603546 | J126: 0.003496433475 | O126: 4.037142987 | P126: 3.910642555 | Q126: 0.0009587727709 | R126: 0.1198465964 | S126: 0.003749417598
A127: 126 | B127: -0.007126075222 | C127: -0.005069708492 | D127: -0.01099365751 | E127: -0.004373091497 | F127: 965 | G127: -0.006250250411 | H127: -0.001030396703 | I127: -0.007115135834 | J127: -0.01495202006 | O127: 3.970652197 | P127: 3.910642555 | Q127: 0.0009587727709 | R127: 0.1208053691 | S127: 0.003749417598
A128: 127 | B128: -0.01660343411 | C128: -0.01146496815 | D128: -0.006840530141 | E128: -0.0183012476 | F128: 229 | G128: -0.02427936422 | H128: -0.003825554705 | I128: -0.01420678769 | J128: 0.02289405802 | O128: 3.980582351 | P128: 3.911866246 | Q128: 0.0009587727709 | R128: 0.1217641419 | S128: 0.00375059084
A129: 128 | B129: -0.02193497067 | C129: -0.02405498282 | D129: -0.02023245803 | E129: -0.0305741579 | F129: 908 | G129: 0.02961383558 | H129: 0.003174603175 | I129: 0.01017524025 | J129: 0.02079268092 | O129: 4.06375636 | P129: 3.911974376 | Q129: 0.0009587727709 | R129: 0.1227229147 | S129: 0.003750694512
A130: 129 | B130: 0.02301655077 | C130: 0.02024647887 | D130: 0.01405975395 | E130: 0.01769194956 | F130: 636 | G130: =INDEX($B$2:$B$1044,F130) -> -0.05589536087 | H130: =INDEX($C$2:$C$1044,F130) -> -0.04595588235 | I130: =INDEX($D$2:$D$1044,F130) -> -0.0112640801 | J130: =INDEX($E$2:$E$1044,F130) -> 0.03681257015 | O130: 3.923697247 | P130: 3.911974376 | Q130: 0.0009587727709 | R130: 0.1236816874 | S130: 0.003750694512
A131: 130 | B131: 0.0005565051477 | C131: -0.003451251079 | D131: -0.0008665511265 | E131: 0.0105818001 | F131: 749 | G131: 0.008498845266 | H131: 0.02923976608 | I131: 0.02608695652 | J131: 0.03491333321 | O131: =(1+G131)+(1+H131)+(1+I131)+(1+J131) -> 4.098738901 | P131: 3.912544857 | Q131: =1/1043 -> 0.0009587727709 | R131: 0.1246404602 | S131: =P131*Q131 -> 0.003751241473
A132: =A131+1 -> 131 | B132: 0.01122323309 | C132: 0.01082251082 | D132: 0.007805724198 | E132: 0.02094257507 | F132: 46 | G132: 0.003428821555 | H132: -0.004506349857 | I132: 0.004860267315 | J132: 0.002256176407 | O132: 4.006038915 | P132: 3.915651255 | Q132: 0.0009587727709 | R132: =R131+Q132 -> 0.125599233 | S132: 0.003754219803
A133: 132 | B133: 0.01001826861 | C133: 0 | D133: -0.006884681583 | E133: 0 | F133: 946 | G133: 0.006005472442 | H133: 0.01705653021 | I133: -0.002965599051 | J133: 0.003010473356 | O133: 4.023106877 | P133: 3.915651255 | Q133: 0.0009587727709 | R133: 0.1265580058 | S133: 0.003754219803
A134: 133 | B134: 0.006593150125 | C134: 0.02869379015 | D134: 0.004766031196 | E134: -0.002930344775 | F134: 10 | G134: 0.0236107112 | H134: -0.0008602150538 | I134: 0.0008565310493 | J134: 0 | O134: 4.023607027 | P134: 3.915674837 | Q134: 0.0009587727709 | R134: 0.1275167785 | S134: 0.003754242413
A135: 134 | B135: 0.01420125203 | C135: 0.006244796003 | D135: 0.01811125485 | E135: 0.04849392674 | F135: 744 | G135: -0.003850684063 | H135: 0.007970570202 | I135: 0.01041064199 | J135: 0.02219819181 | O135: 4.03672872 | P135: 3.915788821 | Q135: 0.0009587727709 | R135: 0.1284755513 | S135: 0.003754351698
A136: 135 | B136: 0.02693795127 | C136: -0.0008274720728 | D136: 0.01863617111 | E136: -0.003503783924 | F136: 59 | G136: -0.00143140554 | H136: -0.005076142132 | I136: -0.002815768302 | J136: 0.005347486078 | O136: 3.99602417 | P136: 3.915823001 | Q136: 0.0009587727709 | R136: 0.1294343241 | S136: 0.003754384469
A137: 136 | B137: -0.0188850756 | C137: -0.01614906832 | D137: -0.009979209979 | E137: -0.01617462081 | F137: 671 | G137: 0 | H137: 0 | I137: 0 | J137: 0 | O137: 4 | P137: 3.915823001 | Q137: 0.0009587727709 | R137: 0.1303930968 | S137: 0.003754384469
A138: 137 | B138: 0.008017093047 | C138: 0.0008417508418 | D138: -0.001679966401 | E138: 0.007862602515 | F138: 339 | G138: -0.0369078934 | H138: -0.02836879433 | I138: 0.0156 | J138: 0.006294836967 | O138: 3.956618149 | P138: 3.916035836 | Q138: 0.0009587727709 | R138: 0.1313518696 | S138: 0.003754588529
A139: 138 | B139: -0.01059818799 | C139: -0.007569386039 | D139: 0.009676062263 | E139: -0.009219675961 | F139: 701 | G139: -0.008969828758 | H139: 0.01300479124 | I139: -0.003579952267 | J139: -0.001638173568 | O139: 3.998816837 | P139: 3.916074508 | Q139: 0.0009587727709 | R139: 0.1323106424 | S139: 0.003754625607
A140: 139 | B140: 0.01501535661 | C140: 0.01991525424 | D140: 0.01041666667 | E140: 0.01789568744 | F140: 659 | G140: 0.06254143646 | H140: 0.01604278075 | I140: 0.001314060447 | J140: -0.02737644494 | O140: 4.052521833 | P140: 3.91640313 | Q140: 0.0009587727709 | R140: 0.1332694151 | S140: 0.003754940681
A141: 140 | B141: -0.00317531473 | C141: -0.008309098463 | D141: 0.004536082474 | E141: 0.002109662155 | F141: 457 | G141: 0.02413185846 | H141: 0.0184501845 | I141: -0.002424242424 | J141: 0.02114385116 | O141: 4.061301652 | P141: 3.91640313 | Q141: 0.0009587727709 | R141: 0.1342281879 | S141: 0.003754940681
A142: 141 | B142: 0.0143156948 | C142: 0.0008378718056 | D142: -0.008210180624 | E142: -0.002806961133 | F142: 244 | G142: -0.01129000054 | H142: 0.007111813512 | I142: 0.005338809035 | J142: 0.003977028183 | O142: 4.00513765 | P142: 3.91640313 | Q142: 0.0009587727709 | R142: 0.1351869607 | S142: 0.003754940681
A143: 142 | B143: 0.008867213478 | C143: 0.01088321473 | D143: 0.001655629139 | E143: 0.0147780273 | F143: 704 | G143: -0.006946311733 | H143: -0.0146179402 | I143: 0.007013442431 | J143: -0.01555054756 | O143: 3.969898643 | P143: 3.917577085 | Q143: 0.0009587727709 | R143: 0.1361457335 | S143: 0.003756066237
A144: 143 | B144: -0.009320295906 | C144: 0.0008281573499 | D144: -0.002066115702 | E144: -0.01317588257 | F144: 308 | G144: -0.05236931536 | H144: -0.03484162896 | I144: 0.002077274616 | J144: 0.0009224907822 | O144: 3.915788821 | P144: 3.917577085 | Q144: 0.0009587727709 | R144: 0.1371045062 | S144: 0.003756066237
A145: 144 | B145: 0.0005360146387 | C145: -0.0008274720728 | D145: 0.004968944099 | E145: 0.002810906185 | F145: 666 | G145: -0.01749871333 | H145: 0.02337228715 | I145: -0.01283783784 | J145: 0.007211953267 | O145: 4.000247689 | P145: 3.917577085 | Q145: 0.0009587727709 | R145: 0.138063279 | S145: 0.003756066237
A146: 145 | B146: 0 | C146: 0 | D146: 0 | E146: 0 | F146: 279 | G146: 0.009803458748 | H146: 0.02370773416 | I146: 0.009174311927 | J146: -0.01352460505 | O146: 4.0291609 | P146: 3.919738851 | Q146: 0.0009587727709 | R146: 0.1390220518 | S146: 0.003758138879
A147: 146 | B147: 0 | C147: 0 | D147: 0 | E147: 0 | F147: 874 | G147: -0.03461054636 | H147: -0.01042752868 | I147: -0.01334816463 | J147: -0.004519475978 | O147: 3.937094284 | P147: 3.919927061 | Q147: 0.0009587727709 | R147: 0.1399808245 | S147: 0.00375831933
A148: 147 | B148: 0.004692233799 | C148: 0.008695652174 | D148: 0.007004532344 | E148: 0.01051135177 | F148: 15 | G148: 0.00235535358 | H148: -0.0008561643836 | I148: 0.003426124197 | J148: 0.0007484882507 | O148: 4.005673802 | P148: 3.923007376 | Q148: 0.0009587727709 | R148: 0.1409395973 | S148: 0.003761272652
A149: 148 | B149: -0.007281285625 | C149: 0.002463054187 | D149: 0.002864157119 | E149: -0.001386935008 | F149: 860 | G149: 0 | H149: 0 | I149: 0 | J149: 0 | O149: 4 | P149: 3.923007376 | Q149: 0.0009587727709 | R149: 0.1418983701 | S149: 0.003761272652
A150: 149 | B150: -0.001037229117 | C150: -0.01269451269 | D150: -0.001631986944 | E150: 0.001388861268 | F150: 885 | G150: -0.04290577956 | H150: -0.02126499455 | I150: -0.0308716707 | J150: -0.02060330483 | O150: 3.88435425 | P150: 3.923697247 | Q150: 0.0009587727709 | R150: 0.1428571429 | S150: 0.003761934081
A151: 150 | B151: 0.02254607483 | C151: 0.00165906263 | D151: 0.008990600736 | E151: 0.006934675039 | F151: 822 | G151: 0.0009209617472 | H151: 0.003004807692 | I151: -0.01083856246 | J151: -0.005957812468 | O151: 3.987129395 | P151: 3.923697247 | Q151: 0.0009587727709 | R151: 0.1438159156 | S151: 0.003761934081
A152: 151 | B152: 0.02 | C152: 0.01366459627 | D152: 0.001215066829 | E152: 0.01308567441 | F152: 848 | G152: 0.01258616551 | H152: 0.0106981982 | I152: 0.008158508159 | J152: 0.021017526 | O152: 4.052460398 | P152: 3.923697247 | Q152: 0.0009587727709 | R152: 0.1447746884 | S152: 0.003761934081
A153: 152 | B153: -0.001511030523 | C153: -0.008986928105 | D153: 0.002022653722 | E153: 0.007477756673 | F153: 714 | G153: 0.01988017429 | H153: -0.005322687957 | I153: 0.02228412256 | J153: 0.0227271939 | O153: 4.059568803 | P153: 3.924660847 | Q153: 0.0009587727709 | R153: 0.1457334612 | S153: 0.003762857955
A154: 153 | B154: 0.009062099416 | C154: 0.003709810387 | D154: -0.006863140896 | E154: -0.009446506182 | F154: 807 | G154: -0.003545209261 | H154: -0.0158013544 | I154: -0.01591657519 | J154: -0.009990119662 | O154: 3.954746741 | P154: 3.924893016 | Q154: 0.0009587727709 | R154: 0.1466922339 | S154: 0.003763080553
A155: 154 | B155: 0.005487234681 | C155: -0.006570841889 | D155: -0.01260162602 | E155: -0.01294251998 | F155: 76 | G155: 0 | H155: 0 | I155: 0 | J155: 0 | O155: 4 | P155: 3.924893016 | Q155: 0.0009587727709 | R155: 0.1476510067 | S155: 0.003763080553
A156: 155 | B156: 0.01538920474 | C156: 0.01116163704 | D156: 0.006587072869 | E156: 0.02760468468 | F156: 829 | G156: -0.02589706653 | H156: -0.01333333333 | I156: -0.01263641585 | J156: -0.03173005414 | O156: 3.91640313 | P156: 3.925558095 | Q156: 0.0009587727709 | R156: 0.1486097795 | S156: 0.003763718212
A157: 156 | B157: 0.01612373628 | C157: 0.005723630417 | D157: 0.00163599182 | E157: 0.002686833425 | F157: 407 | G157: -0.002651275193 | H157: -0.0005861664713 | I157: 0.004824561404 | J157: 0.009895633876 | O157: 4.011482754 | P157: 3.926863166 | Q157: 0.0009587727709 | R157: 0.1495685523 | S157: 0.003764969478
A158: 157 | B158: 0.009132963706 | C158: 0.01463414634 | D158: -0.003674969375 | E158: -0.001339557645 | F158: 337 | G158: 0 | H158: 0 | I158: 0 | J158: 0 | O158: 4 | P158: 3.927315447 | Q158: 0.0009587727709 | R158: 0.150527325 | S158: 0.003765403113
A159: 158 | B159: 0.02860032022 | C159: 0.02924679487 | D159: 0.008196721311 | E159: 0.01341354467 | F159: 317 | G159: -0.04569994677 | H159: -0.02393857272 | I159: 0.003723624328 | J159: -0.01801059673 | O159: 3.916074508 | P159: 3.928023399 | Q159: 0.0009587727709 | R159: 0.1514860978 | S159: 0.003766081878
A160: 159 | B160: 0.008815047844 | C160: -0.007785130401 | D160: -0.002845528455 | E160: 0.01654551592 | F160: 527 | G160: 0.006534213407 | H160: -0.02757456387 | I160: -0.003623188406 | J160: -0.0157477174 | O160: 3.959588744 | P160: 3.928126114 | Q160: 0.0009587727709 | R160: 0.1524448706 | S160: 0.003766180359
A161: 160 | B161: 0.003670618808 | C161: 0.0003923107101 | D161: -0.007337953526 | E161: -0.01432313187 | F161: 1027 | G161: -0.02017810844 | H161: -0.004912663755 | I161: -0.01650793651 | J161: -0.02510249429 | O161: 3.933298797 | P161: 3.930956243 | Q161: 0.0009587727709 | R161: 0.1534036433 | S161: 0.003768893809
A162: 161 | B162: -0.004579584439 | C162: 0.005490196078 | D162: 0.003285420945 | E162: 0.001320977626 | F162: 84 | G162: 0.004838236732 | H162: -0.003897791252 | I162: 0.01849568434 | J162: 0.008778738976 | O162: 4.028214869 | P162: 3.931059762 | Q162: 0.0009587727709 | R162: 0.1543624161 | S162: 0.00376899306
A163: 162 | B163: 0 | C163: 0 | D163: 0 | E163: 0 | F163: 316 | G163: -0.009060940002 | H163: -0.02894736842 | I163: -0.008206811654 | J163: 0.0008583519908 | O163: 3.954643232 | P163: 3.931653646 | Q163: 0.0009587727709 | R163: 0.1553211889 | S163: 0.00376956246
A164: 163 | B164: 0.0004551883342 | C164: -0.01053042122 | D164: 0.01391731478 | E164: 0.002638469892 | F164: 179 | G164: -0.02046449007 | H164: -0.02340093604 | I164: -0.01466165414 | J164: -0.01846554366 | O164: 3.923007376 | P164: 3.932502398 | Q164: 0.0009587727709 | R164: 0.1562799616 | S164: 0.003770376221
A165: 164 | B165: -0.006889715799 | C165: -0.008277493102 | D165: 0.007670569237 | E165: -0.002631526688 | F165: 589 | G165: 0.0009821804406 | H165: -0.009579955785 | I165: -0.01536772777 | J165: 0.01597412489 | O165: 3.992008622 | P165: 3.932502398 | Q165: 0.0009587727709 | R165: 0.1572387344 | S165: 0.003770376221
A166: 165 | B166: 0.01250061358 | C166: 0.01629570747 | D166: 0.006810897436 | E166: 0.001978852419 | F166: 706 | G166: 0.03728813559 | H166: 0.02864938608 | I166: 0.03927315358 | J166: 0.02758174984 | O166: 4.132792425 | P166: 3.932785236 | Q166: 0.0009587727709 | R166: 0.1581975072 | S166: 0.003770647398
A167: 166 | B167: -0.01052019198 | C167: -0.01329683223 | D167: -0.00278551532 | E167: -0.003291573826 | F167: 640 | G167: -0.06374872224 | H167: -0.01609848485 | I167: -0.005018820577 | J167: -0.004926014465 | O167: 3.910207958 | P167: 3.932785236 | Q167: 0.0009587727709 | R167: 0.15915628 | S167: 0.003770647398
A168: 167 | B168: -0.02448146333 | C168: -0.001189060642 | D168: -0.008379888268 | E168: -0.001981466439 | F168: 37 | G168: -0.000692355441 | H168: -0.001227998363 | I168: 0.00375782881 | J168: 0.004573079006 | O168: 4.006410554 | P168: 3.933297021 | Q168: 0.0009587727709 | R168: 0.1601150527 | S168: 0.003771138083
A169: 168 | B169: -0.0104133532 | C169: 0.01468253968 | D169: 0.0004024144869 | E169: 0.01058880236 | F169: 583 | G169: 0.02486968536 | H169: -0.008102633356 | I169: 0.01464788732 | J169: -0.0005838794945 | O169: 4.03083106 | P169: 3.933298797 | Q169: 0.0009587727709 | R169: 0.1610738255 | S169: 0.003771139786
A170: 169 | B170: -0.01099663334 | C170: -0.02072741494 | D170: -0.0164923572 | E170: -0.01768137935 | F170: 666 | G170: -0.01749871333 | H170: 0.02337228715 | I170: -0.01283783784 | J170: 0.007211953267 | O170: 4.000247689 | P170: 3.933482159 | Q170: 0.0009587727709 | R170: 0.1620325983 | S170: 0.003771315589
A171: 170 | B171: 0.001932978669 | C171: 0.01038338658 | D171: 0.01799591002 | E171: -0.003999919506 | F171: 347 | G171: -0.03290870488 | H171: -0.04169014085 | I171: -0.024 | J171: -0.03072878337 | O171: 3.870672371 | P171: 3.933646017 | Q171: 0.0009587727709 | R171: 0.162991371 | S171: 0.003771472691
A172: 171 | B172: 0.009168203237 | C172: -0.004743083004 | D172: 0.003615910004 | E172: 0 | F172: 330 | G172: 0.0260019632 | H172: 0.00278551532 | I172: 0.001216545012 | J172: 0.0255243581 | O172: 4.055528382 | P172: 3.933842143 | Q172: 0.0009587727709 | R172: 0.1639501438 | S172: 0.003771660731
A173: 172 | B173: 0.002402341437 | C173: 0.00714853058 | D173: 0.0128102482 | E173: 0.0174025935 | F173: 17 | G173: -0.001544529332 | H173: 0.01063829787 | I173: -0.002541296061 | J173: 0.003740221067 | O173: 4.010292694 | P173: 3.933842143 | Q173: 0.0009587727709 | R173: 0.1649089166 | S173: 0.003771660731
A174: 173 | B174: 0.006193988287 | C174: -0.007492113565 | D174: 0.003557312253 | E174: -0.01578916013 | F174: 39 | G174: -0.01898763488 | H174: -0.00736196319 | I174: 0.004545454545 | J174: -0.003032539952 | O174: 3.975163317 | P174: 3.934102215 | Q174: 0.0009587727709 | R174: 0.1658676894 | S174: 0.003771910082
A175: 174 | B175: 0.001425743903 | C175: 0.006356773937 | D175: 0.01102796377 | E175: 0.0006684357104 | F175: 554 | G175: 0.0555972014 | H175: 0.00266844563 | I175: -0.00837520938 | J175: 0.04628006992 | O175: 4.096170508 | P175: 3.934885892 | Q175: 0.0009587727709 | R175: 0.1668264621 | S175: 0.00377266145
A176: 175 | B176: 0.01279667688 | C176: 0.005527043032 | D176: 0.01597195169 | E176: 0.003339946013 | F176: 921 | G176: 0.009211242067 | H176: -0.004977600796 | I176: -0.0005743825388 | J176: -0.007793857792 | O176: 3.995865401 | P176: 3.934885892 | Q176: 0.0009587727709 | R176: 0.1677852349 | S176: 0.00377266145
A177: 176 | B177: -0.002811450874 | C177: -0.003140950137 | D177: 0.01073619632 | E177: -0.05659162032 | F177: 352 | G177: 0.02677243431 | H177: 0.03381088825 | I177: -0.004541326067 | J177: 0.04648747362 | O177: 4.10252947 | P177: 3.934885892 | Q177: 0.0009587727709 | R177: 0.1687440077 | S177: 0.00377266145
A178: 177 | B178: -0.01595435926 | C178: -0.005907837731 | D178: 0.0007587253414 | E178: -0.004939916976 | F178: 802 | G178: -0.02451310681 | H178: -0.008825151682 | I178: 0.004618937644 | J178: -0.01735145956 | O178: 3.95392922 | P178: 3.935414692 | Q178: 0.0009587727709 | R178: 0.1697027804 | S178: 0.003773168449
A179: 178 | B179: 0.00143254403 | C179: 0.01584786054 | D179: 0.008339651251 | E179: -0.001418411686 | F179: 548 | G179: -0.01950805768 | H179: -0.006892230576 | I179: -0.03052503053 | J179: -0.07126813637 | O179: 3.871806545 | P179: 3.935414692 | Q179: 0.0009587727709 | R179: 0.1706615532 | S179: 0.003773168449
A180: 179 | B180: -0.02046449007 | C180: -0.02340093604 | D180: -0.01466165414 | E180: -0.01846554366 | F180: 840 | G180: 0.01540135314 | H180: 0.01877934272 | I180: 0.00765606596 | J180: 0.01818181818 | O180: 4.06001858 | P180: 3.935414692 | Q180: 0.0009587727709 | R180: 0.171620326 | S180: 0.003773168449
A181: 180 | B181: -0.008264036836 | C181: -0.006389776358 | D181: 0.003433803892 | E181: 0.01374791384 | F181: 284 | G181: 0.006708654954 | H181: -0.01706349206 | I181: -0.01550094518 | J181: -0.0127548502 | O181: 3.961389368 | P181: 3.935414692 | Q181: 0.0009587727709 | R181: 0.1725790988 | S181: 0.003773168449
A182: 181 | B182: -0.002927775757 | C182: 0.002813504823 | D182: 0 | E182: 0.00571009343 | F182: 263 | G182: 0.02686339164 | H182: 0.03996737357 | I182: 0.03142183818 | J182: 0.03969647487 | O182: 4.137949078 | P182: 3.936043081 | Q182: 0.0009587727709 | R182: 0.1735378715 | S182: 0.003773770931
A183: 182 | B183: 0.02997185252 | C183: 0.002805611222 | D183: -0.007604562738 | E183: -0.01277476511 | F183: 76 | G183: 0 | H183: 0 | I183: 0 | J183: 0 | O183: 4 | P183: 3.936471283 | Q183: 0.0009587727709 | R183: 0.1744966443 | S183: 0.003774181479
A184: 183 | B184: -0.006207931983 | C184: -0.007993605116 | D184: -0.0003831417625 | E184: 0.01078339291 | F184: 883 | G184: 0.001136809094 | H184: -0.01104100946 | I184: -0.008766803039 | J184: -0.01411825329 | O184: 3.967210743 | P184: 3.936471283 | Q184: 0.0009587727709 | R184: 0.1754554171 | S184: 0.003774181479
A185: 184 | B185: 0.02160886761 | C185: 0.05116841257 | D185: 0.00728248371 | E185: -0.007823458043 | F185: 987 | G185: -0.05928188261 | H185: -0.02666020359 | I185: -0.03630573248 | J185: -0.05638869478 | O185: 3.821363487 | P185: 3.936763111 | Q185: 0.0009587727709 | R185: 0.1764141898 | S185: 0.003774461276
A186: 185 | B186: 0.009404492888 | C186: 0.01993100805 | D186: 0.001902587519 | E186: -0.01003564184 | F186: 175 | G186: 0.01279667688 | H186: 0.005527043032 | I186: 0.01597195169 | J186: 0.003339946013 | O186: 4.037635618 | P186: 3.937094284 | Q186: 0.0009587727709 | R186: 0.1773729626 | S186: 0.003774778796
A187: 186 | B187: -0.01489711934 | C187: -0.006388575723 | D187: -0.007975693126 | E187: -0.00868974067 | F187: 179 | G187: -0.02046449007 | H187: -0.02340093604 | I187: -0.01466165414 | J187: -0.01846554366 | O187: 3.923007376 | P187: 3.937658651 | Q187: 0.0009587727709 | R187: 0.1783317354 | S187: 0.003775319895
A188: 187 | B188: -0.01183056229 | C188: -0.008698940998 | D188: 0.01148545176 | E188: 0.02191393744 | F188: 185 | G188: 0.009404492888 | H188: 0.01993100805 | I188: 0.001902587519 | J188: -0.01003564184 | O188: 4.021202447 | P188: 3.937658651 | Q188: 0.0009587727709 | R188: 0.1792905081 | S188: 0.003775319895
A189: 188 | B189: -0.03537548405 | C189: -0.01793208699 | D189: -0.009084027252 | E189: -0.01786955117 | F189: 738 | G189: 0.04705941693 | H189: 0.0222521915 | I189: 0.04039776259 | J189: 0.05085736823 | O189: 4.160566739 | P189: 3.937912758 | Q189: 0.0009587727709 | R189: 0.1802492809 | S189: 0.003775563527
A190: 189 | B190: 0.003961784556 | C190: -0.009324009324 | D190: 0.004965622613 | E190: -0.01528409616 | F190: 251 | G190: 0.03896645512 | H190: 0.02154828412 | I190: -0.006304176517 | J190: 0.0007942811755 | O190: 4.055004844 | P190: 3.937941656 | Q190: 0.0009587727709 | R190: 0.1812080537 | S190: 0.003775591233
A191: 190 | B191: -0.01334008486 | C191: 0.004705882353 | D191: -0.003800836184 | E191: -0.0007390835021 | F191: 342 | G191: 0.001874889712 | H191: 0.01318458418 | I191: -0.004300234558 | J191: -0.002752238857 | O191: 4.008007 | P191: 3.938559199 | Q191: 0.0009587727709 | R191: 0.1821668265 | S191: 0.003776183316
A192: 191 | B192: 0.01652892562 | C192: 0.008587041374 | D192: 0.002289202594 | E192: -0.0007396301506 | F192: 932 | G192: -0.01845874887 | H192: 0.01659346022 | I192: -0.006218202374 | J192: -0.004414717075 | O192: 3.987501792 | P192: 3.938559199 | Q192: 0.0009587727709 | R192: 0.1831255992 | S192: 0.003776183316
A193: 192 | B193: -0.003951881061 | C193: 0.009674922601 | D193: 0.001141987057 | E193: -0.02146572353 | F193: 823 | G193: 0 | H193: 0.01138406231 | I193: 0.003460207612 | J193: 0.003995680494 | O193: 4.01883995 | P193: 3.938958541 | Q193: 0.0009587727709 | R193: 0.184084372 | S193: 0.003776566195
A194: 193 | B194: 0.01088894327 | C194: 0.001533154465 | D194: 0.004562737643 | E194: 0.01815453574 | F194: 593 | G194: =INDEX($B$2:$B$1044,F194) -> 0 | H194: =INDEX($C$2:$C$1044,F194) -> 0 | I194: =INDEX($D$2:$D$1044,F194) -> 0 | J194: =INDEX($E$2:$E$1044,F194) -> 0 | O194: 4 | P194: 3.939593999 | Q194: 0.0009587727709 | R194: 0.1850431448 | S194: 0.003777175454
A195: 194 | B195: 0.02737002265 | C195: 0.0003827018752 | D195: 0.02573807721 | E195: 0.01634439616 | F195: 206 | G195: 0.01630939793 | H195: -0.009034051425 | I195: 0.01486988848 | J195: -0.005278929925 | O195: =(1+G195)+(1+H195)+(1+I195)+(1+J195) -> 4.016866305 | P195: 3.939593999 | Q195: =1/1043 -> 0.0009587727709 | R195: 0.1860019175 | S195: =P195*Q195 -> 0.003777175454
A196: =A195+1 -> 195 | B196: 0.01428811848 | C196: 0.02563121653 | D196: 0.00110701107 | E196: 0.01535113899 | F196: 713 | G196: 0.04849378956 | H196: 0.01898305085 | I196: 0.01757369615 | J196: -0.005026443614 | O196: 4.080024093 | P196: 3.939593999 | Q196: 0.0009587727709 | R196: =R195+Q196 -> 0.1869606903 | S196: 0.003777175454
A197: 196 | B197: 0.01360566792 | C197: -0.01342782544 | D197: -0.01953556948 | E197: -0.004319567776 | F197: 797 | G197: 0.02918969409 | H197: 0.01141552511 | I197: 0.02925373134 | J197: 0.02309859304 | O197: 4.092957544 | P197: 3.939753351 | Q197: 0.0009587727709 | R197: 0.1879194631 | S197: 0.003777328237
A198: 197 | B198: 0.003241172715 | C198: -0.007561436673 | D198: 0.01691729323 | E198: 0.001446102463 | F198: 138 | G198: -0.01059818799 | H198: -0.007569386039 | I198: 0.009676062263 | J198: -0.009219675961 | O198: 3.982288812 | P198: 3.939753351 | Q198: 0.0009587727709 | R198: 0.1888782359 | S198: 0.003777328237
A199: 198 | B199: -0.004160751872 | C199: 0.000380952381 | D199: -0.002957486137 | E199: -0.002888028541 | F199: 967 | G199: -0.01739164884 | H199: -0.008159102499 | I199: 0.005263157895 | J199: -0.04482651417 | O199: 3.934885892 | P199: 3.940845807 | Q199: 0.0009587727709 | R199: 0.1898370086 | S199: 0.003778375654
A200: 199 | B200: -0.003244199764 | C200: 0.07578065499 | D200: -0.008157211717 | E200: -0.01665482254 | F200: 511 | G200: 0.04437247504 | H200: 0.02666666667 | I200: -0.01394511921 | J200: 0.001356825029 | O200: 4.058450848 | P200: 3.94147575 | Q200: 0.0009587727709 | R200: 0.1907957814 | S200: 0.003778979626
... 844 more rows

Sheet Montecarlo
B1: scenario | C1: p_fca | D1: p_lux | E1: p_eni | F1: p_ucg | G1: z_fca | H1: z_lux | I1: z_eni | J1: z_ucg | K1: A'z | O1: r_fca | P1: r_lux | Q1: r_eni | R1: r_ucg | S1: Portafoglio | T1: v_ordinati | U1: probabilità | V1: cumulate | Z1: valore | AA1: perdita | AF1: A'z | AJ1: r_fca | AK1: r_lux | AL1: r_eni | AM1: r_ucg | AN1: Portafoglio | AO1: v_ordinati | AP1: probabilità | AQ1: cumulate | AV1: valore | AW1: perdita
B2: 1 | C2: 0.5593786379 | D2: 0.5753540668 | E2: 0.1805544618 | F2: 0.8420360911 | G2: =_xlfn.NORM.S.INV(C2) -> 0.1493940276 | H2: =_xlfn.NORM.S.INV(D2) -> 0.1900220316 | I2: =_xlfn.NORM.S.INV(E2) -> -0.913254087 | J2: =_xlfn.NORM.S.INV(F2) -> 1.002861237 | K2: =MMULT(G2:J2,'Analisi Correlazione'!$U$24:$X$27) -> 0.1493940276 | L2: 0.2396365642 | M2: -0.6363364924 | N2: 0.5787005762 | O2: =K2*'Analisi Correlazione'!$W$7+'Analisi Correlazione'!$W$5 -> 0.004841818658 | P2: =H2*'Analisi Correlazione'!$X$7+'Analisi Correlazione'!$X$5 -> 0.004286670205 | Q2: =M2*'Analisi Correlazione'!$Y$7+'Analisi Correlazione'!$Y$5 -> -0.0134393726 | R2: =N2*'Analisi Correlazione'!$Z$7+'Analisi Correlazione'!$Z$5 -> 0.01827791973 | S2: =(4+O2+P2+Q2+R2) -> 4.013967036 | T2: 3.691024564 | U2: =1/10000 -> 0.0001 | V2: =U2 -> 0.0001 | W2: =T2*U2 -> 0.0003691024564 | Y2: var 99 | Z2: =T101 -> 3.815800589 | AA2: =4-Z2 -> 0.1841994108 | AF2: =MMULT(G2:J2,'Analisi Correlazione'!$U$38:$X$41) -> 0.1493940276 | AG2: 0.2396772178 | AH2: -0.5389552794 | AI2: 0.3782600611 | AJ2: =AF2*'Analisi Correlazione'!$AA$9+'Analisi Correlazione'!$W$5 -> 0.007188593553 | AK2: =AG2*'Analisi Correlazione'!$AB$9+'Analisi Correlazione'!$X$5 -> 0.007927988085 | AL2: =AH2*'Analisi Correlazione'!$AC$9+'Analisi Correlazione'!$Y$5 -> -0.01782306333 | AM2: =AI2*'Analisi Correlazione'!$AD$9+'Analisi Correlazione'!$Z$5 -> 0.01955172331 | AN2: =(4+AJ2+AK2+AL2+AM2) -> 4.016845242 | AO2: 3.481120588 | AP2: =1/10000 -> 0.0001 | AQ2: =AP2 -> 0.0001 | AR2: =AO2*AP2 -> 0.0003481120588 | AU2: var 99 | AV2: =AO101 -> 3.653948391 | AW2: =4-AV2 -> 0.3460516091
A3: contatore | B3: 2 | C3: 0.5364345709 | D3: 0.912106468 | E3: 0.3290545528 | F3: 0.1111615172 | G3: =_xlfn.NORM.S.INV(C3) -> 0.09145525538 | H3: =_xlfn.NORM.S.INV(D3) -> 1.353841144 | I3: =_xlfn.NORM.S.INV(E3) -> -0.4425253291 | J3: =_xlfn.NORM.S.INV(F3) -> -1.220374249 | K3: =MMULT(G3:J3,'Analisi Correlazione'!$U$24:$X$27) -> 0.09145525538 | L3: 1.211306978 | M3: 0.03163508371 | N3: -0.6578113192 | O3: =K3*'Analisi Correlazione'!$W$7+'Analisi Correlazione'!$W$5 -> 0.003082641623 | P3: =H3*'Analisi Correlazione'!$X$7+'Analisi Correlazione'!$X$5 -> 0.02988788708 | Q3: =M3*'Analisi Correlazione'!$Y$7+'Analisi Correlazione'!$Y$5 -> 0.000565937768 | R3: =N3*'Analisi Correlazione'!$Z$7+'Analisi Correlazione'!$Z$5 -> -0.02169966767 | S3: =(4+O3+P3+Q3+R3) -> 4.011836799 | T3: 3.720572674 | U3: =1/10000 -> 0.0001 | V3: =V2+U3 -> 0.0002 | W3: =T3*U3 -> 0.0003720572674 | Y3: var 95 | Z3: =T501 -> 3.871457159 | AA3: =4-Z3 -> 0.1285428414 | AF3: =MMULT(G3:J3,'Analisi Correlazione'!$U$38:$X$41) -> 0.09145525538 | AG3: 1.012223485 | AH3: 0.03116938643 | AI3: -0.5347725981 | AJ3: =AF3*'Analisi Correlazione'!$AA$9+'Analisi Correlazione'!$W$5 -> 0.004519278019 | AK3: =AG3*'Analisi Correlazione'!$AB$9+'Analisi Correlazione'!$X$5 -> 0.0331383556 | AL3: =AH3*'Analisi Correlazione'!$AC$9+'Analisi Correlazione'!$Y$5 -> 0.0009277778758 | AM3: =AI3*'Analisi Correlazione'!$AD$9+'Analisi Correlazione'!$Z$5 -> -0.02868441013 | AN3: =(4+AJ3+AK3+AL3+AM3) -> 4.009901001 | AO3: 3.50052695 | AP3: =1/10000 -> 0.0001 | AQ3: =AQ2+AP3 -> 0.0002 | AR3: =AO3*AP3 -> 0.000350052695 | AU3: var 95 | AV3: =AO501 -> 3.756682257 | AW3: =4-AV3 -> 0.2433177428
A4: 10000 | B4: 3 | C4: 0.8559705552 | D4: 0.5008289641 | E4: 0.9943403195 | F4: 0.2421213329 | G4: 1.06238952 | H4: 0.002077906228 | I4: 2.532681941 | J4: -0.6994951133 | K4: =MMULT(G4:J4,'Analisi Correlazione'!$U$24:$X$27) -> 1.06238952 | L4: 0.5434190191 | M4: 2.626829584 | N4: 0.866957285 | O4: =K4*'Analisi Correlazione'!$W$7+'Analisi Correlazione'!$W$5 -> 0.03256281862 | P4: =H4*'Analisi Correlazione'!$X$7+'Analisi Correlazione'!$X$5 -> 0.0001523521963 | Q4: =M4*'Analisi Correlazione'!$Y$7+'Analisi Correlazione'!$Y$5 -> 0.05497918788 | R4: =N4*'Analisi Correlazione'!$Z$7+'Analisi Correlazione'!$Z$5 -> 0.02759752904 | S4: 4.115291888 | T4: 3.73009981 | U4: 0.0001 | V4: =V3+U4 -> 0.0003 | W4: =T4*U4 -> 0.000373009981 | Y4: var 90 | Z4: =T1001 -> 3.898169405 | AA4: 0.101830595 | AF4: =MMULT(G4:J4,'Analisi Correlazione'!$U$38:$X$41) -> 1.06238952 | AG4: 0.7607909281 | AH4: 2.54937324 | AI4: 1.281618027 | AJ4: =AF4*'Analisi Correlazione'!$AA$9+'Analisi Correlazione'!$W$5 -> 0.04925149818 | AK4: =AG4*'Analisi Correlazione'!$AB$9+'Analisi Correlazione'!$X$5 -> 0.02493340085 | AL4: =AH4*'Analisi Correlazione'!$AC$9+'Analisi Correlazione'!$Y$5 -> 0.08374903333 | AM4: =AI4*'Analisi Correlazione'!$AD$9+'Analisi Correlazione'!$Z$5 -> 0.06727673617 | AN4: 4.225210669 | AO4: 3.503473677 | AP4: 0.0001 | AQ4: =AQ3+AP4 -> 0.0003 | AR4: =AO4*AP4 -> 0.0003503473677 | AU4: var 90 | AV4: =AO1001 -> 3.809363742 | AW4: 0.1906362584
B5: 4 | C5: 0.2820286596 | D5: 0.295842297 | E5: 0.9588404411 | F5: 0.2648965707 | G5: -0.5768255332 | H5: -0.5363964361 | I5: 1.737385676 | J5: -0.6283218185 | K5: =MMULT(G5:J5,'Analisi Correlazione'!$U$24:$X$27) -> -0.5768255332 | L5: -0.755529887 | M5: 1.021383121 | N5: -0.3664159931 | O5: =K5*'Analisi Correlazione'!$W$7+'Analisi Correlazione'!$W$5 -> -0.01720816142 | P5: =H5*'Analisi Correlazione'!$X$7+'Analisi Correlazione'!$X$5 -> -0.01169278617 | Q5: =M5*'Analisi Correlazione'!$Y$7+'Analisi Correlazione'!$Y$5 -> 0.02131791126 | R5: =N5*'Analisi Correlazione'!$Z$7+'Analisi Correlazione'!$Z$5 -> -0.01227858393 | S5: 3.98013838 | T5: 3.73080741 | U5: 0.0001 | V5: 0.0004 | W5: 0.000373080741 | AF5: =MMULT(G5:J5,'Analisi Correlazione'!$U$38:$X$41) -> -0.5768255332 | AG5: -0.7874308685 | AH5: 0.8007570036 | AI5: -0.2535624795 | AJ5: =AF5*'Analisi Correlazione'!$AA$9+'Analisi Correlazione'!$W$5 -> -0.02626929795 | AK5: =AG5*'Analisi Correlazione'!$AB$9+'Analisi Correlazione'!$X$5 -> -0.02558945084 | AL5: =AH5*'Analisi Correlazione'!$AC$9+'Analisi Correlazione'!$Y$5 -> 0.02623875996 | AM5: =AI5*'Analisi Correlazione'!$AD$9+'Analisi Correlazione'!$Z$5 -> -0.01382788921 | AN5: 3.960552122 | AO5: 3.507745901 | AP5: 0.0001 | AQ5: 0.0004 | AR5: 0.0003507745901
A6: n_casuale | B6: 5 | C6: 0.6769499874 | D6: 0.05873377141 | E6: 0.6179722223 | F6: 0.2952284431 | G6: 0.459186805 | H6: -1.565492209 | I6: 0.3001594219 | J6: -0.5381740606 | K6: =MMULT(G6:J6,'Analisi Correlazione'!$U$24:$X$27) -> 0.459186805 | L6: -1.112655497 | M6: 0.0643078325 | N6: -0.4223944548 | O6: =K6*'Analisi Correlazione'!$W$7+'Analisi Correlazione'!$W$5 -> 0.01424796101 | P6: =H6*'Analisi Correlazione'!$X$7+'Analisi Correlazione'!$X$5 -> -0.03433041411 | Q6: =M6*'Analisi Correlazione'!$Y$7+'Analisi Correlazione'!$Y$5 -> 0.001250984862 | R6: =N6*'Analisi Correlazione'!$Z$7+'Analisi Correlazione'!$Z$5 -> -0.01408842001 | S6: 3.967080112 | T6: 3.738435635 | U6: 0.0001 | V6: 0.0005 | W6: 0.0003738435635 | Z6: valore | AA6: perdita | AF6: =MMULT(G6:J6,'Analisi Correlazione'!$U$38:$X$41) -> 0.459186805 | AG6: -0.7666803832 | AH6: 0.1659254695 | AI6: -0.1240738802 | AJ6: =AF6*'Analisi Correlazione'!$AA$9+'Analisi Correlazione'!$W$5 -> 0.02146115476 | AK6: =AG6*'Analisi Correlazione'!$AB$9+'Analisi Correlazione'!$X$5 -> -0.02491230388 | AL6: =AH6*'Analisi Correlazione'!$AC$9+'Analisi Correlazione'!$Y$5 -> 0.00535977331 | AM6: =AI6*'Analisi Correlazione'!$AD$9+'Analisi Correlazione'!$Z$5 -> -0.006986918852 | AN6: 3.994921705 | AO6: 3.522671947 | AP6: 0.0001 | AQ6: 0.0005 | AR6: 0.0003522671947 | AV6: valore | AW6: perdita
A7: =RAND() -> 0.6069290596 | B7: 6 | C7: 0.3383971501 | D7: 0.09850467302 | E7: 0.4611840347 | F7: 0.3601490073 | G7: -0.4168415615 | H7: -1.290118994 | I7: -0.09745122141 | J7: -0.3580605318 | K7: =MMULT(G7:J7,'Analisi Correlazione'!$U$24:$X$27) -> -0.4168415615 | L7: -1.322377835 | M7: -0.623314745 | N7: -0.8335973496 | O7: =K7*'Analisi Correlazione'!$W$7+'Analisi Correlazione'!$W$5 -> -0.01235061753 | P7: =H7*'Analisi Correlazione'!$X$7+'Analisi Correlazione'!$X$5 -> -0.02827286675 | Q7: =M7*'Analisi Correlazione'!$Y$7+'Analisi Correlazione'!$Y$5 -> -0.01316634659 | R7: =N7*'Analisi Correlazione'!$Z$7+'Analisi Correlazione'!$Z$5 -> -0.02738299463 | S7: 3.918827174 | T7: 3.740625403 | U7: 0.0001 | V7: 0.0006 | W7: 0.0003740625403 | Y7: ES 99 | Z7: =SUM(W2:W101)/0.01 -> 3.789702456 | AA7: =4-Z7 -> 0.2102975437 | AF7: =MMULT(G7:J7,'Analisi Correlazione'!$U$38:$X$41) -> -0.4168415615 | AG7: -1.200225422 | AH7: -0.6232112456 | AI7: -0.7596699467 | AJ7: =AF7*'Analisi Correlazione'!$AA$9+'Analisi Correlazione'!$W$5 -> -0.0188986257 | AK7: =AG7*'Analisi Correlazione'!$AB$9+'Analisi Correlazione'!$X$5 -> -0.03906010347 | AL7: =AH7*'Analisi Correlazione'!$AC$9+'Analisi Correlazione'!$Y$5 -> -0.02059415944 | AM7: =AI7*'Analisi Correlazione'!$AD$9+'Analisi Correlazione'!$Z$5 -> -0.0405658893 | AN7: 3.880881222 | AO7: 3.540309451 | AP7: 0.0001 | AQ7: 0.0006 | AR7: 0.0003540309451 | AU7: ES 99 | AV7: =SUM(AR2:AR101)/0.01 -> 3.608980462 | AW7: =4-AV7 -> 0.3910195376
B8: 7 | C8: 0.9081851253 | D8: 0.9963351572 | E8: 0.1277243018 | F8: 0.9390919097 | G8: 1.32966173 | H8: 2.681482005 | I8: -1.137214555 | J8: 1.54719521 | K8: =MMULT(G8:J8,'Analisi Correlazione'!$U$24:$X$27) -> 1.32966173 | L8: 2.984715446 | M8: 0.4085680052 | N8: 2.159706477 | O8: =K8*'Analisi Correlazione'!$W$7+'Analisi Correlazione'!$W$5 -> 0.04067792213 | P8: =H8*'Analisi Correlazione'!$X$7+'Analisi Correlazione'!$X$5 -> 0.05909278777 | Q8: =M8*'Analisi Correlazione'!$Y$7+'Analisi Correlazione'!$Y$5 -> 0.008469062304 | R8: =N8*'Analisi Correlazione'!$Z$7+'Analisi Correlazione'!$Z$5 -> 0.06939332089 | S8: 4.177633093 | T8: 3.744881415 | U8: 0.0001 | V8: 0.0007 | W8: 0.0003744881415 | Y8: ES 95 | Z8: =SUM(W2:W501)/0.05 -> 3.838459904 | AA8: =4-Z8 -> 0.161540096 | AF8: =MMULT(G8:J8,'Analisi Correlazione'!$U$38:$X$41) -> 1.32966173 | AG8: 2.825757663 | AH8: 0.5976835557 | AI8: 1.894197529 | AJ8: =AF8*'Analisi Correlazione'!$AA$9+'Analisi Correlazione'!$W$5 -> 0.06156508085 | AK8: =AG8*'Analisi Correlazione'!$AB$9+'Analisi Correlazione'!$X$5 -> 0.09231909991 | AL8: =AH8*'Analisi Correlazione'!$AC$9+'Analisi Correlazione'!$Y$5 -> 0.01955987339 | AM8: =AI8*'Analisi Correlazione'!$AD$9+'Analisi Correlazione'!$Z$5 -> 0.09963972592 | AN8: 4.27308378 | AO8: 3.541069495 | AP8: 0.0001 | AQ8: 0.0007 | AR8: 0.0003541069495 | AU8: ES 95 | AV8: =SUM(AR2:AR501)/0.05 -> 3.696180349 | AW8: =4-AV8 -> 0.3038196512
B9: 8 | C9: 0.9169981919 | D9: 0.01238573305 | E9: 0.111057778 | F9: 0.2694792974 | G9: 1.385159779 | H9: -2.244948076 | I9: -1.220921994 | J9: -0.6143885582 | K9: =MMULT(G9:J9,'Analisi Correlazione'!$U$24:$X$27) -> 1.385159779 | L9: -1.225093974 | M9: -0.9247790264 | N9: -0.6036287088 | O9: =K9*'Analisi Correlazione'!$W$7+'Analisi Correlazione'!$W$5 -> 0.04236299224 | P9: =H9*'Analisi Correlazione'!$X$7+'Analisi Correlazione'!$X$5 -> -0.04927680641 | Q9: =M9*'Analisi Correlazione'!$Y$7+'Analisi Correlazione'!$Y$5 -> -0.01948712576 | R9: =N9*'Analisi Correlazione'!$Z$7+'Analisi Correlazione'!$Z$5 -> -0.01994789314 | S9: 3.953651167 | T9: 3.749060567 | U9: 0.0001 | V9: 0.0008 | W9: 0.0003749060567 | Y9: ES 90 | Z9: =SUM(W2:W1001)/0.1 -> 3.862183627 | AA9: =4-Z9 -> 0.1378163726 | AF9: =MMULT(G9:J9,'Analisi Correlazione'!$U$38:$X$41) -> 1.385159779 | AG9: -0.5800470591 | AH9: -0.5231615101 | AI9: -0.1374481969 | AJ9: =AF9*'Analisi Correlazione'!$AA$9+'Analisi Correlazione'!$W$5 -> 0.06412194905 | AK9: =AG9*'Analisi Correlazione'!$AB$9+'Analisi Correlazione'!$X$5 -> -0.01882193118 | AL9: =AH9*'Analisi Correlazione'!$AC$9+'Analisi Correlazione'!$Y$5 -> -0.01730362175 | AM9: =AI9*'Analisi Correlazione'!$AD$9+'Analisi Correlazione'!$Z$5 -> -0.007693493059 | AN9: 4.020302903 | AO9: 3.541477435 | AP9: 0.0001 | AQ9: 0.0008 | AR9: 0.0003541477435 | AU9: ES 90 | AV9: =SUM(AR2:AR1001)/0.1 -> 3.741241945 | AW9: =4-AV9 -> 0.2587580549
B10: 9 | C10: 0.5464203754 | D10: 0.1389982002 | E10: 0.8804283653 | F10: 0.1052949855 | G10: 0.1166224467 | H10: -1.084831254 | I10: 1.177130885 | J10: -1.251944821 | K10: =MMULT(G10:J10,'Analisi Correlazione'!$U$24:$X$27) -> 0.1166224467 | L10: -0.8738004959 | M10: 0.7515859395 | N10: -0.7464006625 | O10: =K10*'Analisi Correlazione'!$W$7+'Analisi Correlazione'!$W$5 -> 0.003846785275 | P10: =H10*'Analisi Correlazione'!$X$7+'Analisi Correlazione'!$X$5 -> -0.023757031 | Q10: =M10*'Analisi Correlazione'!$Y$7+'Analisi Correlazione'!$Y$5 -> 0.01566109383 | R10: =N10*'Analisi Correlazione'!$Z$7+'Analisi Correlazione'!$Z$5 -> -0.02456384409 | S10: 3.971187004 | T10: 3.749862824 | U10: 0.0001 | V10: 0.0009 | W10: 0.0003749862824 | AF10: =MMULT(G10:J10,'Analisi Correlazione'!$U$38:$X$41) -> 0.1166224467 | AG10: -0.6753594707 | AH10: 0.7043770898 | AI10: -0.381622035 | AJ10: =AF10*'Analisi Correlazione'!$AA$9+'Analisi Correlazione'!$W$5 -> 0.005678763664 | AK10: =AG10*'Analisi Correlazione'!$AB$9+'Analisi Correlazione'!$X$5 -> -0.02193224448 | AL10: =AH10*'Analisi Correlazione'!$AC$9+'Analisi Correlazione'!$Y$5 -> 0.02306891911 | AM10: =AI10*'Analisi Correlazione'!$AD$9+'Analisi Correlazione'!$Z$5 -> -0.02059336221 | AN10: 3.986222076 | AO10: 3.546060256 | AP10: 0.0001 | AQ10: 0.0009 | AR10: 0.0003546060256
B11: 10 | C11: 0.3361457305 | D11: 0.6748448221 | E11: 0.9857619743 | F11: 0.9151641214 | G11: -0.4230052085 | H11: 0.4533310802 | I11: 2.190664893 | J11: 1.373259278 | K11: =MMULT(G11:J11,'Analisi Correlazione'!$U$24:$X$27) -> -0.4230052085 | L11: 0.1743330299 | M11: 1.732973273 | N11: 1.566103633 | O11: =K11*'Analisi Correlazione'!$W$7+'Analisi Correlazione'!$W$5 -> -0.01253776244 | P11: =H11*'Analisi Correlazione'!$X$7+'Analisi Correlazione'!$X$5 -> 0.01007883497 | Q11: =M11*'Analisi Correlazione'!$Y$7+'Analisi Correlazione'!$Y$5 -> 0.03623776907 | R11: =N11*'Analisi Correlazione'!$Z$7+'Analisi Correlazione'!$Z$5 -> 0.05020158512 | S11: 4.083980427 | T11: 3.755400285 | U11: 0.0001 | V11: 0.001 | W11: 0.0003755400285 | AF11: =MMULT(G11:J11,'Analisi Correlazione'!$U$38:$X$41) -> -0.4230052085 | AG11: 0.01471210497 | AH11: 1.453699401 | AI11: 1.299638978 | AJ11: =AF11*'Analisi Correlazione'!$AA$9+'Analisi Correlazione'!$W$5 -> -0.01918259303 | AK11: =AG11*'Analisi Correlazione'!$AB$9+'Analisi Correlazione'!$X$5 -> 0.0005867408186 | AL11: =AH11*'Analisi Correlazione'!$AC$9+'Analisi Correlazione'!$Y$5 -> 0.04771339516 | AM11: =AI11*'Analisi Correlazione'!$AD$9+'Analisi Correlazione'!$Z$5 -> 0.06822879518 | AN11: 4.097346338 | AO11: 3.551825613 | AP11: 0.0001 | AQ11: 0.001 | AR11: 0.0003551825613
B12: 11 | C12: 0.1749132736 | D12: 0.3901311207 | E12: 0.5664101938 | F12: 0.552405859 | G12: -0.9349257858 | H12: -0.2789773053 | I12: 0.1672420333 | J12: 0.1317421035 | K12: =MMULT(G12:J12,'Analisi Correlazione'!$U$24:$X$27) -> -0.9349257858 | L12: -0.7166456753 | M12: -0.3920966709 | N12: -0.4359133135 | O12: =K12*'Analisi Correlazione'!$W$7+'Analisi Correlazione'!$W$5 -> -0.02808104872 | P12: =H12*'Analisi Correlazione'!$X$7+'Analisi Correlazione'!$X$5 -> -0.006030185404 | Q12: =M12*'Analisi Correlazione'!$Y$7+'Analisi Correlazione'!$Y$5 -> -0.00831841442 | R12: =N12*'Analisi Correlazione'!$Z$7+'Analisi Correlazione'!$Z$5 -> -0.01452549737 | S12: 3.943044854 | T12: 3.761040886 | U12: 0.0001 | V12: 0.0011 | W12: 0.0003761040886 | AF12: =MMULT(G12:J12,'Analisi Correlazione'!$U$38:$X$41) -> -0.9349257858 | AG12: -0.86334616 | AH12: -0.5315395351 | AI12: -0.6019786153 | AJ12: =AF12*'Analisi Correlazione'!$AA$9+'Analisi Correlazione'!$W$5 -> -0.04276744816 | AK12: =AG12*'Analisi Correlazione'!$AB$9+'Analisi Correlazione'!$X$5 -> -0.0280667813 | AL12: =AH12*'Analisi Correlazione'!$AC$9+'Analisi Correlazione'!$Y$5 -> -0.01757916677 | AM12: =AI12*'Analisi Correlazione'!$AD$9+'Analisi Correlazione'!$Z$5 -> -0.03223494951 | AN12: 3.879351654 | AO12: 3.555845714 | AP12: 0.0001 | AQ12: 0.0011 | AR12: 0.0003555845714
B13: 12 | C13: 0.8449552838 | D13: 0.6305116501 | E13: 0.9472430416 | F13: 0.23626862 | G13: 1.015034395 | H13: 0.3332087683 | I13: 1.618690292 | J13: -0.7183569238 | K13: =MMULT(G13:J13,'Analisi Correlazione'!$U$24:$X$27) -> 1.015034395 | L13: 0.8041411301 | M13: 1.930463757 | N13: 0.6208679822 | O13: =K13*'Analisi Correlazione'!$W$7+'Analisi Correlazione'!$W$5 -> 0.03112498959 | P13: =H13*'Analisi Correlazione'!$X$7+'Analisi Correlazione'!$X$5 -> 0.007436433479 | Q13: =M13*'Analisi Correlazione'!$Y$7+'Analisi Correlazione'!$Y$5 -> 0.04037853736 | R13: =N13*'Analisi Correlazione'!$Z$7+'Analisi Correlazione'!$Z$5 -> 0.01964123145 | S13: 4.098581192 | T13: 3.762573358 | U13: 0.0001 | V13: 0.0012 | W13: 0.0003762573358 | AF13: =MMULT(G13:J13,'Analisi Correlazione'!$U$38:$X$41) -> 1.015034395 | AG13: 0.9585320691 | AH13: 1.916339733 | AI13: 0.9718099673 | AJ13: =AF13*'Analisi Correlazione'!$AA$9+'Analisi Correlazione'!$W$5 -> 0.04706978519 | AK13: =AG13*'Analisi Correlazione'!$AB$9+'Analisi Correlazione'!$X$5 -> 0.03138625299 | AL13: =AH13*'Analisi Correlazione'!$AC$9+'Analisi Correlazione'!$Y$5 -> 0.06292918203 | AM13: =AI13*'Analisi Correlazione'!$AD$9+'Analisi Correlazione'!$Z$5 -> 0.05090936664 | AN13: 4.192294587 | AO13: 3.557206815 | AP13: 0.0001 | AQ13: 0.0012 | AR13: 0.0003557206815
B14: 13 | C14: 0.4818311281 | D14: 0.3213239645 | E14: 0.4403555006 | F14: 0.8966503584 | G14: -0.04555836311 | H14: -0.4639997439 | I14: -0.1500679559 | J14: 1.262693688 | K14: =MMULT(G14:J14,'Analisi Correlazione'!$U$24:$X$27) -> -0.04555836311 | L14: -0.4223959068 | M14: -0.2686819707 | N14: 0.7427361283 | O14: =K14*'Analisi Correlazione'!$W$7+'Analisi Correlazione'!$W$5 -> -0.00107746053 | P14: =H14*'Analisi Correlazione'!$X$7+'Analisi Correlazione'!$X$5 -> -0.01010023334 | Q14: =M14*'Analisi Correlazione'!$Y$7+'Analisi Correlazione'!$Y$5 -> -0.005730787579 | R14: =N14*'Analisi Correlazione'!$Z$7+'Analisi Correlazione'!$Z$5 -> 0.02358134273 | S14: 4.006672861 | T14: 3.764568648 | U14: 0.0001 | V14: 0.0013 | W14: 0.0003764568648 | AF14: =MMULT(G14:J14,'Analisi Correlazione'!$U$38:$X$41) -> -0.04555836311 | AG14: -0.3570771118 | AH14: -0.2430416324 | AI14: 0.535863592 | AJ14: =AF14*'Analisi Correlazione'!$AA$9+'Analisi Correlazione'!$W$5 -> -0.001793119814 | AK14: =AG14*'Analisi Correlazione'!$AB$9+'Analisi Correlazione'!$X$5 -> -0.01154579181 | AL14: =AH14*'Analisi Correlazione'!$AC$9+'Analisi Correlazione'!$Y$5 -> -0.008090753647 | AM14: =AI14*'Analisi Correlazione'!$AD$9+'Analisi Correlazione'!$Z$5 -> 0.02787802453 | AN14: 4.006448359 | AO14: 3.562344631 | AP14: 0.0001 | AQ14: 0.0013 | AR14: 0.0003562344631
B15: 14 | C15: 0.7838151843 | D15: 0.5126038381 | E15: 0.4094312408 | F15: 0.2530638567 | G15: 0.7851431693 | H15: 0.03159839434 | I15: -0.2290082788 | J15: -0.6648792738 | K15: =MMULT(G15:J15,'Analisi Correlazione'!$U$24:$X$27) -> 0.7851431693 | L15: 0.4274680886 | M15: 0.2025347105 | N15: -0.116778803 | O15: =K15*'Analisi Correlazione'!$W$7+'Analisi Correlazione'!$W$5 -> 0.02414487336 | P15: =H15*'Analisi Correlazione'!$X$7+'Analisi Correlazione'!$X$5 -> 0.0008017318209 | Q15: =M15*'Analisi Correlazione'!$Y$7+'Analisi Correlazione'!$Y$5 -> 0.004149177534 | R15: =N15*'Analisi Correlazione'!$Z$7+'Analisi Correlazione'!$Z$5 -> -0.00420757982 | S15: 4.024888203 | T15: 3.764765099 | U15: 0.0001 | V15: 0.0014 | W15: 0.0003764765099 | AF15: =MMULT(G15:J15,'Analisi Correlazione'!$U$38:$X$41) -> 0.7851431693 | AG15: 0.5832766548 | AH15: 0.3358182319 | AI15: 0.1319036275 | AJ15: =AF15*'Analisi Correlazione'!$AA$9+'Analisi Correlazione'!$W$5 -> 0.03647839371 | AK15: =AG15*'Analisi Correlazione'!$AB$9+'Analisi Correlazione'!$X$5 -> 0.01914060854 | AL15: =AH15*'Analisi Correlazione'!$AC$9+'Analisi Correlazione'!$Y$5 -> 0.01094737967 | AM15: =AI15*'Analisi Correlazione'!$AD$9+'Analisi Correlazione'!$Z$5 -> 0.006536546156 | AN15: 4.073102928 | AO15: 3.565062647 | AP15: 0.0001 | AQ15: 0.0014 | AR15: 0.0003565062647
B16: 15 | C16: 0.5244210186 | D16: 0.6315948736 | E16: 0.6753558207 | F16: 0.8995124378 | G16: 0.06125269636 | H16: 0.3360803807 | I16: 0.4547510377 | J16: 1.278778338 | K16: =MMULT(G16:J16,'Analisi Correlazione'!$U$24:$X$27) -> 0.06125269636 | L16: 0.3203509273 | M16: 0.496178562 | N16: 1.194641399 | O16: =K16*'Analisi Correlazione'!$W$7+'Analisi Correlazione'!$W$5 -> 0.002165610658 | P16: =H16*'Analisi Correlazione'!$X$7+'Analisi Correlazione'!$X$5 -> 0.007499602035 | Q16: =M16*'Analisi Correlazione'!$Y$7+'Analisi Correlazione'!$Y$5 -> 0.01030598633 | R16: =N16*'Analisi Correlazione'!$Z$7+'Analisi Correlazione'!$Z$5 -> 0.03819186329 | S16: 4.058163062 | T16: 3.766916867 | U16: 0.0001 | V16: 0.0015 | W16: 0.0003766916867 | AF16: =MMULT(G16:J16,'Analisi Correlazione'!$U$38:$X$41) -> 0.06125269636 | AG16: 0.2788296655 | AH16: 0.4501134532 | AI16: 0.9725315451 | AJ16: =AF16*'Analisi Correlazione'!$AA$9+'Analisi Correlazione'!$W$5 -> 0.003127806352 | AK16: =AG16*'Analisi Correlazione'!$AB$9+'Analisi Correlazione'!$X$5 -> 0.009205643077 | AL16: =AH16*'Analisi Correlazione'!$AC$9+'Analisi Correlazione'!$Y$5 -> 0.01470643742 | AM16: =AI16*'Analisi Correlazione'!$AD$9+'Analisi Correlazione'!$Z$5 -> 0.05094748809 | AN16: 4.077987375 | AO16: 3.567998917 | AP16: 0.0001 | AQ16: 0.0015 | AR16: 0.0003567998917
B17: 16 | C17: 0.3711882976 | D17: 0.590098454 | E17: 0.1676470802 | F17: 0.6218915908 | G17: -0.3287077508 | H17: 0.2277982439 | I17: -0.9635049914 | J17: 0.3104525753 | K17: =MMULT(G17:J17,'Analisi Correlazione'!$U$24:$X$27) -> -0.3287077508 | L17: 0.02838698526 | M17: -0.9024534653 | N17: -0.2006324217 | O17: =K17*'Analisi Correlazione'!$W$7+'Analisi Correlazione'!$W$5 -> -0.009674637879 | P17: =H17*'Analisi Correlazione'!$X$7+'Analisi Correlazione'!$X$5 -> 0.005117655872 | Q17: =M17*'Analisi Correlazione'!$Y$7+'Analisi Correlazione'!$Y$5 -> -0.01901902738 | R17: =N17*'Analisi Correlazione'!$Z$7+'Analisi Correlazione'!$Z$5 -> -0.00691864583 | S17: 3.969505345 | T17: 3.769406579 | U17: 0.0001 | V17: 0.0016 | W17: 0.0003769406579 | AF17: =MMULT(G17:J17,'Analisi Correlazione'!$U$38:$X$41) -> -0.3287077508 | AG17: -0.07562355208 | AH17: -0.8711980039 | AI17: -0.36846584 | AJ17: =AF17*'Analisi Correlazione'!$AA$9+'Analisi Correlazione'!$W$5 -> -0.01483818498 | AK17: =AG17*'Analisi Correlazione'!$AB$9+'Analisi Correlazione'!$X$5 -> -0.002361166912 | AL17: =AH17*'Analisi Correlazione'!$AC$9+'Analisi Correlazione'!$Y$5 -> -0.02875020075 | AM17: =AI17*'Analisi Correlazione'!$AD$9+'Analisi Correlazione'!$Z$5 -> -0.01989831152 | AN17: 3.934152136 | AO17: 3.569732595 | AP17: 0.0001 | AQ17: 0.0016 | AR17: 0.0003569732595
B18: 17 | C18: 0.365545502 | D18: 0.7447701909 | E18: 0.7027472862 | F18: 0.7172511655 | G18: -0.3436746149 | H18: 0.6581221899 | I18: 0.5323184907 | J18: 0.5746948827 | K18: =MMULT(G18:J18,'Analisi Correlazione'!$U$24:$X$27) -> -0.3436746149 | L18: 0.3909551149 | M18: 0.4466759121 | N18: 0.5554253072 | O18: =K18*'Analisi Correlazione'!$W$7+'Analisi Correlazione'!$W$5 -> -0.01012907215 | P18: =H18*'Analisi Correlazione'!$X$7+'Analisi Correlazione'!$X$5 -> 0.01458374605 | Q18: =M18*'Analisi Correlazione'!$Y$7+'Analisi Correlazione'!$Y$5 -> 0.009268067954 | R18: =N18*'Analisi Correlazione'!$Z$7+'Analisi Correlazione'!$Z$5 -> 0.01752540849 | S18: 4.03124815 | T18: 3.770081214 | U18: 0.0001 | V18: 0.0017 | W18: 0.0003770081214 | AF18: =MMULT(G18:J18,'Analisi Correlazione'!$U$38:$X$41) -> -0.3436746149 | AG18: 0.2146411015 | AH18: 0.322053684 | AI18: 0.3665497423 | AJ18: =AF18*'Analisi Correlazione'!$AA$9+'Analisi Correlazione'!$W$5 -> -0.01552772811 | AK18: =AG18*'Analisi Correlazione'!$AB$9+'Analisi Correlazione'!$X$5 -> 0.007110988869 | AL18: =AH18*'Analisi Correlazione'!$AC$9+'Analisi Correlazione'!$Y$5 -> 0.01049467719 | AM18: =AI18*'Analisi Correlazione'!$AD$9+'Analisi Correlazione'!$Z$5 -> 0.01893305924 | AN18: 4.021010997 | AO18: 3.570330364 | AP18: 0.0001 | AQ18: 0.0017 | AR18: 0.0003570330364
B19: 18 | C19: 0.8989993063 | D19: 0.8077083938 | E19: 0.3725388467 | F19: 0.1673487196 | G19: 1.275870255 | H19: 0.8694826161 | I19: -0.3251365951 | J19: -0.9646953216 | K19: =MMULT(G19:J19,'Analisi Correlazione'!$U$24:$X$27) -> 1.275870255 | L19: 1.398466508 | M19: 0.5825916218 | N19: 0.1061721575 | O19: =K19*'Analisi Correlazione'!$W$7+'Analisi Correlazione'!$W$5 -> 0.03904466821 | P19: =H19*'Analisi Correlazione'!$X$7+'Analisi Correlazione'!$X$5 -> 0.01923316627 | Q19: =M19*'Analisi Correlazione'!$Y$7+'Analisi Correlazione'!$Y$5 -> 0.01211780253 | R19: =N19*'Analisi Correlazione'!$Z$7+'Analisi Correlazione'!$Z$5 -> 0.003000633496 | S19: 4.073396271 | T19: 3.770661355 | U19: 0.0001 | V19: 0.0018 | W19: 0.0003770661355 | AF19: =MMULT(G19:J19,'Analisi Correlazione'!$U$38:$X$41) -> 1.275870255 | AG19: 1.520025141 | AH19: 0.7622019298 | AI19: 0.4350357536 | AJ19: =AF19*'Analisi Correlazione'!$AA$9+'Analisi Correlazione'!$W$5 -> 0.05908683678 | AK19: =AG19*'Analisi Correlazione'!$AB$9+'Analisi Correlazione'!$X$5 -> 0.0497093584 | AL19: =AH19*'Analisi Correlazione'!$AC$9+'Analisi Correlazione'!$Y$5 -> 0.02497072139 | AM19: =AI19*'Analisi Correlazione'!$AD$9+'Analisi Correlazione'!$Z$5 -> 0.02255122158 | AN19: 4.156318138 | AO19: 3.570529177 | AP19: 0.0001 | AQ19: 0.0018 | AR19: 0.0003570529177
B20: 19 | C20: 0.9694896571 | D20: 0.155918069 | E20: 0.6240339316 | F20: 0.7077365503 | G20: 1.873345535 | H20: -1.011376764 | I20: 0.316092714 | J20: 0.5467843454 | K20: =MMULT(G20:J20,'Analisi Correlazione'!$U$24:$X$27) -> 1.873345535 | L20: 0.08501005333 | M20: 0.9155924775 | N20: 1.294677392 | O20: =K20*'Analisi Correlazione'!$W$7+'Analisi Correlazione'!$W$5 -> 0.05718562548 | P20: =H20*'Analisi Correlazione'!$X$7+'Analisi Correlazione'!$X$5 -> -0.02214120917 | Q20: =M20*'Analisi Correlazione'!$Y$7+'Analisi Correlazione'!$Y$5 -> 0.01909980671 | R20: =N20*'Analisi Correlazione'!$Z$7+'Analisi Correlazione'!$Z$5 -> 0.04142612058 | S20: 4.095570344 | T20: 3.77157094 | U20: 0.0001 | V20: 0.0019 | W20: 0.000377157094 | AF20: =MMULT(G20:J20,'Analisi Correlazione'!$U$38:$X$41) -> 1.873345535 | AG20: 0.6316226698 | AH20: 1.198308846 | AI20: 1.616894256 | AJ20: =AF20*'Analisi Correlazione'!$AA$9+'Analisi Correlazione'!$W$5 -> 0.08661330972 | AK20: =AG20*'Analisi Correlazione'!$AB$9+'Analisi Correlazione'!$X$5 -> 0.02071827561 | AL20: =AH20*'Analisi Correlazione'!$AC$9+'Analisi Correlazione'!$Y$5 -> 0.03931385022 | AM20: =AI20*'Analisi Correlazione'!$AD$9+'Analisi Correlazione'!$Z$5 -> 0.08498960628 | AN20: 4.231635042 | AO20: 3.570768991 | AP20: 0.0001 | AQ20: 0.0019 | AR20: 0.0003570768991
B21: 20 | C21: 0.242643842 | D21: 0.7804338716 | E21: 0.423447769 | F21: 0.4830714007 | G21: -0.6978233348 | H21: 0.7736593634 | I21: -0.1930809929 | J21: -0.04244644812 | K21: =MMULT(G21:J21,'Analisi Correlazione'!$U$24:$X$27) -> -0.6978233348 | L21: 0.3097958638 | M21: -0.2996868547 | N21: -0.2922722181 | O21: =K21*'Analisi Correlazione'!$W$7+'Analisi Correlazione'!$W$5 -> -0.02088198028 | P21: =H21*'Analisi Correlazione'!$X$7+'Analisi Correlazione'!$X$5 -> 0.01712528554 | Q21: =M21*'Analisi Correlazione'!$Y$7+'Analisi Correlazione'!$Y$5 -> -0.006380864677 | R21: =N21*'Analisi Correlazione'!$Z$7+'Analisi Correlazione'!$Z$5 -> -0.009881446254 | S21: 3.979980994 | T21: 3.773564353 | U21: 0.0001 | V21: 0.002 | W21: 0.0003773564353 | AF21: =MMULT(G21:J21,'Analisi Correlazione'!$U$38:$X$41) -> -0.6978233348 | AG21: 0.04232002493 | AH21: -0.4139818246 | AI21: -0.471348305 | AJ21: =AF21*'Analisi Correlazione'!$AA$9+'Analisi Correlazione'!$W$5 -> -0.03184382601 | AK21: =AG21*'Analisi Correlazione'!$AB$9+'Analisi Correlazione'!$X$5 -> 0.001487665252 | AL21: =AH21*'Analisi Correlazione'!$AC$9+'Analisi Correlazione'!$Y$5 -> -0.01371280895 | AM21: =AI21*'Analisi Correlazione'!$AD$9+'Analisi Correlazione'!$Z$5 -> -0.02533366179 | AN21: 3.930597369 | AO21: 3.571286458 | AP21: 0.0001 | AQ21: 0.002 | AR21: 0.0003571286458
B22: 21 | C22: 0.1571788637 | D22: 0.5591389024 | E22: 0.5854174349 | F22: 0.9049982764 | G22: -1.006120253 | H22: 0.1487863838 | I22: 0.2157724422 | J22: 1.310568914 | K22: =MMULT(G22:J22,'Analisi Correlazione'!$U$24:$X$27) -> -1.006120253 | L22: -0.3849462496 | M22: -0.2745336169 | N22: 0.5071683791 | O22: =K22*'Analisi Correlazione'!$W$7+'Analisi Correlazione'!$W$5 -> -0.03024270432 | P22: =H22*'Analisi Correlazione'!$X$7+'Analisi Correlazione'!$X$5 -> 0.003379585288 | Q22: =M22*'Analisi Correlazione'!$Y$7+'Analisi Correlazione'!$Y$5 -> -0.005853478611 | R22: =N22*'Analisi Correlazione'!$Z$7+'Analisi Correlazione'!$Z$5 -> 0.01596521681 | S22: 3.983248619 | T22: 3.773887113 | U22: 0.0001 | V22: 0.0021 | W22: 0.0003773887113 | AF22: =MMULT(G22:J22,'Analisi Correlazione'!$U$38:$X$41) -> -1.006120253 | AG22: -0.6150605139 | AH22: -0.4458014433 | AI22: 0.09074358898 | AJ22: =AF22*'Analisi Correlazione'!$AA$9+'Analisi Correlazione'!$W$5 -> -0.04604747101 | AK22: =AG22*'Analisi Correlazione'!$AB$9+'Analisi Correlazione'!$X$5 -> -0.01996451914 | AL22: =AH22*'Analisi Correlazione'!$AC$9+'Analisi Correlazione'!$Y$5 -> -0.01475932501 | AM22: =AI22*'Analisi Correlazione'!$AD$9+'Analisi Correlazione'!$Z$5 -> 0.00436203346 | AN22: 3.923590718 | AO22: 3.57188514 | AP22: 0.0001 | AQ22: 0.0021 | AR22: 0.000357188514
B23: 22 | C23: 0.2975312551 | D23: 0.8999032499 | E23: 0.5837113622 | F23: 0.6404681309 | G23: -0.5315141909 | H23: 1.281000472 | I23: 0.2113972844 | J23: 0.3597103676 | K23: =MMULT(G23:J23,'Analisi Correlazione'!$U$24:$X$27) -> -0.5315141909 | L23: 0.8310390502 | M23: 0.2510403012 | N23: 0.3429402575 | O23: =K23*'Analisi Correlazione'!$W$7+'Analisi Correlazione'!$W$5 -> -0.01583238714 | P23: =H23*'Analisi Correlazione'!$X$7+'Analisi Correlazione'!$X$5 -> 0.02828556777 | Q23: =M23*'Analisi Correlazione'!$Y$7+'Analisi Correlazione'!$Y$5 -> 0.005166190648 | R23: =N23*'Analisi Correlazione'!$Z$7+'Analisi Correlazione'!$Z$5 -> 0.01065556787 | S23: 4.028274939 | T23: 3.774719206 | U23: 0.0001 | V23: 0.0022 | W23: 0.0003774719206 | AF23: =MMULT(G23:J23,'Analisi Correlazione'!$U$38:$X$41) -> -0.5315141909 | AG23: 0.516015466 | AH23: 0.1036322831 | AI23: 0.1029836262 | AJ23: =AF23*'Analisi Correlazione'!$AA$9+'Analisi Correlazione'!$W$5 -> -0.02418174474 | AK23: =AG23*'Analisi Correlazione'!$AB$9+'Analisi Correlazione'!$X$5 -> 0.01694568591 | AL23: =AH23*'Analisi Correlazione'!$AC$9+'Analisi Correlazione'!$Y$5 -> 0.003311011491 | AM23: =AI23*'Analisi Correlazione'!$AD$9+'Analisi Correlazione'!$Z$5 -> 0.005008682913 | AN23: 4.001083636 | AO23: 3.57480131 | AP23: 0.0001 | AQ23: 0.0022 | AR23: 0.000357480131
B24: 23 | C24: 0.2128537435 | D24: 0.6979280396 | E24: 0.6545323004 | F24: 0.5709255831 | G24: -0.796558501 | H24: 0.5184505966 | I24: 0.3975859767 | J24: 0.1787311183 | K24: =MMULT(G24:J24,'Analisi Correlazione'!$U$24:$X$27) -> -0.796558501 | L24: 0.03990762174 | M24: 0.0761728223 | N24: -0.06146995972 | O24: =K24*'Analisi Correlazione'!$W$7+'Analisi Correlazione'!$W$5 -> -0.02387984561 | P24: =H24*'Analisi Correlazione'!$X$7+'Analisi Correlazione'!$X$5 -> 0.01151130746 | Q24: =M24*'Analisi Correlazione'!$Y$7+'Analisi Correlazione'!$Y$5 -> 0.001499757221 | R24: =N24*'Analisi Correlazione'!$Z$7+'Analisi Correlazione'!$Z$5 -> -0.002419393128 | S24: 3.986711826 | T24: 3.776559678 | U24: 0.0001 | V24: 0.0023 | W24: 0.0003776559678 | AF24: =MMULT(G24:J24,'Analisi Correlazione'!$U$38:$X$41) -> -0.796558501 | AG24: -0.2067396512 | AH24: -0.09612497769 | AI24: -0.2570313038 | AJ24: =AF24*'Analisi Correlazione'!$AA$9+'Analisi Correlazione'!$W$5 -> -0.03639268513 | AK24: =AG24*'Analisi Correlazione'!$AB$9+'Analisi Correlazione'!$X$5 -> -0.006639855691 | AL24: =AH24*'Analisi Correlazione'!$AC$9+'Analisi Correlazione'!$Y$5 -> -0.003258808938 | AM24: =AI24*'Analisi Correlazione'!$AD$9+'Analisi Correlazione'!$Z$5 -> -0.01401114954 | AN24: 3.939697501 | AO24: 3.575491528 | AP24: 0.0001 | AQ24: 0.0023 | AR24: 0.0003575491528
B25: 24 | C25: 0.8012658631 | D25: 0.378268294 | E25: 0.07350047034 | F25: 0.06591242322 | G25: 0.8461514289 | H25: -0.3100320448 | I25: -1.450206508 | J25: -1.506944645 | K25: =MMULT(G25:J25,'Analisi Correlazione'!$U$24:$X$27) -> 0.8461514289 | L25: 0.164674106 | M25: -0.872459749 | N25: -1.164108712 | O25: =K25*'Analisi Correlazione'!$W$7+'Analisi Correlazione'!$W$5 -> 0.02599724829 | P25: =H25*'Analisi Correlazione'!$X$7+'Analisi Correlazione'!$X$5 -> -0.006713314864 | Q25: =M25*'Analisi Correlazione'!$Y$7+'Analisi Correlazione'!$Y$5 -> -0.01839015136 | R25: =N25*'Analisi Correlazione'!$Z$7+'Analisi Correlazione'!$Z$5 -> -0.03806873647 | S25: 3.962825046 | T25: 3.777724046 | U25: 0.0001 | V25: 0.0024 | W25: 0.0003777724046 | AF25: =MMULT(G25:J25,'Analisi Correlazione'!$U$38:$X$41) -> 0.8461514289 | AG25: 0.3879507767 | AH25: -0.6052419595 | AI25: -0.7786023413 | AJ25: =AF25*'Analisi Correlazione'!$AA$9+'Analisi Correlazione'!$W$5 -> 0.03928912457 | AK25: =AG25*'Analisi Correlazione'!$AB$9+'Analisi Correlazione'!$X$5 -> 0.01276657325 | AL25: =AH25*'Analisi Correlazione'!$AC$9+'Analisi Correlazione'!$Y$5 -> -0.02000316724 | AM25: =AI25*'Analisi Correlazione'!$AD$9+'Analisi Correlazione'!$Z$5 -> -0.04156610052 | AN25: 3.99048643 | AO25: 3.57632484 | AP25: 0.0001 | AQ25: 0.0024 | AR25: 0.000357632484
B26: 25 | C26: 0.4079334552 | D26: 0.4383638272 | E26: 0.3419210267 | F26: 0.5684399235 | G26: -0.2328641331 | H26: -0.1551188088 | I26: -0.4072259371 | J26: 0.1724037135 | K26: =MMULT(G26:J26,'Analisi Correlazione'!$U$24:$X$27) -> -0.2328641331 | L26: -0.2521651042 | M26: -0.4933212365 | N26: -0.1669486789 | O26: =K26*'Analisi Correlazione'!$W$7+'Analisi Correlazione'!$W$5 -> -0.006764567737 | P26: =H26*'Analisi Correlazione'!$X$7+'Analisi Correlazione'!$X$5 -> -0.003305596853 | Q26: =M26*'Analisi Correlazione'!$Y$7+'Analisi Correlazione'!$Y$5 -> -0.01044078236 | R26: =N26*'Analisi Correlazione'!$Z$7+'Analisi Correlazione'!$Z$5 -> -0.005829618886 | S26: 3.973659434 | T26: 3.778975715 | U26: 0.0001 | V26: 0.0025 | W26: 0.0003778975715 | AF26: =MMULT(G26:J26,'Analisi Correlazione'!$U$38:$X$41) -> -0.2328641331 | AG26: -0.2749262711 | AH26: -0.4836634912 | AI26: -0.24478353 | AJ26: =AF26*'Analisi Correlazione'!$AA$9+'Analisi Correlazione'!$W$5 -> -0.0104225433 | AK26: =AG26*'Analisi Correlazione'!$AB$9+'Analisi Correlazione'!$X$5 -> -0.008864977757 | AL26: =AH26*'Analisi Correlazione'!$AC$9+'Analisi Correlazione'!$Y$5 -> -0.01600457063 | AM26: =AI26*'Analisi Correlazione'!$AD$9+'Analisi Correlazione'!$Z$5 -> -0.01336409136 | AN26: 3.951343817 | AO26: 3.576990172 | AP26: 0.0001 | AQ26: 0.0025 | AR26: 0.0003576990172
B27: 26 | C27: 0.5161382147 | D27: 0.376720944 | E27: 0.178107166 | F27: 0.3082258825 | G27: 0.04046354449 | H27: -0.3141042155 | I27: -0.9226026157 | J27: -0.5008854187 | K27: =MMULT(G27:J27,'Analisi Correlazione'!$U$24:$X$27) -> 0.04046354449 | L27: -0.2495879387 | M27: -0.829580271 | N27: -0.7085707543 | O27: =K27*'Analisi Correlazione'!$W$7+'Analisi Correlazione'!$W$5 -> 0.001534396065 | P27: =H27*'Analisi Correlazione'!$X$7+'Analisi Correlazione'!$X$5 -> -0.006802892811 | Q27: =M27*'Analisi Correlazione'!$Y$7+'Analisi Correlazione'!$Y$5 -> -0.01749110053 | R27: =N27*'Analisi Correlazione'!$Z$7+'Analisi Correlazione'!$Z$5 -> -0.02334076774 | S27: 3.953899635 | T27: 3.782099435 | U27: 0.0001 | V27: 0.0026 | W27: 0.0003782099435 | AF27: =MMULT(G27:J27,'Analisi Correlazione'!$U$38:$X$41) -> 0.04046354449 | AG27: -0.1907586819 | AH27: -0.7269712313 | AI27: -0.6264384375 | AJ27: =AF27*'Analisi Correlazione'!$AA$9+'Analisi Correlazione'!$W$5 -> 0.002170022749 | AK27: =AG27*'Analisi Correlazione'!$AB$9+'Analisi Correlazione'!$X$5 -> -0.006118351509 | AL27: =AH27*'Analisi Correlazione'!$AC$9+'Analisi Correlazione'!$Y$5 -> -0.02400672362 | AM27: =AI27*'Analisi Correlazione'!$AD$9+'Analisi Correlazione'!$Z$5 -> -0.03352717848 | AN27: 3.938517769 | AO27: 3.579371322 | AP27: 0.0001 | AQ27: 0.0026 | AR27: 0.0003579371322
B28: 27 | C28: 0.931343088 | D28: 0.5997606398 | E28: 0.8147557048 | F28: 0.3204625546 | G28: 1.485868813 | H28: 0.2527275973 | I28: 0.895558534 | J28: -0.4664057322 | K28: =MMULT(G28:J28,'Analisi Correlazione'!$U$24:$X$27) -> 1.485868813 | L28: 0.9749474631 | M28: 1.538802729 | N28: 0.8212662778 | O28: =K28*'Analisi Correlazione'!$W$7+'Analisi Correlazione'!$W$5 -> 0.04542078953 | P28: =H28*'Analisi Correlazione'!$X$7+'Analisi Correlazione'!$X$5 -> 0.005666041594 | Q28: =M28*'Analisi Correlazione'!$Y$7+'Analisi Correlazione'!$Y$5 -> 0.03216660971 | R28: =N28*'Analisi Correlazione'!$Z$7+'Analisi Correlazione'!$Z$5 -> 0.02612029599 | S28: 4.109373737 | T28: 3.782648679 | U28: 0.0001 | V28: 0.0027 | W28: 0.0003782648679 | AF28: =MMULT(G28:J28,'Analisi Correlazione'!$U$38:$X$41) -> 1.485868813 | AG28: 1.238771319 | AH28: 1.662042539 | AI28: 1.189468824 | AJ28: =AF28*'Analisi Correlazione'!$AA$9+'Analisi Correlazione'!$W$5 -> 0.06876174689 | AK28: =AG28*'Analisi Correlazione'!$AB$9+'Analisi Correlazione'!$X$5 -> 0.04053125151 | AL28: =AH28*'Analisi Correlazione'!$AC$9+'Analisi Correlazione'!$Y$5 -> 0.05456559668 | AM28: =AI28*'Analisi Correlazione'!$AD$9+'Analisi Correlazione'!$Z$5 -> 0.06240843137 | AN28: 4.226267026 | AO28: 3.58072976 | AP28: 0.0001 | AQ28: 0.0027 | AR28: 0.000358072976
B29: 28 | C29: 0.7551089824 | D29: 0.874451396 | E29: 0.1999804379 | F29: 0.9194682666 | G29: 0.6906555407 | H29: 1.147688433 | I29: -0.8416911097 | J29: 1.401503818 | K29: =MMULT(G29:J29,'Analisi Correlazione'!$U$24:$X$27) -> 0.6906555407 | L29: 1.339444713 | M29: -0.06070678014 | N29: 1.423101962 | O29: =K29*'Analisi Correlazione'!$W$7+'Analisi Correlazione'!$W$5 -> 0.0212759747 | P29: =H29*'Analisi Correlazione'!$X$7+'Analisi Correlazione'!$X$5 -> 0.02535302405 | Q29: =M29*'Analisi Correlazione'!$Y$7+'Analisi Correlazione'!$Y$5 -> -0.001370187225 | R29: =N29*'Analisi Correlazione'!$Z$7+'Analisi Correlazione'!$Z$5 -> 0.04557820719 | S29: 4.090837019 | T29: 3.783323118 | U29: 0.0001 | V29: 0.0028 | W29: 0.0003783323118 | AF29: =MMULT(G29:J29,'Analisi Correlazione'!$U$38:$X$41) -> 0.6906555407 | AG29: 1.296318805 | AH29: 0.07022549837 | AI29: 1.185856126 | AJ29: =AF29*'Analisi Correlazione'!$AA$9+'Analisi Correlazione'!$W$5 -> 0.03212522423 | AK29: =AG29*'Analisi Correlazione'!$AB$9+'Analisi Correlazione'!$X$5 -> 0.04240918859 | AL29: =AH29*'Analisi Correlazione'!$AC$9+'Analisi Correlazione'!$Y$5 -> 0.0022122951 | AM29: =AI29*'Analisi Correlazione'!$AD$9+'Analisi Correlazione'!$Z$5 -> 0.06221757011 | AN29: 4.138964278 | AO29: 3.580911513 | AP29: 0.0001 | AQ29: 0.0028 | AR29: 0.0003580911513
B30: 29 | C30: 0.6218695402 | D30: 0.9523988734 | E30: 0.237456441 | F30: 0.2797538612 | G30: 0.3103945743 | H30: 1.668571892 | I30: -0.7145083706 | J30: -0.5835728626 | K30: =MMULT(G30:J30,'Analisi Correlazione'!$U$24:$X$27) -> 0.3103945743 | L30: 1.593683657 | M30: -0.004767071133 | N30: -0.07886192013 | O30: =K30*'Analisi Correlazione'!$W$7+'Analisi Correlazione'!$W$5 -> 0.009730228498 | P30: =H30*'Analisi Correlazione'!$X$7+'Analisi Correlazione'!$X$5 -> 0.03681120537 | Q30: =M30*'Analisi Correlazione'!$Y$7+'Analisi Correlazione'!$Y$5 -> -0.0001973035057 | R30: =N30*'Analisi Correlazione'!$Z$7+'Analisi Correlazione'!$Z$5 -> -0.002981691493 | S30: 4.043362439 | T30: 3.784220297 | U30: 0.0001 | V30: 0.0029 | W30: 0.0003784220297 | AF30: =MMULT(G30:J30,'Analisi Correlazione'!$U$38:$X$41) -> 0.3103945743 | AG30: 1.388827272 | AH30: 0.03870574021 | AI30: -0.06212433049 | AJ30: =AF30*'Analisi Correlazione'!$AA$9+'Analisi Correlazione'!$W$5 -> 0.01460610075 | AK30: =AG30*'Analisi Correlazione'!$AB$9+'Analisi Correlazione'!$X$5 -> 0.04542800126 | AL30: =AH30*'Analisi Correlazione'!$AC$9+'Analisi Correlazione'!$Y$5 -> 0.001175641162 | AM30: =AI30*'Analisi Correlazione'!$AD$9+'Analisi Correlazione'!$Z$5 -> -0.003714082205 | AN30: 4.057495661 | AO30: 3.58189849 | AP30: 0.0001 | AQ30: 0.0029 | AR30: 0.000358189849
B31: 30 | C31: 0.5204528741 | D31: 0.4057429706 | E31: 0.6440282879 | F31: 0.3736536745 | G31: 0.05129023174 | H31: -0.2385095087 | I31: 0.3692472712 | J31: -0.3221918623 | K31: =MMULT(G31:J31,'Analisi Correlazione'!$U$24:$X$27) -> 0.05129023174 | L31: -0.1790357081 | M31: 0.2696382875 | N31: -0.1498288664 | O31: =K31*'Analisi Correlazione'!$W$7+'Analisi Correlazione'!$W$5 -> 0.001863123424 | P31: =H31*'Analisi Correlazione'!$X$7+'Analisi Correlazione'!$X$5 -> -0.005139991366 | Q31: =M31*'Analisi Correlazione'!$Y$7+'Analisi Correlazione'!$Y$5 -> 0.005556133243 | R31: =N31*'Analisi Correlazione'!$Z$7+'Analisi Correlazione'!$Z$5 -> -0.005276119318 | S31: 3.997003146 | T31: 3.785431647 | U31: 0.0001 | V31: 0.003 | W31: 0.0003785431647 | AF31: =MMULT(G31:J31,'Analisi Correlazione'!$U$38:$X$41) -> 0.05129023174 | AG31: -0.1301505508 | AH31: 0.2528917864 | AI31: -0.05233811666 | AJ31: =AF31*'Analisi Correlazione'!$AA$9+'Analisi Correlazione'!$W$5 -> 0.002668822488 | AK31: =AG31*'Analisi Correlazione'!$AB$9+'Analisi Correlazione'!$X$5 -> -0.004140536943 | AL31: =AH31*'Analisi Correlazione'!$AC$9+'Analisi Correlazione'!$Y$5 -> 0.008220010194 | AM31: =AI31*'Analisi Correlazione'!$AD$9+'Analisi Correlazione'!$Z$5 -> -0.003197069904 | AN31: 4.003551226 | AO31: 3.590388225 | AP31: 0.0001 | AQ31: 0.003 | AR31: 0.0003590388225
B32: 31 | C32: 0.3741659612 | D32: 0.3984442308 | E32: 0.6576253645 | F32: 0.4917299049 | G32: -0.320839634 | H32: -0.2573760863 | I32: 0.4059909215 | J32: -0.02073153924 | K32: =MMULT(G32:J32,'Analisi Correlazione'!$U$24:$X$27) -> -0.320839634 | L32: -0.3849868804 | M32: 0.1129283436 | N32: -0.1278669143 | O32: =K32*'Analisi Correlazione'!$W$7+'Analisi Correlazione'!$W$5 -> -0.009435740678 | P32: =H32*'Analisi Correlazione'!$X$7+'Analisi Correlazione'!$X$5 -> -0.005555010623 | Q32: =M32*'Analisi Correlazione'!$Y$7+'Analisi Correlazione'!$Y$5 -> 0.002270407502 | R32: =N32*'Analisi Correlazione'!$Z$7+'Analisi Correlazione'!$Z$5 -> -0.00456606884 | S32: 3.982713587 | T32: 3.78616011 | U32: 0.0001 | V32: 0.0031 | W32: 0.000378616011 | AF32: =MMULT(G32:J32,'Analisi Correlazione'!$U$38:$X$41) -> -0.320839634 | AG32: -0.4093235403 | AH32: 0.03971837595 | AI32: -0.1483439886 | AJ32: =AF32*'Analisi Correlazione'!$AA$9+'Analisi Correlazione'!$W$5 -> -0.01447569047 | AK32: =AG32*'Analisi Correlazione'!$AB$9+'Analisi Correlazione'!$X$5 -> -0.01325074039 | AL32: =AH32*'Analisi Correlazione'!$AC$9+'Analisi Correlazione'!$Y$5 -> 0.001208945758 | AM32: =AI32*'Analisi Correlazione'!$AD$9+'Analisi Correlazione'!$Z$5 -> -0.008269125106 | AN32: 3.96521339 | AO32: 3.592981092 | AP32: 0.0001 | AQ32: 0.0031 | AR32: 0.0003592981092
B33: 32 | C33: 0.5046338794 | D33: 0.5289466983 | E33: 0.5720261394 | F33: 0.7838607859 | G33: 0.01161567439 | H33: 0.07262239723 | I33: 0.1815349265 | J33: 0.7852987507 | K33: =MMULT(G33:J33,'Analisi Correlazione'!$U$24:$X$27) -> 0.01161567439 | L33: 0.06839745999 | M33: 0.1756577911 | N33: 0.6565986802 | O33: =K33*'Analisi Correlazione'!$W$7+'Analisi Correlazione'!$W$5 -> 0.0006584971009 | P33: =H33*'Analisi Correlazione'!$X$7+'Analisi Correlazione'!$X$5 -> 0.001704161059 | Q33: =M33*'Analisi Correlazione'!$Y$7+'Analisi Correlazione'!$Y$5 -> 0.003585651163 | R33: =N33*'Analisi Correlazione'!$Z$7+'Analisi Correlazione'!$Z$5 -> 0.02079643837 | S33: 4.026744748 | T33: 3.786391249 | U33: 0.0001 | V33: 0.0032 | W33: 0.0003786391249 | AF33: =MMULT(G33:J33,'Analisi Correlazione'!$U$38:$X$41) -> 0.01161567439 | AG33: 0.05909326685 | AH33: 0.1578695415 | AI33: 0.5209354452 | AJ33: =AF33*'Analisi Correlazione'!$AA$9+'Analisi Correlazione'!$W$5 -> 0.0008409633847 | AK33: =AG33*'Analisi Correlazione'!$AB$9+'Analisi Correlazione'!$X$5 -> 0.002035023529 | AL33: =AH33*'Analisi Correlazione'!$AC$9+'Analisi Correlazione'!$Y$5 -> 0.005094821736 | AM33: =AI33*'Analisi Correlazione'!$AD$9+'Analisi Correlazione'!$Z$5 -> 0.02708936043 | AN33: 4.035060169 | AO33: 3.59336724 | AP33: 0.0001 | AQ33: 0.0032 | AR33: 0.000359336724
B34: 33 | C34: 0.5621800637 | D34: 0.4895275213 | E34: 0.6215379667 | F34: 0.3533690663 | G34: 0.1564987904 | H34: -0.02625362669 | I34: 0.3095225432 | J34: -0.3762404682 | K34: =MMULT(G34:J34,'Analisi Correlazione'!$U$24:$X$27) -> 0.1564987904 | L34: 0.0572013648 | M34: 0.3271451024 | N34: -0.09891536183 | O34: =K34*'Analisi Correlazione'!$W$7+'Analisi Correlazione'!$W$5 -> 0.005057538374 | P34: =H34*'Analisi Correlazione'!$X$7+'Analisi Correlazione'!$X$5 -> -0.0004708732782 | Q34: =M34*'Analisi Correlazione'!$Y$7+'Analisi Correlazione'!$Y$5 -> 0.006761874355 | R34: =N34*'Analisi Correlazione'!$Z$7+'Analisi Correlazione'!$Z$5 -> -0.00363003804 | S34: 4.007718501 | T34: 3.786447017 | U34: 0.0001 | V34: 0.0033 | W34: 0.0003786447017 | AF34: =MMULT(G34:J34,'Analisi Correlazione'!$U$38:$X$41) -> 0.1564987904 | AG34: 0.09349534413 | AH34: 0.3225974159 | AI34: 0.01016504906 | AJ34: =AF34*'Analisi Correlazione'!$AA$9+'Analisi Correlazione'!$W$5 -> 0.00751591933 | AK34: =AG34*'Analisi Correlazione'!$AB$9+'Analisi Correlazione'!$X$5 -> 0.003157660513 | AL34: =AH34*'Analisi Correlazione'!$AC$9+'Analisi Correlazione'!$Y$5 -> 0.01051256 | AM34: =AI34*'Analisi Correlazione'!$AD$9+'Analisi Correlazione'!$Z$5 -> 0.0001050146507 | AN34: 4.021291154 | AO34: 3.593900032 | AP34: 0.0001 | AQ34: 0.0033 | AR34: 0.0003593900032
B35: 34 | C35: 0.9672980694 | D35: 0.4293588887 | E35: 0.1227342892 | F35: 0.4282593445 | G35: 1.842487583 | H35: -0.1780066192 | I35: -1.161426301 | J35: -0.1808074835 | K35: =MMULT(G35:J35,'Analisi Correlazione'!$U$24:$X$27) -> 1.842487583 | L35: 0.7862086522 | M35: -0.1096257661 | N35: 0.4823739321 | O35: =K35*'Analisi Correlazione'!$W$7+'Analisi Correlazione'!$W$5 -> 0.05624869502 | P35: =H35*'Analisi Correlazione'!$X$7+'Analisi Correlazione'!$X$5 -> -0.003809073546 | Q35: =M35*'Analisi Correlazione'!$Y$7+'Analisi Correlazione'!$Y$5 -> -0.002395867966 | R35: =N35*'Analisi Correlazione'!$Z$7+'Analisi Correlazione'!$Z$5 -> 0.01516358913 | S35: 4.065207343 | T35: 3.787033415 | U35: 0.0001 | V35: 0.0034 | W35: 0.0003787033415 | AF35: =MMULT(G35:J35,'Analisi Correlazione'!$U$38:$X$41) -> 1.842487583 | AG35: 1.192413743 | AH35: 0.2701755231 | AI35: 0.813366331 | AJ35: =AF35*'Analisi Correlazione'!$AA$9+'Analisi Correlazione'!$W$5 -> 0.08519164323 | AK35: =AG35*'Analisi Correlazione'!$AB$9+'Analisi Correlazione'!$X$5 -> 0.03901847284 | AL35: =AH35*'Analisi Correlazione'!$AC$9+'Analisi Correlazione'!$Y$5 -> 0.008788455347 | AM35: =AI35*'Analisi Correlazione'!$AD$9+'Analisi Correlazione'!$Z$5 -> 0.04253868208 | AN35: 4.175537253 | AO35: 3.594106132 | AP35: 0.0001 | AQ35: 0.0034 | AR35: 0.0003594106132
B36: 35 | C36: 0.8690592936 | D36: 0.6690680555 | E36: 0.294278211 | F36: 0.6607792914 | G36: 1.121955378 | H36: 0.4373412433 | I36: -0.5409291443 | J36: 0.4145908916 | K36: =MMULT(G36:J36,'Analisi Correlazione'!$U$24:$X$27) -> 1.121955378 | L36: 0.9482349568 | M36: 0.2145246004 | N36: 0.861531048 | O36: =K36*'Analisi Correlazione'!$W$7+'Analisi Correlazione'!$W$5 -> 0.03437139837 | P36: =H36*'Analisi Correlazione'!$X$7+'Analisi Correlazione'!$X$5 -> 0.009727097079 | Q36: =M36*'Analisi Correlazione'!$Y$7+'Analisi Correlazione'!$Y$5 -> 0.004400568665 | R36: =N36*'Analisi Correlazione'!$Z$7+'Analisi Correlazione'!$Z$5 -> 0.02742209371 | S36: 4.075921158 | T36: 3.787250988 | U36: 0.0001 | V36: 0.0035 | W36: 0.0003787250988 | AF36: =MMULT(G36:J36,'Analisi Correlazione'!$U$38:$X$41) -> 1.121955378 | AG36: 1.107782014 | AH36: 0.4088168028 | AI36: 0.938479141 | AJ36: =AF36*'Analisi Correlazione'!$AA$9+'Analisi Correlazione'!$W$5 -> 0.05199577571 | AK36: =AG36*'Analisi Correlazione'!$AB$9+'Analisi Correlazione'!$X$5 -> 0.03625670039 | AL36: =AH36*'Analisi Correlazione'!$AC$9+'Analisi Correlazione'!$Y$5 -> 0.01334823109 | AM36: =AI36*'Analisi Correlazione'!$AD$9+'Analisi Correlazione'!$Z$5 -> 0.04914847653 | AN36: 4.150749184 | AO36: 3.596720617 | AP36: 0.0001 | AQ36: 0.0035 | AR36: 0.0003596720617
B37: 36 | C37: 0.1453867839 | D37: 0.3635705243 | E37: 0.8193639783 | F37: 0.1404953482 | G37: -1.056426142 | H37: -0.3489310837 | I37: 0.9129439074 | J37: -1.078096493 | K37: =MMULT(G37:J37,'Analisi Correlazione'!$U$24:$X$27) -> -1.056426142 | L37: -0.8387692027 | M37: 0.15005794 | N37: -1.174506054 | O37: =K37*'Analisi Correlazione'!$W$7+'Analisi Correlazione'!$W$5 -> -0.03177012648 | P37: =H37*'Analisi Correlazione'!$X$7+'Analisi Correlazione'!$X$5 -> -0.007569000014 | Q37: =M37*'Analisi Correlazione'!$Y$7+'Analisi Correlazione'!$Y$5 -> 0.003048900989 | R37: =N37*'Analisi Correlazione'!$Z$7+'Analisi Correlazione'!$Z$5 -> -0.03840489227 | S37: 3.925304882 | T37: 3.787466657 | U37: 0.0001 | V37: 0.0036 | W37: 0.0003787466657 | AF37: =MMULT(G37:J37,'Analisi Correlazione'!$U$38:$X$41) -> -1.056426142 | AG37: -0.9991125692 | AH37: -0.07223398268 | AI37: -1.113083078 | AJ37: =AF37*'Analisi Correlazione'!$AA$9+'Analisi Correlazione'!$W$5 -> -0.04836512956 | AK37: =AG37*'Analisi Correlazione'!$AB$9+'Analisi Correlazione'!$X$5 -> -0.03249722284 | AL37: =AH37*'Analisi Correlazione'!$AC$9+'Analisi Correlazione'!$Y$5 -> -0.002473057539 | AM37: =AI37*'Analisi Correlazione'!$AD$9+'Analisi Correlazione'!$Z$5 -> -0.05923694425 | AN37: 3.857427646 | AO37: 3.600524882 | AP37: 0.0001 | AQ37: 0.0036 | AR37: 0.0003600524882
B38: 37 | C38: 0.4436194018 | D38: 0.2734158689 | E38: 0.9671776967 | F38: 0.1283371344 | G38: -0.1417989625 | H38: -0.6025144646 | I38: 1.840842746 | J38: -1.134286789 | K38: =MMULT(G38:J38,'Analisi Correlazione'!$U$24:$X$27) -> -0.1417989625 | L38: -0.5906229386 | M38: 1.303207722 | N38: -0.480151782 | O38: =K38*'Analisi Correlazione'!$W$7+'Analisi Correlazione'!$W$5 -> -0.003999584106 | P38: =H38*'Analisi Correlazione'!$X$7+'Analisi Correlazione'!$X$5 -> -0.01314722352 | Q38: =M38*'Analisi Correlazione'!$Y$7+'Analisi Correlazione'!$Y$5 -> 0.02722690672 | R38: =N38*'Analisi Correlazione'!$Z$7+'Analisi Correlazione'!$Z$5 -> -0.01595576848 | S38: 3.994124331 | T38: 3.787589142 | U38: 0.0001 | V38: 0.0037 | W38: 0.0003787589142 | AF38: =MMULT(G38:J38,'Analisi Correlazione'!$U$38:$X$41) -> -0.1417989625 | AG38: -0.5227397342 | AH38: 1.138748883 | AI38: -0.1902463556 | AJ38: =AF38*'Analisi Correlazione'!$AA$9+'Analisi Correlazione'!$W$5 -> -0.006227050964 | AK38: =AG38*'Analisi Correlazione'!$AB$9+'Analisi Correlazione'!$X$5 -> -0.01695183125 | AL38: =AH38*'Analisi Correlazione'!$AC$9+'Analisi Correlazione'!$Y$5 -> 0.03735498145 | AM38: =AI38*'Analisi Correlazione'!$AD$9+'Analisi Correlazione'!$Z$5 -> -0.01048285552 | AN38: 4.003693244 | AO38: 3.601306032 | AP38: 0.0001 | AQ38: 0.0037 | AR38: 0.0003601306032
B39: 38 | C39: 0.8138849551 | D39: 0.4115414235 | E39: 0.6372178357 | F39: 0.8934135925 | G39: 0.8923038527 | H39: -0.2235816454 | I39: 0.3510320173 | J39: 1.244888292 | K39: =MMULT(G39:J39,'Analisi Correlazione'!$U$24:$X$27) -> 0.8923038527 | L39: 0.26257516 | M39: 0.6704403443 | N39: 1.463361955 | O39: =K39*'Analisi Correlazione'!$W$7+'Analisi Correlazione'!$W$5 -> 0.02739856007 | P39: =H39*'Analisi Correlazione'!$X$7+'Analisi Correlazione'!$X$5 -> -0.004811614334 | Q39: =M39*'Analisi Correlazione'!$Y$7+'Analisi Correlazione'!$Y$5 -> 0.01395972016 | R39: =N39*'Analisi Correlazione'!$Z$7+'Analisi Correlazione'!$Z$5 -> 0.04687985045 | S39: 4.083426516 | T39: 3.789033297 | U39: 0.0001 | V39: 0.0038 | W39: 0.0003789033297 | AF39: =MMULT(G39:J39,'Analisi Correlazione'!$U$38:$X$41) -> 0.8923038527 | AG39: 0.4814001133 | AH39: 0.7764920635 | AI39: 1.4315555 | AJ39: =AF39*'Analisi Correlazione'!$AA$9+'Analisi Correlazione'!$W$5 -> 0.04141542751 | AK39: =AG39*'Analisi Correlazione'!$AB$9+'Analisi Correlazione'!$X$5 -> 0.01581608914 | AL39: =AH39*'Analisi Correlazione'!$AC$9+'Analisi Correlazione'!$Y$5 -> 0.02544070988 | AM39: =AI39*'Analisi Correlazione'!$AD$9+'Analisi Correlazione'!$Z$5 -> 0.07519803436 | AN39: 4.157870261 | AO39: 3.601543815 | AP39: 0.0001 | AQ39: 0.0038 | AR39: 0.0003601543815
B40: 39 | C40: 0.2841101274 | D40: 0.09206058879 | E40: 0.5835911542 | F40: 0.3274494153 | G40: -0.5706745776 | H40: -1.328172347 | I40: 0.211089169 | J40: -0.4469670779 | K40: =MMULT(G40:J40,'Analisi Correlazione'!$U$24:$X$27) -> -0.5706745776 | L40: -1.43354206 | M40: -0.4521182421 | N40: -0.8967723639 | O40: =K40*'Analisi Correlazione'!$W$7+'Analisi Correlazione'!$W$5 -> -0.01702140186 | P40: =H40*'Analisi Correlazione'!$X$7+'Analisi Correlazione'!$X$5 -> -0.02910994884 | Q40: =M40*'Analisi Correlazione'!$Y$7+'Analisi Correlazione'!$Y$5 -> -0.009576882242 | R40: =N40*'Analisi Correlazione'!$Z$7+'Analisi Correlazione'!$Z$5 -> -0.029425502 | S40: 3.914866265 | T40: 3.789330719 | U40: 0.0001 | V40: 0.0039 | W40: 0.0003789330719 | AF40: =MMULT(G40:J40,'Analisi Correlazione'!$U$38:$X$41) -> -0.5706745776 | AG40: -1.336790759 | AH40: -0.5009202112 | AI40: -0.8200471369 | AJ40: =AF40*'Analisi Correlazione'!$AA$9+'Analisi Correlazione'!$W$5 -> -0.02598591532 | AK40: =AG40*'Analisi Correlazione'!$AB$9+'Analisi Correlazione'!$X$5 -> -0.04351661628 | AL40: =AH40*'Analisi Correlazione'!$AC$9+'Analisi Correlazione'!$Y$5 -> -0.01657212723 | AM40: =AI40*'Analisi Correlazione'!$AD$9+'Analisi Correlazione'!$Z$5 -> -0.04375565713 | AN40: 3.870169684 | AO40: 3.606502427 | AP40: 0.0001 | AQ40: 0.0039 | AR40: 0.0003606502427
B41: 40 | C41: 0.01604150632 | D41: 0.2153855007 | E41: 0.1928085038 | F41: 0.1159104488 | G41: -2.143374829 | H41: -0.7878729903 | I41: -0.8675933145 | J41: -1.195681438 | K41: =MMULT(G41:J41,'Analisi Correlazione'!$U$24:$X$27) -> -2.143374829 | L41: -1.770533932 | M41: -1.977912453 | N41: -2.524315202 | O41: =K41*'Analisi Correlazione'!$W$7+'Analisi Correlazione'!$W$5 -> -0.06477281352 | P41: =H41*'Analisi Correlazione'!$X$7+'Analisi Correlazione'!$X$5 -> -0.01722466456 | Q41: =M41*'Analisi Correlazione'!$Y$7+'Analisi Correlazione'!$Y$5 -> -0.04156809599 | R41: =N41*'Analisi Correlazione'!$Z$7+'Analisi Correlazione'!$Z$5 -> -0.08204548593 | S41: 3.79438894 | T41: 3.789678073 | U41: 0.0001 | V41: 0.004 | W41: 0.0003789678073 | AF41: =MMULT(G41:J41,'Analisi Correlazione'!$U$38:$X$41) -> -2.143374829 | AG41: -2.082993203 | AH41: -2.177493956 | AI41: -2.676959777 | AJ41: =AF41*'Analisi Correlazione'!$AA$9+'Analisi Correlazione'!$W$5 -> -0.09844228692 | AK41: =AG41*'Analisi Correlazione'!$AB$9+'Analisi Correlazione'!$X$5 -> -0.06786731039 | AL41: =AH41*'Analisi Correlazione'!$AC$9+'Analisi Correlazione'!$Y$5 -> -0.07171299369 | AM41: =AI41*'Analisi Correlazione'!$AD$9+'Analisi Correlazione'!$Z$5 -> -0.1418576089 | AN41: 3.6201198 | AO41: 3.606799497 | AP41: 0.0001 | AQ41: 0.004 | AR41: 0.0003606799497
B42: 41 | C42: 0.4540711902 | D42: 0.4176515081 | E42: 0.5015822484 | F42: 0.1903904414 | G42: -0.1153819562 | H42: -0.2079051649 | I42: 0.003966118906 | J42: -0.8764583987 | K42: =MMULT(G42:J42,'Analisi Correlazione'!$U$24:$X$27) -> -0.1153819562 | L42: -0.2376808829 | M42: -0.107711309 | N42: -0.7554642187 | O42: =K42*'Analisi Correlazione'!$W$7+'Analisi Correlazione'!$W$5 -> -0.003197492706 | P42: =H42*'Analisi Correlazione'!$X$7+'Analisi Correlazione'!$X$5 -> -0.004466769527 | Q42: =M42*'Analisi Correlazione'!$Y$7+'Analisi Correlazione'!$Y$5 -> -0.002355727685 | R42: =N42*'Analisi Correlazione'!$Z$7+'Analisi Correlazione'!$Z$5 -> -0.02485687735 | S42: 3.965123133 | T42: 3.790839228 | U42: 0.0001 | V42: 0.0041 | W42: 0.0003790839228 | AF42: =MMULT(G42:J42,'Analisi Correlazione'!$U$38:$X$41) -> -0.1153819562 | AG42: -0.227874454 | AH42: -0.1164676138 | AI42: -0.6056769659 | AJ42: =AF42*'Analisi Correlazione'!$AA$9+'Analisi Correlazione'!$W$5 -> -0.005009984695 | AK42: =AG42*'Analisi Correlazione'!$AB$9+'Analisi Correlazione'!$X$5 -> -0.007329544023 | AL42: =AH42*'Analisi Correlazione'!$AC$9+'Analisi Correlazione'!$Y$5 -> -0.003927858294 | AM42: =AI42*'Analisi Correlazione'!$AD$9+'Analisi Correlazione'!$Z$5 -> -0.03243033588 | AN42: 3.951302277 | AO42: 3.606982598 | AP42: 0.0001 | AQ42: 0.0041 | AR42: 0.0003606982598
B43: 42 | C43: 0.7589271169 | D43: 0.8458807279 | E43: 0.583769093 | F43: 0.3122979451 | G43: 0.7028555634 | H43: 1.018925063 | I43: 0.2115452663 | J43: -0.4893472282 | K43: =MMULT(G43:J43,'Analisi Correlazione'!$U$24:$X$27) -> 0.7028555634 | L43: 1.234892169 | M43: 0.7872393454 | N43: 0.3409762149 | O43: =K43*'Analisi Correlazione'!$W$7+'Analisi Correlazione'!$W$5 -> 0.02164640022 | P43: =H43*'Analisi Correlazione'!$X$7+'Analisi Correlazione'!$X$5 -> 0.02252054009 | Q43: =M43*'Analisi Correlazione'!$Y$7+'Analisi Correlazione'!$Y$5 -> 0.01640863614 | R43: =N43*'Analisi Correlazione'!$Z$7+'Analisi Correlazione'!$Z$5 -> 0.01059206853 | S43: 4.071167645 | T43: 3.791964449 | U43: 0.0001 | V43: 0.0042 | W43: 0.0003791964449 | AF43: =MMULT(G43:J43,'Analisi Correlazione'!$U$38:$X$41) -> 0.7028555634 | AG43: 1.214983532 | AH43: 0.8289571048 | AI43: 0.4926303696 | AJ43: =AF43*'Analisi Correlazione'!$AA$9+'Analisi Correlazione'!$W$5 -> 0.03268729534 | AK43: =AG43*'Analisi Correlazione'!$AB$9+'Analisi Correlazione'!$X$5 -> 0.03975498881 | AL43: =AH43*'Analisi Correlazione'!$AC$9+'Analisi Correlazione'!$Y$5 -> 0.02716623364 | AM43: =AI43*'Analisi Correlazione'!$AD$9+'Analisi Correlazione'!$Z$5 -> 0.02559398413 | AN43: 4.125202502 | AO43: 3.614920733 | AP43: 0.0001 | AQ43: 0.0042 | AR43: 0.0003614920733
B44: 43 | C44: 0.5143110135 | D44: 0.7009196991 | E44: 0.2746219421 | F44: 0.3441328018 | G44: 0.03588008826 | H44: 0.527047502 | I44: -0.598893533 | J44: -0.401209885 | K44: =MMULT(G44:J44,'Analisi Correlazione'!$U$24:$X$27) -> 0.03588008826 | L44: 0.4717003454 | M44: -0.342260477 | N44: -0.3350000604 | O44: =K44*'Analisi Correlazione'!$W$7+'Analisi Correlazione'!$W$5 -> 0.00139523 | P44: =H44*'Analisi Correlazione'!$X$7+'Analisi Correlazione'!$X$5 -> 0.01170041867 | Q44: =M44*'Analisi Correlazione'!$Y$7+'Analisi Correlazione'!$Y$5 -> -0.00727350265 | R44: =N44*'Analisi Correlazione'!$Z$7+'Analisi Correlazione'!$Z$5 -> -0.01126287741 | S44: 3.994559269 | T44: 3.792291514 | U44: 0.0001 | V44: 0.0043 | W44: 0.0003792291514 | AF44: =MMULT(G44:J44,'Analisi Correlazione'!$U$38:$X$41) -> 0.03588008826 | AG44: 0.3942542737 | AH44: -0.3034657451 | AI44: -0.3168654036 | AJ44: =AF44*'Analisi Correlazione'!$AA$9+'Analisi Correlazione'!$W$5 -> 0.001958856885 | AK44: =AG44*'Analisi Correlazione'!$AB$9+'Analisi Correlazione'!$X$5 -> 0.01297227417 | AL44: =AH44*'Analisi Correlazione'!$AC$9+'Analisi Correlazione'!$Y$5 -> -0.01007804346 | AM44: =AI44*'Analisi Correlazione'!$AD$9+'Analisi Correlazione'!$Z$5 -> -0.01717222554 | AN44: 3.987680862 | AO44: 3.616164432 | AP44: 0.0001 | AQ44: 0.0043 | AR44: 0.0003616164432
B45: 44 | C45: 0.490110147 | D45: 0.9432847265 | E45: 0.7548251082 | F45: 0.03417372325 | G45: -0.02479272484 | H45: 1.582960152 | I45: 0.6897525967 | J45: -1.822709198 | K45: =MMULT(G45:J45,'Analisi Correlazione'!$U$24:$X$27) -> -0.02479272484 | L45: 1.349147232 | M45: 0.9761506748 | N45: -0.7553490036 | O45: =K45*'Analisi Correlazione'!$W$7+'Analisi Correlazione'!$W$5 -> -0.0004469598724 | P45: =H45*'Analisi Correlazione'!$X$7+'Analisi Correlazione'!$X$5 -> 0.03492795332 | Q45: =M45*'Analisi Correlazione'!$Y$7+'Analisi Correlazione'!$Y$5 -> 0.02036952593 | R45: =N45*'Analisi Correlazione'!$Z$7+'Analisi Correlazione'!$Z$5 -> -0.02485315234 | S45: 4.029997367 | T45: 3.79404103 | U45: 0.0001 | V45: 0.0044 | W45: 0.000379404103 | AF45: =MMULT(G45:J45,'Analisi Correlazione'!$U$38:$X$41) -> -0.02479272484 | AG45: 1.089378229 | AH45: 0.8463657345 | AI45: -0.5175981694 | AJ45: =AF45*'Analisi Correlazione'!$AA$9+'Analisi Correlazione'!$W$5 -> -0.0008364195125 | AK45: =AG45*'Analisi Correlazione'!$AB$9+'Analisi Correlazione'!$X$5 -> 0.0356561329 | AL45: =AH45*'Analisi Correlazione'!$AC$9+'Analisi Correlazione'!$Y$5 -> 0.0277387864 | AM45: =AI45*'Analisi Correlazione'!$AD$9+'Analisi Correlazione'!$Z$5 -> -0.02777707344 | AN45: 4.034781426 | AO45: 3.617851675 | AP45: 0.0001 | AQ45: 0.0044 | AR45: 0.0003617851675
B46: 45 | C46: 0.3206382536 | D46: 0.6003570615 | E46: 0.02511259208 | F46: 0.8295838012 | G46: -0.4659147717 | H46: 0.2542714211 | I46: -1.958041151 | J46: 0.952521835 | K46: =MMULT(G46:J46,'Analisi Correlazione'!$U$24:$X$27) -> -0.4659147717 | L46: -0.01879010206 | M46: -1.789642237 | N46: -0.1099626026 | O46: =K46*'Analisi Correlazione'!$W$7+'Analisi Correlazione'!$W$5 -> -0.01384061225 | P46: =H46*'Analisi Correlazione'!$X$7+'Analisi Correlazione'!$X$5 -> 0.005700001997 | Q46: =M46*'Analisi Correlazione'!$Y$7+'Analisi Correlazione'!$Y$5 -> -0.03762064838 | R46: =N46*'Analisi Correlazione'!$Z$7+'Analisi Correlazione'!$Z$5 -> -0.003987205679 | S46: 3.950251536 | T46: 3.79438894 | U46: 0.0001 | V46: 0.0045 | W46: 0.000379438894 | AF46: =MMULT(G46:J46,'Analisi Correlazione'!$U$38:$X$41) -> -0.4659147717 | AG46: -0.1551766487 | AH46: -1.688536825 | AI46: -0.4574993855 | AJ46: =AF46*'Analisi Correlazione'!$AA$9+'Analisi Correlazione'!$W$5 -> -0.02115949311 | AK46: =AG46*'Analisi Correlazione'!$AB$9+'Analisi Correlazione'!$X$5 -> -0.004957209231 | AL46: =AH46*'Analisi Correlazione'!$AC$9+'Analisi Correlazione'!$Y$5 -> -0.05563167311 | AM46: =AI46*'Analisi Correlazione'!$AD$9+'Analisi Correlazione'!$Z$5 -> -0.024602014 | AN46: 3.893649611 | AO46: 3.618443377 | AP46: 0.0001 | AQ46: 0.0045 | AR46: 0.0003618443377
B47: 46 | C47: 0.9866519954 | D47: 0.4247564308 | E47: 0.08224356716 | F47: 0.5523842925 | G47: 2.215934194 | H47: -0.1897400165 | I47: -1.390137479 | J47: 0.1316875733 | K47: =MMULT(G47:J47,'Analisi Correlazione'!$U$24:$X$27) -> 2.215934194 | L47: 0.9665066214 | M47: -0.1199001293 | N47: 0.8441804056 | O47: =K47*'Analisi Correlazione'!$W$7+'Analisi Correlazione'!$W$5 -> 0.06758753906 | P47: =H47*'Analisi Correlazione'!$X$7+'Analisi Correlazione'!$X$5 -> -0.004067180022 | Q47: =M47*'Analisi Correlazione'!$Y$7+'Analisi Correlazione'!$Y$5 -> -0.002611289775 | R47: =N47*'Analisi Correlazione'!$Z$7+'Analisi Correlazione'!$Z$5 -> 0.0268611312 | S47: 4.0877702 | T47: 3.794420509 | U47: 0.0001 | V47: 0.0046 | W47: 0.0003794420509 | AF47: =MMULT(G47:J47,'Analisi Correlazione'!$U$38:$X$41) -> 2.215934194 | AG47: 1.451126704 | AH47: 0.3352979668 | AI47: 1.178672565 | AJ47: =AF47*'Analisi Correlazione'!$AA$9+'Analisi Correlazione'!$W$5 -> 0.1023968204 | AK47: =AG47*'Analisi Correlazione'!$AB$9+'Analisi Correlazione'!$X$5 -> 0.04746100775 | AL47: =AH47*'Analisi Correlazione'!$AC$9+'Analisi Correlazione'!$Y$5 -> 0.01093026866 | AM47: =AI47*'Analisi Correlazione'!$AD$9+'Analisi Correlazione'!$Z$5 -> 0.06183805771 | AN47: 4.222626155 | AO47: 3.6201198 | AP47: 0.0001 | AQ47: 0.0046 | AR47: 0.00036201198
B48: 47 | C48: 0.1403412709 | D48: 0.9846227492 | E48: 0.3696127036 | F48: 0.01170526808 | G48: -1.078787336 | H48: 2.160234745 | I48: -0.3328792845 | J48: -2.266667648 | K48: =MMULT(G48:J48,'Analisi Correlazione'!$U$24:$X$27) -> -1.078787336 | L48: 1.308412843 | M48: -0.2392233617 | N48: -1.845667068 | O48: =K48*'Analisi Correlazione'!$W$7+'Analisi Correlazione'!$W$5 -> -0.03244907249 | P48: =H48*'Analisi Correlazione'!$X$7+'Analisi Correlazione'!$X$5 -> 0.04762660373 | Q48: =M48*'Analisi Correlazione'!$Y$7+'Analisi Correlazione'!$Y$5 -> -0.005113131115 | R48: =N48*'Analisi Correlazione'!$Z$7+'Analisi Correlazione'!$Z$5 -> -0.06010415629 | S48: 3.949960244 | T48: 3.794543918 | U48: 0.0001 | V48: 0.0047 | W48: 0.0003794543918 | AF48: =MMULT(G48:J48,'Analisi Correlazione'!$U$38:$X$41) -> -1.078787336 | AG48: 0.7397780132 | AH48: -0.4513008098 | AI48: -1.798487485 | AJ48: =AF48*'Analisi Correlazione'!$AA$9+'Analisi Correlazione'!$W$5 -> -0.0493953392 | AK48: =AG48*'Analisi Correlazione'!$AB$9+'Analisi Correlazione'!$X$5 -> 0.02424769006 | AL48: =AH48*'Analisi Correlazione'!$AC$9+'Analisi Correlazione'!$Y$5 -> -0.01494019378 | AM48: =AI48*'Analisi Correlazione'!$AD$9+'Analisi Correlazione'!$Z$5 -> -0.09544732306 | AN48: 3.864464834 | AO48: 3.621518301 | AP48: 0.0001 | AQ48: 0.0047 | AR48: 0.0003621518301
B49: 48 | C49: 0.5314848282 | D49: 0.582717414 | E49: 0.423392426 | F49: 0.7384797622 | G49: 0.0790028659 | H49: 0.2088502122 | I49: -0.1932223292 | J49: 0.6386656312 | K49: =MMULT(G49:J49,'Analisi Correlazione'!$U$24:$X$27) -> 0.0790028659 | L49: 0.2199469617 | M49: -0.06722072432 | N49: 0.5019995742 | O49: =K49*'Analisi Correlazione'!$W$7+'Analisi Correlazione'!$W$5 -> 0.00270455357 | P49: =H49*'Analisi Correlazione'!$X$7+'Analisi Correlazione'!$X$5 -> 0.00470084482 | Q49: =M49*'Analisi Correlazione'!$Y$7+'Analisi Correlazione'!$Y$5 -> -0.001506764608 | R49: =N49*'Analisi Correlazione'!$Z$7+'Analisi Correlazione'!$Z$5 -> 0.01579810451 | S49: 4.021696738 | T49: 3.794734595 | U49: 0.0001 | V49: 0.0048 | W49: 0.0003794734595 | AF49: =MMULT(G49:J49,'Analisi Correlazione'!$U$38:$X$41) -> 0.0790028659 | AG49: 0.2025336305 | AH49: -0.04649514209 | AI49: 0.3805460214 | AJ49: =AF49*'Analisi Correlazione'!$AA$9+'Analisi Correlazione'!$W$5 -> 0.003945580038 | AK49: =AG49*'Analisi Correlazione'!$AB$9+'Analisi Correlazione'!$X$5 -> 0.006715887883 | AL49: =AH49*'Analisi Correlazione'!$AC$9+'Analisi Correlazione'!$Y$5 -> -0.001626532311 | AM49: =AI49*'Analisi Correlazione'!$AD$9+'Analisi Correlazione'!$Z$5 -> 0.01967249214 | AN49: 4.028707428 | AO49: 3.622147536 | AP49: 0.0001 | AQ49: 0.0048 | AR49: 0.0003622147536
B50: 49 | C50: 0.6871188814 | D50: 0.4470840677 | E50: 0.6448383434 | F50: 0.6835227221 | G50: 0.4877001616 | H50: -0.1330319213 | I50: 0.3714219043 | J50: 0.4775724324 | K50: =MMULT(G50:J50,'Analisi Correlazione'!$U$24:$X$27) -> 0.4877001616 | L50: 0.1341965903 | M50: 0.5128951256 | N50: 0.7045235794 | O50: =K50*'Analisi Correlazione'!$W$7+'Analisi Correlazione'!$W$5 -> 0.01511370325 | P50: =H50*'Analisi Correlazione'!$X$7+'Analisi Correlazione'!$X$5 -> -0.002819738535 | Q50: =M50*'Analisi Correlazione'!$Y$7+'Analisi Correlazione'!$Y$5 -> 0.01065648128 | R50: =N50*'Analisi Correlazione'!$Z$7+'Analisi Correlazione'!$Z$5 -> 0.02234589524 | S50: 4.045296341 | T50: 3.795599219 | U50: 0.0001 | V50: 0.0049 | W50: 0.0003795599219 | AF50: =MMULT(G50:J50,'Analisi Correlazione'!$U$38:$X$41) -> 0.4877001616 | AG50: 0.2555407456 | AH50: 0.5549039246 | AI50: 0.731015974 | AJ50: =AF50*'Analisi Correlazione'!$AA$9+'Analisi Correlazione'!$W$5 -> 0.02277480265 | AK50: =AG50*'Analisi Correlazione'!$AB$9+'Analisi Correlazione'!$X$5 -> 0.008445659817 | AL50: =AH50*'Analisi Correlazione'!$AC$9+'Analisi Correlazione'!$Y$5 -> 0.01815289327 | AM50: =AI50*'Analisi Correlazione'!$AD$9+'Analisi Correlazione'!$Z$5 -> 0.03818805698 | AN50: 4.087561413 | AO50: 3.622289857 | AP50: 0.0001 | AQ50: 0.0049 | AR50: 0.0003622289857
B51: 50 | C51: 0.6714017751 | D51: 0.0469628094 | E51: 0.6535598711 | F51: 0.7580027742 | G51: 0.4437871914 | H51: -1.675043899 | I51: 0.3949493643 | J51: 0.699892484 | K51: =MMULT(G51:J51,'Analisi Correlazione'!$U$24:$X$27) -> 0.4437871914 | L51: -1.21475159 | M51: 0.10686869 | N51: 0.4805355009 | O51: =K51*'Analisi Correlazione'!$W$7+'Analisi Correlazione'!$W$5 -> 0.01378038731 | P51: =H51*'Analisi Correlazione'!$X$7+'Analisi Correlazione'!$X$5 -> -0.0367402874 | Q51: =M51*'Analisi Correlazione'!$Y$7+'Analisi Correlazione'!$Y$5 -> 0.002143355197 | R51: =N51*'Analisi Correlazione'!$Z$7+'Analisi Correlazione'!$Z$5 -> 0.01510415093 | S51: 3.994287606 | T51: 3.796065411 | U51: 0.0001 | V51: 0.005 | W51: 0.0003796065411 | AF51: =MMULT(G51:J51,'Analisi Correlazione'!$U$38:$X$41) -> 0.4437871914 | AG51: -0.8543059985 | AH51: 0.2019831872 | AI51: 0.5668947886 | AJ51: =AF51*'Analisi Correlazione'!$AA$9+'Analisi Correlazione'!$W$5 -> 0.02075167429 | AK51: =AG51*'Analisi Correlazione'!$AB$9+'Analisi Correlazione'!$X$5 -> -0.02777177529 | AL51: =AH51*'Analisi Correlazione'!$AC$9+'Analisi Correlazione'!$Y$5 -> 0.006545676288 | AM51: =AI51*'Analisi Correlazione'!$AD$9+'Analisi Correlazione'!$Z$5 -> 0.02951742366 | AN51: 4.029042999 | AO51: 3.622448741 | AP51: 0.0001 | AQ51: 0.005 | AR51: 0.0003622448741
B52: 51 | C52: 0.3181445962 | D52: 0.9695579874 | E52: 0.609660327 | F52: 0.1980304197 | G52: -0.4728934583 | H52: 1.87433675 | I52: 0.2784338395 | J52: -0.8486773745 | K52: =MMULT(G52:J52,'Analisi Correlazione'!$U$24:$X$27) -> -0.4728934583 | L52: 1.371359949 | M52: 0.4909774322 | N52: -0.3476211848 | O52: =K52*'Analisi Correlazione'!$W$7+'Analisi Correlazione'!$W$5 -> -0.01405250395 | P52: =H52*'Analisi Correlazione'!$X$7+'Analisi Correlazione'!$X$5 -> 0.04133753656 | Q52: =M52*'Analisi Correlazione'!$Y$7+'Analisi Correlazione'!$Y$5 -> 0.01019693463 | R52: =N52*'Analisi Correlazione'!$Z$7+'Analisi Correlazione'!$Z$5 -> -0.01167093018 | S52: 4.025811037 | T52: 3.797152664 | U52: 0.0001 | V52: 0.0051 | W52: 0.0003797152664 | AF52: =MMULT(G52:J52,'Analisi Correlazione'!$U$38:$X$41) -> -0.4728934583 | AG52: 0.9728848838 | AH52: 0.3222302752 | AI52: -0.4001925839 | AJ52: =AF52*'Analisi Correlazione'!$AA$9+'Analisi Correlazione'!$W$5 -> -0.02148101039 | AK52: =AG52*'Analisi Correlazione'!$AB$9+'Analisi Correlazione'!$X$5 -> 0.03185462589 | AL52: =AH52*'Analisi Correlazione'!$AC$9+'Analisi Correlazione'!$Y$5 -> 0.0105004851 | AM52: =AI52*'Analisi Correlazione'!$AD$9+'Analisi Correlazione'!$Z$5 -> -0.02157445688 | AN52: 3.999299644 | AO52: 3.624431389 | AP52: 0.0001 | AQ52: 0.0051 | AR52: 0.0003624431389
B53: 52 | C53: 0.7543521456 | D53: 0.7407443916 | E53: 0.8496395347 | F53: 0.8208447654 | G53: 0.6882494496 | H53: 0.6456420212 | I53: 1.034888618 | J53: 0.9185892266 | K53: =MMULT(G53:J53,'Analisi Correlazione'!$U$24:$X$27) -> 0.6882494496 | L53: 0.9063181164 | M53: 1.366833696 | N53: 1.533225187 | O53: =K53*'Analisi Correlazione'!$W$7+'Analisi Correlazione'!$W$5 -> 0.0212029193 | P53: =H53*'Analisi Correlazione'!$X$7+'Analisi Correlazione'!$X$5 -> 0.0143092124 | Q53: =M53*'Analisi Correlazione'!$Y$7+'Analisi Correlazione'!$Y$5 -> 0.02856094777 | R53: =N53*'Analisi Correlazione'!$Z$7+'Analisi Correlazione'!$Z$5 -> 0.04913859417 | S53: 4.113211674 | T53: 3.797594701 | U53: 0.0001 | V53: 0.0052 | W53: 0.0003797594701 | AF53: =MMULT(G53:J53,'Analisi Correlazione'!$U$38:$X$41) -> 0.6882494496 | AG53: 0.9434752953 | AH53: 1.346207849 | AI53: 1.489468007 | AJ53: =AF53*'Analisi Correlazione'!$AA$9+'Analisi Correlazione'!$W$5 -> 0.03201437244 | AK53: =AG53*'Analisi Correlazione'!$AB$9+'Analisi Correlazione'!$X$5 -> 0.03089490792 | AL53: =AH53*'Analisi Correlazione'!$AC$9+'Analisi Correlazione'!$Y$5 -> 0.04417810342 | AM53: =AI53*'Analisi Correlazione'!$AD$9+'Analisi Correlazione'!$Z$5 -> 0.07825759131 | AN53: 4.185344975 | AO53: 3.624768271 | AP53: 0.0001 | AQ53: 0.0052 | AR53: 0.0003624768271
B54: 53 | C54: 0.1306858051 | D54: 0.2216917159 | E54: 0.601221527 | F54: 0.05828608319 | G54: -1.123155142 | H54: -0.7664922999 | I54: 0.2565101474 | J54: -1.569325273 | K54: =MMULT(G54:J54,'Analisi Correlazione'!$U$24:$X$27) -> -1.123155142 | L54: -1.23200832 | M54: -0.5378436966 | N54: -1.87705351 | O54: =K54*'Analisi Correlazione'!$W$7+'Analisi Correlazione'!$W$5 -> -0.0337961985 | P54: =H54*'Analisi Correlazione'!$X$7+'Analisi Correlazione'!$X$5 -> -0.01675434088 | Q54: =M54*'Analisi Correlazione'!$Y$7+'Analisi Correlazione'!$Y$5 -> -0.01137428147 | R54: =N54*'Analisi Correlazione'!$Z$7+'Analisi Correlazione'!$Z$5 -> -0.06111890935 | S54: 3.87695627 | T54: 3.797727684 | U54: 0.0001 | V54: 0.0053 | W54: 0.0003797727684 | AF54: =MMULT(G54:J54,'Analisi Correlazione'!$U$38:$X$41) -> -1.123155142 | AG54: -1.338842876 | AH54: -0.6932008776 | AI54: -1.736989711 | AJ54: =AF54*'Analisi Correlazione'!$AA$9+'Analisi Correlazione'!$W$5 -> -0.05143942249 | AK54: =AG54*'Analisi Correlazione'!$AB$9+'Analisi Correlazione'!$X$5 -> -0.04358358266 | AL54: =AH54*'Analisi Correlazione'!$AC$9+'Analisi Correlazione'!$Y$5 -> -0.02289604981 | AM54: =AI54*'Analisi Correlazione'!$AD$9+'Analisi Correlazione'!$Z$5 -> -0.09219835404 | AN54: 3.789882591 | AO54: 3.625926087 | AP54: 0.0001 | AQ54: 0.0053 | AR54: 0.0003625926087
B55: 54 | C55: 0.1386901471 | D55: 0.2102598784 | E55: 0.7880403533 | F55: 0.3312384003 | G55: -1.086223112 | H55: -0.8055198494 | I55: 0.7996401929 | J55: -0.4364961381 | K55: =MMULT(G55:J55,'Analisi Correlazione'!$U$24:$X$27) -> -1.086223112 | L55: -1.246754069 | M55: -0.07839256822 | N55: -0.8653603767 | O55: =K55*'Analisi Correlazione'!$W$7+'Analisi Correlazione'!$W$5 -> -0.03267484268 | P55: =H55*'Analisi Correlazione'!$X$7+'Analisi Correlazione'!$X$5 -> -0.01761285295 | Q55: =M55*'Analisi Correlazione'!$Y$7+'Analisi Correlazione'!$Y$5 -> -0.001741003828 | R55: =N55*'Analisi Correlazione'!$Z$7+'Analisi Correlazione'!$Z$5 -> -0.02840992304 | S55: 3.919561377 | T55: 3.798650828 | U55: 0.0001 | V55: 0.0054 | W55: 0.0003798650828 | AF55: =MMULT(G55:J55,'Analisi Correlazione'!$U$38:$X$41) -> -1.086223112 | AG55: -1.339741176 | AH55: -0.276414208 | AI55: -0.8964545846 | AJ55: =AF55*'Analisi Correlazione'!$AA$9+'Analisi Correlazione'!$W$5 -> -0.04973791523 | AK55: =AG55*'Analisi Correlazione'!$AB$9+'Analisi Correlazione'!$X$5 -> -0.0436128967 | AL55: =AH55*'Analisi Correlazione'!$AC$9+'Analisi Correlazione'!$Y$5 -> -0.009188344935 | AM55: =AI55*'Analisi Correlazione'!$AD$9+'Analisi Correlazione'!$Z$5 -> -0.04779231431 | AN55: 3.849668529 | AO55: 3.627364906 | AP55: 0.0001 | AQ55: 0.0054 | AR55: 0.0003627364906
B56: 55 | C56: 0.273943558 | D56: 0.2874183427 | E56: 0.03308203956 | F56: 0.9434048807 | G56: -0.6009292415 | H56: -0.5609425744 | I56: -1.837310443 | J56: 1.584015295 | K56: =MMULT(G56:J56,'Analisi Correlazione'!$U$24:$X$27) -> -0.6009292415 | L56: -0.7889350546 | M56: -1.969029733 | N56: 0.1205241303 | O56: =K56*'Analisi Correlazione'!$W$7+'Analisi Correlazione'!$W$5 -> -0.01794001487 | P56: =H56*'Analisi Correlazione'!$X$7+'Analisi Correlazione'!$X$5 -> -0.01223274208 | Q56: =M56*'Analisi Correlazione'!$Y$7+'Analisi Correlazione'!$Y$5 -> -0.04138185268 | R56: =N56*'Analisi Correlazione'!$Z$7+'Analisi Correlazione'!$Z$5 -> 0.003464646216 | S56: 3.931910037 | T56: 3.798667973 | U56: 0.0001 | V56: 0.0055 | W56: 0.0003798667973 | AF56: =MMULT(G56:J56,'Analisi Correlazione'!$U$38:$X$41) -> -0.6009292415 | AG56: -0.821826078 | AH56: -1.865914746 | AI56: -0.3027871808 | AJ56: =AF56*'Analisi Correlazione'!$AA$9+'Analisi Correlazione'!$W$5 -> -0.02737978753 | AK56: =AG56*'Analisi Correlazione'!$AB$9+'Analisi Correlazione'!$X$5 -> -0.02671186371 | AL56: =AH56*'Analisi Correlazione'!$AC$9+'Analisi Correlazione'!$Y$5 -> -0.061465459 | AM56: =AI56*'Analisi Correlazione'!$AD$9+'Analisi Correlazione'!$Z$5 -> -0.0164284635 | AN56: 3.868014426 | AO56: 3.629013446 | AP56: 0.0001 | AQ56: 0.0055 | AR56: 0.0003629013446
B57: 56 | C57: 0.4288439427 | D57: 0.5146106619 | E57: 0.9125257369 | F57: 0.3793703669 | G57: -0.1793181637 | H57: 0.03663168913 | I57: 1.35647361 | J57: -0.3071348481 | K57: =MMULT(G57:J57,'Analisi Correlazione'!$U$24:$X$27) -> -0.1793181637 | L57: -0.05990719626 | M57: 1.049582671 | N57: 0.1078964196 | O57: =K57*'Analisi Correlazione'!$W$7+'Analisi Correlazione'!$W$5 -> -0.005138768016 | P57: =H57*'Analisi Correlazione'!$X$7+'Analisi Correlazione'!$X$5 -> 0.0009124521812 | Q57: =M57*'Analisi Correlazione'!$Y$7+'Analisi Correlazione'!$Y$5 -> 0.02190916913 | R57: =N57*'Analisi Correlazione'!$Z$7+'Analisi Correlazione'!$Z$5 -> 0.003056380502 | S57: 4.020739234 | T57: 3.799459957 | U57: 0.0001 | V57: 0.0056 | W57: 0.0003799459957 | AF57: =MMULT(G57:J57,'Analisi Correlazione'!$U$38:$X$41) -> -0.1793181637 | AG57: -0.1025471167 | AH57: 0.898363434 | AI57: 0.1807267767 | AJ57: =AF57*'Analisi Correlazione'!$AA$9+'Analisi Correlazione'!$W$5 -> -0.007955609971 | AK57: =AG57*'Analisi Correlazione'!$AB$9+'Analisi Correlazione'!$X$5 -> -0.003239758899 | AL57: =AH57*'Analisi Correlazione'!$AC$9+'Analisi Correlazione'!$Y$5 -> 0.02944893975 | AM57: =AI57*'Analisi Correlazione'!$AD$9+'Analisi Correlazione'!$Z$5 -> 0.009115906177 | AN57: 4.027369477 | AO57: 3.629080012 | AP57: 0.0001 | AQ57: 0.0056 | AR57: 0.0003629080012
B58: 57 | C58: 0.08376967365 | D58: 0.3190495322 | E58: 0.581170568 | F58: 0.7298324408 | G58: -1.380153631 | H58: -0.4703582819 | I58: 0.2048889816 | J58: 0.6123063059 | K58: =MMULT(G58:J58,'Analisi Correlazione'!$U$24:$X$27) -> -1.380153631 | L58: -1.108274426 | M58: -0.6290745157 | N58: -0.3641849033 | O58: =K58*'Analisi Correlazione'!$W$7+'Analisi Correlazione'!$W$5 -> -0.04159936419 | P58: =H58*'Analisi Correlazione'!$X$7+'Analisi Correlazione'!$X$5 -> -0.01024010586 | Q58: =M58*'Analisi Correlazione'!$Y$7+'Analisi Correlazione'!$Y$5 -> -0.01328711127 | R58: =N58*'Analisi Correlazione'!$Z$7+'Analisi Correlazione'!$Z$5 -> -0.0122064507 | S58: 3.922666968 | T58: 3.79950061 | U58: 0.0001 | V58: 0.0057 | W58: 0.000379950061 | AF58: =MMULT(G58:J58,'Analisi Correlazione'!$U$38:$X$41) -> -1.380153631 | AG58: -1.315419566 | AH58: -0.8287512335 | AI58: -0.6813317344 | AJ58: =AF58*'Analisi Correlazione'!$AA$9+'Analisi Correlazione'!$W$5 -> -0.0632796813 | AK58: =AG58*'Analisi Correlazione'!$AB$9+'Analisi Correlazione'!$X$5 -> -0.04281921387 | AL58: =AH58*'Analisi Correlazione'!$AC$9+'Analisi Correlazione'!$Y$5 -> -0.0273541681 | AM58: =AI58*'Analisi Correlazione'!$AD$9+'Analisi Correlazione'!$Z$5 -> -0.03642722851 | AN58: 3.830119708 | AO58: 3.629823586 | AP58: 0.0001 | AQ58: 0.0057 | AR58: 0.0003629823586
B59: 58 | C59: 0.8063747404 | D59: 0.8170392937 | E59: 0.7222488926 | F59: 0.2022685134 | G59: 0.8646143034 | H59: 0.9041395434 | I59: 0.5895353367 | J59: -0.833545715 | K59: =MMULT(G59:J59,'Analisi Correlazione'!$U$24:$X$27) -> 0.8646143034 | L59: 1.218613066 | M59: 1.150689382 | N59: 0.2686162581 | O59: =K59*'Analisi Correlazione'!$W$7+'Analisi Correlazione'!$W$5 -> 0.02655783085 | P59: =H59*'Analisi Correlazione'!$X$7+'Analisi Correlazione'!$X$5 -> 0.01999553518 | Q59: =M59*'Analisi Correlazione'!$Y$7+'Analisi Correlazione'!$Y$5 -> 0.02402906603 | R59: =N59*'Analisi Correlazione'!$Z$7+'Analisi Correlazione'!$Z$5 -> 0.008252603374 | S59: 4.078835035 | T59: 3.800167855 | U59: 0.0001 | V59: 0.0058 | W59: 0.0003800167855 | AF59: =MMULT(G59:J59,'Analisi Correlazione'!$U$38:$X$41) -> 0.8646143034 | AG59: 1.250320514 | AH59: 1.185909206 | AI59: 0.5333776666 | AJ59: =AF59*'Analisi Correlazione'!$AA$9+'Analisi Correlazione'!$W$5 -> 0.04013973351 | AK59: =AG59*'Analisi Correlazione'!$AB$9+'Analisi Correlazione'!$X$5 -> 0.0409081344 | AL59: =AH59*'Analisi Correlazione'!$AC$9+'Analisi Correlazione'!$Y$5 -> 0.03890603823 | AM59: =AI59*'Analisi Correlazione'!$AD$9+'Analisi Correlazione'!$Z$5 -> 0.02774669141 | AN59: 4.147700598 | AO59: 3.630134953 | AP59: 0.0001 | AQ59: 0.0058 | AR59: 0.0003630134953
B60: 59 | C60: 0.2667945364 | D60: 0.04125466847 | E60: 0.4416325717 | F60: 0.6835143161 | G60: -0.6225366189 | H60: -1.736308297 | I60: -0.1468313447 | J60: 0.4775488166 | K60: =MMULT(G60:J60,'Analisi Correlazione'!$U$24:$X$27) -> -0.6225366189 | L60: -1.811093291 | M60: -0.8820682744 | N60: -0.4571050593 | O60: =K60*'Analisi Correlazione'!$W$7+'Analisi Correlazione'!$W$5 -> -0.01859607299 | P60: =H60*'Analisi Correlazione'!$X$7+'Analisi Correlazione'!$X$5 -> -0.03808795657 | Q60: =M60*'Analisi Correlazione'!$Y$7+'Analisi Correlazione'!$Y$5 -> -0.0185916126 | R60: =N60*'Analisi Correlazione'!$Z$7+'Analisi Correlazione'!$Z$5 -> -0.01521064635 | S60: 3.909513711 | T60: 3.800418992 | U60: 0.0001 | V60: 0.0059 | W60: 0.0003800418992 | AF60: =MMULT(G60:J60,'Analisi Correlazione'!$U$38:$X$41) -> -0.6225366189 | AG60: -1.65930309 | AH60: -0.8894043624 | AI60: -0.5401441151 | AJ60: =AF60*'Analisi Correlazione'!$AA$9+'Analisi Correlazione'!$W$5 -> -0.02837526786 | AK60: =AG60*'Analisi Correlazione'!$AB$9+'Analisi Correlazione'!$X$5 -> -0.05404110489 | AL60: =AH60*'Analisi Correlazione'!$AC$9+'Analisi Correlazione'!$Y$5 -> -0.02934899003 | AM60: =AI60*'Analisi Correlazione'!$AD$9+'Analisi Correlazione'!$Z$5 -> -0.02896819101 | AN60: 3.859266446 | AO60: 3.63048059 | AP60: 0.0001 | AQ60: 0.0059 | AR60: 0.000363048059
B61: 60 | C61: 0.8615124662 | D61: 0.8546804939 | E61: 0.3191657802 | F61: 0.6980839587 | G61: 1.087139717 | H61: 1.056720837 | I61: -0.4700328326 | J61: 0.5188976988 | K61: =MMULT(G61:J61,'Analisi Correlazione'!$U$24:$X$27) -> 1.087139717 | L61: 1.463324275 | M61: 0.4187183779 | N61: 1.089557974 | O61: =K61*'Analisi Correlazione'!$W$7+'Analisi Correlazione'!$W$5 -> 0.03331430121 | P61: =H61*'Analisi Correlazione'!$X$7+'Analisi Correlazione'!$X$5 -> 0.02335195608 | Q61: =M61*'Analisi Correlazione'!$Y$7+'Analisi Correlazione'!$Y$5 -> 0.008681884414 | R61: =N61*'Analisi Correlazione'!$Z$7+'Analisi Correlazione'!$Z$5 -> 0.03479441775 | S61: 4.100142559 | T61: 3.800798166 | U61: 0.0001 | V61: 0.006 | W61: 0.0003800798166 | AF61: =MMULT(G61:J61,'Analisi Correlazione'!$U$38:$X$41) -> 1.087139717 | AG61: 1.516082537 | AH61: 0.5767542319 | AI61: 1.101675246 | AJ61: =AF61*'Analisi Correlazione'!$AA$9+'Analisi Correlazione'!$W$5 -> 0.05039177235 | AK61: =AG61*'Analisi Correlazione'!$AB$9+'Analisi Correlazione'!$X$5 -> 0.04958070009 | AL61: =AH61*'Analisi Correlazione'!$AC$9+'Analisi Correlazione'!$Y$5 -> 0.01887152845 | AM61: =AI61*'Analisi Correlazione'!$AD$9+'Analisi Correlazione'!$Z$5 -> 0.05777023723 | AN61: 4.176614238 | AO61: 3.632190207 | AP61: 0.0001 | AQ61: 0.006 | AR61: 0.0003632190207
B62: 61 | C62: 0.2542293589 | D62: 0.7028823269 | E62: 0.2322404766 | F62: 0.4116959107 | G62: -0.6612395244 | H62: 0.5327085506 | I62: -0.7314882923 | J62: -0.2231846201 | K62: =MMULT(G62:J62,'Analisi Correlazione'!$U$24:$X$27) -> -0.6612395244 | L62: 0.1211622702 | M62: -0.7925603625 | N62: -0.6305923347 | O62: =K62*'Analisi Correlazione'!$W$7+'Analisi Correlazione'!$W$5 -> -0.01977119735 | P62: =H62*'Analisi Correlazione'!$X$7+'Analisi Correlazione'!$X$5 -> 0.0118249481 | Q62: =M62*'Analisi Correlazione'!$Y$7+'Analisi Correlazione'!$Y$5 -> -0.01671490686 | R62: =N62*'Analisi Correlazione'!$Z$7+'Analisi Correlazione'!$Z$5 -> -0.02081965241 | S62: 3.954519191 | T62: 3.800817872 | U62: 0.0001 | V62: 0.0061 | W62: 0.0003800817872 | AF62: =MMULT(G62:J62,'Analisi Correlazione'!$U$38:$X$41) -> -0.6612395244 | AG62: -0.1000492796 | AH62: -0.8427946983 | AI62: -0.7752880559 | AJ62: =AF62*'Analisi Correlazione'!$AA$9+'Analisi Correlazione'!$W$5 -> -0.03015836168 | AK62: =AG62*'Analisi Correlazione'!$AB$9+'Analisi Correlazione'!$X$5 -> -0.003158247415 | AL62: =AH62*'Analisi Correlazione'!$AC$9+'Analisi Correlazione'!$Y$5 -> -0.02781604388 | AM62: =AI62*'Analisi Correlazione'!$AD$9+'Analisi Correlazione'!$Z$5 -> -0.04139100458 | AN62: 3.897476342 | AO62: 3.632458783 | AP62: 0.0001 | AQ62: 0.0061 | AR62: 0.0003632458783
B63: 62 | C63: 0.4575952161 | D63: 0.8672380254 | E63: 0.4833411807 | F63: 0.223442012 | G63: -0.1064939792 | H63: 1.113429644 | I63: -0.04176961018 | J63: -0.7606200776 | K63: =MMULT(G63:J63,'Analisi Correlazione'!$U$24:$X$27) -> -0.1064939792 | L63: 0.90356682 | M63: 0.2048634229 | N63: -0.3627312472 | O63: =K63*'Analisi Correlazione'!$W$7+'Analisi Correlazione'!$W$5 -> -0.002927629809 | P63: =H63*'Analisi Correlazione'!$X$7+'Analisi Correlazione'!$X$5 -> 0.02459941322 | Q63: =M63*'Analisi Correlazione'!$Y$7+'Analisi Correlazione'!$Y$5 -> 0.004198003473 | R63: =N63*'Analisi Correlazione'!$Z$7+'Analisi Correlazione'!$Z$5 -> -0.01215945264 | S63: 4.013710334 | T63: 3.800897796 | U63: 0.0001 | V63: 0.0062 | W63: 0.0003800897796 | AF63: =MMULT(G63:J63,'Analisi Correlazione'!$U$38:$X$41) -> -0.1064939792 | AG63: 0.7026000302 | AH63: 0.1487754824 | AI63: -0.3249662449 | AJ63: =AF63*'Analisi Correlazione'!$AA$9+'Analisi Correlazione'!$W$5 -> -0.004600503892 | AK63: =AG63*'Analisi Correlazione'!$AB$9+'Analisi Correlazione'!$X$5 -> 0.02303446743 | AL63: =AH63*'Analisi Correlazione'!$AC$9+'Analisi Correlazione'!$Y$5 -> 0.004795727051 | AM63: =AI63*'Analisi Correlazione'!$AD$9+'Analisi Correlazione'!$Z$5 -> -0.01760019847 | AN63: 4.005629492 | AO63: 3.632929472 | AP63: 0.0001 | AQ63: 0.0062 | AR63: 0.0003632929472
B64: 63 | C64: 0.8411183954 | D64: 0.1492954844 | E64: 0.8131051141 | F64: 0.178546878 | G64: 0.9990649906 | H64: -1.039459748 | I64: 0.8893969719 | J64: -0.9209170121 | K64: =MMULT(G64:J64,'Analisi Correlazione'!$U$24:$X$27) -> 0.9990649906 | L64: -0.3848781559 | M64: 0.9565721267 | N64: -0.09381061003 | O64: =K64*'Analisi Correlazione'!$W$7+'Analisi Correlazione'!$W$5 -> 0.03064011551 | P64: =H64*'Analisi Correlazione'!$X$7+'Analisi Correlazione'!$X$5 -> -0.02275896718 | Q64: =M64*'Analisi Correlazione'!$Y$7+'Analisi Correlazione'!$Y$5 -> 0.01995902397 | R64: =N64*'Analisi Correlazione'!$Z$7+'Analisi Correlazione'!$Z$5 -> -0.003464996635 | S64: 4.024375176 | T64: 3.801572967 | U64: 0.0001 | V64: 0.0063 | W64: 0.0003801572967 | AF64: =MMULT(G64:J64,'Analisi Correlazione'!$U$38:$X$41) -> 0.9990649906 | AG64: -0.01290585918 | AH64: 1.061539744 | AI64: 0.3565996163 | AJ64: =AF64*'Analisi Correlazione'!$AA$9+'Analisi Correlazione'!$W$5 -> 0.04633405372 | AK64: =AG64*'Analisi Correlazione'!$AB$9+'Analisi Correlazione'!$X$5 -> -0.0003145113855 | AL64: =AH64*'Analisi Correlazione'!$AC$9+'Analisi Correlazione'!$Y$5 -> 0.03481564859 | AM64: =AI64*'Analisi Correlazione'!$AD$9+'Analisi Correlazione'!$Z$5 -> 0.01840738735 | AN64: 4.099242578 | AO64: 3.633824202 | AP64: 0.0001 | AQ64: 0.0063 | AR64: 0.0003633824202
B65: 64 | C65: 0.004447836665 | D65: 0.9998694788 | E65: 0.008569386574 | F65: 0.5884538915 | G65: -2.616037707 | H65: 3.651175938 | I65: -2.383717075 | J65: 0.2235696046 | K65: =MMULT(G65:J65,'Analisi Correlazione'!$U$24:$X$27) -> -2.616037707 | L65: 1.807311236 | M65: -2.306836218 | N65: -1.153255027 | O65: =K65*'Analisi Correlazione'!$W$7+'Analisi Correlazione'!$W$5 -> -0.07912413041 | P65: =H65*'Analisi Correlazione'!$X$7+'Analisi Correlazione'!$X$5 -> 0.08042371835 | Q65: =M65*'Analisi Correlazione'!$Y$7+'Analisi Correlazione'!$Y$5 -> -0.04846461611 | R65: =N65*'Analisi Correlazione'!$Z$7+'Analisi Correlazione'!$Z$5 -> -0.03771782665 | S65: 3.915117145 | T65: 3.801606769 | U65: 0.0001 | V65: 0.0064 | W65: 0.0003801606769 | AF65: =MMULT(G65:J65,'Analisi Correlazione'!$U$38:$X$41) -> -2.616037707 | AG65: 0.6837779096 | AH65: -2.613818692 | AI65: -2.009374397 | AJ65: =AF65*'Analisi Correlazione'!$AA$9+'Analisi Correlazione'!$W$5 -> -0.1202184882 | AK65: =AG65*'Analisi Correlazione'!$AB$9+'Analisi Correlazione'!$X$5 -> 0.02242024845 | AL65: =AH65*'Analisi Correlazione'!$AC$9+'Analisi Correlazione'!$Y$5 -> -0.08606328641 | AM65: =AI65*'Analisi Correlazione'!$AD$9+'Analisi Correlazione'!$Z$5 -> -0.1065886213 | AN65: 3.709549853 | AO65: 3.634356191 | AP65: 0.0001 | AQ65: 0.0064 | AR65: 0.0003634356191
B66: 65 | C66: 0.836011771 | D66: 0.1703083352 | E66: 0.3221335635 | F66: 0.9337110404 | G66: 0.9781978938 | H66: -0.9529475022 | I66: -0.4617409141 | J66: 1.504013389 | K66: =MMULT(G66:J66,'Analisi Correlazione'!$U$24:$X$27) -> 0.9781978938 | L66: -0.3210920418 | M66: -0.1543812863 | N66: 1.272077019 | O66: =K66*'Analisi Correlazione'!$W$7+'Analisi Correlazione'!$W$5 -> 0.0300065343 | P66: =H66*'Analisi Correlazione'!$X$7+'Analisi Correlazione'!$X$5 -> -0.02085590617 | Q66: =M66*'Analisi Correlazione'!$Y$7+'Analisi Correlazione'!$Y$5 -> -0.00333425363 | R66: =N66*'Analisi Correlazione'!$Z$7+'Analisi Correlazione'!$Z$5 -> 0.04069542938 | S66: 4.046511804 | T66: 3.802352001 | U66: 0.0001 | V66: 0.0065 | W66: 0.0003802352001 | AF66: =MMULT(G66:J66,'Analisi Correlazione'!$U$38:$X$41) -> 0.9781978938 | AG66: 0.03268486015 | AH66: 0.06742279562 | AI66: 1.228211436 | AJ66: =AF66*'Analisi Correlazione'!$AA$9+'Analisi Correlazione'!$W$5 -> 0.04537267909 | AK66: =AG66*'Analisi Correlazione'!$AB$9+'Analisi Correlazione'!$X$5 -> 0.001173242602 | AL66: =AH66*'Analisi Correlazione'!$AC$9+'Analisi Correlazione'!$Y$5 -> 0.002120116955 | AM66: =AI66*'Analisi Correlazione'!$AD$9+'Analisi Correlazione'!$Z$5 -> 0.06445522981 | AN66: 4.113121268 | AO66: 3.634634953 | AP66: 0.0001 | AQ66: 0.0065 | AR66: 0.0003634634953
B67: 66 | C67: 0.589861038 | D67: 0.9822336732 | E67: 0.1960309719 | F67: 0.6405294074 | G67: =_xlfn.NORM.S.INV(C67) -> 0.2271875299 | H67: =_xlfn.NORM.S.INV(D67) -> 2.102235476 | I67: =_xlfn.NORM.S.INV(E67) -> -0.8558840039 | J67: =_xlfn.NORM.S.INV(F67) -> 0.3598742354 | K67: =MMULT(G67:J67,'Analisi Correlazione'!$U$24:$X$27) -> 0.2271875299 | L67: 1.92433434 | M67: -0.04944015205 | N67: 0.6270073746 | O67: =K67*'Analisi Correlazione'!$W$7+'Analisi Correlazione'!$W$5 -> 0.007203838725 | P67: =H67*'Analisi Correlazione'!$X$7+'Analisi Correlazione'!$X$5 -> 0.04635075953 | Q67: =M67*'Analisi Correlazione'!$Y$7+'Analisi Correlazione'!$Y$5 -> -0.001133960671 | R67: =N67*'Analisi Correlazione'!$Z$7+'Analisi Correlazione'!$Z$5 -> 0.01983972375 | S67: =(4+O67+P67+Q67+R67) -> 4.072260361 | T67: 3.802365506 | U67: =1/10000 -> 0.0001 | V67: 0.0066 | W67: =T67*U67 -> 0.0003802365506 | AF67: =MMULT(G67:J67,'Analisi Correlazione'!$U$38:$X$41) -> 0.2271875299 | AG67: 1.632653286 | AH67: -0.02243476044 | AI67: 0.4253109067 | AJ67: =AF67*'Analisi Correlazione'!$AA$9+'Analisi Correlazione'!$W$5 -> 0.01077264265 | AK67: =AG67*'Analisi Correlazione'!$AB$9+'Analisi Correlazione'!$X$5 -> 0.05338473302 | AL67: =AH67*'Analisi Correlazione'!$AC$9+'Analisi Correlazione'!$Y$5 -> -0.0008352099516 | AM67: =AI67*'Analisi Correlazione'!$AD$9+'Analisi Correlazione'!$Z$5 -> 0.02203745133 | AN67: =(4+AJ67+AK67+AL67+AM67) -> 4.085359617 | AO67: 3.636152085 | AP67: =1/10000 -> 0.0001 | AQ67: 0.0066 | AR67: 0.0003636152085
B68: 67 | C68: 0.620698419 | D68: 0.1766734095 | E68: 0.2303433882 | F68: 0.5307333894 | G68: 0.3073156011 | H68: -0.9281171217 | I68: -0.7377164457 | J68: 0.07711354059 | K68: =MMULT(G68:J68,'Analisi Correlazione'!$U$24:$X$27) -> 0.3073156011 | L68: -0.6417627365 | M68: -0.7060171652 | N68: -0.2264098657 | O68: =K68*'Analisi Correlazione'!$W$7+'Analisi Correlazione'!$W$5 -> 0.009636742586 | P68: =H68*'Analisi Correlazione'!$X$7+'Analisi Correlazione'!$X$5 -> -0.02030969761 | Q68: =M68*'Analisi Correlazione'!$Y$7+'Analisi Correlazione'!$Y$5 -> -0.01490036208 | R68: =N68*'Analisi Correlazione'!$Z$7+'Analisi Correlazione'!$Z$5 -> -0.007752054733 | S68: 3.966674628 | T68: 3.80288233 | U68: 0.0001 | V68: =V67+U68 -> 0.0067 | W68: 0.000380288233 | AF68: =MMULT(G68:J68,'Analisi Correlazione'!$U$38:$X$41) -> 0.3073156011 | AG68: -0.4294589534 | AH68: -0.557124494 | AI68: -0.1495276848 | AJ68: =AF68*'Analisi Correlazione'!$AA$9+'Analisi Correlazione'!$W$5 -> 0.0144642484 | AK68: =AG68*'Analisi Correlazione'!$AB$9+'Analisi Correlazione'!$X$5 -> -0.01390781581 | AL68: =AH68*'Analisi Correlazione'!$AC$9+'Analisi Correlazione'!$Y$5 -> -0.01842063098 | AM68: =AI68*'Analisi Correlazione'!$AD$9+'Analisi Correlazione'!$Z$5 -> -0.008331660577 | AN68: 3.973804141 | AO68: 3.637782475 | AP68: 0.0001 | AQ68: =AQ67+AP68 -> 0.0067 | AR68: =AO68*AP68 -> 0.0003637782475
B69: 68 | C69: 0.9682040375 | D69: 0.4024340051 | E69: 0.9476090664 | F69: 0.06541106484 | G69: 1.855030124 | H69: -0.2470519621 | I69: 1.622100332 | J69: -1.510867826 | K69: =MMULT(G69:J69,'Analisi Correlazione'!$U$24:$X$27) -> 1.855030124 | L69: 0.7332048891 | M69: 2.192782147 | N69: 0.3666005436 | O69: =K69*'Analisi Correlazione'!$W$7+'Analisi Correlazione'!$W$5 -> 0.05662952031 | P69: =H69*'Analisi Correlazione'!$X$7+'Analisi Correlazione'!$X$5 -> -0.005327904762 | Q69: =M69*'Analisi Correlazione'!$Y$7+'Analisi Correlazione'!$Y$5 -> 0.04587854753 | R69: =N69*'Analisi Correlazione'!$Z$7+'Analisi Correlazione'!$Z$5 -> 0.01142052707 | S69: 4.10860069 | T69: 3.803214759 | U69: 0.0001 | V69: 0.0068 | W69: 0.0003803214759 | AF69: =MMULT(G69:J69,'Analisi Correlazione'!$U$38:$X$41) -> 1.855030124 | AG69: 1.15308918 | AH69: 2.323115352 | AI69: 1.050142878 | AJ69: =AF69*'Analisi Correlazione'!$AA$9+'Analisi Correlazione'!$W$5 -> 0.08576949461 | AK69: =AG69*'Analisi Correlazione'!$AB$9+'Analisi Correlazione'!$X$5 -> 0.03773520123 | AL69: =AH69*'Analisi Correlazione'!$AC$9+'Analisi Correlazione'!$Y$5 -> 0.07630763326 | AM69: =AI69*'Analisi Correlazione'!$AD$9+'Analisi Correlazione'!$Z$5 -> 0.05504774737 | AN69: 4.254860076 | AO69: 3.638050082 | AP69: 0.0001 | AQ69: 0.0068 | AR69: 0.0003638050082
B70: 69 | C70: 0.3079503899 | D70: 0.5351279502 | E70: 0.9398211601 | F70: 0.175335876 | G70: -0.5016684234 | H70: 0.08816680581 | I70: 1.553274039 | J70: -0.9332871033 | K70: =MMULT(G70:J70,'Analisi Correlazione'!$U$24:$X$27) -> -0.5016684234 | L70: -0.1799144527 | M70: 1.068788191 | N70: -0.4560972018 | O70: =K70*'Analisi Correlazione'!$W$7+'Analisi Correlazione'!$W$5 -> -0.01492618933 | P70: =H70*'Analisi Correlazione'!$X$7+'Analisi Correlazione'!$X$5 -> 0.002046100602 | Q70: =M70*'Analisi Correlazione'!$Y$7+'Analisi Correlazione'!$Y$5 -> 0.02231184983 | R70: =N70*'Analisi Correlazione'!$Z$7+'Analisi Correlazione'!$Z$5 -> -0.01517806138 | S70: 3.9942537 | T70: 3.803371887 | U70: 0.0001 | V70: 0.0069 | W70: 0.0003803371887 | AF70: =MMULT(G70:J70,'Analisi Correlazione'!$U$38:$X$41) -> -0.5016684234 | AG70: -0.2969024841 | AH70: 0.850890218 | AI70: -0.3257067886 | AJ70: =AF70*'Analisi Correlazione'!$AA$9+'Analisi Correlazione'!$W$5 -> -0.02280671093 | AK70: =AG70*'Analisi Correlazione'!$AB$9+'Analisi Correlazione'!$X$5 -> -0.009582123681 | AL70: =AH70*'Analisi Correlazione'!$AC$9+'Analisi Correlazione'!$Y$5 -> 0.02788759223 | AM70: =AI70*'Analisi Correlazione'!$AD$9+'Analisi Correlazione'!$Z$5 -> -0.01763932189 | AN70: 3.977859436 | AO70: 3.639822564 | AP70: 0.0001 | AQ70: 0.0069 | AR70: 0.0003639822564
B71: 70 | C71: 0.6392692036 | D71: 0.8583895827 | E71: 0.02218111903 | F71: 0.6917482209 | G71: 0.356506089 | H71: 1.073112073 | I71: -2.010651899 | J71: 0.5008118312 | K71: =MMULT(G71:J71,'Analisi Correlazione'!$U$24:$X$27) -> 0.356506089 | L71: 1.104930911 | M71: -1.215887244 | N71: 0.1943114554 | O71: =K71*'Analisi Correlazione'!$W$7+'Analisi Correlazione'!$W$5 -> 0.01113029817 | P71: =H71*'Analisi Correlazione'!$X$7+'Analisi Correlazione'!$X$5 -> 0.02371252379 | Q71: =M71*'Analisi Correlazione'!$Y$7+'Analisi Correlazione'!$Y$5 -> -0.02559077012 | R71: =N71*'Analisi Correlazione'!$Z$7+'Analisi Correlazione'!$Z$5 -> 0.005850259525 | S71: 4.015102311 | T71: 3.803721397 | U71: 0.0001 | V71: 0.007 | W71: 0.0003803721397 | AF71: =MMULT(G71:J71,'Analisi Correlazione'!$U$38:$X$41) -> 0.356506089 | AG71: 1.005329539 | AH71: -1.023654978 | AI71: 0.01675954218 | AJ71: =AF71*'Analisi Correlazione'!$AA$9+'Analisi Correlazione'!$W$5 -> 0.01673051896 | AK71: =AG71*'Analisi Correlazione'!$AB$9+'Analisi Correlazione'!$X$5 -> 0.03291338665 | AL71: =AH71*'Analisi Correlazione'!$AC$9+'Analisi Correlazione'!$Y$5 -> -0.03376436115 | AM71: =AI71*'Analisi Correlazione'!$AD$9+'Analisi Correlazione'!$Z$5 -> 0.0004534061865 | AN71: 4.016332951 | AO71: 3.640230049 | AP71: 0.0001 | AQ71: 0.007 | AR71: 0.0003640230049
B72: 71 | C72: 0.6886141589 | D72: 0.8799825553 | E72: 0.2515177134 | F72: 0.1824202012 | G72: 0.4919259649 | H72: 1.17489959 | I72: -0.6697213691 | J72: -0.9061803492 | K72: =MMULT(G72:J72,'Analisi Correlazione'!$U$24:$X$27) -> 0.4919259649 | L72: 1.261536833 | M72: -0.007955485748 | N72: -0.3194482279 | O72: =K72*'Analisi Correlazione'!$W$7+'Analisi Correlazione'!$W$5 -> 0.01524201001 | P72: =H72*'Analisi Correlazione'!$X$7+'Analisi Correlazione'!$X$5 -> 0.02595160396 | Q72: =M72*'Analisi Correlazione'!$Y$7+'Analisi Correlazione'!$Y$5 -> -0.0002641547578 | R72: =N72*'Analisi Correlazione'!$Z$7+'Analisi Correlazione'!$Z$5 -> -0.0107600721 | S72: 4.030169387 | T72: 3.803771159 | U72: 0.0001 | V72: 0.0071 | W72: 0.0003803771159 | AF72: =MMULT(G72:J72,'Analisi Correlazione'!$U$38:$X$41) -> 0.4919259649 | AG72: 1.173308898 | AH72: 0.07742952524 | AI72: -0.1767433233 | AJ72: =AF72*'Analisi Correlazione'!$AA$9+'Analisi Correlazione'!$W$5 -> 0.02296949097 | AK72: =AG72*'Analisi Correlazione'!$AB$9+'Analisi Correlazione'!$X$5 -> 0.03839502776 | AL72: =AH72*'Analisi Correlazione'!$AC$9+'Analisi Correlazione'!$Y$5 -> 0.00244922848 | AM72: =AI72*'Analisi Correlazione'!$AD$9+'Analisi Correlazione'!$Z$5 -> -0.009769481182 | AN72: 4.054044266 | AO72: 3.640242228 | AP72: 0.0001 | AQ72: 0.0071 | AR72: 0.0003640242228
B73: 72 | C73: 0.04198148629 | D73: 0.4149469012 | E73: 0.7376068929 | F73: 0.7995530058 | G73: -1.728140865 | H73: -0.2148377724 | I73: 0.6359849763 | J73: 0.8400256797 | K73: =MMULT(G73:J73,'Analisi Correlazione'!$U$24:$X$27) -> -1.728140865 | L73: -1.065867701 | M73: -0.3741717794 | N73: -0.1939054967 | O73: =K73*'Analisi Correlazione'!$W$7+'Analisi Correlazione'!$W$5 -> -0.05216519302 | P73: =H73*'Analisi Correlazione'!$X$7+'Analisi Correlazione'!$X$5 -> -0.00461927019 | Q73: =M73*'Analisi Correlazione'!$Y$7+'Analisi Correlazione'!$Y$5 -> -0.007942584553 | R73: =N73*'Analisi Correlazione'!$Z$7+'Analisi Correlazione'!$Z$5 -> -0.006701158046 | S73: 3.928571794 | T73: 3.804013076 | U73: 0.0001 | V73: 0.0072 | W73: 0.0003804013076 | AF73: =MMULT(G73:J73,'Analisi Correlazione'!$U$38:$X$41) -> -1.728140865 | AG73: -1.385434495 | AH73: -0.6737713129 | AI73: -0.615083142 | AJ73: =AF73*'Analisi Correlazione'!$AA$9+'Analisi Correlazione'!$W$5 -> -0.07931191141 | AK73: =AG73*'Analisi Correlazione'!$AB$9+'Analisi Correlazione'!$X$5 -> -0.04510399882 | AL73: =AH73*'Analisi Correlazione'!$AC$9+'Analisi Correlazione'!$Y$5 -> -0.02225703047 | AM73: =AI73*'Analisi Correlazione'!$AD$9+'Analisi Correlazione'!$Z$5 -> -0.03292727053 | AN73: 3.820399789 | AO73: 3.64051582 | AP73: 0.0001 | AQ73: 0.0072 | AR73: 0.000364051582
B74: 73 | C74: 0.2786814356 | D74: 0.8513580609 | E74: 0.6809075371 | F74: 0.03183847697 | G74: -0.5867630274 | H74: 1.042275694 | I74: 0.4702380869 | J74: -1.854434982 | K74: =MMULT(G74:J74,'Analisi Correlazione'!$U$24:$X$27) -> -0.5867630274 | L74: 0.5975019993 | M74: 0.3766286393 | N74: -1.288217605 | O74: =K74*'Analisi Correlazione'!$W$7+'Analisi Correlazione'!$W$5 -> -0.01750989049 | P74: =H74*'Analisi Correlazione'!$X$7+'Analisi Correlazione'!$X$5 -> 0.02303419772 | Q74: =M74*'Analisi Correlazione'!$Y$7+'Analisi Correlazione'!$Y$5 -> 0.007799391993 | R74: =N74*'Analisi Correlazione'!$Z$7+'Analisi Correlazione'!$Z$5 -> -0.04208129317 | S74: 3.971242406 | T74: 3.80493228 | U74: 0.0001 | V74: 0.0073 | W74: 0.000380493228 | AF74: =MMULT(G74:J74,'Analisi Correlazione'!$U$38:$X$41) -> -0.5867630274 | AG74: 0.3095660847 | AH74: 0.2071381523 | AI74: -1.117286293 | AJ74: =AF74*'Analisi Correlazione'!$AA$9+'Analisi Correlazione'!$W$5 -> -0.02672713139 | AK74: =AG74*'Analisi Correlazione'!$AB$9+'Analisi Correlazione'!$X$5 -> 0.01020865928 | AL74: =AH74*'Analisi Correlazione'!$AC$9+'Analisi Correlazione'!$Y$5 -> 0.006715218036 | AM74: =AI74*'Analisi Correlazione'!$AD$9+'Analisi Correlazione'!$Z$5 -> -0.05945900296 | AN74: 3.930737743 | AO74: 3.641147345 | AP74: 0.0001 | AQ74: 0.0073 | AR74: 0.0003641147345
B75: 74 | C75: 0.8138698937 | D75: 0.2885119893 | E75: 0.6373506842 | F75: 0.6630932973 | G75: 0.8922476394 | H75: -0.557737014 | I75: 0.3513862031 | J75: 0.4209201301 | K75: =MMULT(G75:J75,'Analisi Correlazione'!$U$24:$X$27) -> 0.8922476394 | L75: -0.02492029783 | M75: 0.5831440675 | N75: 0.778847482 | O75: =K75*'Analisi Correlazione'!$W$7+'Analisi Correlazione'!$W$5 -> 0.02739685329 | P75: =H75*'Analisi Correlazione'!$X$7+'Analisi Correlazione'!$X$5 -> -0.01216222748 | Q75: =M75*'Analisi Correlazione'!$Y$7+'Analisi Correlazione'!$Y$5 -> 0.01212938562 | R75: =N75*'Analisi Correlazione'!$Z$7+'Analisi Correlazione'!$Z$5 -> 0.0247488566 | S75: 4.052112868 | T75: 3.805143074 | U75: 0.0001 | V75: 0.0074 | W75: 0.0003805143074 | AF75: =MMULT(G75:J75,'Analisi Correlazione'!$U$38:$X$41) -> 0.8922476394 | AG75: 0.2476566571 | AH75: 0.702506078 | AI75: 0.9168278006 | AJ75: =AF75*'Analisi Correlazione'!$AA$9+'Analisi Correlazione'!$W$5 -> 0.04141283769 | AK75: =AG75*'Analisi Correlazione'!$AB$9+'Analisi Correlazione'!$X$5 -> 0.008188379733 | AL75: =AH75*'Analisi Correlazione'!$AC$9+'Analisi Correlazione'!$Y$5 -> 0.02300738336 | AM75: =AI75*'Analisi Correlazione'!$AD$9+'Analisi Correlazione'!$Z$5 -> 0.04800462156 | AN75: 4.120613222 | AO75: 3.641647421 | AP75: 0.0001 | AQ75: 0.0074 | AR75: 0.0003641647421
B76: 75 | C76: 0.5350479735 | D76: 0.3316029437 | E76: 0.2875659576 | F76: 0.1740081557 | G76: 0.08796555524 | H76: -0.4354912519 | I76: -0.560509568 | J76: -0.9384439448 | K76: =MMULT(G76:J76,'Analisi Correlazione'!$U$24:$X$27) -> 0.08796555524 | L76: -0.3297969851 | M76: -0.5370551198 | N76: -0.9192460348 | O76: =K76*'Analisi Correlazione'!$W$7+'Analisi Correlazione'!$W$5 -> 0.002976684937 | P76: =H76*'Analisi Correlazione'!$X$7+'Analisi Correlazione'!$X$5 -> -0.009473115195 | Q76: =M76*'Analisi Correlazione'!$Y$7+'Analisi Correlazione'!$Y$5 -> -0.01135774744 | R76: =N76*'Analisi Correlazione'!$Z$7+'Analisi Correlazione'!$Z$5 -> -0.03015209682 | S76: 3.951993725 | T76: 3.805396979 | U76: 0.0001 | V76: 0.0075 | W76: 0.0003805396979 | AF76: =MMULT(G76:J76,'Analisi Correlazione'!$U$38:$X$41) -> 0.08796555524 | AG76: -0.2417031356 | AH76: -0.4557674459 | AI76: -0.7281272489 | AJ76: =AF76*'Analisi Correlazione'!$AA$9+'Analisi Correlazione'!$W$5 -> 0.004358502938 | AK76: =AG76*'Analisi Correlazione'!$AB$9+'Analisi Correlazione'!$X$5 -> -0.007780812977 | AL76: =AH76*'Analisi Correlazione'!$AC$9+'Analisi Correlazione'!$Y$5 -> -0.01508709706 | AM76: =AI76*'Analisi Correlazione'!$AD$9+'Analisi Correlazione'!$Z$5 -> -0.03889946722 | AN76: 3.942591126 | AO76: 3.641698944 | AP76: 0.0001 | AQ76: 0.0075 | AR76: 0.0003641698944
B77: 76 | C77: 0.3186687971 | D77: 0.5282524079 | E77: 0.8940109634 | F77: 0.9596785206 | G77: -0.4714245412 | H77: 0.0708775835 | I77: 1.248144694 | J77: 1.746967598 | K77: =MMULT(G77:J77,'Analisi Correlazione'!$U$24:$X$27) -> -0.4714245412 | L77: -0.1793689548 | M77: 0.8253759726 | N77: 1.427206865 | O77: =K77*'Analisi Correlazione'!$W$7+'Analisi Correlazione'!$W$5 -> -0.01400790368 | P77: =H77*'Analisi Correlazione'!$X$7+'Analisi Correlazione'!$X$5 -> 0.00166577936 | Q77: =M77*'Analisi Correlazione'!$Y$7+'Analisi Correlazione'!$Y$5 -> 0.01720824396 | R77: =N77*'Analisi Correlazione'!$Z$7+'Analisi Correlazione'!$Z$5 -> 0.04571092256 | S77: 4.050577042 | T77: 3.806231157 | U77: 0.0001 | V77: 0.0076 | W77: 0.0003806231157 | AF77: =MMULT(G77:J77,'Analisi Correlazione'!$U$38:$X$41) -> -0.4714245412 | AG77: -0.2873776424 | AH77: 0.6403944339 | AI77: 1.075074659 | AJ77: =AF77*'Analisi Correlazione'!$AA$9+'Analisi Correlazione'!$W$5 -> -0.02141333545 | AK77: =AG77*'Analisi Correlazione'!$AB$9+'Analisi Correlazione'!$X$5 -> -0.009271301187 | AL77: =AH77*'Analisi Correlazione'!$AC$9+'Analisi Correlazione'!$Y$5 -> 0.02096459229 | AM77: =AI77*'Analisi Correlazione'!$AD$9+'Analisi Correlazione'!$Z$5 -> 0.05636491023 | AN77: 4.046644866 | AO77: 3.641798896 | AP77: 0.0001 | AQ77: 0.0076 | AR77: 0.0003641798896
B78: 77 | C78: 0.4118391744 | D78: 0.04457262778 | E78: 0.9576664372 | F78: 0.1722479439 | G78: -0.2228164703 | H78: -1.699923821 | I78: 1.724225593 | J78: -0.9453193006 | K78: =MMULT(G78:J78,'Analisi Correlazione'!$U$24:$X$27) -> -0.2228164703 | L78: -1.576005659 | M78: 0.8789851031 | N78: -0.6862251488 | O78: =K78*'Analisi Correlazione'!$W$7+'Analisi Correlazione'!$W$5 -> -0.006459493656 | P78: =H78*'Analisi Correlazione'!$X$7+'Analisi Correlazione'!$X$5 -> -0.03728758574 | Q78: =M78*'Analisi Correlazione'!$Y$7+'Analisi Correlazione'!$Y$5 -> 0.01833226261 | R78: =N78*'Analisi Correlazione'!$Z$7+'Analisi Correlazione'!$Z$5 -> -0.02261831339 | S78: 3.95196687 | T78: 3.806937141 | U78: 0.0001 | V78: 0.0077 | W78: 0.0003806937141 | AF78: =MMULT(G78:J78,'Analisi Correlazione'!$U$38:$X$41) -> -0.2228164703 | AG78: -1.348158325 | AH78: 0.7572882267 | AI78: -0.3733602725 | AJ78: =AF78*'Analisi Correlazione'!$AA$9+'Analisi Correlazione'!$W$5 -> -0.009959634238 | AK78: =AG78*'Analisi Correlazione'!$AB$9+'Analisi Correlazione'!$X$5 -> -0.04388757208 | AL78: =AH78*'Analisi Correlazione'!$AC$9+'Analisi Correlazione'!$Y$5 -> 0.02480911452 | AM78: =AI78*'Analisi Correlazione'!$AD$9+'Analisi Correlazione'!$Z$5 -> -0.0201568877 | AN78: 3.95080502 | AO78: 3.641828565 | AP78: 0.0001 | AQ78: 0.0077 | AR78: 0.0003641828565
B79: 78 | C79: 0.1246068353 | D79: 0.5504509242 | E79: 0.8476846469 | F79: 0.06538131059 | G79: -1.152261407 | H79: 0.1268006876 | I79: 1.026553613 | J79: -1.511101388 | K79: =MMULT(G79:J79,'Analisi Correlazione'!$U$24:$X$27) -> -1.152261407 | L79: -0.4783663149 | M79: 0.3222285305 | N79: -1.395537995 | O79: =K79*'Analisi Correlazione'!$W$7+'Analisi Correlazione'!$W$5 -> -0.03467994302 | P79: =H79*'Analisi Correlazione'!$X$7+'Analisi Correlazione'!$X$5 -> 0.002895952933 | Q79: =M79*'Analisi Correlazione'!$Y$7+'Analisi Correlazione'!$Y$5 -> 0.006658788957 | R79: =N79*'Analisi Correlazione'!$Z$7+'Analisi Correlazione'!$Z$5 -> -0.04555106189 | S79: 3.929323737 | T79: 3.807086229 | U79: 0.0001 | V79: 0.0078 | W79: 0.0003807086229 | AF79: =MMULT(G79:J79,'Analisi Correlazione'!$U$38:$X$41) -> -1.152261407 | AG79: -0.7348906514 | AH79: 0.05668897234 | AI79: -1.302678431 | AJ79: =AF79*'Analisi Correlazione'!$AA$9+'Analisi Correlazione'!$W$5 -> -0.05278038644 | AK79: =AG79*'Analisi Correlazione'!$AB$9+'Analisi Correlazione'!$X$5 -> -0.02387491511 | AL79: =AH79*'Analisi Correlazione'!$AC$9+'Analisi Correlazione'!$Y$5 -> 0.001767092033 | AM79: =AI79*'Analisi Correlazione'!$AD$9+'Analisi Correlazione'!$Z$5 -> -0.06925339507 | AN79: 3.855858395 | AO79: 3.642653386 | AP79: 0.0001 | AQ79: 0.0078 | AR79: 0.0003642653386
B80: 79 | C80: 0.2961317025 | D80: 0.3709709852 | E80: 0.0853637986 | F80: 0.6524565833 | G80: -0.5355589511 | H80: -0.3292827643 | I80: -1.369869644 | J80: 0.3919612664 | K80: =MMULT(G80:J80,'Analisi Correlazione'!$U$24:$X$27) -> -0.5355589511 | L80: -0.5563156891 | M80: -1.487645708 | N80: -0.5160501325 | O80: =K80*'Analisi Correlazione'!$W$7+'Analisi Correlazione'!$W$5 -> -0.01595519694 | P80: =H80*'Analisi Correlazione'!$X$7+'Analisi Correlazione'!$X$5 -> -0.007136784319 | Q80: =M80*'Analisi Correlazione'!$Y$7+'Analisi Correlazione'!$Y$5 -> -0.03128870961 | R80: =N80*'Analisi Correlazione'!$Z$7+'Analisi Correlazione'!$Z$5 -> -0.01711639576 | S80: 3.928502913 | T80: 3.807933596 | U80: 0.0001 | V80: 0.0079 | W80: 0.0003807933596 | AF80: =MMULT(G80:J80,'Analisi Correlazione'!$U$38:$X$41) -> -0.5355589511 | AG80: -0.6130835712 | AH80: -1.426985986 | AI80: -0.713067363 | AJ80: =AF80*'Analisi Correlazione'!$AA$9+'Analisi Correlazione'!$W$5 -> -0.02436809217 | AK80: =AG80*'Analisi Correlazione'!$AB$9+'Analisi Correlazione'!$X$5 -> -0.01990000591 | AL80: =AH80*'Analisi Correlazione'!$AC$9+'Analisi Correlazione'!$Y$5 -> -0.04702952249 | AM80: =AI80*'Analisi Correlazione'!$AD$9+'Analisi Correlazione'!$Z$5 -> -0.03810384325 | AN80: 3.870598536 | AO80: 3.642814721 | AP80: 0.0001 | AQ80: 0.0079 | AR80: 0.0003642814721
B81: 80 | C81: 0.1517424086 | D81: 0.472522338 | E81: 0.4177929664 | F81: 0.7119541034 | G81: -1.028989057 | H81: -0.06893083271 | I81: -0.2075428486 | J81: 0.5591024642 | K81: =MMULT(G81:J81,'Analisi Correlazione'!$U$24:$X$27) -> -1.028989057 | L81: -0.5839028281 | M81: -0.6947534116 | N81: -0.2411934941 | O81: =K81*'Analisi Correlazione'!$W$7+'Analisi Correlazione'!$W$5 -> -0.03093706275 | P81: =H81*'Analisi Correlazione'!$X$7+'Analisi Correlazione'!$X$5 -> -0.001409669003 | Q81: =M81*'Analisi Correlazione'!$Y$7+'Analisi Correlazione'!$Y$5 -> -0.0146641958 | R81: =N81*'Analisi Correlazione'!$Z$7+'Analisi Correlazione'!$Z$5 -> -0.008230023281 | S81: 3.944759049 | T81: 3.808834436 | U81: 0.0001 | V81: 0.008 | W81: 0.0003808834436 | AF81: =MMULT(G81:J81,'Analisi Correlazione'!$U$38:$X$41) -> -1.028989057 | AG81: -0.783674051 | AH81: -0.8219983409 | AI81: -0.5294315177 | AJ81: =AF81*'Analisi Correlazione'!$AA$9+'Analisi Correlazione'!$W$5 -> -0.04710106692 | AK81: =AG81*'Analisi Correlazione'!$AB$9+'Analisi Correlazione'!$X$5 -> -0.02546685527 | AL81: =AH81*'Analisi Correlazione'!$AC$9+'Analisi Correlazione'!$Y$5 -> -0.02713207208 | AM81: =AI81*'Analisi Correlazione'!$AD$9+'Analisi Correlazione'!$Z$5 -> -0.02840223724 | AN81: 3.871897768 | AO81: 3.64305627 | AP81: 0.0001 | AQ81: 0.008 | AR81: 0.000364305627
B82: 81 | C82: 0.3395579875 | D82: 0.7148984338 | E82: 0.8839562012 | F82: 0.4615792763 | G82: -0.413669762 | H82: 0.5677523601 | I82: 1.194998548 | J82: -0.09645583025 | K82: =MMULT(G82:J82,'Analisi Correlazione'!$U$24:$X$27) -> -0.413669762 | L82: 0.2775266706 | M82: 0.9396861559 | N82: 0.2096640536 | O82: =K82*'Analisi Correlazione'!$W$7+'Analisi Correlazione'!$W$5 -> -0.01225431317 | P82: =H82*'Analisi Correlazione'!$X$7+'Analisi Correlazione'!$X$5 -> 0.01259582749 | Q82: =M82*'Analisi Correlazione'!$Y$7+'Analisi Correlazione'!$Y$5 -> 0.01960497707 | R82: =N82*'Analisi Correlazione'!$Z$7+'Analisi Correlazione'!$Z$5 -> 0.0063466234 | S82: 4.026293115 | T82: 3.810129632 | U82: 0.0001 | V82: 0.0081 | W82: 0.0003810129632 | AF82: =MMULT(G82:J82,'Analisi Correlazione'!$U$38:$X$41) -> -0.413669762 | AG82: 0.1014091049 | AH82: 0.748062763 | AI82: 0.1598018543 | AJ82: =AF82*'Analisi Correlazione'!$AA$9+'Analisi Correlazione'!$W$5 -> -0.01875249671 | AK82: =AG82*'Analisi Correlazione'!$AB$9+'Analisi Correlazione'!$X$5 -> 0.003415908887 | AL82: =AH82*'Analisi Correlazione'!$AC$9+'Analisi Correlazione'!$Y$5 -> 0.02450569806 | AM82: =AI82*'Analisi Correlazione'!$AD$9+'Analisi Correlazione'!$Z$5 -> 0.008010428366 | AN82: 4.017179539 | AO82: 3.643454104 | AP82: 0.0001 | AQ82: 0.0081 | AR82: 0.0003643454104
